{"text_format":"1","workbook":"xlsx","n_sheets":24,"sheets":["Menú Principal","GD","GI","EPS","PEI","GIN","AA","C","II","ARC","GIB","GSIT","GDTH","GIF","GC","BI","GL","SC","GDO","GRF","GJ","GEC","CD","Datos"],"not_rendered":{"charts":0,"images":28,"macros":1,"external_links":28,"defined_names":76,"comments":17,"pivot_tables":0},"unopened":[],"bounds":{"document_bytes":16777216,"sheet_cells":100000,"rows_first":2000,"rows_last":500,"rows_between":2000,"halvings":0,"cell_chars":16384,"cell_head_chars":4096},"cells_cut":0,"cells_raw":0,"read":"whole","date_system":"1900"}

{"sheet":"Menú Principal","index":0,"n_rows":11,"n_cols":9,"rows_kept":11,"cut":false,"hidden":false,"merged":[[5,2,5,9],[1,8,1,9],[1,4,1,7],[1,1,3,2],[2,4,2,7],[3,4,3,7],[3,8,3,9],[2,8,2,9]]}
[]
[null,null,null,null,"NORMOGRAMA POR PROCESOS",null,null,null,"Código: GI-PR-002-FR-017"]
[null,null,null,null,"Macroproceso: Direccionamiento Estratégico",null,null,null,"Versión: 02"]
[null,null,null,null,"Proceso: Gestión Integrada",null,null,null,"Fecha de Aprobación: 17/11/2017"]
[]
[null,null,"                         Por favor seleccione el Proceso "]
[]
[null," ","Proceso"]
[]
[]
[" "]

{"sheet":"GD","index":1,"n_rows":75,"n_cols":10,"rows_kept":75,"cut":false,"hidden":false,"merged":[[1,1,3,2],[1,3,1,6],[1,7,1,8],[1,9,3,9],[2,3,2,6],[2,7,2,8],[3,3,3,6],[3,7,3,8],[74,3,74,4],[74,6,74,7],[5,1,5,2],[5,3,5,9],[7,1,7,9],[9,1,71,1],[9,2,71,2],[73,3,73,4],[73,6,73,7]]}
[]
[null,null,null,"NORMOGRAMA POR PROCESOS",null,null,null,"Código: GI-PR-002-FR-017"]
[null,null,null,"Macroproceso: Direccionamiento Estratégico",null,null,null,"Versión: 02"]
[null,null,null,"Proceso: Gestión Integrada",null,null,null,"Fecha de Aprobación: 17/11/2017"]
[null," "]
[null,"Proceso",null,"Gestión de Docencia"]
[]
[null,"IDENTIFICACIÓN DE REQUISÍTOS LEGALES Y/O NORMATIVOS -  IDENTIFICACIÓN DEL REQUISÍTO"]
[null,"Macroproceso","Proceso","Clasificación de la Norma","Año","Temática","Expedida por","Interna","Externa","Artículo Aplicable"]
[null,"Gestión Académica","Gestión de Docencia","Constitución Política de Colombia",1991,"Constitución Política de Colombia.","Asamblea Nacional Constituyente",null,"X","Arts. 67,69 y 79"]
[null,null,null,"Ley 30",1992,"Por la cual de organiza el servicio público de Educación Superior.","Congreso Nacional de Colombia",null,"X","Toda"]
[null,null,null,"Ley 1188 ",2008,"Por la cual se regula el registro calificado de programas de educación superior y se dictan otras disposiciones.","Congreso Nacional de Colombia",null,"X","Toda"]
[null,null,null,"Ley 1324",2009,"Por la cual se fijan parámetros y criterios para organizar el sistema de evaluación de resultados de la calidad de la educación, se dictan normas para el fomento de una cultura de la evaluación, en procura de facilitar la inspección y vigilancia del Estado y se transforma el Icfes.","Congreso de la República","X",null,"Toda"]
[null,null,null,"Decreto 4216",2009,"Por el cual reglamenta el Examen de Estado de Calidad de la Educación Superior. ","Presidencia de la República","X",null,"Todo"]
[null,null,null,"Decreto 3782",2007,"Por el cual se reglamenta la evaluación anual de desempeño laboral de los servidores públicos docentes y directivos docentes que se rigen por el Decreto Ley 1278 de 2002.","Ministerio de Educación Nacional",null,"X","Todo"]
[null,null,null,"Decreto 3963",2009,"Por el cual se reglamenta el Examen de Estado de Calidad de la Educación Superior. ","Ministerio de Educación Nacional",null,"X","Todo"]
[null,null,null,"Decreto1279",2002,"Por el cual se establece el régimen salarial y prestacional de los docentes de las Universidades Estatales.","Ministerio de Educación Nacional",null,"X","Todo"]
[null,null,null,"Decreto 1075",2015,"Por medio del cual se expide el Decreto Único Reglamentario del Sector Educación.","Ministerio de Educación Nacional",null,"X","Capítulo 2: Registro Calificado, Oferta y Desarrollo de Programas Académicos de Educación Superior; Secciones 1 a 10 "]
[null,null,null,"Decreto 2450",2015,"Por el cual se reglamenta el Registro Calificado de que trata la Ley 1188 de 2008 Por el cual se reglamentan las condiciones de calidad para el otorgamiento y renovación del registro calificado de los programas académicos de licenciatura y los enfocados a la educación, y se adiciona el Decreto 1075 de 20015, Único Reglamentario del Sector Educación.","Ministerio de Educación Nacional",null,"X","Todo"]
[null,null,null,"Decreto 1330",2019,"Por el cual se sustituye el Capítulo 2 y se suprime el Capítulo 7 del Título 3 de la Parte 5 del Libro 2 del Decreto 1075 de 2015 -Único Reglamentario del Sector Educación.","Ministerio de Educación Nacional",null,"X","Todo"]
[null,null,null,"Resolución 18583 ",2017,"Por la cual se ajustan las características especificas de calidad de los programas de Licenciatura para la obtención, renovación o modificación del registro calificado, y se deroga la Resolución 2041 de 2016.","Ministerio de Educación Nacional",null,"X","Todo"]
[null,null,null,"Decreto 055",2015,"Por el cual se reglamenta la afiliación de estudiantes al sistema general de riesgos laborales y se dictan otras disposiciones."," Ministerio de Salud y Protección Social",null,"X","Todo"]
[null,null,null,"Acuerdo 027",1993,"Por medio del cual se expide el Estatuto Estudiantil.","Consejo Superior Universitario","X",null,"Todo"]
[null,null,null,"Acuerdo 004",1996,"Por el cual se expide el Estatuto Académico de la Universidad Distrital Francisco José de Caldas.","Consejo Superior Universitario","X",null,"Todo"]
[null,null,null,"Acuerdo 003",1997,"Por el cual se expide el Estatuto General de la Universidad Distrital Francisco José de Caldas.","Consejo Superior Universitario ","X",null,"Todo"]
[null,null,null,"Acuerdo 010",1998,"Por el cual se reglamenta el reconocimiento del auxilio a Estudiantes cuando estos deban salir fuera de Bogotá.","Consejo Superior Universitario","X",null,"Todo"]
[null,null,null,"Acuerdo 006",2002,"Por la cual se fija el valor de la Hora Cátedra por honorarios y se establece un número máximo de horas para los docentes de carrera que prestan servicios a la Universidad Distrital Francisco José de Caldas, en los programas de Postgrado y modifican parcialmente los Acuerdos 005 y 007 de 2001.","Consejo Superior Universitario","X",null,"Todo"]
[null,null,null,"Acuerdo 008 ",2002,"Por el cual se institucionaliza los Comités y la Evaluación Docente (Comité de Evaluación de Docentes de la Universidad Distrital Francisco José de Caldas.","Consejo Superior Universitario","X",null,"Todo"]
[null,null,null,"Acuerdo 011",2002,"Por el cual se expide el Estatuto del Docente de la Universidad Distrital Francisco José de Caldas.","Consejo Superior Universitario","X",null,"Todo"]
[null,null,null,"Acuerdo 001",2004,"Por medio del cual se reglamenta el sistema de bonificación docente en la UDFJC.","Consejo Superior Universitario","X",null,"Todo"]
[null,null,null,"Acuerdo 007 ",2005,"Por el cual se reglamentan los procedimientos para el otorgamiento y desarrollo del estimulo académico del Año Sabático para los profesores de carrera de la Universidad Distrital Francisco José de Caldas.","Consejo Superior Universitario","X",null,"Todo"]
[null,null,null,"Acuerdo 004",2006,"Por el cual se establece y unifica el régimen de liquidación matriculas para los estudiantes de la UDFJC.","Consejo Superior Universitario","X",null,"Todo"]
[null,null,null,"Acuerdo 009",2007,"Por el cual se reglamenta el Estatuto Docente de la Universidad Distrital en cuanto a políticas y procedimientos para el apoyo a la Formación Postgradual de alto nivel a Profesores de Carrera y se dictan otras disposiciones.","Consejo Superior Universitario","X",null,"Todo"]
[null,null,null,"Acuerdo 006",2008,"Por el cual se reglamenta el reconocimiento y los estímulos por el desempeño destacado en las actividades de docencia, a los profesores de carrera de la Universidad Distrital a quienes se les aplica el decreto 1279 de 2002 y demás disposiciones que lo modifiquen o adicionen.","Consejo Superior Universitario","X",null,"Todo"]
[null,null,null,"Acuerdo 007 ",2008,"Por medio del cual se reglamenta el reconocimiento y estímulos por la eficiencia docente, a los Docentes de Carrera de la Universidad Distrital que se rigen por el artículo transitorio 3 del Estatuto Docente de la institución.","Consejo Superior Universitario ","X",null,"Todo"]
[null,null,null,"Acuerdo 005",2007,"Por el cual se expide el reglamento de concursos públicos de méritos para la provisión de cargos en la planta de personal docente de la Universidad Distrital Francisco José de Caldas.","Consejo Superior Universitario ","X",null,"Todo"]
[null,null,null,"Acuerdo 008 ",2010,"Por el cual se dictan políticas para incorporar en los Planes de Estudios de los Proyectos Curriculares de Pregrado de la Universidad Créditos Académicos conducentes a la formación de competencias básicas comunicativas en una segunda lengua.","Consejo Superior Universitario","X",null,"Todo"]
[null,null,null,"Acuerdo 015",2010,"Por el cual se establecen y reglamentan las Opciones de Trabajo de Grado para los proyectos curriculares de pregrado de la Universidad Distrital Francisco José de Caldas.","Consejo Superior Universitario","X",null,"Todo"]
[null,null,null,"Acuerdo 004",2011,"Por el cual se modifica el acuerdo 003/2011 expedido por el Consejo Superior Universitario.","Consejo Superior Universitario","X",null,"Todo"]
[null,null,null,"Acuerdo 005",2011,"Por medio del cual se modifica el artículo 84 del Estatuto del Docente de carrera de la Universidad Distrital.","Consejo Superior Universitario","X",null,"Todo"]
[null,null,null,"Acuerdo 004",2012,"Por medio del cual se expide el estatuto de propiedad intelectual.","Consejo Superior Universitario","X",null,"Todo"]
[null,null,null,"Acuerdo 009",2018,"Por el cual se adopta el Plan Estratégico de Desarrollo 2018 - 2030 de la Universidad Distrital Francisco José de Caldas.","Consejo Superior Universitario","X",null,"Todo"]
[null,null,null,"Acuerdo 009",2006,"Por el cual se implementa el sistema de Créditos Académicos en la Universidad Distrital Francisco José de Caldas.","Consejo Académico","X",null,"Todo"]
[null,null,null,"Acuerdo 029",2013,"Por el cual se reglamenta el Trabajo de Grado para los estudiantes de pregrado de la Universidad Distrital Francisco José de Caldas y se dictan otras disposiciones.","Consejo Académico","X",null,"Todo"]
[null,null,null,"Acuerdo 030",2013,"Normatividad del Sistema de Bibliotecas de la Universidad Distrital Francisco José de Caldas.","Consejo Académico","X",null,"Todo"]
[null,null,null,"Acuerdo 011",2014,"Por el cual se aprueba la política de Acreditación Institucional de la Universidad Distrital Francisco José de Caldas y se autoriza al Rector presentar el inicio de las condiciones iniciales de Acreditación institucional ante el Ministerio de Educación Nacional.","Consejo Académico","X",null,"Todo"]
[null,null,null,"Acuerdo 031",2014,"Por el cual se reglamenta el Trabajo de Grado para los estudiantes de pregrado de la Universidad Distrital Francisco José de Caldas.","Consejo Académico","X",null,"Todo"]
[null,null,null,"Acuerdo 038",2015,"Por el cual se modifica el acuerdo No. 031 de 2014, que reglamenta el trabajo de grado para los estudiantes de pregrado de la Universidad Distrital Francisco José de Caldas y se dictan otras directrices.","Consejo Académico","X",null,"Todo"]
[null,null,null,"Acuerdo 042",2016,"Por el cual se fijan los requisitos y condiciones para el desempeño de asistente académico e investigativo y se unifican disposiciones conforme lo reglamentado y dispuesto por el Consejo Superior Universitario.","Consejo Académico","X",null,"Todo"]
[null,null,null,"Resolución 004",2003,"Por el cual se establecen las escalas salariales de las distintas categorías de empleos de la Universidad Distrital Francisco José de Caldas y se dictan otras disposiciones.","Consejo Superior universitario","X",null,"Toda"]
[null,null,null,"Resolución 035",2006,"Por el cual se reglamenta la aplicación del Sistema de Créditos Académicos en la Universidad Distrital Francisco José de Caldas.","Consejo Académico","X",null,"Toda"]
[null,null,null,"Resolución 317",2006,"Por medio de la cual se fija el escalafón equivalente para los profesores de VINCULACIÓN ESPECIAL, que prestan servicios a la Universidad Distrital Francisco José de Caldas.","Consejo Académico","X",null,"Toda"]
[null,null,null,"Resolución 318",2006,"Por medio de la cual se fija el escalafón equivalente para los profesores de VINCULACIÓN ESPECIAL, que prestan servicios a la Universidad Distrital Francisco José de Caldas, dedicados a la enseñanza de las ARTES y se dictan otras disposiciones.","Consejo Académico","X",null,"Toda"]
[null,null,null,"Resolución 053",2011,"Por la cual se establecen las áreas de formación y espacios académicos transversales a los programas curriculares de pregrado de la Universidad, en el marco de la flexibilidad curricular.","Consejo Académico","X",null,"Toda"]
[null,null,null,"Resolución 048",2011,"Por el cual se reglamentan aspectos de la formación por ciclos de la Facultad Tecnológica de la Universidad Distrital.","Consejo Académico","X",null,"Toda"]
[null,null,null,"Resolución 099",2013,"Por  medio de la cual se establece, unifica y aclaran los requisitos y procedimientos para la obtención de títulos de pregrado y postgrado de la Universidad Distrital.","Consejo Académico","X",null,"Toda"]
[null,null,null,"Resolución 129",2004,"Por la cual se crea el Comité Institucional de Auto evaluación y Acreditación de Calidad de la Universidad Distrital Francisco José de Caldas y se asignan sus funciones.","Rectoría","X",null,"Toda"]
[null,null,null,"Resolución 318",2006,"Por medio de la cual se fija el escalafón equivalente para los profesores de VINCULACIÓN ESPECIAL, que prestan servicios a la Universidad Distrital Francisco José de Caldas, dedicados a la enseñanza de las ARTES y se dictan otras disposiciones.","Rectoría","X",null,"Toda"]
[null,null,null,"Resolución 452",2006,"Por el cual se crea el Comité Institucional de Currículo en la Universidad Distrital Francisco José de Caldas y se asignan sus funciones.","Rectoría","X",null,"Toda"]
[null,null,null,"Resolución  482",2006,"Por medio de la cual se adopta el manual de interventoría y supervisión de la Universidad Distrital Francisco José de Caldas.","Rectoría","X",null,"Toda"]
[null,null,null,"Resolución 008",2008,"Por el cual se ordena el reconocimiento de PUNTOS SALARIALES a algunos Docentes de Planta de la Universidad Distrital, adscritos al Decreto 1279/02.","Rectoría","X",null,"Toda"]
[null,null,null,"Resolución 445",2010,"Por medio de la cual se reglamenta lo concerniente al Escalafón e ingreso de profesores de Vinculación Especial.","Rectoría","X",null,"Toda"]
[null,null,null,"Resolución 109",2016,"Por la cual se adopta el Documento Maestro y el aplicativo de condiciones institucionales de la Universidad Distrital Francisco José de Caldas para los procesos de creación de Programas Académicos y Solicitud y Renovación de Registros Calificados.","Rectoría","X",null,"Toda"]
[null,null,null,"Resolución 704",2016,"Por la cual se modifican las funciones del Comité Institucional de Auto evaluación y Acreditación de Calidad de la Universidad Distrital Francisco José de Caldas, se adopta el Subsistema de Auto evaluación y Acreditación (SAA) y se asignan sus funciones.","Rectoría","X",null,"Toda"]
[null,null,null,"Resolución 01",2017,"Por la cual se ordena articular el Plan Estratégico de Desarrollo el Plan de Mejoramiento Institucional y se dispone que en los planes de la unidades académicas y/o administrativas y en los planes de trabajo individual se de alcance a los resultados de la Auto evaluación con fines de Acreditación de alta Calidad de la Universidad y de los proyectos curriculares.","Rectoría","X",null,"Toda"]
[null,null,null,"Resolución 444",2018,"Por la cual se adopta el Plan Indicativo para el período 2018 - 2021 de la Universidad Distrital Francisco José de Caldas","Rectoría","X",null,"Toda"]
[null,null,null,"Resolución 163",2019,"Por la cual se ajusta el Sistema Integrado de Gestión de la Universidad Distrital Francisco José de Caldas, SIGUD, se implementa el Modelo Integrado de Planeación y Gestión - MIPG, como su Marco de Referencia, y se crea el Comité Institucional de Gestión y Desempeño.","Rectoría","X",null,"Toda"]
[null,null,null,"Resolución 297",2019,"Por la cual se reglamenta el funcionamiento y operativización de los Equipos Técnicos de Gestión y Desempeño, como instancias de apoyo del Comité Institucional de Gestión y Desempeño, y se corrige la Resolución de Rectoría N° 163 de mayo 9 de 2019.","Rectoría","X",null,"Toda"]
[null,null,null,"Resolución 001",2012,"Por el cual se establece el proceso de selección y vinculación de docentes de vinculación especial.","Vicerrectora Académica","X",null,"Toda"]
[null,null,null,"Circular 003",2004,"Por el cual se sugieren los lineamientos para la descarga de horas lectivas de docentes de carrera de la Universidad.","Consejo Académico","X",null,"Toda"]
[null,null,null,"Circular 004",2008,"Por el cual se sugieren los lineamientos para la descarga de horas lectivas de docentes de carrera de la Universidad."," Consejo Académico","X",null,"Toda"]
[null,null,null,"Circular 004",2011,"Directrices Generales sobre Gestión Académica.","Consejo Académico","X",null,"Toda"]
[]
[null,null,null,"ELABORÓ",null,"REVISÓ","APROBÓ"]
[null,null,null,"Nombre: Equipo SIGUD\nCargo: N/A\nFecha: 15/10/2019",null,"Nombre: Esperanza del Pilar Infante\nCargo: Vicerrector Académico (E)\nFecha: 17/12/20119","Nombre: Esperanza del Pilar Infante\nCargo: Vicerrector Académico (E)\nFecha: 17/12/20119"]

{"sheet":"GI","index":2,"n_rows":84,"n_cols":10,"rows_kept":84,"cut":false,"hidden":false,"merged":[[83,3,83,4],[83,6,83,8],[5,1,5,2],[5,3,5,9],[7,1,7,9],[9,1,80,1],[9,2,80,2],[82,3,82,4],[82,6,82,8],[1,1,3,2],[1,3,1,6],[1,7,1,8],[1,9,3,9],[2,3,2,6],[2,7,2,8],[3,3,3,6],[3,7,3,8]]}
[]
[null,null,null,"NORMOGRAMA POR PROCESOS",null,null,null,"Código: GI-PR-002-FR-017"]
[null,null,null,"Macroproceso: Direccionamiento Estratégico",null,null,null,"Versión: 02"]
[null,null,null,"Proceso: Gestión Integrada",null,null,null,"Fecha de Aprobación: 17/11/2017"]
[]
[null,"Proceso",null,"Gestión de Investigación"]
[]
[null,"IDENTIFICACIÓN DE REQUISÍTOS LEGALES Y/O NORMATIVOS -  IDENTIFICACIÓN DEL REQUISÍTO"]
[null,"Macroproceso","Proceso","Clasificación de la Norma","Año","Temática","Expedida por","Interna","Externa","Artículo Aplicable"]
[null,"Gestión Academica",{"$f":"IF(D6=\"\",\"-\",D6)","v":"Gestión de Investigación"},"Ley  23",1982,"En donde se constituye la base de la reglamentacion nacional en materia de Derechos de Autor.","Congreso de la República",null,"X","Completa "]
[null,null,null,"Ley  29",1990,"Por la cual se dictan disposiciones para el fomento de la Investigación Científica y el Desarrollo Tecnológico y se otorgan facultades extraordinarias. \"Artículo 2.- La acción del Estado en esta materia se dirigirá a crear condiciones favorables para la generación de conocimiento científico y tecnología nacionales; a estimular la capacidad innovadora del sector productivo; a orientar la importación selectiva de tecnología aplicable a la producción nacional; a fortalecer los servicios de apoyo a la investigación científica y al desarrollo tecnológico; a organizar un sistema nacional de información científica y tecnológica; a consolidar el sistema institucional respectivo y, en general, a dar incentivos a la creatividad, aprovechando sus producciones en el mejoramiento de la vida y la cultura del pueblo.","Congreso de la República",null,"X","Artículo 2"]
[null,null,null,"Ley  80",1993,"Por la cual se expide el Estatuto General de Contratación de la Administración Pública. Art. 6. De la Capacidad para Contratar. Pueden celebrar contratos con las entidades estatales las personas consideradas legalmente capaces en las disposiciones vigentes. También podrán celebrar contratos con las entidades estatales, los consorcios y uniones temporales.","Congreso de la República",null,"X","Artículo 6"]
[null,null,null,"Ley 87",1993,"Por la cual se establecen normas para el ejercicio del Control Interno en las entidades y organismos del Estado y se dictan otras disposiciones. Artículo 1.- Definición del Control Interno. Se entiende por Control Interno el Sistema Integrado por el esquema de organización y el conjunto de los planes, métodos, principios, normas, procedimientos y mecanismos de verificación y evaluación adoptados por una entidad, con el fin de procurar que todas las actividades, operaciones y actuaciones, así como la administración de la información y los recursos, se realicen de acuerdo con las normas constitucionales y legales vigentes dentro de las políticas trazadas por la dirección y en atención a las metas u objetivos previstos. El ejercicio de Control Interno debe consultar los principios de igualdad, moralidad, eficiencia, economía, celeridad, imparcialidad, publicidad y valoración de costos ambientales. En consecuencia, deberá concebirse y organizarse de tal manera que su ejercicio sea intrínseco al desarrollo de las funciones de todos los cargos existentes en la entidad, y en particular de las asignadas a aquellos que tengan responsabilidad del mando. ","Congreso de la República",null,"X","Artículo1"]
[null,null,null,"Ley  152",1994,"Por la cual se establece la Ley Orgánica del Plan de Desarrollo. CAPÍTULO I Principios generales Artículo 1.-Propósitos.La presente Ley tiene como propósito establecer los procedimientos y mecanismos para la elaboración, aprobación, ejecución, seguimiento, evaluación y control de los planes de desarrollo, así como la regulación de los demás aspectos contemplados por el artículo 342, y en general por el artículo 2 del Título XII de la Constitución Política y demás normas constitucionales que se refieren al Plan de Desarrollo y la planificación. Artículo2.-Ámbito de aplicación.La Ley Orgánica del Plan de Desarrollo se aplicará a la Nación, las entidades territoriales y los organismos públicos de todo orden. CAPÍTULO VI Ejecución del Plan Artículo 26.-Planes de Acción.Con base en el Plan Nacional de Desarrollo aprobado cada uno de los organismos públicos de todo orden a los que se aplica esta Ley preparará su correspondiente Plan de Acción. En la elaboración del Plan de Acción y en la programación del gasto se tendrán en cuenta los principios a que se refiere el artículo 3 de la presente Ley, así como las disposiciones constitucionales y legales pertinentes. Los planes que ejecuten las entidades nacionales son asiento en las entidades territoriales deberán ser consultados previamente con las respectivas autoridades de planeación, de acuerdo con sus competencias. CAPÍTULO X Procedimientos para los Planes Territoriales de Desarrollo. Artículo 41º.- Planes de Acción en las entidades territoriales. Con base en los planes generales departamentales o municipales aprobados por el correspondiente Concejo o Asamblea, cada Secretaría y Departamento Administrativo preparará, con la coordinación de la Oficina de Planeación, su correspondiente Plan de Acción y lo someterá a la aprobación del respectivo Consejo de Gobierno departamental, Distrital o municipal. En el caso de los sectores financiados con transferencias nacionales, especialmente educación y salud, estos planes deberán ajustarse a las normas legales establecidas para dichas transferencias.","Congreso de la República",null,"X","Art 1; Art; 2; Art;26;Art 41;"]
[null,null,null,"Ley 1014",2006,"De fomento a la cultura de emprendimiento Art. 2 a) Promover el espíritu emprendedor en todos los estamentos educativos del país, en el cual se propenda y trabaje conjuntamente sobre los principios y valores que establece la Constitución y los establecidos en la presente ley.","Congreso de la República",null,"X","Artículo 2"]
[null,null,null,"Ley 1286",2009,"Por la cual se modifica la Ley 29 de 1990, se transforma a Colciencias en Departamento Administrativo, se fortalece el Sistema Nacional de Ciencia, Tecnología e Innovación en Colombia y se dictan otras disposiciones.","Congreso de la República",null,"X","Completa "]
[null,null,null,"Ley 1753",2015,"Por la cual se expide el Plan Nacional de Desarrollo 2014-2018 “Todos por un nuevo país.","Congreso de la República",null,"X","Completa "]
[null,null,null,"Ley 1951",2019,"por la cual crea el Ministerio de Ciencia, Tecnología e Innovación, se fortalece el Sistema Nacional de Ciencia, Tecnología e Innovación y se dictan otras disposiciones","Congreso de la República",null,"X","Completa "]
[null,null,null,"Ley 1955 ",2019,"por el cual se expide el Plan Nacional de Desarrollo 2018-2022. “Pacto por Colombia, Pacto por la Equidad”","Congreso de la República",null,"X","Completa "]
[null,null,null,"Ley  1838",2017,"Por la cual se dictan normas de fomento a la ciencia, tecnología e innovación mediante la creación de empresas de base tecnológica (SPIN OFFS) y se dictan otras disposiciones\".","Congreso de la República",null,"X","Completa "]
[null,null,null,"Decreto 393",1991,"Por el cual se dictan normas sobre asociación para actividades científicas y tecnológicas, proyectos de investigación y creación de tecnologías. Art. 1. MODALIDADES DE ASOCIACIÓN. Para adelantar actividades científicas y tecnológicas proyectos de investigación y creación de tecnologías, la Nación y sus entidades descentralizadas podrán asociarse con los particulares bajo dos modalidades.","Presidencia de la República",null,"X","Artículo 1"]
[null,null,null,"Decreto  4923",2011,"Por el cual se garantiza la operación del Sistema General de Regalías","Presidencia de la República",null,"X","Completa "]
[null,null,null,"Decreto 19",2012,"Por el cual se dictan normas para suprimir o reformar regulaciones, procedimientos y trámites innecesarios existentes en la Administración Pública.","Presidencia de la República",null,"X","Artículo 1; Artículo 4; Artículo 6; Artículo 38"]
[null,null,null,"Decreto 591",1991,"Por el cual se regulan las modalidades específicas de contratos de fomento de actividades científicas y tecnológicas.","Ministerio de Gobierno",null,"X","Completa "]
[null,null,null,"Decreto  584",1991,"Por el cual se reglamentan los viajes de estudio al exterior de los investigadores nacionales.  Art. 1. Para efectos del presente Decreto se entiende por viaje de estudio al exterior, el desplazamiento a otro país para desarrollar actividades que impliquen formación, capacitación, adiestramiento o perfeccionamiento, que pueden ser, entre otras, programas de formación avanzada, cursos, pasantías, visitas de observación a centros de investigación, laboratorios, parques tecnológicos o afines, seminarios, foros, congresos, simposios y talleres.","Ministerio de Gobierno",null,"X","Artículo 1"]
[null,null,null,"Decreto 585",1991,"Por el cual se crea el Consejo Nacional de Ciencia y Tecnología, se reorganiza el Instituto Colombiano para el Desarrollo de la Ciencia y la Tecnología -COLCIENCIAS- y se dictan otras disposiciones. Art 19, 13. Diseñar, impulsar y ejecutar estrategias permanentes de: consolidación de las comunidades científicas y tecnológicas; comunicación entre científicos y personas involucradas en investigación y desarrollo; fomento y auspicio del intercambio nacional e internacional de investigaciones, investigadores y recursos de investigación; regionalización de las actividades científicas y tecnológicas, y establecimiento de redes de cooperación entre grupos de investigación.","Ministerio de Gobierno",null,"X","Artículo 19"]
[null,null,null,"Decreto 849",2016,"\"Por el cual se modifica la estructura del Departamento Administrativo de Ciencia, Tecnología e Innovación -COLCIENCIAS\"","COLCIENCIAS ",null,"X","Completa "]
[null,null,null,"Resolución 314",2018,"\"Por la cual el Departamento Administrativo de Ciencia, Tecnología e lnnovación,adopta la Política de Ética de la Investigación, Bioética e Integridad","COLCIENCIAS ",null,"X","Completa "]
[null,null,null,"Resolución 674",2018,"\"Por la cual se adopta la Política de Ciencia, Tecnología e Innovación para el desarrollo sostenible - Libro Verde 2030\"","COLCIENCIAS ",null,"X","Completa "]
[null,null,null,"Resolución 873",2018,"\"Por medio del cual se crea el Comité Técnico de Asuntos OCDE\"","COLCIENCIAS ",null,"X","Completa "]
[null,null,null,"Directiva Presidencial 04",2012,"Eficiencia administrativa y lineamientos de la polltica cero papel en la administración pública.","Presidencia de la República",null,"X","Completa "]
[null,null,null,"Decisión andina 486",2000,"Regimen común sobre propiedad industrial.","Comisión de la comunidad Andina",null,"X","Completa "]
[null,null,null,"Decisión andina 351",1993,"Régimen común sobre derecho de autor y derechos conexos.","Comisión de la comunidad Andina",null,"X","Completa "]
[null,null,null,"Documento Guía\nServicio Permanente de Indexación de\nRevistas de Ciencia, Tecnología e Innovación Colombianas 2014",2014,"Documento Guía Servicio Permanente de Indexación de Revistas de Ciencia, Tecnología e Innovación Colombianas 2014.","COLCIENCIAS ",null,"X","Completa "]
[null,null,null,"Modelo de Medición de Grupos de Investigación, Desarrollo Tecnológico o de Innovación y de Reconocimiento de Investigadores del Sistema Nacional de Ciencia, Tecnología e Innovación, Año 2017",2017,"Modelo de Medición de Grupos de Investigación, Desarrollo Tecnológico o de Innovación y de Reconocimiento de Investigadores del Sistema Nacional de Ciencia, Tecnología e Innovación, Año 2017.","COLCIENCIAS ",null,"X","Completa "]
[null,null,null,"Acuerdo 010",1988,"Por el cual se reglamenta el reconocimiento del Auxilio a Estudiantes cuando éstos deban salir fuera de Bogotá.","Consejo Superior Universitario","X",null,"Completa "]
[null,null,null,"Acuerdo 03",1989,"Por el cual se reglamentan las monitorias en la Universidad Distrital","Consejo Superior Universitario","X",null,"Completa "]
[null,null,null,"Acuerdo 014",1989,"Por el cual se modifica el Acuerdo CSU 03-1989","Consejo Superior Universitario","X",null,"Completa "]
[null,null,null,"Acuerdo 027",1993,"Por el cual se expide el Estatuto Estudiantil de la UDFJC","Consejo Superior Universitario","X",null,"Titulo II; titulo III, capitulo II; Titulo V"]
[null,null,null,"Acuerdo 014",1994,"Por el cual se reglamenta el Sistema de Investigaciones de la Universidad Distrital Francisco José de Caldas y se dictan otras disposiciones.","Consejo Superior Universitario","X",null,"Completa "]
[null,null,null,"Acuerdo 009",1996,"Por el cual se reglamenta la organización y desarrollo de la Investigación en la Universidad Distrital Francisco José de Caldas. ","Consejo Superior Universitario","X",null,"Completa "]
[null,null,null,"Acuerdo 003",1997,"Por el cual se expide el Estatuto General de la Universidad Distrital Francisco José de Caldas. ","Consejo Superior Universitario","X",null,"Artículo 6o, literal a); articulo 17o, literal e); articulo 29; articulo 32; articulo 40"]
[null,null,null,"Acuerdo  005",2007,"Por el cual se expide el Reglamento de Concursos Públicos de Méritos para la provisión de cargos en Planta de Personal Docente de la UDFJC","Consejo Superior Universitario","X",null,"Articulos 46 y 47"]
[null,null,null,"Acuerdo  009",2007,"Por el cual se reglamentan políticas y procedimientos para el apoyo a la formación postgradual de alto nivel a profesores de carrera","Consejo Superior Universitario","X",null,"Articulo 7o, literal c) y articulo 11o, literal j)"]
[null,null,null,"Acuerdo 001",2008,"Por medio del cual se confirma el Plan Estratégico de Desarrollo de la Universidad Distrital Francisco José de Caldas 2008-2016 Saberes, Conocimientos e Investigación de Alto Impacto para el Desarrollo Humano y Social. Art. 1 Política 3: Investigación de Alto Impacto para el desarrollo local, regional y nacional.","Consejo Superior Universitario","X",null,"Artículo  1"]
[null,null,null,"Acuerdo 005",2011,"Por el cual se modifica el artículo 84 del Estatuto Docente ","Consejo Superior Universitario","X",null,"Completa "]
[null,null,null,"Acuerdo 004",2012,"Por medio del cual se expide el estatuto de propiedad intelectual.","Consejo Superior Universitario","X",null,"Completa "]
[null,null,null,"Acuerdo 001",2013,"Por el cual se adopta Adopta el Plan Maestro de Informática y Telecomunicaciones de la Universidad Distrital","Consejo Superior Universitario","X",null,"Completa "]
[null,null,null,"Acuerdo  012",2014,"Por medio del cual se adiciona el acuerdo 009 del 25 de octbre de 1996, por el cual se reglamenta la organización y el desarrollo de la investigación en la universidad Distrital Francisco José de Caldas.","Consejo Superior Universitario","X",null,"Completa "]
[null,null,null,"Acuerdo  03",2015,"Por el cual se expide el Estatuto de Contratación de la UDFJC","Consejo Superior Universitario","X",null,"Completa "]
[null,null,null,"Acuerdo  017",2016,"Por el cual se amplia la vigencia del PED de la Universidad Distrital Francisco José de Caldas 2008-2016.","Consejo Superior Universitario","X",null,"Completa "]
[null,null,null,"Acuerdo 09",2018,"Por el cual se adopta el Plan Estratégico de Desarrollo 2018 - 2030 de la UDFJC","Consejo Superior Universitario","X",null,"Completa "]
[null,null,null,"Acuerdo 11",2018,"Por el cual se actualiza y adopta el Proyecto Universitario Institucional de la UDFJC","Consejo Superior Universitario","X",null,"Completa "]
[null,null,null,"Acuerdo 013",2018,"\"Por medio del cual se crea el Instituto de Investigación e Innovación en Ingeniería -I3+- de la Universidad Distrital Francisco José de Caldas, se reglamenta su organización y funcionamiento y se desarrolla el Fondo Especial de Promoción de la Investigación e Innovación en Ingeniería\"","Consejo Superior Universitario","X",null,"Completa "]
[null,null,null,"Acuerdo  001",2019,"Por el cual se crea y se reglamenta un estímulo económico a Docentes de Carrera de la UD por actividades de investigación, creación, o innovación  ","Consejo Superior Universitario","X",null,"Completa "]
[null,null,null,"Acuerdo 014",2009,"Por el cual se reglamenta y organiza el otorgamiento de Estímulos e Incentivos a los Estudiantes de la Universidad Distrital Francisco José de Caldas para la participación en su nombre en diferentes Eventos Académicos, Científicos, Culturales o Deportivos de carácter nacional o internacional.","Consejo Académico","X",null,"Completa "]
[null,null,null,"Acuerdo  022",2012,"Por el cual se traza la Política Editorial de la Universidad Distrital Francisco José de Caldas y se asumen otras disposiciones complementarias.","Consejo Académico","X",null,"Completa "]
[null,null,null,"Acuerdo  023",2012,"Por el cual se reglamenta la Política Editorial de la Universidad Distrital Francisco José de Caldas.","Consejo Académico","X",null,"Completa "]
[null,null,null,"Acuerdo  024",2012,"Por el cual se modifica el literal a.), del numeral l., del articulo 13o del Acuerdo 023 de junio 19 de 2012 \"Por el cual se reglamenta la Política Editorial de la Universidad Distrital Francisco José de Caldas.","Consejo Académico","X",null,"Completa "]
[null,null,null,"Acuerdo  027",2013,"Por el cual se adiciona un paragrafo al literal a.), del numeral l., del articulo 9o del Acuerdo 023 de junio 19 de 2012 \"Por el cual se reglamenta la Política Editorial de la Universidad Distrital Francisco José de Caldas.","Consejo Académico","X",null,"Completa "]
[null,null,null,"Acuerdo 030",2013,"Por medio del cual se crea el Repositorio Institucional de la UDFJC","Consejo Académico","X",null,"Completa "]
[null,null,null,"Acuerdo  035",2014,"Por medio del cual se adiciona el articulo 5° del Acuerdo 014 del 15 de diciembre de 2009","Consejo Académico","X",null,"Artículo 5"]
[null,null,null,"Acuerdo 031",2014,"Por el cual se reglamenta el Trabajo de Grado para los estudiantes de pregrado de la Universidad Distrital Francisco Jose de Caldas.","Consejo Académico","X",null,"Completa "]
[null,null,null,"Acuerdo 038",2015,"Por el cual se modifica el Acuerdo 031 de 2014 que reglamenta el trabajo de grado para los estudiantes de pregrado de la UDFJC","Consejo Académico","X",null,"Completa "]
[null,null,null,"Acuerdo   02 ",2001,"Por medio del cual se crea la Unidad de Investigaciones y se establece la reglamentación de la investigación en la Facultad Tecnológica de la Universidad Distrital Francisco josé de Caldas  ","Consejo de Facultad  Tecnologica","X",null,"Completo "]
[null,null,null,"Resolución  176",2014,"Por el cual se reglamenta el aval institucional de los grupos de investigación de la Universidad Distrital","Consejo Académico","X",null,"Completa "]
[null,null,null,"Resolución 335",2012,"Por la cual se establece el protocolo de compromisos para efectos de responsabilidades, derechos y obligaciones en materia de investigación, creación,innovación y desarrollo científico","Rectoria","X",null,"Completa "]
[null,null,null,"Resolución 693",2012,"Por el cual se establece el Comité de Bioetica para la Investigación de la UDFJC","Rectoria","X",null,"Completa "]
[null,null,null,"Resolución 734",2013,"Por la cual se establecen medidas de control para Convenios interadministrativos, Convenios de Asociación, Persona Jurídica con Entidades Privadas Sin Ánimo de Lucro y Asociaciones Público Privadas.","Rectoria","X",null,"Completa "]
[null,null,null,"Resolución 075",2015,"Por la cual se reglamenta el Acuerdo No 012 de 2014 del Consejo Superior Universitario Oficina de Transferencia de Resultados de Investigación (OTRI-BOGOTÁ) Del 26 de Febrero de 2015.","Rectoria","X",null,"Completa "]
[null,null,null,"Resolución 262",2015,"\"Por medio de la cual se reglamenta el Acuerdo 03 de 2015, Estatuto de\nPor medio de la cual se reglamenta el Estatuto de Contratación, Acuerdo 03 de 2015 CSU","Rectoria","X",null,"Completa "]
[null,null,null,"Resolución 593",2015,"Por medio de la cual se adopta el procedimiento para efectuar procesos de Contratación\r Directa","Rectoria","X",null,"Completa "]
[null,null,null,"Resolución 003",2016,"Por medio de la cual se reglamenta la contratación por Prestación de Servicios en la UDFJC","Rectoria","X",null,"Completa "]
[null,null,null,"Resolución  020",2016,"Por medio de la cual se  reglamenta el procedimiento para presentar, diligenciar, evaluar y hacer seguimiento a los proyectos y/o programas de investigación en el marco de convocatorias, convenios y/o acuerdos interinstitucionales.","Rectoria","X",null,"Completa "]
[null,null,null,"Resolución 629",2016,"Por medio del cual se adopta el Manual de Interventoría y Supervisión de la Universidad Distrital Francisco José de Caldas.","Rectoria","X",null,"Completa "]
[null,null,null,"Resolución  525",2017,"Por la cual se modifica la naturaleza y composición del Comité de Bioética de la Universidad Distrital","Rectoria","X",null,"Completa "]
[null,null,null,"Resolución 058",2018,"Por la cual se reglamento el procedimiento de publicación de los documentos precontractuales y contractuales en la página web de la entidad y en el SECOP","Rectoria","X",null,"Completa "]
[null,null,null,"Resolución  195",2019,"Por la cual se establece el procedimiento administrativo para la remuneración de evaluadores externos de proyectos y productos resultados de investigación","Rectoria","X",null,"Completa "]
[null,null,null,"Resolución  311",2019,"Por el cual se reglamenta el procedimiento general de solicitud de avances, aprobación, desembolsos y su correspondiente legalización en la UDFJC","Rectoria","X",null,"Completa "]
[null,null,null,"Resolución   04 ",2018,"por la cual se dispone el reglamento para la institucionalización de proyectos de investigación sin recursos financieros  en la  Facultad Tecnológica ","Consejo de Facultad  Tecnologica","x",null,"Completa "]
[null,null,null,"Circular CA",2014,"Descargas de horas lectivas por ejecución de programas y proyectos de investigación","Consejo Académico","X",null,"Completa "]
[]
[null,null,null,"ELABORÓ",null,"REVISÓ","APROBÓ"]
[null,null,null,"Nombre: Equipo SIGUD \nCargo:  N/A\nFecha: N/A",null,"Nombre: Giovanni Mauricio Tarazona\nCargo: Director del Centro de Investigación y Desarrollo\nFecha: 03/12/2019","Nombre: Giovanni Mauricio Tarazona\nCargo: Director del Centro de Investigación y Desarrollo\nFecha: 03/12/2019"]

{"sheet":"EPS","index":3,"n_rows":59,"n_cols":10,"rows_kept":59,"cut":false,"hidden":false,"merged":[[1,1,3,2],[1,3,1,6],[1,7,1,8],[1,9,3,9],[2,3,2,6],[2,7,2,8],[3,3,3,6],[3,7,3,8],[58,3,58,4],[58,6,58,7],[5,1,5,2],[5,3,5,9],[7,1,7,9],[9,1,54,1],[9,2,54,2],[57,3,57,4],[57,6,57,7]]}
[]
[null,null,null,"NORMOGRAMA POR PROCESOS",null,null,null,"Código: GI-PR-002-FR-017"]
[null,null,null,"Macroproceso: Direccionamiento Estratégico",null,null,null,"Versión: 02"]
[null,null,null,"Proceso: Gestión Integrada",null,null,null,"Fecha de Aprobación: 17/11/2017"]
[null," "]
[null,"Proceso",null,"Extensión y Proyección Social"]
[]
[null,"IDENTIFICACIÓN DE REQUISÍTOS LEGALES Y/O NORMATIVOS -  IDENTIFICACIÓN DEL REQUISÍTO"]
[null,"Macroproceso","Proceso","Clasificación de la Norma","Año","Temática","Expedida por","Interna","Externa","Artículo Aplicable"]
[null,{"$f":"IF(D6=[3]Datos!B3,\"N/A\",IF(OR(D6=[3]Datos!B4,D6=[3]Datos!B5,D6=[3]Datos!B6,D6=[3]Datos!B7,D6=[3]Datos!B8),\"Direccionamiento Estratégico\",IF(OR(D6=[3]Datos!B9,D6=[3]Datos!B10,D6=[3]Datos!B11),\"Gestión Académica\",IF(OR(D6=[3]Datos!B12,D6=[3]Datos!B13,D6=[3]Datos!B14,D6=[3]Datos!B15,D6=[3]Datos!B16),\"Apoyo a lo Misional\",IF(OR(D6=[3]Datos!B17,D6=[3]Datos!B18,D6=[3]Datos!B19,D6=[3]Datos!B20,D6=[3]Datos!B21,D6=[3]Datos!B22,D6=[3]Datos!B23),\"Gestión de Recursos\",IF(OR(D6=[3]Datos!B24,D6=[3]Datos!B25),\"Evaluación y Control\",\"-\"))))))","v":"Gestión Académica"},{"$f":"IF(D6=\"\",\"-\",D6)","v":"Extensión y Proyección Social"},"Constitución Política de Colombia",1991,"Constitución Política de Colombia.","Asamblea Nacional Constituyente",null,"X","Arts. 80, 106, 209, 268, 269, 354, 339, 342 y 343."]
[null,null,null,"Ley 30 ",1992,"Por el cual se organiza el servicio público de la Educación Superior.","Congreso de la República",null,"X","Toda"]
[null,null,null,"Ley 80 ",1993,"Por la cual se expide el Estatuto General de Contratación de la Administración Pública.","Congreso de la República",null,"X","Toda"]
[null,null,null,"Ley 115",1994,"Por la cual se expide la Ley General de Educación.","Congreso de la República",null,"X","Toda"]
[null,null,null,"Ley 472 ",1998,"Por la cual se desarrolla el artículo 88 de la Constitución Política de Colombia en relación con el ejercicio de las acciones populares y de grupo y se dictan otras disposiciones.","Congreso de la República",null,"X","Toda"]
[null,null,null,"Ley 599",2000,"Por la cual se expide el Código Penal.","Congreso de la República",null,"X","Toda"]
[null,null,null,"Ley 640 ",2001,"Por la cual se modifican normas relativas a la conciliación y se dictan otras disposiciones.","Congreso de la República",null,"X","Toda"]
[null,null,null,"Ley 647",2001,"Por la cual se modifica el inciso 3 del artículo 57 de la Ley 30 de 1992.","Congreso de la República",null,"X","Toda"]
[null,null,null,"Ley 734 ",2002,"Por la cual se expide el Código Disciplinario Único.","Congreso de la República",null,"X","Toda"]
[null,null,null,"Ley 1064 ",2006,"Por la cual se dictan normas para el apoyo y fortalecimiento de la Educación para el trabajo y el desarrollo humano establecida como educación no formal en la Ley General de Educación.","Congreso de la República",null,"X","Toda"]
[null,null,null,"Ley 1150",2007,"Por medio de la cual se introducen medidas para la eficiencia y la transparencia en la Ley 80 de 1993 y se dictan otras disposiciones generales sobre la contratación con Recursos Públicos.","Congreso de la República",null,"X","Toda"]
[null,null,null,"Ley 1474",2011,"Por la cual se dictan normas orientadas a fortalecer los mecanismos de prevención, investigación y sanción de actos de corrupción y la efectividad del control de la gestión pública.","Congreso de la República",null,"X","Toda"]
[null,null,null,"Ley 1437 ",2011,"Por la cual se expide el Código de Procedimiento Administrativo y de lo Contencioso Administrativo.","Congreso de la República",null,"X","Toda"]
[null,null,null,"Ley 594",2000,"Por medio de la cual se dicta la Ley General de Archivo.","Congreso de la República",null,"X","Toda"]
[null,null,null,"Ley 1341",2009,"Por la cual se definen Principios y conceptos sobre la sociedad de la información y la organización de las Tecnologías de la Información y las Comunicaciones -TIC-, se crea la  Agencia Nacional del Espectro y se dictan otras disposiciones.","Congreso de la República",null,"X","Toda "]
[null,null,null,"Ley 1651",2013,"Por medio de la cual se modifican los artículos 13, 20, 21,22,30 y 38 de la ley 115 de 1994 y se dictan otras disposiciones-ley de bilingüismo.","Congreso de la República",null,"X","Toda"]
[null,null,null,"Decreto – ley 2663",1950,"Código Sustantivo del Trabajo.","Congreso de la República",null,"X","Todo"]
[null,null,null,"Decreto 410",1971,"Código de Comercio.","Presidencia de la República",null,"X","Todo"]
[null,null,null,"Decreto 2591 ",1991,"Por el cual se reglamenta la Acción de Tutela consagrada en el artículo 86 de la Constitución Política.","Presidencia de la República",null,"X","Todo"]
[null,null,null,"Decreto 3870",2006,"Por el cual se reglamente la organización y funcionamiento de los programas de educación para el trabajo y el desarrollo humano en el área de idiomas y se establecen las condiciones mínimas de calidad.","Ministerio de Educación Nacional",null,"X","Todo"]
[null,null,null,"Decreto 4909",2009,"Por el cual se reglamenta la organización, oferta y funcionamiento de la prestación del servicio educativo para el trabajo y el desarrollo humano y se dictan otras disposiciones.","Ministerio de Educación Nacional",null,"X","Todo"]
[null,null,null,"Decreto 19 ",2012,"Por el cual se dictan normas para suprimir o reformar regulaciones, procedimientos y trámites innecesarios existentes en la Administración Pública.","Presidencia de la República",null,"X","Todo"]
[null,null,null,"Acuerdo 027",1993,"Por el cual se expide el Estatuto Estudiantil de la Universidad Distrital Francisco José de Caldas.","Consejo Superior Universitario","X",null,"Todo"]
[null,null,null,"Acuerdo 003 ",1997,"Por el cual se expide el Estatuto General de la Universidad Distrital Francisco José de Caldas.","Consejo Superior Universitario","X",null,"Todo"]
[null,null,null,"Acuerdo 002 ",2000,"Por medio del cual se establecen las bases para dar estructura a la labor de Extensión de la Universidad.","Consejo Superior Universitario","X",null,"Todo"]
[null,null,null,"Acuerdo 02 ",2001,"Por la cual se crea el Instituto de Lenguas de la Universidad Distrital y se reglamenta su estructura y funcionamiento.","Consejo Superior Universitario","X",null,"Todo"]
[null,null,null,"Acuerdo 011",2002,"Por el cual se expide el Estatuto del Docente de carrera de la de la Universidad Distrital Francisco José de Caldas.","Consejo Superior Universitario","X",null,"Todo"]
[null,null,null,"Acuerdo 014",2002,"Por medio del cual se crea el INSllTUTO PARA LA PEDAGOGÍA, LA PAZ Y EL CONFLICTO URBANO - IPAZUD - DE LA UNIVERSIDAD DISTRIT AL, y se reglamenta su estructura y funcionamiento.","Consejo Superior Universitario","X",null,"Toda"]
[null,null,null,"Acuerdo 002 ",2009,"Por medio del cual se reconocen estímulos económicos a los Docentes de Carrera de la Universidad Distrital Francisco José de Caldas por actividades de extensión.","Consejo Superior Universitario","X",null,"Todo"]
[null,null,null,"Acuerdo 08",2010,"Por el cual se dictan políticas para incorporar en los planes de estudio de los proyectos curriculares de pregrado de la Universidad Créditos  Académicos conducentes a la formación de competencias básicas comunicativas en una segunda lengua.","Consejo Superior Universitario","X",null,"Arts. 01, 02, 03, 04, 05, 08 y 09"]
[null,null,null,"Acuerdo 004 ",2013,"Por el cual modifica la denominación del Instituto de Extensión de la Universidad Distrital, se define y desarrolla el Fondo Especial de Promoción de la Extensión y la Proyección Social de la Universidad Distrital Francisco José de Caldas y se dictan otras disposiciones.","Consejo Superior Universitario","X",null,"Todo"]
[null,null,null,"Acuerdo 002",2015,"Por medio del cual se adoptan políticas de Transparencia y Anticorrupción en la Universidad Distrital Francisco José de Caldas.","Consejo Superior Universitario","X",null,"Todo"]
[null,null,null,"Acuerdo 03",2015,"Por el cual se expide el Estatuto de Contratación de la Universidad Distrital Francisco José de Caldas.","Consejo Superior Universitario","X",null,"Todo"]
[null,null,null,"Acuerdo 008",2006,"Por la cual se modifica el acuerdo 004 del 16 de Abril de 2002, que creó la Cátedra UNESCO de desarrollo del niño en la Universidad.","Consejo Académico","X",null,"Toda "]
[null,null,null,"Acuerdo 022",2002,"Por el cual se reglamenta la Política Editorial de la Universidad Distrital Francisco José de Caldas y se asumen otras disposiciones.","Consejo Académico","X",null,"Toda"]
[null,null,null,"Acuerdo 023",2012,"Por el cual se reglamenta la Política Editorial de la Universidad Distrital Francisco José de Caldas.","Consejo Académico","X",null,"Toda"]
[null,null,null,"Acuerdo 024",2012,"Por el cual se modifica el literal a), el numeral I, del Acuerdo 023 de junio 19 de 2012.","Consejo Académico","X",null,"Toda"]
[null,null,null,"Resolución 02034 ",2012,"Por medio de la cual se autoriza el registro de programas en el área de los idiomas a la Institución de Educación Superior denominada Universidad Distrital Francisco José de Caldas, los cuales serán ofrecidos en la modalidad de educación para el trabajo y el desarrollo humano.","Secretaría de Educación de Bogotá Distrito Capital",null,"X","Toda"]
[null,null,null,"Resolución 053 ",2011,"Por la cual se establecen las áreas de formación y espacios académicos transversales a los programas curriculares de pregrado de la Universidad Distrital Francisco José de Caldas, en el marco de la flexibilidad curricular.","Consejo Académico","X",null,"Arts. 01 y 05 Parágrafo."]
[null,null,null,"Resolución 1101",2002,"Por la cual se estable el Manual Descriptivo de Funciones Generales y Específicas y los Requisitos Mínimos para los cargos de la planta de personal administrativo de la Universidad Distrital Francisco José de Caldas.","Rectoría","X",null,"Toda"]
[null,null,null,"Resolución 482 ",2006,"Por medio de la cual se adopta el Manual de Interventoría y Supervisión de la Universidad Distrital Francisco José de Caldas.","Rectoría","X",null,"Toda"]
[null,null,null,"Resolución 020",2010,"Por medio de la cual el Consejo académico define el funcionamiento de las Cátedras universitarias Francisco José de Caldas, Cátedra Democracia y Ciudadanía y Cátedra Contexto.","Rectoría","X",null,"Toda"]
[null,null,null,"Resolución 049 ",2011,"Por medio de la cual se ajusta y precisa el procedimiento para la contratación de órdenes de Prestación de servicios (OPS) en la Universidad Distrital Francisco José de Caldas y se dictan otras disposiciones.","Rectoría","X",null,"Toda"]
[null,null,null,"Resolución 057 ",2013,"Por la cual se asignan funciones al Director del IDEXUD, se modifica la Resolución 668 de 2008 y se adoptan medidas en materia de Extensión.","Rectoría","X",null,"Toda"]
[null,null,null,"Resolución 503 ",2013,"Por la cual se reglamenta lo establecido en el Acuerdo 004 de 2013.","Rectoría","X",null,"Toda"]
[null,null,null,"Resolución 262 ",2015,"Por medio de la cual se reglamenta la delegación de la competencia contractual, ordenación del gasto y el pago otorgada mediante el Acuerdo 03 de 2015 del Consejo Superior Universitario, y se dictan otras disposiciones.","Rectoría","X",null,"Toda"]
[]
[]
[null,null,null,"ELABORÓ",null,"REVISÓ","APROBÓ"]
[null,null,null,"Nombre:Equipo SIGUD\nCargo: N/A\nFecha: 25/09/2017",null,"Nombre: Carlos Yezid Rozo Alvarez\nCargo: Director IDEXUD\nFecha: 20/11/2019","Nombre: Wiliam Fernado Castrillon Cardona \nCargo: Vicerrector  Académico\nFecha: 20/11/2019"]

{"sheet":"PEI","index":4,"n_rows":64,"n_cols":10,"rows_kept":64,"cut":false,"hidden":false,"merged":[[63,3,63,4],[63,6,63,7],[5,1,5,2],[5,3,5,9],[7,1,7,9],[9,1,60,1],[9,2,60,2],[62,3,62,4],[62,6,62,7],[1,1,3,2],[1,3,1,6],[1,7,1,8],[1,9,3,9],[2,3,2,6],[2,7,2,8],[3,3,3,6],[3,7,3,8]]}
[]
[null,null,null,"NORMOGRAMA POR PROCESOS",null,null,null,"Código: GI-PR-002-FR-017"]
[null,null,null,"Macroproceso: Direccionamiento Estratégico",null,null,null,"Versión: 02"]
[null,null,null,"Proceso: Gestión Integrada",null,null,null,"Fecha de Aprobación: 17/11/2017"]
[]
[null,"Proceso",null,"Planeación Estratégica e Institucional"]
[]
[null,"IDENTIFICACIÓN DE REQUISÍTOS LEGALES Y/O NORMATIVOS -  IDENTIFICACIÓN DEL REQUISÍTO"]
[null,"Macroproceso","Proceso","Clasificación de la Norma","Año","Temática","Expedida por","Interna","Externa","Artículo Aplicable"]
[null,"Direccionamiento Estratégico",{"$f":"IF(D6=\"\",\"-\",D6)","v":"Planeación Estratégica e Institucional"},"Constitución política de Colombia",1991,"Constitución política de Colombia.","Asamblea Naconal Constituyente",null,"X","Arts. 80, 106, 209, 268, 269, 354, 339, 342 y 343"]
[null,null,null,"Ley 38",1989,"Normativo del Presupuesto General de la Nación.","Congreso de la República",null,"X","Toda"]
[null,null,null,"Ley 30",1992,"Por la cual se organiza el servicio público de la educación Superior.","Congreso de la República",null,"X","Toda"]
[null,null,null,"Ley 87 ",1993,"Por la cual se establecen las normas para el ejercicio del Control Interno en las entidades y organismos del Estado.","Congreso de la República",null,"X","Art. 4"]
[null,null,null,"Ley 152",1994,"Por la cual se establece la Ley orgánica del Plan de Desarrollo.","Congreso de la República",null,"X","Arts. 2 a 7, 13 a 17 y 19"]
[null,null,null,"Ley 115",1994,"Plan Nacional de Desarrollo Educativo.","Congreso de la República",null,"X","Art. 72"]
[null,null,null,"Ley 190",1995,"Por la cul se dictan normas tendientes a preservar la moralidad en la Administración Pública y se fijan  disposiciones con el fin de erradicar la corrupción administrativa.","Congreso de la República",null,"X","Art. 48"]
[null,null,null,"Ley 400",1997,"Por la cual se adoptan normas sobre Contrucciones Sismo Resistentes.","Congreso de la República",null,"X","Toda"]
[null,null,null,"Ley 338",1997,"Por la cual se dictan normas sobre Planes de Desarrollo Municipal.","Congreso de la República",null,"X","Toda"]
[null,null,null,"Ley 749",2002,"Por la cual se organiza el servicio público de la Educación Superior en las modalidades de formación técnica profesional y tecnológica, y se dictan otras disposiciones: formación de las instituciones de educación Superior, su aseguramiento de la calidad y el cambio de carácter académico y redefinición del tipo de institución.","Congreso de la República",null,"X","Toda"]
[null,null,null,"Ley 1474",2011,"Por la cual se dictan normas orientadas a fortalecer los mecanismos de prevención, investigación y sanción de actos de corrupción y la efectividad del control de la gestión pública.","Congreso de la República",null,"X","Toda"]
[null,null,null,"Decreto 1279",2002,"Por el cual se establece el régimen salarial y prestacional de los docentes de las Universidades Estatales.","Presidencia de la República",null,"X","Toda"]
[null,null,null,"Decreto 4110",2004,"Por el cual se reglamenta la Ley 872 de 2003 y se adopta la Norma Técnica de Calidad en la Gestión Pública.","Presidencia de la República",null,"X","Todo "]
[null,null,null,"Decreto 4485",2009,"Por medio de la cual se adopta la actualización de la Norma Técnica de Calidad en la Gestión Pública.","Presidencia de la República",null,"X","Toda"]
[null,null,null,"Decreto 943",2014,"Por el cual se actualiza el Modelo Estándar de Control Interno - MECI.","Presidencia de la Republica",null,"X","Todo"]
[null,null,null,"Decreto 1083 ",2015,"Por medio del cual se expide el Decreto Único Reglamentario del Sector de Función Pública.","Presidencia de la República",null,"X","Todo"]
[null,null,null,"Decreto 1499",2015,"Por medio del cual se expide el Decreto Único Reglamentario del Sector de Función Pública.","Presidencia de la República ",null,"X","Todo"]
[null,null,null,"Decreto 2189",2017,"Por el cual se modifica la estructura del Departamento Nacional de Planeación.","Presidencia de la República",null,"X","Toda"]
[null,null,null,"Decreto 338",2019,"Por el cual se modifica el Decreto 1083 de 2015, único Reglamentario del Sector Función Pública, en lo relacionado con el Sistema de Control Interno y se crea la Red Anticorrupción.","Presidencia de la República ",null,"X","Todo"]
[null,null,null,"Decreto 1212 ",1993,"Por el cual se establecen los requisitos para el reconocimiento como Universidad de una Institución Universitaria o Escuela Tecnológica.","Ministerio de Educación",null,"X","Toda"]
[null,null,null,"Decreto 1860",1994,"Por el cual se reglamenta parcialmente la Ley 115 de 1994, en los aspectos pedagógicos y organizativos generales.","Ministerio de Educación",null,"X","Toda"]
[null,null,null,"Decreto 180",1997,"Por el cual se modifica el Decreto 1860 de 1994 que reglamenta parcialmente la Ley 115 de 1994, en los aspectos pedagógicos y organizativos generales.","Ministerio de Educación",null,"X","Toda"]
[null,null,null,"Decreto 714",1996,"Estatuto Distrital de Presupuesto.","Alcaldía Mayor de Bogotá, D.C.",null,"X","Toda"]
[null,null,null,"Decreto 449",1999,"Por el cual se actualizan los procedimientos del Banco Distrital de Programas y Proyectos.","Alcaldía Mayor de Bogotá, D.C.",null,"X","Toda"]
[null,null,null,"Decreto 1537",2001,"Por el cual se actualizan los procedimientos del Banco Distrital de Programas y Proyectos.","Alcaldía Mayor de Bogotá, D.C.",null,"X","Toda"]
[null,null,null,"Decreto 591",2018,"Por medio del cual se adopta el Modelo Integrado de Planeación y Gestión Nacional y se dictan otras disposiciones.","Alcaldía Mayor de Bogotá",null,"X","Todo"]
[null,null,null,"Decreto 592 ",2018,"Por  medio del cual se corrige error en el Decreto Distrital 591 de 2018.","Alcaldía Mayor de Bogotá",null,"X","Todo"]
[null,null,null,"NTC ISO 9001",2015,"Sistema de Gestión de Calidad.","Instituto Colombiano de Normas Técnicas - ICONTEC",null,"X","Toda "]
[null,null,null,"NTC ISO 14001",2015,"Sistema de Gestión Ambiental, Requisitos con orientación para su uso.","Instituto Colombiano de Normas Técnicas - ICONTEC",null,"X","Toda "]
[null,null,null,"Resolución 1602",2001,"Por medio de la cual se adopta el Manual de Programación, Ejecución y Cierre Presupuestal de las entidades que conforman el Presupuesto Anual del Distrito Capital, las Empresas Industriales y Comerciales del Distrito y Sociedades por Acciones y de Economía Mixta sujetas al régimen de aquellas y de las Empresas Sociales del Estado.","Secretaria de Hacienda Distrital",null,"X","Toda"]
[null,null,null,"Acuerdo 12 ",1994,"Por el cual se establece el Estatuto de Planeación del Distrito Capital y se reglamenta Formulación, la Aprobación, la Ejecución y la Evaluación del Plan de Desarrollo Económico y Social y de Obras Públicas del Distrito Capital de Santa Fe de Bogotá, y se dictan otras disposiciones complementarias.","Consejo Distrital",null,"X","Toda"]
[null,null,null,"Guia Predis",2009,"Productos, Metas y Resultados de la Secretaría de Hacienda.","Secretaria de Hacienda Distrital",null,"X","Toda"]
[null,null,null,"Acuerdo 24",1989,"Por el cual se normatiza el Procedimiento de Liquidación de Prestaciones Sociales para los Empleados Públicos Docentes y se fijan otros Derechos Salariales.","Consejo Superior Universitario","X",null,"Toda"]
[null,null,null,"Acuerdo 003",1997,"Por el cual se expide el Estatuto General de la Universidad Distrital Francisco José de Caldas.","Consejo Superior Universitario","X",null,"Toda"]
[null,null,null,"Acuerdo 006",2005,"Creación Unidad Académica y Administrativa Facultad de Artes ASAB de la Universidad Distrital Francisco José de Caldas.","Consejo Superior Universitario","X",null,"Toda"]
[null,null,null,"Acuerdo 001",2006,"Adición al Acuerdo 006 por el cual crea la Unidad Académica y Administrativa Facultad de Artes ASAB de la Universidad Distrital Francisco José de Caldas.","Consejo Superior Universitario","X",null,"Toda"]
[null,null,null,"Acuerdo 008",2010,"Por el cual se dictan políticas para incorporar en los Planes de Estudio de los Proyectos Curriculares de Pregrado de la Universidad, Créditos Académicos conducentes a la formación de competencias básicas comunicativas en una segunda lengua.","Consejo Superior Universitario","X",null,"Toda"]
[null,null,null,"Acuerdo 009",2018,"Por el cual se adopta el Plan Estratégico de Desarrollo 2018 - 2030 de la Universidad Distrital Francisco José de Caldas.","Consejo Superior Universitario","X",null,"Todo"]
[null,null,null,"Resolución 53",2011,"Por la cual se establecen las áreas de formación y espacios académicos transversales a los Programas Curriculares de Pregrado de la Universidad Distrital Francisco José de Caldas, en el marco de la flexibilidad curricular.","Consejo Académico","X",null,"Toda"]
[null,null,null,"Resolución 201",2007,"Por la cual se adopta el Modelo Estándar de Control Interno (MECI) en la Universidad Distrital Francisco José de Caldas.","Rectoría","X",null,"Toda"]
[null,null,null,"Resolución 76",2008,"Por medio de la cual se adiciona la Resolución de Rectoría 098 de 2005, con el fin de incluir la modalidad de avances para el reconocimiento de la estadía académica de invitados internacionales.","Rectoría","X",null,"Toda"]
[null,null,null,"Resolución 143",2009,"Por medio del cual se hace una delegación de la competencia contractual, contratación del gasto y el pago y se dictan otras disposiciones.","Rectoría","X",null,"Toda"]
[null,null,null,"Resolución 227",2014,"Por la cual se realiza el Mejoramiento Continuo a la Política, Objetivos, y Modelo de Operación por Procesos del Sistema Integrado de Gestión, de la Universidad Distrital Francisco José de Caldas, SIGUD y se dictan otras disposiciones.","Rectoría","X",null,"Arts. 3,4,5 y 6"]
[null,null,null,"Resolución 004",2016,"Por la cual adopta el Manual para la Administración de Riesgos de la Universidad Distrital Francisco José de Caldas.","Rectoría","X",null,"Toda"]
[null,null,null,"Resolución 207",2016,"Por la cual se establecen algunas directrices generales para la identificación, creación, revisión, aprobación, normalización y control de documentos del Sistema Integrado de Gestión de la Universidad Distrital Francisco José de Caldas.","Rectoría","X",null,"Toda"]
[null,null,null,"Resolución 506",2016,"Por la cual se modifica la Resolución 227 de 2014, mediante la cual se realiza el mejoramiento continuo a la Política, Objetivos, y al Modelo de Operación por Procesos del Sistema Integrado de Gestión de la Universidad Distrital Francisco José de Caldas, SIGUD, y se dictan otras disposiciones.","Rectoría","X",null,"Toda"]
[null,null,null,"Resolución 444",2018,"Por la cual se adopta el Plan Indicativo para el período 2018 - 2021 de la Universidad Distrital Francisco José de Caldas","Rectoría","X",null,"Toda"]
[null,null,null,"Resolución 163",2019,"Por la cual se ajusta el Sistema Integrado de Gestión de la Universidad Distrital Francisco José de Caldas, SIGUD, se implementa el Modelo Integrado de Planeación y Gestión - MIPG, como su Marco de Referencia, y se crea el Comité Institucional de Gestión y Desempeño.","Rectoría","X",null,"Todo"]
[null,null,null,"Resolución 297",2019,"Por la cual se reglamenta el funcionamiento y operativización de los Equipos Técnicos de Gestión y Desempeño, como instancias de apoyo del Comité Institucional de Gestión y Desempeño, y se corrige la Resolución de Rectoría N° 163 de mayo 9 de 2019.","Rectoría","X",null,"Todo"]
[null,null,null,"Circular 004",2011,"Directrices Generales sobre Gestión Académica.","Consejo Académico","X",null,"Toda"]
[null,null,null,"Circular 019",2014,"Aplicación del Principio de Planeación en los Procesos Precontractuales - Estudio de Conveniencia y Oportunidad.","Vicerectoria Administrativa y Financiera","X",null,"Toda"]
[null,null,null,"Documento",2007,"Plan de Contingencia, Facultad de Artes.","Decanattura Facultad de Artes ASAB","X",null,"Toda"]
[]
[null,null,null,"ELABORÓ",null,"REVISÓ","APROBÓ"]
[null,null,null,"Nombre: Equipo SIGUD\nCargo: N.A\nFecha: 08 de Octubre de 2019",null,"Nombre: Carlos Ramón Bernal Echeverry\nCargo: Jefe Oficina Asesora de Planeación y Control\nFecha: 25 de Noviembre de 2019","Nombre: Carlos Ramón Bernal Echeverry\nCargo: Jefe Oficina Asesora de Planeación y Control\nFecha: 25 de Noviembre de 2019"]

{"sheet":"GIN","index":5,"n_rows":180,"n_cols":10,"rows_kept":180,"cut":false,"hidden":false,"merged":[[179,3,179,4],[179,6,179,7],[5,1,5,2],[5,3,5,9],[9,1,176,1],[9,2,176,2],[178,3,178,4],[178,6,178,7],[7,1,7,9],[1,1,3,2],[1,3,1,6],[1,7,1,8],[1,9,3,9],[2,3,2,6],[2,7,2,8],[3,3,3,6],[3,7,3,8]]}
[]
[null,null,null,"NORMOGRAMA POR PROCESOS",null,null,null,"Código: GI-PR-002-FR-017"]
[null,null,null,"Macroproceso: Direccionamiento Estratégico",null,null,null,"Versión: 02"]
[null,null,null,"Proceso: Gestión Integrada",null,null,null,"Fecha de Aprobación: 17/11/2017"]
[null," "]
[null,"Proceso",null,"Gestión Integrada"]
[]
[null,"IDENTIFICACIÓN DE REQUISÍTOS LEGALES Y/O NORMATIVOS -  IDENTIFICACIÓN DEL REQUISÍTO"]
[null,"Macroproceso","Proceso","Clasificación de la Norma","Año","Temática","Expedida por","Interna","Externa","Artículo Aplicable"]
[null,"Direccionamiento Estratégico ","Gestión Integrada","Constitución Política de Colombia",1991,"Constitución Política de Colombia.","Asamblea Nacional Constituyente",null,"X","Arts. 8, 49, 67, 69, 79, 80, 82 y 95"]
[null,null,null,"Ley 23",1973,"Por la cual se conceden facultades extraordinarias al Presidente de la República para expedir el Código de Recursos Naturales y de Protección al Medio Ambiente y se dictan otras disposiciones.","Congreso de la República",null,"X","Toda"]
[null,null,null,"Ley 9",1979,"Por la cual se dictan Medidas Sanitarias.","Congreso de la República",null,"X","Artículos del 10 al 35"]
[null,null,null,"Ley 30",1992,"Por el cual se organiza el servicio público de la Educación Superior.","Congreso de la República",null,"X","Todos los Arts. de los Títulos Fundamentos de la Educación Superior"]
[null,null,null,"Ley 99",1993,"Por la cual se crea el Ministerio del Medio Ambiente, se reordena el Sector Público encargado de la gestión y conservación del medio ambiente y los recursos naturales renovables, se organiza el Sistema Nacional Ambiental, SINA, y se dictan otras disposiciones.","Congreso de la República",null,"X","Todo"]
[null,null,null,"Ley 140",1994,"Por la cual se reglamenta la Publicidad Exterior Visual en el territorio nacional.","Congreso de la República",null,"X","Todo"]
[null,null,null,"Ley 142",1994,"Por la cual se establece el régimen de los servicios públicos domiciliarios y se dictan otras disposiciones.","Congreso de la República",null,"X","Artículos 9 y 12"]
[null,null,null,"Ley 253",1996,"Por medio de la cual se aprueba el Convenio de Basilea sobre el control de los movimientos transfronterizos de los desechos peligrosos y su eliminación, hecho en Basilea el 22 de marzo de 1989.","Congreso de la República",null,"X","Artículos del 1 al 4"]
[null,null,null,"Ley 373",1997,"Por la cual se establece el programa para el uso eficiente y ahorro del agua.","Congreso de la República",null,"X","Artículos 12, 15, 17"]
[null,null,null,"Ley 430",1998,"Por la cual se dictan normas prohibitivas en materia ambiental, referentes a los desechos peligrosos y se dictan otras disposiciones.","Congreso de la República",null,"X","Artículos 1, 2, 3, 6, 7 y 9"]
[null,null,null,"Ley 629",2000,"Por medio de la cual se aprueba el \"Protocolo de Kyoto de la Convención Marco de las Naciones Unidas sobre el Cambio Climático\", hecho en Kyoto el 11 de diciembre de 1997.","Congreso de la República",null,"X","Todo"]
[null,null,null,"Ley 697",2001,"Por medio de la cual se fomenta el uso racional y eficiente de la energía, se promueve el uso de energías alternativas y se dictan otras disposiciones.","Congreso de la República",null,"X","Artículos 1 y 8 "]
[null,null,null,"Ley 749",2002,"Por la cual se organiza el servicio público de la Educación Superior en las modalidades de formación técnica profesional y tecnológica, y se dictan otras disposiciones.","Congreso de la República",null,"X","Todo"]
[null,null,null,"Ley 1252",2008,"Por la cual se dictan normas prohibitivas en materia ambiental, referentes a los residuos y desechos peligrosos y se dictan otras disposiciones.","Congreso de la República",null,"X","Artículos 1, 2, 3, 7 y 12"]
[null,null,null,"Ley 1259",2008,"Por medio de la cual se instaura en el territorio nacional la aplicación del comparendo ambiental a los infractores de las normas de aseo, limpieza y recolección de escombros; y se dictan otras disposiciones.","Congreso de la República",null,"X","Todo "]
[null,null,null,"Ley 1333",2009,"Por la cual se establece el procedimiento sancionatorio ambiental y se dictan otras disposiciones.","Congreso de la República",null,"X","Todo"]
[null,null,null,"Ley 1466",2011,"Por el cual se adicionan, el inciso 2° del artículo 1° (objeto) y el inciso 2° del artículo 8°, de la Ley 1259 del 19 de diciembre de 2008, “por medio de la cual se instauró en el territorio nacional la aplicación del Comparendo Ambiental a los infractores de las normas de aseo, limpieza y recolección de escombros, y se dictan otras disposiciones.","Congreso de la República",null,"X","Todo"]
[null,null,null,"Ley 1715",2014,"Por medio de la cual se regula la integración de energías renovables no convencionales al Sistema Energético Nacional.","Congreso de la República",null,"X","Artículos 4, 5, 12, 30 y 32"]
[null,null,null,"Ley 1811",2016,"Por la cual se otorgan incentivos para promover el uso de la bicicleta en el territorio nacional y se modifica el Código Nacional de Tránsito.","Congreso de la República",null,"X","Artículos 1, 5, 6 y 11"]
[null,null,null,"Decreto Ley 2811",1974,"Por el cual se dicta el Código Nacional de Recursos Naturales Renovables y de Protección al medio ambiente.","Presidencia de la República",null,"X","Todo"]
[null,null,null,"Decreto 1594 ",1984,"Compilado en Decreto 1076 de 2015. Por el cual se reglamenta parcialmente el Título I de la Ley 09 de 1979, así como el Capítulo II del Título VI - Parte III - Libro II y el Título III de la Parte III Libro I del Decreto Ley 2811 de 1974 en cuanto a usos del agua y residuos líquidos.","Presidencia de la República",null,"X","Derogado a excepción de Artículos 20 y 21 y luego compilado en el Decreto 1076 de 2015"]
[null,null,null,"Decreto 948 ",1995,"Compilado en Decreto 1076 de 2015. Por el cual se reglamentan, parcialmente la Ley 23 de 1973, los artículos 33, 73, 74, 75 y 75 del Decreto-Ley 2811 de 1974; los artículos 41, 42, 43, 44, 45, 48 y 49 de la Ley 9 de 1979; y la Ley 99 de 1993, en relación con la prevención y control de la contaminación atmosférica y la protección de la calidad del aire.","Presidencia de la República",null,"X","Todo"]
[null,null,null,"Decreto 3102",1997,"Por el cual se reglamenta el artículo 15 de la Ley 373 de 1997 en relación con la instalación de equipos, sistemas e implementos de bajo consumo de agua.","Presidencia de la República",null,"X","Artículos 7 y 8"]
[null,null,null,"Decreto 1609",2002,"Por el cual se reglamenta el manejo y transporte terrestre automotor de mercancías peligrosas por carretera.","Presidencia de la República",null,"X","Todo"]
[null,null,null,"Decreto 4110",2004,"Por el cual se reglamenta la Ley 872 de 2003 y se adopta la Norma Técnica de Calidad en la Gestión Pública.","Presidencia de la República",null,"X","Todo "]
[null,null,null,"Decreto 4741 ",2005,"Compilado en Decreto 1076 de 2015. Por el cual se reglamenta parcialmente la prevención y manejo de los residuos o desechos peligrosos generados en el marco de la gestión integral.","Presidencia de la República",null,"X","Todo"]
[null,null,null,"Decreto 1575",2007,"Por el cual se establece el Sistema para la Protección y control de la calidad del agua para consumo humano.","Presidencia de la República",null,"X","Artículo 10"]
[null,null,null,"Decreto 2331",2007,"Por el cual se establece una medida tendiente al uso racional y eficiente de energía eléctrica.","Presidencia de la República",null,"X","Artículos 1 y 2"]
[null,null,null,"Decreto 895",2008,"Por el cual se modifica y adiciona el Decreto 2331 de 2007, sobre uso racional y eficiente de la energía eléctrica.","Presidencia de la República",null,"X","Todo"]
[null,null,null,"Decreto 3450",2008,"Por el cual se dictan medidas tendientes al uso racional y eficiente de la energía eléctrica.","Presidencia de la República",null,"X","Artículos 1 y 4"]
[null,null,null,"Decreto 4485",2009,"Por medio de la cual se adopta la actualización de la Norma Técnica de Calidad en la Gestión Pública.","Presidencia de la República",null,"X","Toda"]
[null,null,null,"Decreto 3930 ",2010,"Compilado en Decreto 1076 de 2015. Por el cual se reglamenta parcialmente el Título I de la Ley 9ª de 1979, así como el Capítulo II del Título VI -Parte III- Libro II del Decreto-Ley 2811 de 1974 en cuanto a usos del agua y residuos líquidos y se dictan otras disposiciones.","Presidencia de la República",null,"X","Artículos 1, 2, 24, 25, y 42"]
[null,null,null,"Decreto 4170",2011,"Por el cual se crea la Agencia Nacional de Contratación Pública –Colombia Compra Eficiente–, se determinan sus objetivos y estructura.","Presidencia de la República",null,"X","Todo"]
[null,null,null,"Decreto 2981 ",2013,"Compilado en Decreto 1077 de 2015. Por el cual se reglamenta la prestación del servicio público de aseo.","Presidencia de la República",null,"X","Todo"]
[null,null,null,"Decreto 351",2014,"Por el cual se reglamenta la gestión integral de los residuos generados en la atención en salud y otras actividades.","Presidencia de la República",null,"X","Todo"]
[null,null,null,"Decreto 943",2014,"Por el cual se actualiza el Modelo Estándar de Control Interno - MECI.","Presidencia de la República",null,"X","Todo"]
[null,null,null,"Decreto 1073",2015,"Por medio del cual se expide el Decreto Único Reglamentario del Sector Administrativo de Minas y Energía.","Presidencia de la República",null,"X","Artículos 2.2.3.6.3.5, 2.2.3.6.3.6 y 2.2.3.6.4.1"]
[null,null,null,"Decreto 1076",2015,"Por medio del cual se expide el Decreto Único Reglamentario del Sector Ambiente y Desarrollo Sostenible.","Presidencia de la República",null,"X","Artículos 2.2.3.2.1.1, 2.2.3.2.4.1, 2.2.3.2.4.3, 2.2.3.3.1.1, 2.2.5.1.2.11, 2.2.6.1.1.1, 2.2.6.2.3.6, 2.2.5.14.1.1"]
[null,null,null,"Decreto 1077",2015,"Por medio del cual se expide el Decreto Único Reglamentario del Sector Vivienda, Ciudad y Territorio.","Presidencia de la República",null,"X","Artículos 2.3.2.1.1., 2.3.2.2.1., 2.3.2.2.2.2.16., 2.3.2.2.2.2.17., 2.3.2.2.2.2.18., 2.3.2.2.2.2.19."]
[null,null,null,"Decreto 1079",2015,"Por medio del cual se expide el Decreto Único Reglamentario del Sector Transporte.","Presidencia de la República",null,"X","Artículos 2.2.1.7.8.1, 2.2.1.7.8.2, 2.2.1.7.8.2.1.,  2.2.1.7.8.4.1, 2.2.1.7.8.4.3"]
[null,null,null,"Decreto 1083 ",2015,"Por medio del cual se expide el Decreto Único Reglamentario del Sector de Función Pública.","Presidencia de la República",null,"X","Todo"]
[null,null,null,"Decreto 780",2016,"Por medio del cual se expide el Decreto Único Reglamentario del Sector Salud y Protección Social.","Presidencia de la República",null,"X","Artículos 2.8.10.1. a 2.8.10.17"]
[null,null,null,"Decreto 1499",2017,"Por medio del cual se modifica el Decreto 1083 del 2015, Decreto Único Reglamentario del Sector Función Pública, en lo relacionado con el Sistema de Gestión establecido en el articulo 133 de la Ley 1753 del 2015.","Presidencia de la República ",null,"X","Todo"]
[null,null,null,"Decreto 1090",2018,"Por el cual se adiciona el Decreto 1076 de 2015, Decreto Único Reglamentario del Sector Ambiente y Desarrollo Sostenible, en lo relacionado con el Programa para el Uso Eficiente y Ahorro de Agua y se dictan otras disposiciones.","Presidencia de la República",null,"X","Todo"]
[null,null,null,"Decreto 338",2019,"Por el cual se modifica el Decreto 1083 de 2015, único Reglamentario del Sector Función Pública, en lo relacionado con el Sistema de Control Interno y se crea la Red Anticorrupción.","Presidencia de la República ",null,"X","Todo"]
[null,null,null,"Decreto 673",2019,"Por el cual se adiciona un inciso al artículo 2.3. 6.3. 5. 15. de la sección 5, del capítulo 3, del título 6, de la parte 3, del libro 2, del Decreto Único Reglamentario del Sector Vivienda, Ciudad y Territorio, Decreto 1077 del 26 de mayo de 2015, en lo relativo a las reglas de difusión en casos excepcionales","Presidencia de la República",null,"X","Todo"]
[null,null,null,"Decreto 1532",2019,"Compilado en Decreto 1076 de 2015. Por medio del cual se modifica la Sección 1 del Capítulo 1 del Título 2 de la Parte 2 del Libro 2 y se sustituye la Sección 12 del Capítulo 1 del Título 2 de la Parte 2 del Libro 2 del Decreto Único Reglamentario del Sector Ambiente y Desarrollo Sostenible 1076 de 2015, en relación con las plantaciones forestales.","Presidencia de la República",null,"X","Todo "]
[null,null,null,"Decreto 678",1994,"Por el cual se reglamenta el Acuerdo 6 de 1990 y se asigna el Tratamiento Especial de Conservación Histórica al Centro Histórico y a su sector sur del Distrito Capital y se dictan otras disposiciones.","Alcaldía Mayor de Bogotá",null,"X","Todo"]
[null,null,null,"Decreto 959",2000,"Por el cual se compilan los textos del Acuerdo 01 de 1998 y del Acuerdo 12 de 2000, los cuales reglamentan la publicidad Exterior Visual en el Distrito Capital de Bogotá.","Alcaldía Mayor de Bogotá",null,"X","Todo"]
[null,null,null,"Decreto 506",2003,"Por el cual se reglamentan los Acuerdos 01 de 1998 y 12 de 2000, compilados en el Decreto 959 de 2000.","Alcaldía Mayor de Bogotá",null,"X","Todo"]
[null,null,null,"Decreto 400",2004,"Por el cual se impulsa el aprovechamiento eficiente de los residuos sólidos producidos en las entidades distritales.","Alcaldía Mayor de Bogotá",null,"X","Artículos 1,2,4,5,y 6"]
[null,null,null,"Decreto 456",2008,"Por el cual se reforma el Plan de Gestión Ambiental del Distrito Capital y se dictan otras disposiciones.","Alcaldía Mayor de Bogotá",null,"X","Todo"]
[null,null,null,"Decreto 531",2010,"Por el cual se reglamenta la silvicultura urbana, zonas verdes y la jardinería en Bogotá y se definen Ias responsabilidades de las Entidades Distritales en relación con el tema y se dictan otras disposiciones.","Alcaldía Mayor de Bogotá",null,"X","Todo"]
[null,null,null,"Decreto 675",2011,"Por medio del cual se adopta y reglamenta la Política Pública Distrital de Educación Ambiental y se dictan otras disposiciones.","Alcaldía Mayor de Bogotá",null,"X","Artículos 1, 2, 3, 5, 6, 7"]
[null,null,null,"Decreto 349",2014,"Por el cual se reglamenta la imposición y aplicación del Comparendo Ambiental en el Distrito Capital.","Alcaldía Mayor de Bogotá",null,"X","Artículos 7 y 8"]
[null,null,null,"Decreto 566",2014,"Por el cual se adopta la Política Pública de Ecourbanismo y Construcción Sostenible de Bogotá, Distrito Capital 2014-2024.","Alcaldía Mayor de Bogotá",null,"X","Artículos 1, 2, 3, 4, 18"]
[null,null,null,"Decreto 165",2015,"Por el cual se reglamenta la figura de Gestor Ambiental para las entidades distritales, prevista en el Acuerdo 333 de 2008, y se dictan otras disposiciones.","Alcaldía Mayor de Bogotá",null,"X","Todo"]
[null,null,null,"Decreto 442",2015,"Por medio del cual se crea el Programa de aprovechamiento y/o valorización de llantas usadas en el Distrito Capital y se adoptan otras disposiciones.","Alcaldía Mayor de Bogotá",null,"X","Artículos 2, 13, 14, 15 y 19"]
[null,null,null,"Decreto 586",2015,"Por medio del cual se adopta el modelo eficiente y sostenible de gestión de los Residuos de Construcción y Demolición - RCD en Bogotá D.C.","Alcaldía Mayor de Bogotá",null,"X","Artículos 1, 2, 24, 25, y 42"]
[null,null,null,"Decreto 177",2016,"Por el cual se deroga el Decreto Distrital 113 del 16 de marzo de 2016.","Alcaldía Mayor de Bogotá",null,"X","Artículo 10"]
[null,null,null,"Decreto 265",2016,"Por medio del cual se modifica el Decreto Distrital 442 de 2015 y se adoptan otras disposiciones.","Alcaldía Mayor de Bogotá",null,"X","Artículo 4"]
[null,null,null,"Decreto 312",2016,"Por el cual se adopta el Plan Maestro para el Manejo Integral de Residuos Sólidos para Bogotá Distrito Capital.","Alcaldía Mayor de Bogotá",null,"X","Todo"]
[null,null,null,"Decreto 495",2016,"Por el cual se adopta el Plan de Gestión Integral de Residuos Sólidos - PGIRS- del Distrito Capital, y se dictan otras disposiciones.","Alcaldía Mayor de Bogotá",null,"X","Artículo 1"]
[null,null,null,"Decreto 723",2017,"Por medio del cual se adopta el Plan de Acción Cuatrienal Ambiental-PACA del Distrito Capital 2017-2020.","Alcaldía Mayor de Bogotá",null,"X","Todo"]
[null,null,null,"Decreto 815",2017,"Por medio del cual se establecen los lineamientos para la formulación e implementación de los instrumentos operativos de planeación ambiental del Distrito PACA, PAL y PIGA, y se dictan otras disposiciones.","Alcaldía Mayor de Bogotá",null,"X","Todo"]
[null,null,null,"Decreto 383",2018,"Por medio del cual se modifica y adiciona el Decreto Distrital 531 de 2010, y se toman otras determinaciones.","Alcaldía Mayor de Bogotá",null,"X","Todo"]
[null,null,null,"Decreto 591",2018,"Por medio del cual se adopta el Modelo Integrado de Planeación y Gestión Nacional y se dictan otras disposiciones.","Alcaldía Mayor de Bogotá",null,"X","Todo"]
[null,null,null,"Decreto 592 ",2018,"Por  medio del cual se corrige error en el Decreto Distrital 591 de 2018.","Alcaldía Mayor de Bogotá",null,"X","Todo"]
[null,null,null,"Decreto 2501",2007,"Por medio del cual se dictan disposiciones para promover prácticas con fines de uso racional y eficiente de energía eléctrica.","Ministerio de Minas y Energía",null,"X","Artículo 1"]
[null,null,null,"Decreto 4728",2010,"Por el cual se modifica parcialmente el Decreto 3930 de 2010. ","Ministerio de Ambiente, Vivienda y Desarrollo Territorial",null,"X","Artículos 2.3.2.5.1.2.,  2.3.2.5.2.1.1., 2.3.2.5.4.1. y 2.3.2.5.4.2"]
[null,null,null,"Decreto 596",2016,"Por el cual se modifica y adiciona el Decreto 1077 de 2015 en lo relativo con el esquema de la actividad de aprovechamiento del servicio público de aseo y el régimen transitorio para la formalización de los recicladores de oficio, y se dictan otras disposiciones. ","Ministerio de Vivienda, Ciudad y Territorio ",null,"X","Artículos 1 y 2"]
[null,null,null,"Decreto 284 ",2018,"Compilado en Decreto 1076 de 2015. Por el cual se adiciona el Decreto 1076 de 2015, Único Reglamentario del Sector Ambiente y Desarrollo Sostenible, en lo relacionado con la Gestión Integral de los Residuos de Aparatos Eléctricos y Electrónicos – RAEE Y se dictan otras disposiciones.","Ministerio de Ambiente y Desarrollo Sostenible",null,"X","Todo"]
[null,null,null,"Decreto 556",2003,"Por la cual se expiden normas para el control de las emisiones en fuentes móviles.","Departamento Técnico Administrativo del Medio Ambiente",null,"X","Todo"]
[null,null,null,"Directiva 08",2009,"Ahorro de energía.","Presidencia de la República",null,"X","Toda"]
[null,null,null,"Directiva 04",2012,"Eficiencia Administrativa y Lineamientos de la Política Cero Papel en la Administración Pública.","Presidencia de la República",null,"X","Toda"]
[null,null,null,"Directiva 09",2006,"Inclusión Social de la Población recicladora de oficio en condiciones de pobreza y vulnerabilidad, con el apoyo de las entidades distritales.","Alcaldía Mayor de Bogotá",null,"X","Toda"]
[null,null,null,"Directiva 02",2016,"Directiva. Bogotá se mueve Mejor.","Alcaldía Mayor de Bogotá",null,"X","Toda"]
[null,null,null,"NTC ISO 9001",2015,"Sistema de Gestión de Calidad.","Instituto Colombiano de Normas Técnicas - ICONTEC",null,"X","Toda "]
[null,null,null,"NTC ISO 14001",2015,"Sistema de Gestión Ambiental. Requisitos con orientación para su uso.","Instituto Colombiano de Normas Técnicas - ICONTEC",null,"X","Toda"]
[null,null,null,"NTC ISO 50001",2018,"Sistema de Gestión de la Energía. Requisitos con orientación para su uso.","Instituto Colombiano de Normas Técnicas - ICONTEC",null,"X","Toda "]
[null,null,null,"Acuerdo 01",1998,"Por el cual se reglamenta la publicidad exterior visual en el Distrito de Bogotá.","Concejo de Bogotá",null,"X","Todo"]
[null,null,null,"Acuerdo 12",2000,"Por el cual se modifica el Acuerdo 01 de 1998 sobre la reglamenta la Publicidad Exterior Visual en el Distrito Capital de Bogotá.","Concejo de Bogotá",null,"X","Artículo 5"]
[null,null,null,"Acuerdo 18",2000,"Por el cual se implementa en Bogotá, D.C., un programa educativo para el manejo integral de residuos sólidos domésticos y se dictan otras disposiciones.","Concejo de Bogotá",null,"X","Todo"]
[null,null,null,"Acuerdo 79",2003,"Por el cual se expide el Código de Policía de Bogotá.","Concejo de Bogotá",null,"X","Artículos 21, 23, 56, 58, 59, 83 y 84"]
[null,null,null,"Acuerdo 114",2003,"Por el cual se impulsa en las entidades distritales, el aprovechamiento eficiente de residuos sólidos.","Concejo de Bogotá",null,"X","Todo"]
[null,null,null,"Acuerdo 197",2005,"Por el cual se establece la Semana del Medio Ambiente.","Concejo de Bogotá",null,"X","Todo"]
[null,null,null,"Acuerdo 236",2006,"Por el cual se adecuan cicloparqueos en las instituciones públicas que prestan atención al público en el Distrito Capital.","Concejo de Bogotá",null,"X","Todo"]
[null,null,null,"Acuerdo 287",2007,"Por el cual se establecen lineamientos para aplicar las acciones afirmativas que garantizan la inclusión de los recicladores de oficio en condiciones de pobreza y vulnerabilidad en los procesos de la gestión y manejo integral de los residuos sólidos.","Concejo de Bogotá",null,"X","Artículos 4, 5 y 6"]
[null,null,null,"Acuerdo 333",2008,"Por el cual se desarrolla la política de reducción de costos ambientales en las entidades del Distrito Capital y se crea la figura de gestor ambiental.","Concejo de Bogotá",null,"X","Todo"]
[null,null,null,"Acuerdo 347",2008,"Por el cual se establece los lineamientos de la Política Pública del Agua en Bogotá.","Concejo de Bogotá",null,"X","Artículos 3 y 7"]
[null,null,null,"Acuerdo 392",2009,"Por medio del cual se establecen estrategias para incentivar hábitos de consumo responsable y se dictan otras disposiciones.","Concejo de Bogotá",null,"X","Todo"]
[null,null,null,"Acuerdo 403",2009,"Por medio del cual se adopta en el Distrito Capital el \"apagón ambiental\", como una estrategia voluntaria a favor del medio ambiente y se dictan otras disposiciones.","Concejo de Bogotá",null,"X","Artículos 1, 2, 3 y 5"]
[null,null,null,"Acuerdo 418",2009,"Por el cual se promueve la implementación de tecnologías arquitectónicas sustentables, como techos o terrazas verdes, entre otras en el D. C. y se dictan otras disposiciones.","Concejo de Bogotá",null,"X","Parágrafo único del artículo 2"]
[null,null,null,"Acuerdo 540",2013,"Por medio del cual se establecen los lineamientos del programa distrital de compras verdes y se dictan otras disposiciones.","Concejo de Bogotá",null,"X","Todo"]
[null,null,null,"Acuerdo 574",2014,"Por medio del cual se promueven  tecnologías y sistemas para reutilizar y ahorrar el agua en el Distrito Capital y se dictan otras disposiciones.","Concejo de Bogotá",null,"X","Artículos 1 y 3"]
[null,null,null,"Acuerdo 634",2015,"Por medio del cual se establecen regulaciones para la generación, recolección y tratamiento o aprovechamiento adecuado del aceite vegetal usado y se dictan otras disposiciones.","Concejo de Bogotá",null,"X","Artículos 1, 2, 3, 5, 6 y 12"]
[null,null,null,"Acuerdo 655",2016,"Por el cual se establece el uso de Fuentes No Convencionales de Energía -FNCE- en el Distrito Capital.","Concejo de Bogotá",null,"X","Artículos 1, 3 y 5"]
[null,null,null,"Acuerdo 660",2016,"Por medio del cual se establece  el Programa Institucional  ‘Al trabajo en bici’ y se dictan otras disposiciones.","Concejo de Bogotá",null,"X","Artículos 1, 2, 3 y 4"]
[null,null,null,"Acuerdo 663",2017,"Por medio del cual se crea la estrategia de movilidad sostenible en el Distrito Capital.","Concejo de Bogotá",null,"X","Artículos 4 y 5"]
[null,null,null,"Resolución 1164",2002,"Por la cual se adopta el Manual de Procedimientos para la Gestión Integral de los residuos hospitalarios y similares.","Ministerio de Medio Ambiente y Ministerio de Salud",null,"X","Toda"]
[null,null,null,"Resolución 627",2006,"Por la cual se establece la norma nacional de emisión de ruido y ruido ambiental.","Ministerio de Ambiente, Vivienda y Desarrollo Territorial",null,"X","Toda"]
[null,null,null,"Resolución 1362",2007,"Por la cual se establecen los requisitos y el procedimiento para el Registro de Generadores de Residuos o Desechos Peligrosos, a que hacen referencia los artículos 27 y 28 del Decreto 4741 del 30 de diciembre de 2005.","Ministerio de Ambiente, Vivienda y Desarrollo Territorial",null,"X","Toda"]
[null,null,null,"Resolución 2115",2007,"Por medio de la cual se señalan las características, instrumentos básicos y frecuencias del sistema de control y vigilancia para la calidad del agua para consumo humano.","Ministerio de Protección Social y Ministerio de Ambiente, Vivienda y Desarrollo Territorial",null,"X","Artículo 24"]
[null,null,null,"Resolución 909",2008,"Por la cual se establecen las normas y estándares de emisión admisibles de contaminantes a la atmósfera por fuentes fijas y se dictan otras disposiciones.","Ministerio de Ambiente, Vivienda y Desarrollo Territorial",null,"X","Artículo 4, parágrafo 5"]
[null,null,null,"Resolución 910",2008,"Por la cual se reglamentan los niveles permisibles de emisión de contaminantes que deberán cumplir las fuentes móviles terrestres, se reglamenta el artículo 91 del Decreto 948 de 1995 y se adoptan otras disposiciones.","Ministerio de Ambiente, Vivienda y Desarrollo Territorial",null,"X","Toda"]
[null,null,null,"Resolución 180606",2008,"Por la cual se especifican los requisitos técnicos que deben tener las fuentes lumínicas de alta eficacia usadas en sedes de entidades públicas.","Ministerio de Minas y Energía",null,"X","Toda"]
[null,null,null,"Resolución 181294",2008,"Por la cual se modifica el Reglamento Técnico de Instalaciones Eléctricas-RETIE.","Ministerio de Minas y Energía",null,"X","Toda"]
[null,null,null,"Resolución 371",2009,"Por la cual se establecen los elementos que deben ser considerados en los Planes de Gestión de Devolución de Productos Posconsumo de Fármacos o Medicamentos Vencidos.","Ministerio de Ambiente, Vivienda y Desarrollo Territorial",null,"X","Artículo 5"]
[null,null,null,"Resolución 372",2009,"Por la cual se establecen los elementos que deben contener los Planes de Gestión de Devolución de Productos Posconsumo de Baterías Usadas Plomo Acido, y se adoptan otras disposiciones. ","Ministerio de Ambiente, Vivienda y Desarrollo Territorial",null,"X","Artículo 5"]
[null,null,null,"Resolución 1297",2010,"Por la cual se establecen los Sistemas de Recolección Selectiva y Gestión Ambiental de Residuos de Pilas y/o Acumuladores y se adoptan otras disposiciones.","Ministerio de Ambiente, Vivienda y Desarrollo Territorial",null,"X","Artículo 16"]
[null,null,null,"Resolución 1511",2010,"Por la cual se establecen los Sistemas de Recolección Selectiva y Gestión Ambiental de Residuos de Bombillas y se adoptan otras disposiciones.","Ministerio de Ambiente, Vivienda y Desarrollo Territorial",null,"X","Artículo 16"]
[null,null,null,"Resolución 1512",2010,"Por la cual se establecen los Sistemas de Recolección Selectiva y Gestión Ambiental de Residuos de Computadores y/o Periféricos y se adoptan otras disposiciones.","Ministerio de Ambiente, Vivienda y Desarrollo Territorial",null,"X","Artículo 15"]
[null,null,null,"Resolución 1675",2013,"Por la cual se establecen los elementos que deben contener los Planes de Gestión de Devolución de productos Posconsumo de Plaguicidas.","Ministerio de Ambiente y Desarrollo Sostenible",null,"X","Artículo 14"]
[null,null,null,"Resolución 754",2014,"Por la cual se adopta la metodología para la formulación, implementación, evaluación, seguimiento, control y actualización de los Planes de Gestión Integral de Residuos Sólidos.","Ministerio de Vivienda, Ciudad y Territorio",null,"X","Artículos 1 y 9"]
[null,null,null,"Resolución 631",2015,"Por la cual se establecen los parámetros y los valores límites máximos permisibles en los vertimientos puntuales a cuerpos de aguas superficiales y a los sistemas de alcantarillado público y se dictan otras disposiciones.","Ministerio de Ambiente y Desarrollo Sostenible",null,"X","Artículos 1, 2, 8, 16 y 18"]
[null,null,null,"Resolución 41012",2015,"Por la cual se expide el Reglamento Técnico de Etiquetado (RETIQ), con fines de Uso Racional de Energía aplicable a algunos equipos de uso final de energía eléctrica y gas combustible para su comercialización y uso en Colombia.","Ministerio de Minas y Energía",null,"X","Artículo 1"]
[null,null,null,"Resolución 668",2016,"Por el cual se reglamenta el uso racional de bolsas plásticas y se adoptan otras disposiciones.","Ministerio de Ambiente y Desarrollo Sostenible",null,"X","Artículos 12 y 13"]
[null,null,null,"Resolución 330",2017,"Por la cual se adopta el Reglamento Técnico para el Sector de Agua Potable y Saneamiento Básico – RAS y se derogan las resoluciones 1096 de 2000, 0424 de 2001, 0668 de 2003, 1459 de 2005, 1447 de 2005 y 2320 de 2009.","Ministerio de Vivienda, Ciudad y Territorio",null,"X","Artículos 43, 79, 80 y 81"]
[null,null,null,"Resolución 472",2017,"Por la cual se reglamenta la gestión integral de los residuos generados en las actividades de Construcción y Demolición (RCD) y se dictan otras disposiciones.","Ministerio de Ambiente y Desarrollo Sostenible",null,"X","Artículos 1, 3, 4, 5, 6, 7, 15, 20 y 21"]
[null,null,null,"Resolución 1326",2017,"Por la cual se establecen los Sistemas de Recolección Selectiva y Gestión Ambiental de Llantas Usadas y se adoptan otras disposiciones.","Ministerio de Ambiente y Desarrollo Sostenible",null,"X","Artículos 1 y 18"]
[null,null,null,"Resolución 1257",2018,"Por la cual se desarrollan los parágrafos 1 y 2 del articulo 2.2.3.2.1.1.3. del Decreto 1090 de 2018, mediante el cual se adiciona 1076 de 2015. Ahorro eficiente de agua.","Ministerio de Ambiente y Desarrollo Sostenible",null,"X","Toda"]
[null,null,null,"Resolución 2190",1991,"Por la cual se reglamenta las condiciones para transporte de agua en carrotanque, lavado y desinfección de tanques de almacenamiento domiciliario y empresas que realizan la actividad de lavado y desinfección de tanques domiciliarios.","Secretaría Distrital de Salud",null,"X","Artículo 2"]
[null,null,null,"Resolución 931",2008,"Por la cual se reglamenta el procedimiento para el registro, el desmonte de elementos de publicidad exterior visual y el procedimiento sancionatorio correspondiente en el Distrito Capital.","Secretaría Distrital de Ambiente",null,"X","Toda"]
[null,null,null,"Resolución 3957",2009,"Por la cual se establece la norma técnica, para el control y manejo de los vertimientos realizados a la red de alcantarillado público en el Distrito Capital.","Secretaría Distrital de Ambiente",null,"X","Toda"]
[null,null,null,"Resolución 5572",2009,"Por el cual se regulan las características y condiciones técnicas para la fijación o instalación de publicidad exterior visual en vehículos automotores, distintos a los de servicio público y se toman otras determinaciones.","Secretaría Distrital de Ambiente",null,"X","Artículo 3, 4 y 5"]
[null,null,null,"Resolución 1754",2011,"Por la cual se adopta el Plan para la Gestión Integral de Residuos Peligrosos para el Distrito Capital.","Secretaría Distrital de Ambiente",null,"X","Artículos 1, 2, 3, 6 y  8"]
[null,null,null,"Resolución 6423",2011,"Por medio de la cual se adopta la Guía Técnica de Techos Verdes.","Secretaría Distrital de Ambiente",null,"X","Toda"]
[null,null,null,"Resolución 1115",2012,"Por medio de la cual se adoptan los lineamientos Técnico - Ambientales para las actividades de aprovechamiento y tratamiento de los residuos de construcción y demolición en el Distrito Capital.","Secretaría Distrital de Ambiente",null,"X","Artículo 1, 4 y 6"]
[null,null,null,"Resolución 715",2013,"Por medio de la cual se modifica la Resolución No. 1115 del 26 de septiembre de 2012.","Secretaría Distrital de Ambiente",null,"X","Toda"]
[null,null,null,"Resolución 242",2014,"Por la cual se adoptan los lineamientos para la formulación, concertación, implementación, evaluación, control y seguimiento del Plan Institucional de Gestión Ambiental -PIGA.","Secretaría Distrital de Ambiente",null,"X","Toda "]
[null,null,null,"Resolución 932",2015,"Por la cual se Modifica y Adiciona la Resolución 1115 de 2012.","Secretaría Distrital de Ambiente",null,"X","Toda"]
[null,null,null,"Resolución 1874",2019,"Por la cual se adopta el Protocolo de Implementación para el cumplimiento de los porcentajes de ahorro en agua y energía para la ciudad de Bogotá D.C., establecidos en la Resolución 549 de 2015 del Ministerio de Vivienda, Ciudad y Territorio, y se dictan otras disposiciones.","Secretaría Distrital de Planeación",null,"X","Toda "]
[null,null,null,"Resolución 160",1996,"Por la cual se reglamentan los niveles permisibles de emisión de contaminantes producidos por las fuentes móviles con motor a gasolina y diésel.","Departamento Técnico Administrativo del Medio Ambiente",null,"X","Toda"]
[null,null,null,"Resolución 2069",2000,"Por la cual se adopta una guía ambiental para estaciones de servicio.","Departamento Técnico Administrativo del Medio Ambiente",null,"X","Toda"]
[null,null,null,"Resolución 1188",2003,"Por la cual se adopta el manual de normas y procedimientos para la gestión de aceites usados en el Distrito Capital.","Departamento Técnico Administrativo del Medio Ambiente",null,"X","Artículos 2, 4 y 5"]
[null,null,null,"Resolución 493",2010,"Por la cual se adoptan medidas para promover el uso eficiente y ahorro del agua potable y desincentivar su consumo excesivo.","Comisión de Regulación de Agua Potable y Saneamiento Básico - CRA",null,"X","Artículo 3"]
[null,null,null,"Resolución 51",2014,"Por medio de la cual se establece la figura de acuerdos de corresponsabilidad con las organizaciones de recicladores como acción afirmativa de fortalecimiento.","Dirección General de la Unidad Administrativa Especial de Servicios Públicos",null,"X","Toda"]
[null,null,null,"Circular 20",2016,"Por la cual se adoptan medidas para el ahorro de energía eléctrica y agua en la administración distrital.","Alcaldía Mayor de Bogotá",null,"X","Toda "]
[null,null,null,"Otros. Concepto Jurídico",2012,"Concepto Jurídico Radicado 2012IE120365. Solicitud de registro para la publicidad exterior visual de las entidades públicas del orden Nacional o Distrital.","Secretaría Distrital de Ambiente",null,"X","Todo"]
[null,null,null,"Otros. Concepto Jurídico",2013,"Concepto Jurídico Radicado 2013IE110952. Registro de publicidad exterior visual para vehículos de  entidades públicas.","Secretaría Distrital de Ambiente",null,"X","Todo"]
[null,null,null,"Otros. Concepto Jurídico",2014,"Concepto Jurídico Radicado 2013IE133950. Cobro de Registros de Publicidad Exterior visual a entidades públicas.","Secretaría Distrital de Ambiente",null,"X","Todo "]
[null,null,null,"Acuerdo 003",1997,"Por el cual se expide el Estatuto General de la Universidad Distrital Francisco José de Caldas.","Consejo Superior Universitario","X",null,"Todo "]
[null,null,null,"Acuerdo 003",2015,"Por el cual se expide el Estatuto de Contratación de la Universidad Distrital Francisco José de Caldas.","Consejo Superior Universitario","X",null,"Todo "]
[null,null,null,"Acuerdo 009",2018,"Por el cual se adopta el Plan Estratégico de Desarrollo 2018 - 2030 de la Universidad Distrital Francisco José de Caldas.","Consejo Superior Universitario","X",null,"Todo"]
[null,null,null,"Resolución 251",2000,"Por la cual se adopta el PIGA de la Universidad Distrital Francisco José de Caldas.","Rectoría ","X",null,"Aplica parcialmente al SGA"]
[null,null,null,"Resolución 147",2007,"Por medio de la cual se adopta la Política Ambiental de la Universidad Distrital Francisco José de Caldas.","Rectoría ","X",null,"Modificada por la Resolución 164 de 2014"]
[null,null,null,"Resolución 149",2010,"Mediante la cual se modifica y adecua el Comité de Coordinación del Plan Institucional de Gestión Ambiental PIGA.","Rectoría ","X",null,"Toda"]
[null,null,null,"Resolución 227",2014,"Por la cual se realiza el Mejoramiento Continuo a la Política, Objetivos, y Modelo de Operación por Procesos del Sistema Integrado de Gestión, de la Universidad Distrital Francisco José de Caldas, SIGUD y se dictan otras disposiciones.","Rectoría ","X",null,"Arts. 3,4,5 y 6"]
[null,null,null,"Resolución 262",2015,"Por medio de la cual se reglamenta el Acuerdo 03 de 2015, Estatuto de Contratación de la Universidad Distrital Francisco José de Caldas y se dictan otras disposiciones.","Rectoría ","X",null,"Toda "]
[null,null,null,"Resolución 280",2015,"Por medio de la cual se reglamenta la delegación de la competencia contractual, ordenación del gasto y el pago otorgada mediante el Acuerdo 03 de 2015 del Consejo Superior Universitario y se dictan otras disposiciones.","Rectoría ","X",null,"Toda "]
[null,null,null,"Resolución 295",2015,"Por la cual se crea y se conforma el Subsistema Interno de Gestión Ambiental SGA-UD y se establecen funciones del Subsistema de Gestión Ambiental en la Universidad Distrital Francisco José de Caldas.","Rectoría ","X",null,"Toda"]
[null,null,null,"Resolución 299",2015,"Por medio de la cual se aprueba y adopta el protocolo de limpieza y desinfección general para las áreas comunes, ubicadas en las sedes de la Universidad Distrital Francisco José de Caldas.","Rectoría ","X",null,"Toda "]
[null,null,null,"Resolución 300",2015,"Por medio de la cual se aprueba y adopta las Directivas Ambientales Institucionales para la Universidad Distrital Francisco José de Caldas.","Rectoría ","X",null,"Toda "]
[null,null,null,"Resolución 301",2015,"Por medio de la cual se aprueba y adopta el Instructivo para la elaboración de inventarios de dispositivos de iluminación convencional y de bajo consumo para la Universidad Distrital Francisco José de Caldas.","Rectoría ","X",null,"Toda "]
[null,null,null,"Resolución 474",2015,"Por la cual se crea y se conforma el Subsistema Interno de Gestión Ambiental SGA-UD y se establecen funciones del Subsistema de Gestión Ambiental en la Universidad Distrital Francisco José de Caldas.","Rectoría ","X",null,"Toda "]
[null,null,null,"Resolución 004",2016,"Por la cual adopta el Manual para la Administración de Riesgos de la Universidad Distrital Francisco José de Caldas.","Rectoría ","X",null,"Toda"]
[null,null,null,"Resolución 207",2016,"Por la cual se establecen algunas directrices generales para la identificación, creación, revisión, aprobación, normalización y control de documentos del Sistema Integrado de Gestión de la Universidad Distrital Francisco José de Caldas.","Rectoría ","X",null,"Toda"]
[null,null,null,"Resolución 506",2016,"Por la cual se modifica la Resolución 227 de 2014, mediante la cual se realiza el mejoramiento continuo a la Política, Objetivos, y al Modelo de Operación por Procesos del Sistema Integrado de Gestión de la Universidad Distrital Francisco José de Caldas, SIGUD, y se dictan otras disposiciones.","Rectoría ","X",null,"Toda"]
[null,null,null,"Resolución 508",2016,"Por la cual se adopta el Documento de Gestión eficiente de la energía eléctrica en la Universidad Distrital Francisco José de Caldas.","Rectoría ","X",null,"Toda "]
[null,null,null,"Resolución 509",2016,"Por la cual se adopta el instructivo para la elaboración de inventarios de dispositivos de agua en la Universidad Distrital Francisco José de Caldas.","Rectoría ","X",null,"Toda "]
[null,null,null,"Resolución 629",2016,"Por medio de la cual se adopta el Manual de Supervisión e Interventoría de la Universidad Distrital Francisco José de Caldas.","Rectoría ","X",null,"Toda "]
[null,null,null,"Resolución 05",2017,"Por medio del cual se asignan funciones de Gestor Ambiental a un Servidor Público de la Universidad Distrital Francisco José de Caldas.","Rectoría ","X",null,"Toda "]
[null,null,null,"Resolución 164",2017,"Por medio de la cual se modifica el artículo 1 de la Resolución 474 de 2015, Política Ambiental.","Rectoría ","X",null,"Toda "]
[null,null,null,"Resolución 444",2018,"Por la cual se adopta el Plan Indicativo para el período 2018 - 2021 de la Universidad Distrital Francisco José de Caldas.","Rectoría ","X",null,"Toda"]
[null,null,null,"Resolución 163",2019,"Por la cual se ajusta el Sistema Integrado de Gestión de la Universidad Distrital Francisco José de Caldas, SIGUD, se implementa el Modelo Integrado de Planeación y Gestión - MIPG, como su Marco de Referencia, y se crea el Comité Institucional de Gestión y Desempeño.","Rectoría ","X",null,"Todo"]
[null,null,null,"Resolución 297",2019,"Por la cual se reglamenta el funcionamiento y operativización de los Equipos Técnicos de Gestión y Desempeño, como instancias de apoyo del Comité Institucional de Gestión y Desempeño, y se corrige la Resolución de Rectoría N° 163 de mayo 9 de 2019.","Rectoría ","X",null,"Todo"]
[null,null,null,"Resolución 359",2019,"Por la cual se da por terminada una designación concedida a un docente de la Facultad de Medio Ambiente y Recursos Naturales y se designan funciones a una docente de planta de la Universidad para fungir como Gestora Ambiental de la Universidad Distrital Francisco José de Caldas.","Rectoría ","X",null,"Toda"]
[null,null,null,"Circular 3627",2016,"Implementación de la Directiva 002 de 2016 Bogotá se mueve Mejor en la Universidad Distrital Francisco José de Caldas.","Rectoría ","X",null,"Toda "]
[]
[null,null,null,"ELABORÓ",null,"REVISÓ","APROBÓ"]
[null,null,null,"Nombre: Equipo SIGUD \nCargo: N/A\nFecha: 12/09/2019",null,"Nombre: Carlos Ramón Bernal Echeverry\nCargo: Jefe Oficina Asesora de Planeación y Control\nFecha: 20/10/2019","Nombre: Carlos Ramón Bernal Echeverry\nCargo: Jefe Oficina Asesora de Planeación y Control\nFecha: 20/10/2019"]

{"sheet":"AA","index":6,"n_rows":52,"n_cols":10,"rows_kept":52,"cut":false,"hidden":false,"merged":[[1,1,3,2],[1,3,1,6],[1,7,1,8],[1,9,3,9],[2,3,2,6],[2,7,2,8],[3,3,3,6],[3,7,3,8],[51,3,51,4],[51,6,51,7],[5,1,5,2],[5,3,5,9],[7,1,7,9],[9,1,48,1],[9,2,48,2],[50,3,50,4],[50,6,50,7]]}
[]
[null,null,null,"NORMOGRAMA POR PROCESOS",null,null,null,"Código: GI-PR-002-FR-017"]
[null,null,null,"Macroproceso: Direccionamiento Estratégico",null,null,null,"Versión: 02"]
[null,null,null,"Proceso: Gestión Integrada",null,null,null,"Fecha de Aprobación: 17/11/2017"]
[null," "]
[null,"Proceso",null,"Autoevaluación y Acreditación"]
[]
[null,"IDENTIFICACIÓN DE REQUISÍTOS LEGALES Y/O NORMATIVOS -  IDENTIFICACIÓN DEL REQUISÍTO"]
[null,"Macroproceso","Proceso","Clasificación de la Norma","Año","Temática","Expedida por","Interna","Externa","Artículo Aplicable"]
[null,"Direccionamiento Estratégico",{"$f":"IF(D6=\"\",\"-\",D6)","v":"Autoevaluación y Acreditación"},"Constitución Politíca de Colombia",1991,"Constitución Política de Colombia.","Asamblea Nacional Constituyente",null,"X","Arts. 67,69"]
[null,null,null,"Ley 30",1992,"Por el cual se organiza el servicio público de la Educación Superior.","Congreso de la República",null,"X","Todos los artículos de los Títulos Fundamentos de la Educación Superior"]
[null,null,null,"Ley 115",1994,"Por la cual se expide la Ley General de Educación.","Congreso de la República",null,"X","Toda"]
[null,null,null,"Ley 749",2002,"Por la cual se organiza el servicio público de la educación superior en las modalidades de formación técnica profesional y tecnológica, y se dictan otras disposiciones.","Congreso de la República",null,"X","Toda"]
[null,null,null,"Ley 1188",2008,"Por la cual se regula el registro calificado de programas de educación superior y se dictan otras disposiciones.","Congreso de la República",null,"X","Toda"]
[null,null,null,"Decreto 2904",1994,"Por el cual se reglamentan los articulos 53 y 54 de la Ley 30 1992, con los cuales se creó el Sistema Nacional de  Acreditación para las instituciones de educación superior.","Ministerio de Educación Nacional",null,"X","Todo "]
[null,null,null,"Decreto 2230",2003,"Por el cual se modifica la estructura del Ministerio de Educación Nacional, y se dictan otras disposiciones.","Ministerio de Educación Nacional",null,"X","Todo "]
[null,null,null,"Decreto 2232",2003,"Por el cual se modifica la estructura del Instituto Colombiano para el Fomento de la Educación Superior, ICFES y se dictan otras disposiciones.","Ministerio de Educación Nacional",null,"X","Todo "]
[null,null,null,"Decreto 1001",2006,"Por el cual se organiza la oferta de programas de posgrado y se dictan otras disposiciones.","Ministerio de Educación Nacional",null,"X","Todo "]
[null,null,null,"Decreto 4857",2009,"Por el cual se señalan la composición  y las funciones de la Junta Directiva del ICFES.","Ministerio de Educación Nacional",null,"X","Todo "]
[null,null,null,"Decreto 1295 ",2010,"Por el cual se reglamenta el registro calificado de que trata la Ley 1188 de 2008 y la oferta y desarrollo de programas académicos de educación superior.","Ministerio de Educación Nacional",null,"X","Todo  (Se recoge en el decreto 1075 de 2015 y decreto 1330 de 2019 espedido por el Ministerio de Educación Nacional)"]
[null,null,null,"Decreto 1075",2015,"Decreto unico reglamentario del sector Educación.","Ministerio de Educación Nacional",null,"X","Todo "]
[null,null,null,"Decreto 2450",2015,"Por el cual se reglamentan las condiciones de calidad para el otorgamiento y renovacion del registro calificado de los programas academicos de licenciatura y los enfocados a la educacion, y se adiciona el Decreto 1075 de 20015, Unico Reglamentario del Sector Educación.","Ministerio de Educación Nacional",null,"X","Todo "]
[null,null,null,"Decreto 1330",2019,"Por el cual se sustituye el capítulo 2 y se suprime el capítulo 7 del título 3 de la parte 5 del libro 2 del decreto 1075 del 2015- único reglamentario del Sector Educación ","Ministerio de Educación Nacional",null,"X","capítulo 2"]
[null,null,null,"Acuerdo 02",2006,"Por el cual se adoptan nuevas políticas para la acreditación de programas de pregrado e instituciones.","Consejo Nacional de Educación\nSuperior, CESU",null,"X","Todo "]
[null,null,null,"Acuerdo 01",2010,"Por el cual se autoriza al CNA para que diseñe y promulgue los lineamientos para la acreditación de alta calidad de los programas de maestría y doctorado y se unifican los rangos de acreditación para los programas de pregrado, maestrías, doctorados e instituciones.","Consejo Nacional de Educación Superior",null,"X","Todo "]
[null,null,null,"Acuerdo 02",2011,"Por el cual se establecen criterios para los Procesos de Acreditación de Instituciones y Programas Académicos de Educación Superior.","Consejo Nacional de Educación\nSuperior, CESU",null,"X","Todo "]
[null,null,null,"Acuerdo 03",2011,"Por el cual se establecen los lineamientos para la acreditación  de programas de instituciones acreditadas institucionalmente.\n","Consejo Nacional de Educación\nSuperior, CESU",null,"X","Todo "]
[null,null,null,"Acuerdo 02",2012,"Por el cual se establece la apreciación de condiciones iniciales para la acreditación de programas académicos.","Consejo Nacional de Educación\nSuperior, CESU",null,"X","Todo "]
[null,null,null,"Acuerdo 03",2014,"Por el cual se aprueban los lineamientos para la Acreditación Institucional.","Consejo Nacional de Educación Superior",null,"X","Todo (Modificación del artículo 10 por el Acuerdo 3 de 2017)"]
[null,null,null,"Acuerdo 01",2016,"Por medio del cual se adiciona un artículo transitorio al Acuerdo 03 de 2014, con la definición de un período de transición para la aplicación de los lineamientos de acreditación institucional previstos en el mismo.","Consejo Nacional de Educación Superior",null,"X","Todo "]
[null,null,null,"Acuerdo  02",2016,"Por medio del cual se aprueba la creación de una sala temporal para la evaluación con fines de acreditación de programas de Licenciatura y los enfocados a la educación y se establecen otras directrices para el proceso de acreditacion de éstos programas.","Consejo Nacional de Educación Superior",null,"X","Todo "]
[null,null,null,"Resolución 23096",2016,"Por medio de la cual se otorga acreditación institucional de alta calidad a la Universidad Distrital Francisco José de Caldas con domicilio en la ciudad de Bogotá.","Ministerio de Educación Nacional",null,"X","Todo "]
[null,null,null,"Resolución 18583",2017,"Por la cual se ajustan las caracteristicas especificas de calidad de los programas de licenciaturas para la obtención, renovación, o modificación del registro calificado, y se deroga 2041 del 2016.","Ministerio de Educación Nacional",null,"X","Todo"]
[null,null,null,"Acuerdo 003",1997,"Por el cual se expide el Estatuto General de la Universidad Distrital Francisco José de Caldas.","Consejo Superior Universitario","X",null,"Arts. 3,16, 21, 22, 42, 43, 44, 45, 46 y 47"]
[null,null,null,"Acuerdo 009",2006,"Por el cual se implementa el Sistema de Créditos Académicos en la  Universidad Distrital Francisco José de Caldas","Consejo Académico","X",null,"Todo "]
[null,null,null,"Acuerdo 09",2018,"Por el cual se adopta el Plan Estratégico de Desarrollo 1018 -2030 de la Universidad Distrrital Francisco José de Caldas","Consejo Superior Universitario","X",null,"Todo "]
[null,null,null,"Acuerdo 04",2019,"Por medio del cual se adiciona un parágrafo al artículo 3 del acuerdo 009 de Septiembre 12 de 2006","Consejo Superior Universitario","X",null,"Todo "]
[null,null,null,"Acuerdo 11",2014,"Por el cual se aprueba la política de Acreditación Institucional de la Universidad Distrital Francisco José de Caldas y se autoriza al Rector presentar el inicio de las condiciones iniciales de Acreditación institucional ante el Ministerio de Educación Nacional","Consejo Superior Universitario","X",null,"Todo "]
[null,null,null,"Acuerdo  041",2016,"Por medio del cual se establecen las medidas transitorias relacionadas con la Flexibilidad Curricular, el Sistema de Créditos Académicos y se dictan otras disposiciones para los proyectos curriculares de pregrado de la Facultad de Ciencias y Educación.","Consejo Académico","X",null,"Todo"]
[null,null,null,"Resolución 129",2004,"Por la cual se crea el Comité Institucional de Autoevaluación y Acreditación de Calidad de la Universidad Distrital Francisco José de Caldas y se asignan sus funciones.","Rectoría","X",null,"Todo "]
[null,null,null,"Resolución 035",2006,"Por el cual se reglamenta la aplicación del Sistema de Créditos Académicos en la Universidad Distrital Francisco José de Caldas.","Consejo Académico","X",null,"Todo "]
[null,null,null,"Resolución 09",2011,"Por el cual se institucionaliza la autoevaluación institucional.","Consejo Académico","X",null,"Todo "]
[null,null,null,"Resolución 048",2011,"Por el cual se reglamentan aspectos de la formación por ciclos de la Facultad Tecnológica de la UD.","Consejo Académico","X",null,"Todo "]
[null,null,null,"Resolución 194",2010,"Por la cual se ajusta y actualiza la documentación del Sistema Integrado de Gestión SIGUD, a través del Manual de Operaciones de la Universidad Distrital Francisco José de Caldas.","Rectoría","X",null,"Todo "]
[null,null,null,"Resolución 215",2014,"Por la cual se ajusta y conforma el Sistema Integrado de Gestión de la Universidad Distrital Francisco José de Caldas, SIGUD, y se establecen las funciones a los equipos del Sistema Integrado de Gestión, SIGUD, en los Niveles Ejecutivo, Técnico, Operativo y Evaluador y se establecen otras disposiciones.","Rectoria","X",null,"Todo "]
[null,null,null,"Resolución 109",2015,"Por la cual se adopta el documento maestro y el  aplicativo de condiciones institucionales d la Universidad Distrital Francisco Jose de Caldas para los procesos de creación de programas academicos y solicitud y renovacion de registros calificados.","Rectoria","X",null,"Todo "]
[null,null,null,"Resolución 01",2017,"Por la cual se ordena articular el Plan Estratégico de Desarrollo el Plan de Mejoramiento Institucional y se dispone que en los planes de la unidades académicas y/o administrativas y en los planes de trabajo individual se de alcance a los resultados de la Autoevaluación con fines de Acreditación de alta Calidad de la Universidad y de los proyectos curriculares.","Rectoría","X",null,"Todo "]
[null,null,null,"Resolución 500",2017,"Por la cual se deroga la resulucion 704 del  27 de diciembre de 2016 y se reglamenta las funciones del  Comité Institucional de Autoevaluación y Acreditación de Calidad de la Universidad Distrital Francisco José de Caldas, se adopta el subsistema de Autoevaluación y Acreditación (SAA) y se asignan sus funciones.","Rectoría","X",null,"Todo"]
[null,null,null,"Circular  4",2011,"Por la cual se expiden directrices en lo relativo a los planes de mejoramiento, procesos de acreditación y renovación de registro calificado de los proyectos curriculares de pregrado y posgrado. ","Consejo academico","X",null,"Todo"]
[]
[null,null,null,"ELABORÓ",null,"REVISÓ","APROBÓ"]
[null,null,null,"Nombre:Equipo SIGUD\nCargo: N/A\nFecha: 22/03/2017",null,"Nombre: Esperanza del Pilar Infante Luna\nCargo: Jefe Oficina de Autoevaluación  Acreditación \nFecha: 14/11/2019","Nombre: William Fernando Castrillón Cardona\nCargo: Vicerrector  Académico\nFecha: 14/11/2019"]

{"sheet":"C","index":7,"n_rows":72,"n_cols":10,"rows_kept":72,"cut":false,"hidden":false,"merged":[[71,3,71,4],[71,6,71,7],[5,1,5,2],[5,3,5,9],[7,1,7,9],[9,1,68,1],[9,2,68,2],[70,3,70,4],[70,6,70,7],[1,1,3,2],[1,3,1,6],[1,7,1,8],[1,9,3,9],[2,3,2,6],[2,7,2,8],[3,3,3,6],[3,7,3,8]]}
[]
[null,null,null,"NORMOGRAMA POR PROCESOS",null,null,null,"Código: GI-PR-002-FR-017"]
[null,null,null,"Macroproceso: Direccionamiento Estratégico",null,null,null,"Versión: 02"]
[null,null,null,"Proceso: Gestión Integrada",null,null,null,"Fecha de Aprobación: 17/11/2017"]
[]
[null,"Proceso",null,"Comunicaciones"]
[]
[null,"IDENTIFICACIÓN DE REQUISÍTOS LEGALES Y/O NORMATIVOS -  IDENTIFICACIÓN DEL REQUISÍTO"]
[null,"Macroproceso","Proceso","Clasificación de la Norma","Año","Temática","Expedida por","Interna","Externa","Artículo Aplicable"]
[null,"Direccionamiento Estratégico","Comunicaciones","Declaración Universal de Derechos Humanos",1948,"Todo individuo tiene derecho a la libertad de opinión y de expresión; este derecho incluye el de no ser molestado a causa de sus opiniones, el de investigar y recibir informaciones y opiniones, y el de difundirlas, sin limitación de fronteras, por cualquier medio de expresión.","Asamblea General de las Naciones Unidas",null,"X","Art. 19"]
[null,null,null,"Pacto Internacional de Derechos Civiles y Políticos",1966,"Nadie podrá ser molestado a causa de sus opiniones.","Asamblea General de las Naciones Unidas",null,"X","Art. 19"]
[null,null,null,"Declaración Americana  de los Derechos y Deberes del Hombre",1995,"Todas las personas tienen derecho a la libertad de investigación, opinión, expresión y difusión del pensamiento por cualquier medio de comunicación.","Asamblea General de las Naciones Unidas",null,"X","Art. 4"]
[null,null,null,"Declaración Universal de la Unesco ",2001,"Los oyentes, lectores y espectadores de los  medios recibirán información basada en la diversidad cultural, en el patrimonio común de la humanidad  y en los derechos humanos.","Asamblea General de las Naciones Unidas",null,"X","Arts. 1,2,3,4,5,6,7,8,9,10,11."]
[null,null,null,"Constitución Política de Colombia",1991,"Todas las personas tienen derecho a su intimidad personal y familiar y a su buen nombre, y el Estado debe respetarlos y hacerlos respetar. De igual modo, tienen derecho a conocer, actualizar y rectificar las informaciones que se hayan recogido sobre ellas en bancos de datos y en archivos de entidades públicas y privadas.\n\nLibertad en la enseñanza.","Asamblea Nacional Constituyente",null,"X","Arts. 01, 15, 20,21, 23,, 27, 44, 67, 68, 69, 70, 73,74."]
[null,null,null,"Ley 29",1944,"Se dictan disposiciones sobre Prensa.","Congreso de la República",null,"X","Todo"]
[null,null,null,"Ley 48",1975,"Por medio de la cual se autoriza la adhesión de Colombia a los siguientes Instrumentos Internacionales: Convención Universal sobre Derecho de Autor, sus Protocolos I y II, revisa en París el 24 de julio de 1971 y se aprueba la Convención Internacional sobre la Protección de los Artistas Intérpretes o Ejecutantes, los Productores de Fonogramas y los Organismos de Radiodifusión, hecha en Roma el 26 de octubre de 1961.","Congreso de la Republica ",null,"X","Toda"]
[null,null,null,"Ley 23","1982-01-28","Derechos de Autor","Congreso de la República",null,"X"]
[null,null,null,"Ley 30",1992,"Señala como objetivo trabajar por la creación, el desarrollo y la transmisión del conocimiento en todas sus formas y expresiones y promover su utilización en todos los campos para solucionar las necesidades del país. ","Congreso de la Republica ",null,"X","Capítulo II, Artículo 6, literal b"]
[null,null,null,"Ley 44",1993,"Por la cual se modifica y adiciona la Ley 23 de 1982 y se modifica la Ley 29 de 1944.","Congreso de la Republica ",null,"X","Toda"]
[null,null,null,"Ley 98","1993-12-22","Por la cual se dictan normas sobre democratización y fomento del libro colombiano","Congreso de Colombia",null,"X","Art. 21°  "]
[null,null,null,"Ley 137",1994,"Dicta 10 Principios fundamentales necesarios para que una prensa libre cumpla su papel esencial en la democracia.","Congreso de la República",null,"X","Toda"]
[null,null,null,"Ley 198",1995,"Por la cual se ordena la izada de la Bandera Nacional y colocación de los símbolos patrios en los establecimientos públicos y educativos, instalaciones militares y de policía y representaciones de Colombia en el exterior, y se dictan otras disposiciones.","Congreso de la Republica ",null,"X","Toda"]
[null,null,null,"Ley 527 ","1999-08-18","Reglamenta el acceso y uso de los mensajes de datos, del comercio electrónico y de las firmas digitales, se establecen las entidades de\ncertificación","Congreso de Colombia",null,"X","Toda"]
[null,null,null,"Ley 586",2000,"Por medio del cual se instituye el Día de la Libertad de Expresión.","Congreso de la República",null,"X","Toda"]
[null,null,null,"Ley 1341",2009,"Por la cual se definen principios y conceptos sobre la sociedad de la información y la organización de las Tecnologías de la Información y las Comunicaciones -TIC-, se crea la Agencia Nacional del Espectro y se dictan otras disposiciones.","Congreso de la Republica ",null,"X","Arts. 56 al 67"]
[null,null,null,"Ley 1379","2010-01-15","Por la cual se organiza la red nacional de bibliotecas públicas y se dictan otras disposiciones.","Congreso de Colombia",null,"X","Arts.  44°, 21° "]
[null,null,null,"Ley 1712",2014,"Se crea la Ley de Transparencia y se regula el derecho de acceso a la información pública nacional y se establecen los principios y procedimientos para el ejercicio y garantía del derecho y las excepciones a la publicidad de información.","Congreso de la Republica ",null,"X","Toda"]
[null,null,null,"Ley 1753",2015,"Por el cual se expide el Plan Nacional de Desarrollo 2014 - 2018 \"Todos por un Nuevo País.","Congreso de la Republica ",null,"X","Arts. 42, 44 y 267"]
[null,null,null,"Decreto 460",1995,"Por el cual se reglamenta el Registro Nacional del Derecho de Autor y se regula el Depósito Legal.","Presidente de la República de Colombia",null,"X","Toda"]
[null,null,null,"Decreto 2150","1995-12-05","Por el cual se suprimen y reforman regulaciones, procedimientos o trámites innecesarios existentes en la Administración Pública","Presidencia de la República y Ministerio de Justicia y del Derecho",null,"X","Art. 72º"]
[null,null,null,"Decreto 1070","2008-04-07","Derechos de Reproducción","Presidencia de la República",null,"X","Artículo 26° de la Ley 98 de 1993."]
[null,null,null,"Decreto 19","2012-01-10","Por el cual se dictan normas para suprimir o reformar regulaciones, procedimientos y trámites.","Presidencia de la República",null,"X","El Artículo 213, reforma el Artículo 1° del Decreto Ley 2937 de 1948."]
[null,null,null,"Decreto 195",2005,"Por el cual se adopta límites de exposición de las personas a campos electromagnéticos, se adecuan procedimientos para la instalación de estaciones radioeléctricas y se dictan otras disposiciones.","Ministerio de Tecnologías de la Información y las Comunicaciones ",null,"X","Todo "]
[null,null,null,"Decreto 2805",2008,"Por el cual se expide el Reglamento del Servicio de Radiodifusión Sonora y se dictan otras disposiciones.","Ministerio de las Tecnologías de la Información y las Comunicaciones",null,"X","Toda"]
[null,null,null,"Decreto 4350",2009,"Por el cual se establece el régimen unificado de contraprestaciones por concepto de concesiones, autorizaciones y permisos en materia de servicios de radiodifusión sonora y se dictan otras disposiciones.","Ministerio de las Tecnologías de la Información y las Comunicaciones",null,"X","Toda"]
[null,null,null,"Decreto 1161 ",2010,"Por el cual se dictan algunas disposiciones relacionadas con el régimen de contraprestaciones en materia de telecomunicaciones y se derogan los decretos 1972 y 2805 de 2008.","Ministerio de Tecnologías de la Información y las Comunicaciones ",null,"X","Todo "]
[null,null,null,"Decreto 4141",2011,"Por el cual se reasigna una función al Ministerio de Cultura, de llevar el registro del Número Internacional Normalizado para Publicaciones Seriadas (ISSN) en Colombia.","Ministerio de Educación Nacional",null,"X","Toda"]
[null,null,null,"Decreto 2573",2014,"Por el cual se establecen los lineamientos generales de la Estrategia de Gobierno en Línea de la República de Colombia, se reglamentan parcialmente las Leyes 1341 de 2009 y 1450 de 2011, y se dictan otras disposiciones.","Ministerio de las Tecnologías de la Información y las Comunicaciones",null,"X","Todo"]
[null,null,null,"Resolución 1508","2000-10-23","Establece normas de carácter general para determinar el carácter científico o cultural de libros, revistas, folletos, coleccionables seriados o\npublicaciones","Ministerio de Cultura",null,"X","Toda"]
[null,null,null,"Resolución 1645",2005,"Por la cual se reglamenta el Decreto 195 de 2005","Ministerio de Tecnologías de la Información y las Comunicaciones ",null,"X","Toda"]
[null,null,null,"Resolución 415",2010,"Por la cual se expide el Reglamento del Servicio de Radiodifusión Sonora y se dictan otras disposiciones.","Ministerio de las Tecnologías de la Información y las Comunicaciones",null,"X","Todo, en especial Titulo IV"]
[null,null,null,"Resolución 1396",2010,"Por la cual se formaliza la prorroga de licencia de concesión y se autoriza la modificación de los parámetros técnicos esenciales a favor de la Universidad Distrital Francisco José de Caldas, para la prestación del servicio de interés publico de radiodifusión sonora, en frecuencia modulada (FM), a través de la Emisora LAUD 90.4 FM ESTEREO en la ciudad de Bogotá D.C., Departamento de Cundinamarca.","Ministerio de las Tecnologías de la Información y las Comunicaciones",null,"X","Toda"]
[null,null,null,"Resolución 23096 ",2016,"En la cual el Ministerio de Educación Nacional otorga a la Universidad Distrital Francisco José de Caldas la Acreditación Institucional de Alta Calidad, por lo cual el Consejo Nacional de Acreditación, recomienda: “estimular la interacción entre los docentes, los estudiantes y las autoridades académico-administrativas de las distintas facultades, programas y grupos de investigación, para facilitar el intercambio de conocimientos, experiencias y recursos que permitan potenciar la interdisciplinariedad y la producción académica, investigativa y tecnológica de la institución","Ministerio de Educación Nacional",null,"X","Toda"]
[null,null,null,"Resolución 1977",2018,"Por el cual se adoptan medidas en materia de ordenación técnica del espectro radioeléctrico atribuido al Servicio de Radiodifusión Sonora, y se actualiza el Plan Técnico Nacional de Radiodifusión Sonora en Amplitud Modulada (AM) y el Plan Técnico Nacional de Radiodifusión Sonora en Frecuencia Modulada (FM).","Ministerio de Tecnologías de la Información y las Comunicaciones ",null,"X","Toda"]
[null,null,null,"Ley estatutaria 1618",2013,"Por medio de la cual se establecen las disposiciones para garantizar el pleno ejercicio de los derechos de las personas con discapacidad, la Universidad corresponde mediante el ejercicio de sus comunicaciones a garantizar el acceso a la información a las comunidades con Necesidades Educativas Especiales o en situación de discapacidad y a velar por la implementación de iniciativas que incidan en la accesibilidad y la inclusión de todos sus públicos.","Sistema Nacional de Discapacidad",null,"X","Toda"]
[null,null,null,"Resolución 774 ",2018,"Por la cual se adoptan los limites de exposición de las personas a los campos electromagnéticos, se reglamentan las condiciones que deben reunir las estaciones radioeléctricas para cumplirlos y se dictan disposiciones relacionadas con el despliegue de antenas de radiocomunicaciones","Agencia Nacional del Espectro ANE",null,"X","Toda"]
[null,null,null,"Acuerdo 003",1997,"Se promoverá la participación de los proyectos en la construcción y mantenimiento de la imagen institucional, a la información a la comunidad externa e interna de todas las actuaciones de la institución, al establecimiento de identidad e identificación de las acciones de la Universidad a través de logos y formas simbólicas.","Consejo Superior Universitario ","X",null,"Artículo 32, capítulo IV"]
[null,null,null,"Acuerdo 002 ",2002,"Por medio de la cual se crea y se reglamenta la estructura y funcionamiento de la Emisora de la Universidad Distrital Francisco José de Caldas.","Consejo Superior Universitario ","X",null,"Todo "]
[null,null,null,"Acuerdo 002","2002-04-09","Por el cual se crea el Fondo de Publicaciones y se define el proyecto de política editorial de la Universidad Distrital Francisco José de Caldas","Consejo Académico","X",null,"Todo"]
[null,null,null,"Acuerdo 004","2011-10-11","Por el cual se expide el Estatuto de Propiedad Intelectual","Consejo Superior Universitario ","X",null,"Acuerdo"]
[null,null,null,"Acuerdo 022","2012-06-19","Por el cual se traza la política editorial de la Universidad Distrital Francisco José de Caldas y se asumen otras disposiciones complementarias.","Consejo Académico","X",null,"Todo"]
[null,null,null,"Acuerdo 023","2012-06-19","Por el cual se reglamenta la Política Editorial de la Universidad Distrital Francisco José de Caldas","Consejo Académico","X",null,"Todo"]
[null,null,null,"Acuerdo 024","2012-07-31","Por el cual se modifica el literal a.), del numeral I., del Acuerdo 023 de junio 19 de 2012 \"Por el cual se reglamenta la Política Editorial de la Universidad Distrital Francisco José de Caldas","Consejo Académico","X",null,"Modifica el literal a.), del numeral I., del Acuerdo 023 de junio 19 de 2012° según Artículo 1° y certifica con el Artículo 2°"]
[null,null,null,"Acuerdo 026","2012-07-31","Por el cual se establecen los procedimientos para la publicación de las tesis de Postgrado de los estudiantes de la Universidad Distrital Francisco José de Caldas.","Consejo Académico","X",null,"Arts. 1°, 2°, 3°,4°,5° y  6°"]
[null,null,null,"Acuerdo 027","2013-11-26","Por el cual se adiciona una parágrafo al literal a.), del numeral I., del Artículo 9° del Acuerdo 0023 de junio de 2012","Consejo Académico","X",null,"Adicionar un parágrafo al literal a.), del numeral I., del Artículo 9, según Artículo 1° y certificado con el Artículo 2°"]
[null,null,null,"Acuerdo No 017",2016,"Universitario por el cual se amplía la vigencia del Plan Estratégico de Desarrollo de la Universidad 2008 – 2016 “Saberes, Conocimiento e Investigación de Alto Impacto para el Desarrollo Humano y Social”, se identifican los resultados provisionales del avance de las metas cuantitativas del mencionado Plan y se establecen los proyectos que deben ser prioritarios en el 2017 como es en la política 1) la puesta en marcha del Sistema Integrado de Comunicaciones.","Consejo Superior Universitario ","X",null,"Todo"]
[null,null,null,"Resolución 036",2009,"Por medio del cual se crea el FORO ABIERTO CSU de la Universidad Distrital Francisco José de Caldas y se dictan otras disposiciones.","Consejo Superior Universitario ","X",null,"Toda"]
[null,null,null,"Resolución No. 031","2020-12-30","Por medio de la cual se aprueba el Presupuesto de Rentas e Ingresos, Gastos e\nInversiones de la Universidad Distrital Francisco José de Caldas para la Vigencia 2021","Consejo Superior Universitario ","X",null,"Toda"]
[null,null,null,"Acuerdo 011","2015-09-10","Por el cual se formaliza el escudo de la Universidad Distrital Francisco José de Caldas y se definen las aplicaciones generales para su aplicación","Rectoría","X",null,"Todo"]
[null,null,null,"Resolución 349",2008,"Por la cual se fusionan los comités de informática y Sistema General de información Institucional creados mediante resoluciones de rectoría números 678/93 y 02/03 y se crea el comité de informática y Telecomunicaciones de la Universidad Distrital Francisco José  de Caldas.","Rectoría","X",null,"Todo"]
[null,null,null,"Resolución 711",2008,"Por la cual se reglamenta el uso de los servicios de publicación en internet y correo electrónico que se prestan en la Universidad Distrital Francisco José de Caldas.","Rectoría","X",null,"Toda"]
[null,null,null,"Resolución 396",2012,"Por la cual se modifica la composición y funciones del comité de comunicaciones de la Universidad Distrital Francisco José de Caldas.","Rectoría","X",null,"Toda"]
[null,null,null,"Resolución 125",2014,"Por la cual se modifica la composición y funciones del comité de comunicaciones de la Universidad Distrital Francisco José de Caldas, dispuesta en la resolución de rectoría Nº 392 de 2012, y se dictan otras disposiciones.","Rectoría","X",null,"Toda"]
[null,null,null,"Resolución 653",2016,"Por la cual se reglamenta el manual de uso de los símbolos e imagen institucional de la Universidad y se definen las aplicaciones generales para su utilización.","Rectoría","X",null,"Todo"]
[null,null,null,"Resolución 644","2017-11-17","Por la cual se modifica parcialmente la Resolución 653 del 24 de noviembre de 2016.","Rectoría","X",null,"Modifica el  artículo 6 de la Resolución No. 0653 de noviembre 24 de 2016"]
[null,null,null,"Resolución 315","2019-07-25","Por la cual se expiden medidas de austeridad  y eficiencia en el gasto","Rectoría","X",null,"Toda"]
[null,null,null,"Resolución 007","2021-01-13","“Por el cual se aprueba el Plan Anual de Adquisiciones de la\nvigencia 2021”","Rectoría","X",null,"Todo"]
[null,null,null,"Resolución No. 047","2021-03-19","“Por el cual se modifica el Plan Anual de Adquisiciones de la vigencia 2021”","Rectoría","X",null,"Todo"]
[null,null,null,"Plan Anticorrupción y Atención al Ciudadano",2018,"Tiene como objetivo específico la prevención de eventos y situaciones de corrupción que eventualmente se puedan presentar en el entorno de nuestro accionar y generar Procesos de Control (Auto-Control, Control Institucional, Control Ciudadano) para garantizar y reconocer los derechos y deberes de todos los que de una u otra manera nos vinculamos con la organización, ya sea a nivel de usuario interno, externo, comunidad y Estado.","Rectoría","X",null,"Todo"]
[]
[null,null,null,"ELABORÓ",null,"REVISÓ","APROBÓ"]
[null,null,null,"Nombre: Equipo SIGUD\nCargo: N.A\nFecha: 10 de mayo de 2021",null,"Nombre: Rubén Eliecer Carvajalino Carvajalino\nCargo: Jefe Sección de Publicaciones\nFecha: 13 de mayo de 2021","Nombre: Rubén Eliecer Carvajalino Carvajalino\nCargo: Jefe Sección de Publicaciones\nFecha: 13 de mayo de 2021"]

{"sheet":"II","index":8,"n_rows":33,"n_cols":10,"rows_kept":33,"cut":false,"hidden":false,"merged":[[1,1,3,2],[1,3,1,6],[1,7,1,8],[1,9,3,9],[2,3,2,6],[2,7,2,8],[3,3,3,6],[3,7,3,8],[32,3,32,4],[32,6,32,8],[5,1,5,2],[5,3,5,9],[7,1,7,9],[9,1,29,1],[9,2,29,2],[31,3,31,4],[31,6,31,8]]}
[]
[null,null,null,"NORMOGRAMA POR PROCESOS",null,null,null,"Código: GI-PR-002-FR-017"]
[null,null,null,"Macroproceso: Direccionamiento Estratégico",null,null,null,"Versión: 02"]
[null,null,null,"Proceso: Interinstitucionalización e Internacionalización",null,null,null,"Fecha de Aprobación: 17/11/2017"]
[]
[null,"Proceso",null,"Interinstitucionalización e Internacionalización"]
[]
[null,"IDENTIFICACIÓN DE REQUISÍTOS LEGALES Y/O NORMATIVOS -  IDENTIFICACIÓN DEL REQUISÍTO"]
[null,"Macroproceso","Proceso","Clasificación de la Norma","Año","Temática","Expedida por","Interna","Externa","Artículo Aplicable"]
[null,{"$f":"IF(D6=[8]Datos!B3,\"N/A\",IF(OR(D6=[8]Datos!B4,D6=[8]Datos!B5,D6=[8]Datos!B6,D6=[8]Datos!B7,D6=[8]Datos!B8),\"Direccionamiento Estratégico\",IF(OR(D6=[8]Datos!B9,D6=[8]Datos!B10,D6=[8]Datos!B11),\"Gestión Académica\",IF(OR(D6=[8]Datos!B12,D6=[8]Datos!B13,D6=[8]Datos!B14,D6=[8]Datos!B15,D6=[8]Datos!B16),\"Apoyo a lo Misional\",IF(OR(D6=[8]Datos!B17,D6=[8]Datos!B18,D6=[8]Datos!B19,D6=[8]Datos!B20,D6=[8]Datos!B21,D6=[8]Datos!B22,D6=[8]Datos!B23),\"Gestión de Recursos\",IF(OR(D6=[8]Datos!B24,D6=[8]Datos!B25),\"Evaluación y Control\",\"-\"))))))","v":"Direccionamiento Estratégico"},{"$f":"IF(D6=\"\",\"-\",D6)","v":"Interinstitucionalización e Internacionalización"},"Constitución Política de Colombia",1991,"Constitución Política de Colombia.","Asamblea Nacional constituyente ",null,"X","Arts 80, 106, 209, 268, 269, 339, 342, 343, 354"]
[null,null,null,"Ley 30",1992,"Por el cual se organiza el servicio público de la educación superior.","Congreso de la República ",null,"X","Toda"]
[null,null,null,"Ley 1286 ",2009,"Por la cual se modifica la ley 29 de 1990, se transforma a colciencia en departamento administrativo, se fortalece el sistema nacional de ciencia, tecnología e innovación (SNCTI) en Colombia.","Congreso de la República ",null,"X","Toda"]
[null,null,null,"Acuerdo 027",1993,"Por el cual se expide el Estatuto Estudiantil de la Universidad Distrital Francisco José de Caldas.","Consejo Superior Universitario ","X",null,"Toda"]
[null,null,null,"Acuerdo 014",1994,"Por el cual se reglamenta el sistema de investigaciones de la Universidad Distrital Francisco José de Caldas y se dictan otras disposiciones.","Consejo Superior Universitario ","X",null,"Toda"]
[null,null,null,"Acuerdo 022 ",1994,"Por el cual se crea la Oficina de Relaciones Interinstitucionales de la Universidad Distrital Francisco José de Caldas y se modifica la planta de personal administrativo.","Consejo Superior Universitario ","X",null,"Toda"]
[null,null,null,"Acuerdo 004",1996,"Por el cual se expide el Estatuto académico de la Universidad Distrital Francisco José de Caldas.","Consejo Superior Universitario ","X",null,"Derogado el artículo 29, se aplica a Acuerdo 009 de 2019."]
[null,null,null,"Acuerdo 011 ",2002,"Por el cual se expide el Estatuto del Docente de Carrera de la Universidad Distrital Francisco José de Caldas.","Consejo Superior Universitario ","X",null,"Toda"]
[null,null,null,"Acuerdo 009",2007,"Por el cual se dictan las políticas y procedimientos para el apoyo de la formación pos gradual de alto nivel a profesores de carrera y se dictan otras disposiciones.","Consejo Superior Universitario ","X",null,"Toda"]
[null,null,null,"Acuerdo 006",2010,"Por medio del cual se define el rubro del Centro de Relaciones Interinstitucionales.","Consejo Superior Universitario ","X",null,"Toda"]
[null,null,null,"Acuerdo 008",2010,"Por el cual se dictan políticas para incorporar en los planes de estudio de los proyectos curriculares, créditos académicos conducentes a la formación de competencias básicas comunicativas en una segunda lengua.","Consejo Superior Universitario ","X",null,"Toda"]
[null,null,null,"Acuerdo 003",2014,"Ampliación porcentaje de movilidad académica.","Consejo Superior Universitario ","X",null,"Toda"]
[null,null,null,"Acuerdo 03 ",2015,"Por el cual se expide el Estatuto general de contratación de la Universidad Distrital Francisco José de Caldas y se deroga el acuerdo 03 de 2003 del Consejo Superior Universitario.","Consejo Superior Universitario ","X",null,"Toda"]
[null,null,null,"Resolución 262 ",2015,"Por el cual se reglamenta el acuerdo 03 de 2015 del Consejo Superior Universitario.","Consejo Superior Universitario ","X",null,"Toda"]
[null,null,null,"Resolución 012",2012,"Por la cual se reglamentan disposiciones relativas a la Movilidad Académica de estudiantes de la Universidad Distrital y aquellos provenientes de otras instituciones.","Consejo académico","X",null,"Toda"]
[null,null,null,"Resolución 045",2012,"Por medio de la cual se reglamentan disposiciones relativas a la movilidad académica de docentes de carrera de la Universidad Distrital Francisco José de Caldas, invitados nacionales e internacionales, docentes visitantes y docentes expertos, a través del rubro del Centro de Relaciones Interinstitucionales CERI.","Consejo académico","X",null,"Toda"]
[null,null,null,"Resolución 074",2016,"Por la cual se modifica el artículo 8to de la Resolución del Consejo Académico N° 012 por medio de la cual se reglamentan disposiciones relativas a la movilidad académica de estudiantes de la Universidad Distrital y aquellos provenientes de otras instituciones.","Consejo Académico","X",null,"Toda"]
[null,null,null,"Resolución 076 ",2008,"Por medio de la cual se adiciona a la resolución de Rectoría 098 de 2005, con el fin de incluir en la modalidad de avances para el reconocimiento de la estadía académica de invitados internacionales.","Rectoría ","X",null,"Toda"]
[null,null,null,"Resolución 269",2011,"Por la cual se crea el Comité de Relaciones Interinstitucionales y se asignan sus funciones.","Rectoría ","X",null,"Toda"]
[null,null,null,"Resolución 734 ",2013,"Por la cual se establecen medidas de control para Convenios interadministrativos, Convenios de asociación, Persona jurídica con entidades privadas sin ánimo de lucro y asociaciones público-privadas.","Rectoría ","X",null,"Toda"]
[null,null,null,"Circular 0632",2015,"Centralización del reporte institucional de extranjeros en la Universidad Distrital a las autoridades de migración Colombia - Ministerio de Relaciones exteriores a través del Centro de Relaciones Interinstitucionales - CERI, para evitar sanciones.","Rectoría ","X",null,"Toda"]
[]
[null,null,null,"ELABORÓ",null,"REVISÓ","APROBÓ"]
[null,null,null,"Nombre: Grupo SIGUD.\nCargo: N.A.\nFecha: 18 de septiembre de 2019.",null,"Nombre: Alexis Adamy Ortiz Morales  \nCargo: Director del Centro de Relaciones Interinstitucionales \nFecha: 18 de septiembre de 2019.","Nombre: Alexis Adamy Ortiz Morales  \nCargo: Director del Centro de Relaciones Interinstitucionales \nFecha: 18 de septiembre de 2019."]

{"sheet":"ARC","index":9,"n_rows":59,"n_cols":10,"rows_kept":59,"cut":false,"hidden":false,"merged":[[1,1,3,2],[1,3,1,6],[1,7,1,8],[1,9,3,9],[2,3,2,6],[2,7,2,8],[3,3,3,6],[3,7,3,8],[58,3,58,4],[58,6,58,7],[5,1,5,2],[5,3,5,9],[7,1,7,9],[9,1,55,1],[9,2,55,2],[57,3,57,4],[57,6,57,7]]}
[]
[null,null,null,"NORMOGRAMA POR PROCESOS",null,null,null,"Código: GI-PR-002-FR-017"]
[null,null,null,"Macroproceso: Direccionamiento Estratégico",null,null,null,"Versión: 02"]
[null,null,null,"Proceso: Gestión Integrada",null,null,null,"Fecha de Aprobación: 17/11/2017"]
[null," "]
[null,"Proceso",null,"Admisiones, Registro y Control"]
[]
[null,"IDENTIFICACIÓN DE REQUISÍTOS LEGALES Y/O NORMATIVOS -  IDENTIFICACIÓN DEL REQUISÍTO"]
[null,"Macroproceso","Proceso","Clasificación de la Norma","Año","Temática","Expedida por","Interna","Externa","Artículo Aplicable"]
[null,"Apoyo a lo Misional","Admisiones, Registro y Control","Constitución Política de Colombia",1991,"Constitución Política de Colombia.","Asamblea Nacional Constituyente",null,"X","Arts. 67, 69, 209, 269, 361"]
[null,null,null,"Ley 30",1992,"Por la cual se organiza el Servicio Público de la Educación Superior.","Congreso de la República",null,"X","Arts. 2, 5"]
[null,null,null,"Ley 749",2002,"Por la cual se organiza el servicio público de la educación superior en las modalidades de formación técnico, profesional y tecnológica y se dictan otras medidas.","Congreso de la República",null,"X","Toda"]
[null,null,null,"Decreto 2330",2003,"Por el cual se modifica Estructura del Ministerio de Educación Nacional y se dictan otras disposiciones.","Presidencia de la República",null,"X","Arts.1,2"]
[null,null,null,"Decreto 4110",2004,"Por el cual se reglamenta la Ley 872 de 2003 y se adopta la Norma Técnica de Calidad en la Gestión Publica.","Presidencia de la República",null,"X","Toda"]
[null,null,null,"Decreto 1599",2005,"Por el cual se adopta el Modelo Estándar de Control Interno para el Estado Colombiano.","Presidencia de la República",null,"X","Toda"]
[null,null,null,"Decreto 1083 ",2015,"Por medio del cual se expide el Decreto Único Reglamentario del Sector de Función Pública.","Presidencia de la República",null,"X","Toda"]
[null,null,null,"Decreto 1499 ",2017,"Por medio del cual se modifica el Decreto 1083 de 2015, Decreto Único Reglamentario del Sector Función Pública, en lo relacionado con el Sistema de Gestión establecido en el artículo 133 de la Ley 1753 de 2015. ","Presidencia de la República",null,"X","Toda"]
[null,null,null,"Decreto 652",2011,"Por medio del cual se adopta la Norma Técnica Distrital del Sistema Integrado de Gestión para Entidades y Organismos Distritales.","Alcaldía Mayor de Bogotá",null,"X","Todo"]
[null,null,null,"Decreto 1330",2019,"Por el cual se sustituye el Capítulo 2 y se suprime el Capítulo 7 del Título 3 de la Parte 5 del Libro 2 del Decreto 1075 de 2015 -Único Reglamentario del Sector Educación.","Ministerio de Educación Nacional",null,"X","Todo"]
[null,null,null,"Resolución 18583 ",2017,"Por la cual se ajustan las características especificas de calidad de los programas de Licenciatura para la obtención, renovación o modificación del registro calificado, y se deroga la Resolución 2041 de 2016.","Ministerio de Educación Nacional",null,"X","Todo"]
[null,null,null,"Acuerdo 027",1993,"Por el cual se expide el Estatuto Estudiantil de la Universidad Distrital Francisco José de Caldas.","Consejo Superior Universitario","X",null,"Todo"]
[null,null,null,"Acuerdo 025",1995,"Por el cual se modifica el artículo 30 del Acuerdo 027 de 1993.","Consejo Superior Universitario","X",null,"Todo"]
[null,null,null,"Acuerdo 004",1996,"Por el cual se expide el Estatuto Académico de la Universidad Distrital Francisco José de Caldas.","Consejo Superior Universitario","X",null,"Art. 25"]
[null,null,null,"Acuerdo 003",1997,"Por el cual se expide el Estatuto General de la Universidad Distrital Francisco José de Caldas.","Consejo Superior Universitario","X",null,"Arts.7, 18, 48"]
[null,null,null,"Acuerdo 004",2006,"Por la cual se adicionan unos parágrafos a los artículos 8 y 18 y de modifica el artículo 7 del estatuto estudiantil referente al proceso de admisiones de la Universidad.","Consejo Superior Universitario","X",null,"Todo"]
[null,null,null,"Acuerdo 004 ",2011,"Por la cual se modifica el Acuerdo 027 de 1993, Estatuto Estudiantil.","Consejo Superior Universitario","X",null,"Todo"]
[null,null,null,"Acuerdo 009 ",2018,"Por el cual se adopta el Plan Estratégico de Desarrollo 2018 - 2030 de la Universidad Distrital Francisco José de Caldas.","Consejo Superior Universitario","X",null,"Todo"]
[null,null,null,"Acuerdo 001",2000,"Por el cual se fijan los criterios para el Procedimiento de las Transferencias Internas y Externas en la Universidad Distrital.","Consejo Académico ","X",null,"Todo"]
[null,null,null,"Acuerdo 003",2001,"Por el cual se establecen los Requisitos para traslados Internos de los Tecnólogos de la Universidad Distrital. ","Consejo Académico","X",null,"Todo"]
[null,null,null,"Acuerdo 010",2006,"Por el cual se reglamentan los Artículos 39, 40, 41 y 42 del Acuerdo 004 de enero 25 de 2006.","Consejo Académico","X",null,"Todo"]
[null,null,null,"Acuerdo 009 ",2006,"Por el cual se implementa el Sistema de Créditos Académicos en la universidad Distrital Francisco José de Caldas.","Consejo Académico","X",null,"Todo"]
[null,null,null,"Acuerdo 019 ",2011,"Por la cual se aclara un procedimiento en los procesos de transferencia internas y externas en la Universidad dispuesto en el Estatuto Estudiantil y reglamentado en el Acuerdo 001 de junio 16 de 2000 del Consejo Académico.","Consejo Académico","X",null,"Todo"]
[null,null,null,"Acuerdo 018",2011,"Por medio del cual se crean y unifican los cupos especiales en la Universidad Distrital Francisco José de Caldas.","Consejo Académico ","X",null,"Todo"]
[null,null,null,"Acuerdo 032",2014,"Por la cual se unifican criterios institucionales para el procedimiento y trámite de solicitudes de reintegros de los estudiantes de pregrado de la Universidad y la pérdida de calidad de la misma.","Consejo Académico","X",null,"Todo"]
[null,null,null,"Acuerdo 033",2014,"Por el cual se modifica el Acuerdo 018 de abril de 2011 que creó y unificó los cupos especiales en la Universidad Distrital Francisco José de Caldas.","Consejo Académico","X",null,"Todo"]
[null,null,null,"Acuerdo 037",2015,"Por el cual se reglamenta la Admisión de Tecnólogos graduados para continuar los estudios universitarios en el nivel profesional en la Facultad del Medio Ambiente y Recursos Naturales de la Universidad.","Consejo Académico","X",null,"Todo"]
[null,null,null,"Acuerdo 039",2016,"Por el cual se precisa y aclara las competencias funcionales para reglamentar la exoneración de los derechos de matrícula a los estudiantes de la Universidad, de que trata el Capítulo 3 del Acuerdo 004 de enero 25 de 2006 del Consejo Superior Universitario.","Consejo Académico","X",null,"Todo"]
[null,null,null,"Acuerdo 002",2017,"Por el cual se establecen criterios de admisión para los programas académicos que serán ofertados en la sede Universitaria Bosa Porvenir.","Consejo Académico","X",null,"Todo"]
[null,null,null,"Acuerdo 004 ",2018,"Por medio del cual se unifican los criterios y procedimientos de las transferencias internas y externas en los programas de pre grado de la Universidad Distrital Francisco José de Caldas. ","Consejo Académico","X",null,"Todo"]
[null,null,null,"Acuerdo 002",2019,"Por medio del cual se modifica el Acuerdo 10 de noviembre de 2006 y se deroga el Acuerdo 028 de noviembre 26 de 2013.","Consejo Académico","X"]
[null,null,null,"Acuerdo 003 ",2019,"Por medio del cual se adiciona un Artículo al Acuerdo 033 de septiembre 23 de 2014.","Consejo Académico","X",null,"Todo"]
[null,null,null,"Acuerdo 005",2019,"Por el cual se establecen criterios de homologación para estudiantes graduados de programas académicos terminales del nivel tecnológico para la continuación de estudios del nivel de profesionalización en la Universidad Distrital Francisco José de Caldas.","Consejo Académico","X",null,"Todo"]
[null,null,null,"Acuerdo 004",1997,"Por medio del cual se establece el reglamento de estudiantes de posgrado de la Facultad de Ciencias y educación de la Universidad Distrital Francisco José de Caldas.","Consejo de Facultad Ciencias y Educación ","X",null,"Todo"]
[null,null,null,"Acuerdo 001",2003,"Por medio del cual se deroga el Acuerdo No. 03 de abril 20 de 2001 y se establecen criterios de admisión para las carreras tecnológicas de la Facultad Tecnológica.","Consejo de Facultad Tecnológica","X",null,"Todo"]
[null,null,null,"Acuerdo 001",2009,"Por medio del cual se establece el reglamento de estudiantes de posgrado de la Facultad de Ingeniería de la Universidad Distrital Francisco José de Caldas.","Consejo de Facultad de Ingeniería","X",null,"Todo"]
[null,null,null,"Acuerdo 001",2016,"Por medio del cual se establece el reglamento de estudiantes de posgrado de la Facultad de Artes de la Universidad Distrital Francisco José de Caldas.","Consejo de Facultad de Artes","X",null,"Todo"]
[null,null,null,"Acuerdo 003 ",2016,"Por medio del cual se establece el reglamento de estudiantes de posgrado de la Facultad del medio ambiente y recursos naturales de la Universidad Distrital Francisco José de Caldas.","Consejo de Facultad de Medio Ambiente y Recursos Naturales","X",null,"Todo"]
[null,null,null,"Acuerdo 001",2019,"Por el cual se incorpora algunas modificaciones en el sistema general de admisiones de los estudiantes en los programas de nivel de ingeniería que se ofertan en la Facultad Tecnológica.","Consejo de Facultad Tecnológica","X",null,"Todo"]
[null,null,null,"Resolución 035",2006,"Por el cual se reglamenta la aplicación del sistema de créditos académicos  en la Universidad Distrital Francisco José de Caldas.","Consejo Académico","X",null,"Todo"]
[null,null,null,"Resolución 024 ",2010,"Por medio de la cual se reglamenta el número de estudiantes por grupo de espacios académicos en los proyectos curriculares de pregrado en la Universidad Distrital Francisco José de Caldas.","Consejo Académico","X",null,"Todo"]
[null,null,null,"Resolución 012 ",2011,"Por la cual se reglamenta el proceso de admisiones en la Facultad de Artes - ASAB de la Universidad.","Consejo Académico","X",null,"Todo"]
[null,null,null,"Resolución 099",2013,"Por el medio de la cual se establece, unifica y aclara los requisitos y procedimientos para la obtención de títulos de pregrado y posgrado de la Universidad Distrital.","Consejo Académico","X",null,"Todo"]
[null,null,null,"Resolución 080",2017,"Por la cual se establecen lineamientos para la implementación de los nuevos planes de estudio de los proyectos curriculares de pregrado de la Facultad de Ciencias y Educación, conforme a lo establecido en el Acuerdo 041 de 26 de abril de 2016.","Consejo Académico ","X",null,"Todo"]
[null,null,null,"Resolución 069",2018,"Por medio de la cual se reglamenta el programa académico transitorio de retorno en los proyectos curriculares de pregrado y postgrado de la Universidad Distrital Francisco José de Caldas.","Consejo Académico","X",null,"Todo"]
[null,null,null,"Resolución 163",2019,"Por la cual se ajusta el Sistema Integrado de Gestión de la Universidad Distrital Francisco José de Caldas, SIGUD, se implementa el Modelo Integrado de Planeación y Gestión - MIPG, como su Marco de Referencia, y se crea el Comité Institucional de Gestión y Desempeño.","Rectoría","X",null,"Todo"]
[null,null,null,"Resolución 297",2019,"Por la cual se reglamenta el funcionamiento y operativización de los Equipos Técnicos de Gestión y Desempeño, como instancias de apoyo del Comité Institucional de Gestión y Desempeño, y se corrige la Resolución de Rectoría N° 163 de mayo 9 de 2019.","Rectoría","X",null,"Todo"]
[]
[null,null,null,"ELABORÓ",null,"REVISÓ","APROBÓ"]
[null,null,null,"Nombre: Equipo SIGUD\nCargo: N/A\nFecha: 20/09/2019",null,"Nombre: N/A\nCargo: Secretarios Académicos  de Facultad\nFecha: 20/09/2019","Nombre: Esperanza del Pilar Infante\nCargo: Vicerrector Académico (E)\nFecha: 06/12/2019"]

{"sheet":"GIB","index":10,"n_rows":103,"n_cols":10,"rows_kept":103,"cut":false,"hidden":false,"merged":[[1,1,3,2],[1,3,1,6],[1,7,1,8],[1,9,3,9],[2,3,2,6],[2,7,2,8],[3,3,3,6],[3,7,3,8],[102,3,102,4],[102,6,102,7],[5,1,5,2],[5,3,5,9],[7,1,7,9],[101,3,101,4],[101,6,101,7],[9,2,98,2],[9,1,98,1]]}
[]
[null,null,null,"NORMOGRAMA POR PROCESOS",null,null,null,"Código: GI-PR-002-FR-017"]
[null,null,null,"Macroproceso: Direccionamiento Estratégico",null,null,null,"Versión: 02"]
[null,null,null,"Proceso: Gestión Integrada",null,null,null,"Fecha de Aprobación: 17/11/2017"]
[null," "]
[null,"Proceso",null,"Gestión de la Información Bibliográfica"]
[]
[null,"IDENTIFICACIÓN DE REQUISÍTOS LEGALES Y/O NORMATIVOS -  IDENTIFICACIÓN DEL REQUISÍTO"]
[null,"Macroproceso","Proceso","Clasificación de la Norma","Año","Temática","Expedida por","Interna","Externa","Artículo Aplicable"]
[null,"Apoyo a lo Misional","Gestión de la Información Bibliográfica","Consitucion de Colombia",1991,"El Estado protegerá la propiedad intelectual por el tiempo y mediante las formalidades que establezca la ley.","Asamblea Nacional Constituyente",null,"X","Articulo 61"]
[null,null,null,"Constitución Política de Colombia",1991,"Constitución Política de Colombia.","Asamblea Nacional Constituyente",null,"X","Arts.8, 27, 61, 63,  67, 69, 70, 71, 72 y 73 "]
[null,null,null,"Ley 43",1913,"Ley 29 DE 1915 - (octubre 25). Por la cual se interpreta la ley 43 de 1913.\r Conservacion de ciertos documentos oficiales.","Congreso de la República",null,"X","Toda"]
[null,null,null,"Ley 47",1920,"Normas sobre patrimonio documental y artistico sobre bibliotecas, museos, archivos. Prohibiciones.","Congreso de la República",null,"X","Toda"]
[null,null,null,"Ley 80",1989,"Por la cual se crea el Archivo General de la Nación y se dictan otras disposiciones.","Congreso de la República",null,"X","Toda"]
[null,null,null,"Ley 30",1992,"Por el cual se organiza el servicio público de la Educación Superior.","Congreso de la República",null,"X","Art. 108"]
[null,null,null,"Ley 44",1993,"Por la cual se modifica y adiciona la Ley 23 de 1982 \" Sobre derechos de Autor\" y se modifica la Ley 29 de 1944.","Congreso de la República",null,"X","Toda"]
[null,null,null,"Ley 80",1993,"Por la cual se expide el Estatuto General de Contratación de la Administración Pública El Congreso de Colombia.","Congreso de la República",null,"X","Toda"]
[null,null,null,"Ley 98",1993,"Democratización y Fomento del Libro Colombiano o Ley del Libro.","Congreso de la República",null,"X","Toda"]
[null,null,null,"Ley 527",1999,"Por medio de la cual se define y reglamenta el acceso y uso de los mensajes de datos, del comercio electrónico y de las firmas digitales, y se establecen las entidades de certificación y se dictan otras disposiciones.","Congreso de la República",null,"X","Toda"]
[null,null,null,"Ley 594",2000,"Por medio de la cual se dicta la Ley General de Archivos y se dictan otras disposiciones.","Congreso de la República",null,"X","Toda"]
[null,null,null,"Ley 603",2000,"“Por la cual se modifica el artículo 47 de la Ley 222 de 1995”. \r\nDerechos de Autor - Propiedad Intelectual.","Congreso de la República",null,"X","Arts. 2,3"]
[null,null,null,"Ley 719",2001,"Por la cual se modifican las Leyes 23 de 1982 y 44 de 1993 y se dictan otras disposiciones.","Congreso de la República",null,"X","Toda"]
[null,null,null,"Ley 734",2002,"Por la cual se expide el Código Disciplinario Único.","Congreso de la República",null,"X","Toda"]
[null,null,null,"Ley 1185",2008,"Legislación y normas generales para la gestión, protección y salvaguardia del Patrimonio en Colombia.","Congreso de la República",null,"X","Toda"]
[null,null,null,"Ley 1379",2010,"Por la cual se organiza la Red Nacional de Bibliotecas Públicas y se dictan otras disposiciones.","Congreso de la República",null,"X","Toda"]
[null,null,null,"Ley 1712",2014,"Ley de transparencia y del derecho de acceso a la Información pública nacional.","Congreso de la República",null,"X","Toda"]
[null,null,null,"Ley 1915 ",2018,"Por la cual se modifica la Ley 23 de 1982 y se establecen otras disposiciones en materia de derecho de autor y derechos conexos","Congreso de la República",null,"X","Todo"]
[null,null,null,"Decreto 865",1988,"Por el cual se reglamenta la ley 11 de 1979 sobre el ejercicio del Bibliotecólogo.","Presidencia de la República",null,"X","Todo"]
[null,null,null,"Decreto 1474",2002,"Por la cual se promulga el Tratado de la OMPI, Organización Mundial de la Propiedad Intelectual, sobre Derechos de Autor (WCT), adoptado en Ginebra, el veinte (20) de diciembre de mil novecientos noventa y seis (1996).","Presidencia de la República",null,"X","Todo"]
[null,null,null,"Decreto 2609",2012,"Por el cual se reglamenta el Título V de la Ley 594 de 2000, parcialmente los artículos 58 y 59 de la Ley 1437 de 2011 y se dictan otras disposiciones en materia de Gestión Documental para todas las Entidades del Estado.","Presidencia de la República",null,"X","Todo"]
[null,null,null,"Decreto 1075",2015,"Por medio del cual se expide el Decreto Único Reglamentario del Sector Educación.","Presidencia de la República",null,"X","Art. 2.5.3.2.2.1. "]
[null,null,null,"Decreto 1494",2015,"Por el cual se corrigen yerros en la Ley 1712 de 2014 (Ley de transparencia y del derecho de acceso a la Información pública nacional).","Presidencia de la República",null,"X","Todo"]
[null,null,null,"Decreto 1862",2015,"Por el cual se corrige un yerro en la Ley 1712 de 2014 (Ley de transparencia y del derecho de acceso a la Información pública nacional).","Presidencia de la República",null,"X","Todo"]
[null,null,null,"Decisión Andina 351",1993,"Régimen común sobre Derecho de Autor y Derechos Conexos.","Congreso de la República",null,"X","Toda"]
[null,null,null,"Plan Nacional de Patrimonio Bibliográfico Documental",2021,"Plan Nacional para la protección y promoción del Patrimonio Bibliográfico Documental 2021-2023","Biblioteca Nacional de Colombia",null,"X","Todo"]
[null,null,null,"Estándares",2005,"Estandares e Indicadores de Calidad para Bibliotecas de Instituciones de Educación Superior.","Comité permanente de Bibliotecas de Instituciones de Eduación Superior de Bogotá",null,"X","Todo"]
[null,null,null,"Manifiesto de la IFLA/UNESCO",2022,"Manifiesto de la IFLA/UNESCO Sobre la Biblioteca Pública 2022","International Federation of Library Associations and Institutions (IFLA) - UNESCO",null,"X","Todo"]
[null,null,null,"Derechos Culturales / Naciones Unidas",2010,"Derechos Culturales / Naciones Unidas.","International Federation of Library Associations and Institutions (IFLA) - UNESCO",null,"X","Todo"]
[null,null,null,"ISO 690",2013,"UNE-ISO 690:2013 Información y documentación. Directrices para la redacción de referencias bibliográficas y de citas de recursos de información. ","Organización Internacional de Normalización, ISO",null,"X","Toda"]
[null,null,null,"ISO 23950:1998.",1998,"Information and documentation -- Information retrieval (Z39.50) - Application service definition and protocol specification.","Organización Internacional de Normalización, ISO",null,"X","Toda"]
[null,null,null,"ISO 15836",2011,"Information and documentation - The Dublin Core metadata element set.","Organización Internacional de Normalización, ISO",null,"x","Toda"]
[null,null,null,"ISO 2789",2014,"Información y documentación - Estadísticas internacionales de bibliotecas","Organización Internacional de Normalización, ISO",null,"x","Toda"]
[null,null,null,"ISO 28560-2:2018",2018,"Information and documentation — RFID in libraries — Part 2: Encoding of RFID data elements based on rules from ISO/IEC 15962","Organización Internacional de Normalización, ISO",null,"X","Toda"]
[null,null,null,"ISO 11620:2014",2014,"Information and documentation — Library performance indicators","Organización Internacional de Normalización, ISO",null,"X","Toda"]
[null,null,null,"ISO 28560-3",2023,"Information and Documentation -- RFID in libraries -- Part 3: Fixed length encoding.","Organización Internacional de Normalización, ISO",null,"X","Toda"]
[null,null,null,"ISO 10160:2015",2015,"Information and Documentation -- Open Systems Interconnection -- Interlibrary Loan Application Service Definition.","Organización Internacional de Normalización, ISO",null,"X","Toda"]
[null,null,null,"ISO 2146",2010,"Información y documentación - Servicios de registro para bibliotecas y organizaciones relacionadas.","Organización Internacional de Normalización, ISO",null,"X","Toda"]
[null,null,null,"ISO 28560-2",2018,"Información y documentación - RFID en bibliotecas - Parte 2: Codificación de elementos de datos RFID basados ​​en las reglas de ISO / IEC 15962","Organización Internacional de Normalización, ISO",null,"X","Toda"]
[null,null,null,"ISO 28560-1:2019",2019,"Información y documentación - RFID en bibliotecas - Parte 1: Elementos de datos y pautas generales para la implementación","Organización Internacional de Normalización, ISO",null,"x","Toda"]
[null,null,null," ISO/DIS 22014 ",2014,"Library objects for architecture, engineering, construction, and use","Organización Internacional de Normalización, ISO",null,"x","Toda"]
[null,null,null,"ISO/TR 16310:2014",2014,"Symbol libraries for construction and facilities management","Organización Internacional de Normalización, ISO",null,"x","Toda"]
[null,null,null,"ISO 11799:2015",2015,"Information and documentation — Document storage requirements for archive and library materials","Organización Internacional de Normalización, ISO",null,"x","Toda"]
[null,null,null,"ISO/TR 19815:2018",2018,"Information and documentation — Management of the environmental conditions for archive and library collections","Organización Internacional de Normalización, ISO",null,"x","Toda"]
[null,null,null,"ISO/TR 11219:2012",2012,"Information and documentation - Qualitative conditions and basic statistics for library buildings — Space, function and design","Organización Internacional de Normalización, ISO",null,"x","Toda"]
[null,null,null,"ISO 28564-4:2023 ",2023,"Public information guidance systems — Part 4: Installation and assessment","Organización Internacional de Normalización, ISO",null,"x","Toda"]
[null,null,null,"NTC 5921:2018",2019,"Información y Documentación. Requisitos Almacenamiento de Material Documental en Archivos Y Bibliotecas","Organización Internacional de Normalización, ISO",null,"x","Toda"]
[null,null,null,"NTC 6250-2:2017 ",2017,"Planeamiento Y Diseño De Infraestructuras Destinadas Para El Desarrollo De Actividades Culturales. Parte 2: Bibliotecas","Organización Internacional de Normalización, ISO",null,"x","Parte 2: Bibliotecas"]
[null,null,null,"Directrices IFLA / UNESCO",2007,"Directrices IFLA/UNESCO para el desarrollo del servicio de Bibliotecas Públicas.","International Federation of Library Associations and Institutions (IFLA) - UNESCO",null,"X","Todo"]
[null,null,null,"Declaración de Lyon",2014,"Declaración de Lyon sobre el acceso de la Información y el Desarrollo.","International Federation of Library Associations and Institutions (IFLA) - UNESCO",null,"X","Toda"]
[null,null,null,"Declaración de la IFLA sobre la Biblioteca y la Libertad Intelectual",2020,"La IFLA proclama el derecho fundamental de los seres humanos a acceder y expresar la información sin ningún tipo de restricción. La IFLA afirma que la dedicación a la libertad intelectual es una responsabilidad fundamental de los bibliotecarios y documentalistas de todo el mundo, expresada a través de códigos de conducta ética y demostrada mediante la práctica.","International Federation of Library Associations and Institutions (IFLA) - UNESCO",null,"X","Toda"]
[null,null,null,"Reglas de Catalogación Angloamericanas",2003,"Normas de Catalogación de Material Bibliográfico.","Tje Joint Steering Committee for revision of AACR",null,"X","Todo"]
[null,null,null,"OpenAIRE Guidelines",2015,"These guidelines describe the application profile v4 for Literature Repository managers to be compatible with OpenAIRE","Union Europea",null,"X","Toda"]
[null,null,null,"Library of CongressAuthorities: Archivo de Autoridad de Nombres y temas de la Biblioteca del Congreso de Estados Unidos",2019,"Determinar los encabezamientos del material bibliográfico.","Library of Congress",null,"X","Toda"]
[null,null,null,"LEMB Digital: Lista de Encabezamientos de Materia para Bibliotecas",2019,"Determinar los encabezamientos del material bibliográfico.","Lembdigital.com",null,"X","Toda"]
[null,null,null,"Sistema de Clasificación Decimal Dewey :dewey.org/webdewey",2019,"Sistema de Clasificación de Material Bibliográfico.","OCLC",null,"X","Todo"]
[null,null,null,"Normas para Servicios Bibliotecario",2019,"El IFLA / UNESCO Multicultural Library Manifesto Toolkit fue desarrollado por los Servicios de Bibliotecas de la IFLA para la Sección de Poblaciones Multiculturales (MCULTP) con el propósito de ofrecer enfoques prácticos sobre cómo las bibliotecas pueden aplicar los conceptos contenidos en el Manifiesto.","International Federation of Library Associations and Institutions (IFLA) - UNESCO",null,"X","Toda"]
[null,null,null,"“Identificación de normas para bibliotecas: las unidades de información”",2019,"Nieves Lahaba, Yadira Rosario. 2019. “Identificación de normas para bibliotecas: las unidades de información”. Investigación Bibliotecológica:archivonomía, bibliotecología e información 33 (78): 81-103.","México",null,"X","Toda"]
[null,null,null,"Acuerdo 16",1964,"Acuerdo No.16 Por el cual se crea el Departamento de Biblioteca, documentación y publicaciones.","Consejo Superior Universitario","X",null,"Todo"]
[null,null,null,"Acuerdo 20",1964,"Acuerdo 20 Por el cual se reglamenta y se organiza el Departamento de Biblioteca, documentación y publicaciones.","Consejo Superior Universitario","X",null,"Todo"]
[null,null,null,"Acuerdo 08",2003,"Por el cual se expide el Estatuto General de Contratación de la Universidad Distrital Francisco José de Caldas.","Consejo Superior Universitario","X",null,"Todo"]
[null,null,null,"Acuerdo 004",2006,"Por el cual se establece y unifica el regimen de liquidación matriculas para los estudiantes de la Universidad Distrital Francisco José de Caldas.","Consejo Superior Universitario","X",null,"Art. 15. "]
[null,null,null,"Acuerdo 04",2012,"Por medio del cual se expide el Estatuto de Propiedad Intelectual.","Consejo Superior Universitario","X",null,"Todo"]
[null,null,null,"Acuerdo 07",2014,"Por el cual se establece un Programa Académico transitorio como opción de grado para los estudiantes de Pregrado que terminaron asignaturas del Plan de Estudios y aún no han obtenido su titulación en un Programa Académico de Pregrado de la Universidad Distrital.","Consejo Superior Universitario","X",null,"Todo"]
[null,null,null,"Acuerdo 26",2012,"Por la cual se establecen los procedimientos para la publicación de las tesis de Postgrado de los estudiantes de la Universidad Distrital Francisco José de Caldas.","Consejo Académico","X",null,"Todo"]
[null,null,null,"Acuerdo 30",2013,"Por medio del cual se crea el Repositorio Institucional de la Universidad Distrital Francisco José de Caldas.","Consejo Académico","X",null,"Todo"]
[null,null,null,"Acuerdo 31",2014,"Por el cual se reglamenta el Trabajo de Grado para los estudiantes de Pregrado de la Universidad Distrital Francisco José de Caldas.","Consejo Académico","X",null,"Todo"]
[null,null,null,"Resolución 262",2015,"Por medio de la cual se reglamenta el Acuerdo 03 de 2015, Estatuto de Contratación de la Universidad Distrital Francisco José de Caldas y se dictan otras disposiciones.","Consejo Superior Universitario","X",null,"Toda"]
[null,null,null,"Resolución 176",2014,"Por medio de la cual se reglamenta el Aval Institucional de los Grupos de Investigación de la Universidad Distrital.","Consejo Académico","X",null,"Toda"]
[null,null,null,"Resolución 130",2004,"Por la cual se define la composición de Comité de Biblioteca de la Universidad Distrital Francisco José de Caldas y se asignan sus funciones.","Rectoría","X",null,"Toda"]
[null,null,null,"Resolución 001",1984,"Se expide el reglamento de la Biblioteca.","Vicerrectoría Académica","X",null,"Toda"]
[null,null,null,"Resolución No. 661",2017,"Se crea licencia de Polución para Biblioteca y Archivos.","Vicerrectoría Administrativa y Financiera","X",null,"Toda"]
[null,null,null,"Actualización Derechos Pecuniarios","Se actualiza en cada vigencia","Resolución de la Secretaría General de la Universidad Distrital Francisco José de Caldas sobre el porcentaje de aumento del valor de las multas.","Secretaría General de la Universidad Distrital Francisco José de Caldas","X",null,"Toda"]
[null,null,null,"Acuerdo 013 ","2023 ","Por la cual se adopta en forma transitoria dentro de la estructura organizacional de la Universidad Distrital Francisco José de Caldas Oficinas de nivel directivo y asesor ","Rectoría ","x ",null,"Toda"]
[null,null,null,"Circular No. 7 ",2023,"Transición Administrativa modificación Planta ","Vicerrectoría Académica ","x ",null,"Toda"]
[null,null,null,"Circular No. 04  ","2023 ","Criterios para determinar libros y capítulos de libro de investigación publicados, como productos editoriales de nuevo conocimiento ","Comité de Publicaciones del Centro de Investigaciones y Desarrollo científico (CIDC) ","x ",null,"Toda"]
[null,null,null,"Acuerdo Marco Consortia ","2021 ","Acuerdo Marco de colaboración multianual celebrado entre la Universidad Distrital Francisco José de Caldas y Consortia S.A.S ","Rectoría ","x ",null,"Toda"]
[null,null,null,"Acuerdo 016 ","2023 ","Por el cual se adopta la Política de Gestión Documental de la Universidad Distrital Francisco José de Caldas ","Secretaria General ","x ",null,"Toda"]
[null,null,null,"Acuerdo 008 ","2023 ","Por la cual se adopta la Política Institucional de Educación Incluyente y Accesible de la Universidad Distrital Francisco José de Caldas ","Secretaria General ","x ",null,"Toda"]
[null,null,null,"Acuerdo de voluntades ","2023 ","Acuerdo de voluntades suscrito entre el Instituto de Lenguas de la Universidad Distrital –ILUD y el Sistema de Bibliotecas de la Universidad Distrital Francisco José de Caldas. ","Unidad Biblioteca ","x ",null,"Toda"]
[null,null,null,"Ley 2070",2020,"Que la Ley 397 de 1997, modificada por la Ley 2070 de 2020 dispone en el inciso 3° del artículo 1° que el Estado impulsará y estimulará los procesos, proyectos y actividades culturales en un marco de reconocimiento y respeto por la diversidad y variedad cultural de la nación. Por su parte, los artículos 12 y 17 ibidem, establecen normas respecto del patrimonio bibliográfico, el fomento, estímulos a la creación, investigación y actividad artística y cultural, y en el artículo 24 prevé que los gobiernos nacional, departamental, distrital y municipal consolidarán y desarrollarán la Red Nacional de Bibliotecas Públicas con el fin de promover la creación, fomento y fortalecimiento de las bibliotecas públicas y mixtas y de los servicios complementarios que a través de estas se prestan","Congreso de la República",null,"x","Toda"]
[null,null,null,"Decreto 034",2023,"Por medio del cual se adopta la Política Pública de Lectura, Escritura y Oralidad, 2022-2040","Alcaldía de Bogotá",null,"x","Toda"]
[null,null,null,"Ley 1915 ",2018,"ley 1915 del 12 de julio de 2018 \"por la cual se modifica la ley 23 de 1982 y se establecen otras disposiciones en materia de derecho de autor y derechos conexos\"",null,null,"x","Toda"]
[null,null,null,"Resolución 224",2022,"Plan Nacional de Cultura 2022-2032","Ministerio de Cultura",null,"x","Toda"]
[null,null,null,"Acuerdo No. 008 ",2014,"Por el cual se establecen las especificaciones técnicas y los requisitos para la prestación de los servicios de depósito, custodia, organización, reprografía y conservación de documentos de archivo y demás procesos de la función archivística en desarrollo de los artículos 13° y 14° y sus parágrafos 1° y 3° de la Ley 594 de 2000","El Concejo Directivo del Archivo General de la Nación Jorge Palacioa Preciado.",null,"x","Artículos 13° y 14° y sus parágrafos 1° y 3° de la Ley 594 de 2000"]
[null,null,null,"Circular externa No. 001",2011,"Protección de Archivos por ola invernal","Archivo General de la Nación",null,"x","Toda"]
[null,null,null,"Acuerdo No. 002",2021,"Por el cual se imparten directrices frente a la prevención del deterioro de los documentos de archivo y situaciones de riesgo y se deroga el Acuerdo No. 050 del 05 de mayo de 2000","El Concejo Directivo del Archivo General de la Nación Jorge Palacioa Preciado.",null,"x","Toda"]
[null,null,null,"Acuerdo 037",2002,"Por el cual se establecen las especificaciones técnicas y los requisitos para la  contratación de los servicios de depósito, custodia, organización,  reprografía y conservación de documentos de archivo en desarrollo de los artículos 13 y 14 y sus Parágrafos 1 y 3 de la Ley General de Archivos 594 de 2000.","El Concejo Directivo del Archivo General de la Nación Jorge Palacioa Preciado.",null,"x","Artículos 13 y 14 y sus Parágrafos 1 y 3 de la Ley General de Archivos 594 de 2000."]
[null,null,null,"Acuerdo 049",2020,"Por el cual se desarrolla el artículo del Capítulo 7 “Conservación de Documentos” del Reglamento General de Archivos sobre “condiciones de edificios y locales destinados a archivos”.","El Concejo Directivo del Archivo General de la Nación Jorge Palacioa Preciado.",null,"x","Artículos capítulo 7"]
[null,null,null,"Resolución 0777",2022,"Por el cual se adopta la política de Ciencia abierta 2022-2031 ","Ministerio de Ciencia, Tecnologia e Innovación",null,"x","Toda"]
[]
[]
[null,null,null,"ELABORÓ",null,"REVISÓ","APROBÓ"]
[null,null,null,"Nombre:Norma Clemencia Bernal Alvarez\nCargo: Profesional Gestión Adminsitrativa\nFecha: 11 de Agosto de 2023",null,"Nombre: Cristian Alejandro Chisaba\nCargo: Lider Proyecto Biblioteca\nFecha: 14 de Agosto de 2023","Nombre: Cristian Alejandro Chisaba\nCargo: Lider Proyecto Biblioteca\nFecha: 15 de Agosto de 2023"]

{"sheet":"GSIT","index":11,"n_rows":100,"n_cols":10,"rows_kept":100,"cut":false,"hidden":false,"merged":[[1,1,3,2],[1,3,1,6],[1,7,1,8],[1,9,3,9],[2,3,2,6],[2,7,2,8],[3,3,3,6],[3,7,3,8],[99,3,99,4],[99,6,99,7],[5,1,5,2],[5,3,5,9],[7,1,7,9],[9,1,96,1],[9,2,96,2],[98,3,98,4],[98,6,98,7]]}
[]
[null,null,null,"NORMOGRAMA POR PROCESOS",null,null,null,"Código: GI-PR-002-FR-017"]
[null,null,null,"Macroproceso: Direccionamiento Estratégico",null,null,null,"Versión: 02"]
[null,null,null,"Proceso: Gestión Integrada",null,null,null,"Fecha de Aprobación: 17/11/2017"]
[null," "]
[null,"Proceso",null,"Gestión de los Sistemas de Información y las Telecomunicaciones"]
[]
[null,"IDENTIFICACIÓN DE REQUISÍTOS LEGALES Y/O NORMATIVOS -  IDENTIFICACIÓN DEL REQUISÍTO"]
[null,"Macroproceso","Proceso","Clasificación de la Norma","Año","Temática","Expedida por","Interna","Externa","Artículo Aplicable"]
[null,"Gestión de Recursos",{"$f":"IF(D6=\"\",\"-\",D6)","v":"Gestión de los Sistemas de Información y las Telecomunicaciones"},"Constitución Política de Colombia",1991,"Constitución Política de Colombia.","Asamblea Nacional Constituyente",null,"X","Arts. 52, 61 ,67, 69,70,71,74, 209, 269, 361"]
[null,null,null,"Ley 23",1982,"Sobre derechos de autor.","Congreso de la República",null,"X","Toda"]
[null,null,null,"Ley 222",1995,"Por la cual se modifica el Libro II del Código de Comercio, se expide un nuevo régimen de procesos concursales y se dictan otras disposiciones.","Congreso de la República",null,"X","Art. 47"]
[null,null,null,"Ley 527",1999,"Por medio de la cual se define y reglamenta el acceso y uso de los mensajes de datos, del comercio electrónico y de las firmas digitales, y se establecen las entidades de certificación y se dictan otras disposiciones.","Congreso de la República",null,"X","Toda"]
[null,null,null,"Ley 594",2000,"Por medio de la cual se dicta la Ley General de Archivos y se dictan otras disposiciones","Congreso de la República",null,"X","Arts. 19 "]
[null,null,null,"Ley 599",2000,"Código penal.","Congreso de la República",null,"X","Arts. 192, 194 y 195"]
[null,null,null,"Ley 603",2000,"Por la cual se modifica el artículo 47 de la Ley 222 de 1995.","Congreso de la República",null,"X","Toda"]
[null,null,null,"Ley 1266",2008,"Por la cual se dictan las disposiciones generales del hábeas data y se regula el manejo de la información contenida en bases de datos personales, en especial la financiera, crediticia, comercial, de servicios y la proveniente de terceros países y se dictan otras disposiciones.","Congreso de la República",null,"X","Art. 1 al 10"]
[null,null,null,"Ley 1273",2009,"Por medio de la cual se modifica el Código Penal, se crea un nuevo bien jurídico tutelado - denominado \"de la protección de la información y de los datos\"- y se preservan integralmente los sistemas que utilicen las tecnologías de la información y las comunicaciones, entre otras disposiciones.","Congreso de la República",null,"X","Art. 4"]
[null,null,null,"Ley 1341",2009,"Por la cual se definen principios y conceptos sobre la sociedad de la información y la organización de las Tecnologías de la Información y las Comunicaciones –TIC–, se crea la Agencia Nacional de Espectro y se dictan otras disposiciones.","Congreso de la República",null,"X","Art.72"]
[null,null,null,"Ley 1437",2011,"Por la cual se expide el Código de Procedimiento Administrativo y de lo Contencioso Administrativo","Congreso de la República",null,"X","Arts. 53 al 64"]
[null,null,null,"Ley 1581",2012,"Por la cual se dictan disposiciones generales para la protección de datos personales.","Congreso de la República",null,"X","Toda"]
[null,null,null,"Ley 1712",2014,"Ley de Transparencia y del Derecho de Acceso a la Información Pública Nacional.","Congreso de la República",null,"X","Toda"]
[null,null,null,"Ley 1753",2015,"Por la cual se expide el Plan Nacional de Desarrollo 2014-2018 \"Todos por un Nuevo Pais\".","Congreso de la República",null,"X","Toda"]
[null,null,null,"Ley 1825",2017,"Por medio de la cual se modifica la Ley 648 de 2001 y se dictan otras disposiciones","Congreso de la República",null,"X","Toda"]
[null,null,null,"Decreto 1360",1989,"Por el cual se reglamenta la inscripción del soporte lógico (software) en el Registro Nacional del Derecho de Autor.","Presidencia de la República",null,"X","Todo"]
[null,null,null,"Decreto 3942",2010,"Por el cual se reglamentan las Leyes 23 de 1982, 44 de 1993 y el artículo 2°, literal c) de la Ley 232 de 1995, en relación con las sociedades de gestión colectiva de derecho de autor o de derechos conexos y la entidad recaudadora y se dictan otras disposiciones.","Presidencia de la República",null,"X","Todo"]
[null,null,null,"Decreto 2364",2012,"Por el cual se reglamenta el artículo 7° de la Ley 527 de 1999, sobre la firma electrónica y se dictan otras disposiciones.","Presidencia de la República",null,"X","Todo"]
[null,null,null,"Decreto 019",2012,"Por el cual se dictan normas para suprimir o reformar regulaciones, procedimientos y trámites innecesarios existentes en la Administración Pública.","Presidencia de la República",null,"X","Todo"]
[null,null,null,"Decreto 2609",2012,"Por el cual se reglamenta el Título V de la Ley 594 de 2000, parcialmente los artículos 58 y 59 de la Ley 1437 de 2011 y se dictan otras disposiciones en materia de Gestión Documental para todas las Entidades del Estado.","Presidencia de la República",null,"X","Arts. 1,2,3,5,6,7,8,12,16,18,19,21 al 34, 38"]
[null,null,null,"Decreto 1377",2013,"Por el cual se reglamenta parcialmente la Ley 1581 de 2012.","Presidencia de la República",null,"X","Todo"]
[null,null,null,"Decreto 333",2014,"Por el cual se reglamenta el artículo 160 del Decreto Ley 19 de 2012.","Presidencia de la República",null,"X","Todo"]
[null,null,null,"Decreto 886",2014,"Por el cual se reglamenta el artículo 25 de la Ley 1581 de 2012, relativo al Registro Nacional de Bases de Datos","Presidencia de la República",null,"X","Todo"]
[null,null,null,"Decreto 943",2014,"Por el cual se actualiza el Modelo Estándar de Control Interno MECI 1000: 2014.","Presidencia de la República",null,"X","Todo"]
[null,null,null,"Decreto 103",2015,"por el cual se reglamenta parcialmente la Ley 1712 de 2014 y se dictan otras disposiciones.","Presidencia de la República",null,"X","Todo"]
[null,null,null,"Decreto 1581",2015,"Por medio del cual se expide el Decreto Reglamentario Único del Sector Presidencia de la República","Presidencia de la República",null,"X","Título 1, Parte I"]
[null,null,null,"Decreto 1494 ",2015,"Por el cual se corrigen yerros en la Ley 1712 de 2014","Presidencia de la República",null,"X","Todo"]
[null,null,null,"Decreto 1413",2017,"Por el cual se adiciona el Título 17 a la Parte 2 del Libro 2 del Decreto Único Reglamentario del sector de Tecnologías de la Información y las Comunicaciones, Decreto 1078 de 2015, para reglamentarse parcialmente el Capítulo IV del Título III de la Ley 1437 de 2011 y el artículo 45 de la Ley 1753 de 2015, estableciendo lineamientos generales en el uso y operación de los servicios ciudadanos digitales","Presidencia de la República",null,"X","Todo"]
[null,null,null,"Decreto 1499 ",2017,"Por medio del cual se modifica el Decreto 1083 de 2015, Decreto Único Reglamentario del Sector Función Pública, en lo relacionado con el Sistema de Gestión establecido en el artículo 133 de la Ley 1753 de 2015","Presidencia de la República",null,"X","Todo"]
[null,null,null,"Decreto 612",2018,"Por el cual se fijan directrices para la integración de los planes institucionales y estratégicos al Plan de Acción por parte de las entidades del Estado.","Presidencia de la República",null,"X","Todo"]
[null,null,null,"Decreto 1008",2018,"Por el  cual se establecen los lineamientos generales de la  política de Gobierno Digital y se subroga el capítulo 1 del título 9 de la  parte 2 del libro 2 del Decreto 1078 de 2015, Decreto Único Reglamentario del sector de Tecnologías de la Información y las Comunicaciones.","Presidencia de la República",null,"X","Todo"]
[null,null,null,"Decreto 1078",2015,"por medio del cual se expide el Decreto Único Reglamentario del sector de Tecnologias de la información y las Comunicaciones.","MinTIC",null,"X","Titulo 9- Capitulo 1"]
[null,null,null,"Decreto 1080",2015,"Por medio del cual se expide el Decreto Único Reglamentario del Sector Cultura\". Este Decreto regula íntegramente las materias contempladas en él. Por consiguiente, de conformidad con el art. 3 de la Ley 153 de 1887, quedan derogadas todas las disposiciones de naturaleza reglamentaria relativas al sector Cultura que versan sobre las mismas materias, con excepción (...).","Ministerio de Cultura",null,"X","Part 2: Electronic documents or parts thereof."]
[null,null,null,"Decreto 415",2016,"Por el cual se adiciona el Decreto Único Reglamentario del sector de la Función Pública, Decreto Numero 1083 de 2015,  en lo  relacionado con la definición de los lineamientos para el fortalecimiento institucional en materia de tecnologías de la información y las comunicaciones.","Departamento Administrativo de la Función Pública - DAFP",null,"X","Todo"]
[null,null,null,"Decreto 680",2001,"Por el cual se modifica la Comisión Distrital de Sistemas -CDS-.","Alcaldía Mayor de Bogotá",null,"X","Art.8"]
[null,null,null,"Decreto 053",2002,"Por el cual se crea el Comité para la implementación del Número Único de Emergencias y Seguridad del Distrito Capital.","Alcaldía Mayor de Bogotá",null,"X","Art. 5"]
[null,null,null,"Decreto 619",2007,"Por el cual se establece la Estrategia de Gobierno Electrónico de los organismos y de las entidades de Bogotá, Distrito Capital y se dictan otras disposiciones.","Alcaldía Mayor de Bogotá",null,"X","Art. 25"]
[null,null,null,"Decreto 296",2008,"Por el cual se le asignan las funciones relacionadas con el Comité de Gobierno en Línea a la Comisión Distrital de Sistemas y se dictan otras disposiciones en la materia.","Alcaldía Mayor de Bogotá",null,"X","Art. 8"]
[null,null,null,"Decreto 316",2008,"Por medio del cual se modifica parcialmente el artículo 3° del Decreto Distrital 619 de 2007 que adoptó las acciones para el desarrollo de la Estrategia Distrital de Gobierno Electrónico.","Alcaldía Mayor de Bogotá",null,"X","Art. 2"]
[null,null,null,"Decreto 176",2010,"Por el cual se definen los lineamientos para la conformación articulada de un Sistema Integrado de Gestión en las entidades del Distrito Capital y se asignan unas funciones.","Alcaldía Mayor de Bogotá",null,"X","Todo"]
[null,null,null,"Directiva Presidencial 02",2002,"Respeto al derecho de autor y los derechos conexos, en lo referente a utilización de programas de ordenador (software).","Presidencia de la República",null,"X","Toda"]
[null,null,null,"Directiva Distrital 002",2002,"Formulación de Proyectos Informaticos y de Comunicaciones.","Alcaldía Mayor de Bogotá",null,"X","Toda"]
[null,null,null,"Directiva Distrital 005",2005,"Políticas Generales de Tecnologías de Información y Comunicaciones aplicables a las entidades del Distrito Capital.","Alcaldía Mayor de Bogotá",null,"X","Toda"]
[null,null,null,"Directiva Distrital 004",2016,"Por la cual se modifica la Resolución 305 de 2008 de la CDS","Alcaldía Mayor de Bogotá",null,"X","Toda"]
[null,null,null,"Directiva Distrital 002",2018,"Tratamiento de datos personales","Secretaría Jurídica Distrital ",null,"X","Toda"]
[null,null,null,"Norma NTC 4563",1998,"Telecomunicaciones. Nuevas Tecnologías. Administración de la Infraestructura de Telecomuniaciones en Edificios Comerciales.","Instituto Colombiano de Normas Técnicas y Certificación, ICONTEC",null,"X","Toda"]
[null,null,null,"Norma NTC 2050",2011,"Código Eléctrico Colombiano","Instituto Colombiano de Normas Técnicas y Certificación, ICONTEC",null,"X","Toda"]
[null,null,null,"Norma NTC 5854",2011,"Accesibilidad a páginas web","Instituto Colombiano de Normas Técnicas y Certificación, ICONTEC",null,"X","Toda"]
[null,null,null,"CONPES 3854",2016,"Política Nacional de Seguridad Digital","Departamento Nacional de Planeación",null,"X","Toda"]
[null,null,null,"Lineamiento 11",2015,"El presente lineamiento tiene como objetivo entregar una metodología para la  identificación y clasificación de los activos de información en las entidades distritales, que contemple los aspectos, orientaciones y lineamientos existentes en materia de seguridad de la información, gestión documental, gestión de calidad y control interno, en el marco de la implementación del Sistema Integrado de Gestión en las entidades y organismos distritales.","Alcaldía Mayor de Bogotá",null,"X","Todo"]
[null,null,null,"Acuerdo 28",1992,"Por el cual se reestructura el Fondo de Vigilancia y Seguridad de Bogotá, D.C.","Concejo de Bogotá",null,"X","Art. 21"]
[null,null,null,"Acuerdo 057",2002,"Por el cual se dictan disposiciones generales para la implementación del Sistema Distrital de Información -SDI-, se organiza la Comisión Distrital de Sistemas, y se dictan otras disposiciones.","Concejo de Bogotá",null,"X","Art. 12"]
[null,null,null,"Acuerdo 130",2004,"Por medio del cual se establece la Infraestructura Integrada de datos espaciales para el Distrito Capital y se dictan otras disposiciones.","Concejo de Bogotá",null,"X","Art. 7"]
[null,null,null,"Acuerdo 308",2008,"Por el cual se adopta el Plan de Desarrollo Económico, Social, Ambiental y de Obras Públicas para Bogotá, D. C., 2008 – 2012 \"BOGOTÁ POSITIVA: PARA VIVIR MEJOR\".","Concejo de Bogotá",null,"X","Art. 55"]
[null,null,null,"Acuerdo 279",2007,"Por el cual se dictan los lineamientos para la Política de Promoción y Uso del Software libre en el Sector Central, el Sector Descentralizado y el Sector de las Localidades del Distrito Capital\".","Concejo de Bogotá",null,"X","Art. 3"]
[null,null,null,"Acuerdo 06",2014,"Por medio del cual se desarrollan los artículos 46, 47 y 48 del Título XI \"Conservación de Documentos\" de La Ley 594 de 2000.","Archivo General de la Nación",null,"X","Toda"]
[null,null,null,"Acuerdo 02",2014,"Por medio del cual se establecen los criterios básicos para creación, conformación, organización, control y  consulta de los expedientes de archivo y  se dictan otras disposiciones","Archivo General de la Nación",null,"X","Todo"]
[null,null,null,"Acuerdo 03",2015,"Por el cual se establecen lineamientos generales para las entidades del estado en cuanto a la gestión de documentos electrónicos generados como resultado del uso de medios electrónicos de conformidad con lo establecido en el capítulo IV de la Ley 1437 de 2011, se reglamenta el artículo 21 de la Ley 594 de 2000 y capítulo IV del Decreto 2609 de 2012.","Archivo General de la Nación",null,"X","Todo"]
[null,null,null,"Resolución 3564",2015,"Por la cual se reglamentan los artículos 2.1.1.2.1.1, 2.1.1.2.11, 2.1.1.2.2.2, y el parágrago 2 del Decreto 1081 de 2015","MinTIC",null,"X","Toda"]
[null,null,null,"Resolución 256",2008,"Por la cual se establece el Reglamento Interno de la Comisión Distrital de Sistemas – C.D.S.","Comisión Distrital de Sistemas -CDS",null,"X","Toda"]
[null,null,null,"Resolución 305",2008,"Por la cual se expiden políticas públicas para las entidades, organismos y órganos de control del Distrito Capital, en materia de Tecnologías de la Información y Comunicaciones respecto a la planeación, seguridad, democratización, calidad, racionalización del gasto, conectividad, infraestructura de Datos Espaciales y Software Libre.","Comisión Distrital de Sistemas -CDS",null,"X","Toda"]
[null,null,null,"Resolución 18 0540",2010,"Por la cual se modifica el Reglamento Técnico de Iluminación y Alumbrado Público -RETILAB, se establecen los requisitos de eficacia mínima y vida útil de las fuentes lumínicas y se dictan otras disposiciones","Ministerio de Minas y Energia",null,"X","Toda"]
[null,null,null,"Resolución 9 0708",2013,"Por la cual se expide el Reglamento Técnico de Instalaciones Eléctricas - RETIE","Ministerio de Minas y Energia",null,"X","Toda"]
[null,null,null,"Resolución 5405",2018,"\"Por la cual se modifica la seccion 1 del capitulo 2 del titulo VIII y el anexo 8.1 del titulo de anexos de la resolucion CRC 5050 de 2016\"  con relacion al Reglamento de Redes Internas de Telecomunicaciones","Comisión de Regulación de Comunicaciones",null,"X","Toda"]
[null,null,null,"Circular Externa 001",2015,"Alcance de la Expresión \"Cualquier Medio Técnico que garantice su reproducción exacta\".","Archivo General de la Nación",null,"X","Toda"]
[null,null,null,"ISO/IEC 25000",2005,"Familia de Normas que proporciona una Guía para el uso de la nueva serie de estándares internacionales llamada Requisitos y Evaluación de Calidad de Productos de Software (SQuaRE - System and Software Quality Requirements and Evaluation).","Organización Internacional para la Estandarización",null,"X","Arts. 1, 2, 4, 5, 7, 8, 36, 49, 52, 56 y 58"]
[null,null,null,"ISO/IEC 27001:2013",2013,"Cambios en la Norma para gestionar la Seguridad de la Información.","Organización Internacional para la Estandarización",null,"X","Toda"]
[null,null,null,"Norma TIA/EIA 606-C",2017,"Norma para la Administración de la Infraestructura de Telecomunicaciones en Edificios Comerciales.","Asociación de la Industria de Telecomunicaciones",null,"X","Toda"]
[null,null,null,"Norma TIA/EIA 607-C",2017,"Ductos, Pasos y Espacios Necesarios para la Instalación de Sistemas Estandarizados de Telecomunicaciones.","Asociación de la Industria de Telecomunicaciones",null,"X","Toda"]
[null,null,null,"Norma TIA/EIA 942",2017,"Norma de infraestructura de telecomunicaciones para centros de datos","Asociación de la Industria de Telecomunicaciones",null,"X","Toda"]
[null,null,null,"Norma ISO/IEC 11801",2017,"Sistemas de Cableado para Telecomunicación","Organización Internacional para la Estandarización",null,"X","Toda"]
[null,null,null,"Norma TIA/EIA 569-E",2019,"Estándar de construcción comercial para ductos y espacios de telecomunicaciones","Asociación de la Industria de Telecomunicaciones",null,"X","Toda"]
[null,null,null,"Norma TIA/EIA 568-D",2019,"Cableado de telecomunicaciones para edificios en general","Asociación de la Industria de Telecomunicaciones",null,"X","Toda"]
[null,null,null," Norma Bicsi 002",2019,"Mejores prácticas de diseño e implementación de centros de datos","Programa de normas internacionales BICSI",null,"X","Toda"]
[null,null,null," Norma Bicsi 009",2019,"Mejores prácticas de operaciones y mantenimiento del centro de datos","Programa de normas internacionales BICSI",null,"X","Toda"]
[null,null,null,"Acuerdo 004",2012,"Por medio del cual se expide el Estatuto de Propiedad Intelectual.","Consejo Superior Universitario","X",null,"Toda"]
[null,null,null,"Acuerdo 001",2013,"Por el cual se adopta el Plan Maestro de Informática y Telecomunicaciones de la Universidad Distrital Francisco José de Caldas.","Consejo Superior Universitario","X",null,"Toda"]
[null,null,null,"Resolución 1101",2002,"Por la cual se establece el Manual Descriptivo de Funciones Generales y Especificas y los Requisitos Mínimos para los cargos de la Planta de Personal Administrativo de La Universidad Distrital Francisco José de Caldas.","Rectoría","X",null,"Toda"]
[null,null,null,"Resolución 711",2008,"Por la cual se reglamenta el uso de los servicios de publicación en internet y correo electrónico que se prestan en la Universidad Distrital Francisco Jose de Caldas.","Rectoría","X",null,"Art. 68"]
[null,null,null,"Resolución 690",2011,"Por medio de la cual se expide la política de adopción y uso de Software en la Universidad Distrital Francisco José de Caldas.","Rectoría","X",null,"Toda"]
[null,null,null,"Resolución 677",2011,"Por la cual se delega a un docente de la Universidad Distrital para representar a la Universidad Distrital en la Comisión Distrital de Sistemas. ","Rectoría","X",null,"Art. 34 Deberes, numeral 21"]
[null,null,null,"Resolución 678",2011,"Por la cual se adopta la Política para la Seguridad de Ia Información de la Universidad Distrital y se otorgan funciones en relación con ésta al Comité de Informática y Telecomunicaciones.","Rectoría","X",null,"Toda"]
[null,null,null,"Resolución 214",2015,"Por medio de la cual se adopta la guía de divulgación y publicación de la información publica y privada en la Universidad Distrital Francisco Jsé de Caldas.","Rectoría","X",null,"Toda"]
[null,null,null,"Resolución 632",2015,"Por la cual se crea el Subsistema de Gestión de Seguridad de la Información SGSI de la Universidad Distrital Francisco José de Caldas.","Rectoría","X",null,"Toda"]
[null,null,null,"Resolución 432",2016,"Por la cual se adopta la Política de Tratamiento y Protección de Datos Personales de la Universidad Distrital Francisco José de Caldas.","Rectoría","X",null,"Toda"]
[null,null,null,"Resolución 705 ",2016,"Por la cual se reglamente el procedimiento de Apertura de Datos en la Universidad Distrital Francisco José de Caldas.","Rectoría","X",null,"Toda"]
[null,null,null,"Resolución 163",2019,"Por la cual se ajusta el Sistema Integrado de Gestión de la Universidad Distrito/ Francisco José de Caldas - SIGUD, se implementa el Modelo Integrado de Planeación y Gestión - MIPG, como su Marco de Referencia, y se crea el Comité \nInstitucional de Gestión y Desempeño.","Rectoría","X",null,"Toda"]
[null,null,null,"Resolución 297",2019,"Por la cual se reglamenta el funcionamiento y operativización de los Equipos Técnicos de Gestión y Desempeño Institucional, como instancias de apoyo del Comité  Institucional de Gestión y Desempeño, y se corrige la Resolución de Rectoría No. 163 de mayo 9 de 2019","Rectoría","X",null,"Toda"]
[]
[null,null,null,"ELABORÓ",null,"REVISÓ","APROBÓ"]
[null,null,null,"Nombre: Equipo SIGUD\nCargo: N.A\nFecha: 31 de Octubre de 2019",null,"Nombre: Martha Cecilia Valdés Cruz, Beatriz Elisa Jaramillo Moreno\nCargo: Jefe Oficina Red de Datos, Jefe Oficina Asesora de\nSistemas\nFecha: 31 de Octubre de 2019","Nombre: Martha Cecilia Valdés Cruz, Beatriz Elisa Jaramillo Moreno\nCargo: Jefe Oficina Red de Datos, Jefe Oficina Asesora de Sistemas\nFecha: 06 de Diciembre de 2019"]

{"sheet":"GDTH","index":12,"n_rows":199,"n_cols":10,"rows_kept":199,"cut":false,"hidden":false,"merged":[[1,1,3,2],[1,3,1,6],[1,7,1,8],[1,9,3,9],[2,3,2,6],[2,7,2,8],[3,3,3,6],[3,7,3,8],[198,3,198,4],[198,6,198,8],[5,1,5,2],[5,3,5,9],[7,1,7,9],[9,1,195,1],[9,2,195,2],[197,3,197,4],[197,6,197,8]]}
[]
[null,null,null,"NORMOGRAMA POR PROCESOS",null,null,null,"Código: GI-PR-002-FR-017"]
[null,null,null,"Macroproceso: Direccionamiento Estratégico",null,null,null,"Versión: 02"]
[null,null,null,"Proceso: Gestión Integrada",null,null,null,"Fecha de Aprobación: 17/11/2017"]
[null," "]
[null,"Proceso",null,"Gestión y Desarrollo del Talento Humano"]
[]
[null,"IDENTIFICACIÓN DE REQUISÍTOS LEGALES Y/O NORMATIVOS -  IDENTIFICACIÓN DEL REQUISÍTO"]
[null,"Macroproceso","Proceso","Clasificación de la Norma","Año","Temática","Expedida por","Interna","Externa","Artículo Aplicable"]
[null,{"$f":"IF(D6=[12]Datos!B3,\"N/A\",IF(OR(D6=[12]Datos!B4,D6=[12]Datos!B5,D6=[12]Datos!B6,D6=[12]Datos!B7,D6=[12]Datos!B8),\"Direccionamiento Estratégico\",IF(OR(D6=[12]Datos!B9,D6=[12]Datos!B10,D6=[12]Datos!B11),\"Gestión Académica\",IF(OR(D6=[12]Datos!B12,D6=[12]Datos!B13,D6=[12]Datos!B14,D6=[12]Datos!B15,D6=[12]Datos!B16),\"Apoyo a lo Misional\",IF(OR(D6=[12]Datos!B17,D6=[12]Datos!B18,D6=[12]Datos!B19,D6=[12]Datos!B20,D6=[12]Datos!B21,D6=[12]Datos!B22,D6=[12]Datos!B23),\"Gestión de Recursos\",IF(OR(D6=[12]Datos!B24,D6=[12]Datos!B25),\"Evaluación y Control\",\"-\"))))))","v":"Gestión de Recursos"},{"$f":"IF(D6=\"\",\"-\",D6)","v":"Gestión y Desarrollo del Talento Humano"},"Constitución Política de Colombia",1991,"Constitución Política de Colombia.","Asamblea Nacional Constituyente",null,"X","Arts. 48,52,53,56, 57, 67 y 69"]
[null,null,null,"Ley 9",1979,"Código Sanitario Nacional.","Congreso de la República",null,"X"," ART:  140; ART:  142;ART:  143;ART: 101; ART: 102; ART: 103; ART: 105; ART: 107; ART: 108; ART: 109; ART: 111; ART: 114.;ART: 116; ART: 118; ART: 121; ART: 122; ART: 123; ART: 125; ART: 126; ART: 127; ART: 203; ART: 205; ART: 206;ART: 251;ART: 260;ART: 291;ART: 84; ART: 85; ART: 87; ART: 88; ART: 90; ART: 92; ART: 93; ART: 94; ART: 95; ART: 96; ART: 98; ART: 99"]
[null,null,null,"Ley 33",1985,"Por el cual se dictan algunas medidas en relacion con las Cajas de Prevision y con las Prestaciones Sociales para el Sector Público.","Congreso de la República",null,"X","Arts. 1,2,3 y 4"]
[null,null,null,"Ley 62",1985,"Por la cual se modifica el artículo 3 de la Ley 33 del 29 de enero de 1985.","Congreso de la República",null,"X","Toda"]
[null,null,null,"Ley 71",1988,"Por la cual se expiden Normas sobre Pensiones y se dictan otras  disposiciones.","Congreso de la República",null,"X","Toda"]
[null,null,null,"Ley 50",1990,"Por la cual se introducen reformas al Código Sustantivo del Trabajo y se dictan otras disposiciones.","Congreso de la República",null,"X","Arts. 98,99,100,101,102,103,104,105, 106, 15, 21, 22, 23, 25. "]
[null,null,null,"Ley 30",1992,"Por la cual se organiza el Servicio Público de la Educación Superior.","Congreso de la República",null,"X","Arts. 28, 70-79, 117, 123"]
[null,null,null,"Ley 4","\n\n\n1992","Mediante la cual se señalan las normas, objetivos y criterios que debe observar el Gobierno Nacional para la fijación del Régimen Salarial y Prestacional de los Empleados Públicos, de los miembros del Congreso Nacional y de la Fuerza Pública  y para la fijación de las Prestaciones Sociales de los Trabajadores Oficiales y se dictan otras disposiciones, de conformidad con lo establecido en el artículo 150, numeral 19, literales e) y f) de la Constitución Política.","Congreso de la República",null,"X","Toda"]
[null,null,null,"Ley 100",1993,"Por la cual se crea el Sistema de Seguridad Social Integral y se dictan otras disposiciones.","Congreso de la República",null,"X","Toda"]
[null,null,null,"Ley 55",1993,"Por medio de la cual se aprueba el \"Convenio número 170 y la Recomendación número 177 sobre la Seguridad en la Utilización de los Productos Químicos en el Trabajo\"","Congreso de la República ",null,"X","ART: 10; ART: 11; ART: 12;ART: 13; ART: 14; ART: 15; ART: 17; ART: 18; ART: 6"]
[null,null,null,"Ley 190",1995,"Por el cual se dictan normas tendientes a preservar la moralidad en la Administración Pública y se fijan disposiciones con el\nfin de erradicar la corrupción administrativa.","Congreso de la República",null,"X","Toda"]
[null,null,null,"Ley 244",1995,"Por medio de la cual se fijan términos para el pago oportuno de cesantías para los servidores públicos, se establecen sanciones y se dictan otras disposiciones.","Presidencia de la Republica",null,"X","Todos"]
[null,null,null,"Ley 181 ",1995,"Por el cual se dictan disposiciones para el fomento del deporte, la recreación, el aprovechamiento del tiempo\nlibre y la Educación Física y se crea el Sistema Nacional del Deporte.","Congreso de la República ",null,"X","ART: 23"]
[null,null,null,"Ley 344 ",1996,"por la cual se dictaron normas tendientes a la racionalización del gasto público, generalizó el sistema el sistema de liquidación anual del auxilio de cesantías para los servidores público","Congreso de la República ",null,"X","Todo el docuemtno"]
[null,null,null,"Ley 361",1997,"Por la cual se establecen mecanismos de integración social de la personas con\nlimitación y se dictan otras disposiciones","Congreso de la República ",null,"X","ART: 26; ART: 31"]
[null,null,null,"Ley 432",1998,"Por el cual se reorganiza el Fondo Nacional del Ahorro, se transforma su naturaleza jurídica y se dictan otras disposiciones.","Congreso de la República",null,"X","Arts. 8, 11,12 y 13"]
[null,null,null,"Ley 443",1998,"Por la cual se expiden Normas sobre Carrera Administrativa y se dictan otras disposiciones.","Congreso de la República",null,"X","Título II, Vinculación a los Empleos de Carrera. Título III, del Registro Público de Carrera\nAdministrativa"]
[null,null,null,"Ley 700",2001,"Por medio de la cual se dictan medidas tendientes a mejorar las condiciones de vida de los Pensionados y se dictan otras disposiciones.","Congreso de la República",null,"X","Toda"]
[null,null,null,"Ley 734",2002,"Por la cual se expide el Código Disciplinario Único.","Congreso de la República",null,"X","Toda"]
[null,null,null,"Ley 776",2002,"Por la cual se dictan normas sobre la organización, administración y prestaciones del Sistema General de Riesgos Profesionales.","Congreso de la República",null,"X","Arts. 1,8, 20 y 21"]
[null,null,null,"Ley 789",2002,"Crea el Sistema de Protección Social.","Presidencia de la Republica",null,"X","Todos"]
[null,null,null,"Ley 8220",2002,"Ley de Protección al Ciudadano del Exceso de Requisitos y Trámites\nAdministrativos. \"Art 2º.-Presentación única de documentos\".","Presidencia de la Republica",null,"X","Todos"]
[null,null,null,"Ley 769",2002,"Por la cual se expide el Código Nacional de Tránsito Terrestre y se dictan otras disposiciones","Congreso de la República ",null,"X","Toda"]
[null,null,null,"Ley 776",2002,"Por la cual se dictan normas sobre la organización, administración y prestaciones del Sistema General de Riesgos Profesionales.","Congreso de la República ",null,"X","ART: 1 Parágrafo 2; ART: 2; ART: 3; ART: 4; ART: 8"]
[null,null,null,"Ley 1066",2003,"Por la cual se reforman algunas disposiciones del sistema general de pensiones previsto en la Ley 100/1993 y se adoptan disposiciones sobre los regímenes pensionales exceptuados y especiales.","Presidencia de la Republica",null,"X","Todos"]
[null,null,null,"Ley 797",2003,"Por la cual se reforman algunas disposiciones del Sistema General de Pensiones previsto en la Ley 100 de 1993 y se\nadoptan disposiciones sobre los Regímenes Pensionales exceptuados y especiales","Congreso de la República",null,"X","Toda"]
[null,null,null,"Ley 828",2003,"Por la cual se expiden normas para el Control a la Evasión del Sistema de Seguridad Social","Congreso de la República ",null,"X","ART: 2"]
[null,null,null,"Ley 909",2004,"Por la cual se expiden Normas que regulan el Empleo Público, la Carrera Administrativa, Gerencia Pública y se dictan otras\ndisposiciones","Congreso de la República",null,"X","Arts. 4,5,14,21,28,31,36 y 41"]
[null,null,null,"Ley 931",2004,"Por la cual se dictan normas sobre el derecho al trabajo en condiciones de igualdad en razón de la edad.","Congreso de la República ",null,"X","ART: 1; ART: 2"]
[null,null,null,"Ley 962",2005,"Por el cual se dictan disposiciones sobre Racionalización de Trámites y Procedimientos Administrativos de los organismos  y entidades del Estado y de los particulares que ejercen funciones públicas o prestan servicios públicos.","Congreso de la República",null,"X","Toda"]
[null,null,null,"Ley 1010",2006,"Por medio de la cual se adoptan medidas para prevenir, corregir y sancionar el acoso laboral y otros hostigamientos en el\nmarco de las relaciones de trabajo","Congreso de la República",null,"X","Toda"]
[null,null,null,"Ley 1066 ",2006,"Por la cual se dictan normas para la normalización de la cartera pública y se dictan otras disposiciones.",null,null,"X","Toda"]
[null,null,null,"Ley 1071",2006,"Por medio de la cual se adiciona y modifica la Ley 244 de 1995, se regula\nel pago de las cesantías definitivas o parciales a los servidores, públicos se establecen sanciones y se fijan términos para su cancelación.","Presidencia de la Republica",null,"X","Todos"]
[null,null,null,"Ley 1010",2006,"Por medio de la cual se adoptan medidas para prevenir, corregir y sancionar el acoso laboral y otros hostigamientos en el marco de las relaciones de trabajo","Congreso de la República ",null,"X","ART: 1; ART: 2; ART: 3; ART: 4; ART: 6; ART: 7; ART: 8; ART: 9; "]
[null,null,null,"Ley 1122",2007,"Por la cual se hacen algunas modificaciones en el sistema Social en Salud y se dictan otras dispociones.","Ministerio de Salud y Protección Social",null,"X","Todos"]
[null,null,null,"Ley 1122 ",2007,"Por la cual se hacen algunas modificaciones en el Sistema General de Seguridad Social en Salud y se dictan otras disposiciones","Congreso de la República ",null,"X","ART: 24 "]
[null,null,null,"Ley 1280",2009,"Por la cual se adiciona el numeral 10 del artículo 57 del Código Sustantivo del Trabajo y se establece la Licencia por Luto","Congreso de la República ",null,"X","ART: 1"]
[null,null,null,"Ley 1383",2010,"Por la cual se reforma la Ley 769 de 2002 - Código Nacional de Tránsito, y se dictan otras disposiciones.","Congreso de la República ",null,"X","Toda"]
[null,null,null,"Ley 1437",2011,"Por el cual se expide el Código de Procedimiento Administrativo y de lo Contencioso Administrativo.","Congreso de la República",null,"X","Arts. 8 y 10"]
[null,null,null,"Ley 1468",2011,"Por la cual se modifican los artículos 236, 239, 57, 58 del Código Sustantivo del Trabajo y se dictan otras disposiciones.","Congreso de la República ",null,"X","Todo el Documento"]
[null,null,null,"Ley 1503",2011,"Por la cual se promueve la formación de hábitos, comportamientos y conductas seguros en la vía y se dictan otras disposiciones.","Congreso de la República ",null,"X","12,  20"]
[null,null,null,"Ley 1562",2012,"Por la cual se modifica el Sistema de Riesgos Laborales y se dictan otras disposiciones en materia de Salud Ocupacional.","Congreso de la República",null,"X","Toda"]
[null,null,null,"Ley 1539",2012,"Por medio de la cual se implementa el certificado de aptitud psicofísica para el porte y tenencia de armas de fuego y se dictan otras disposiciones","Congreso de la República ",null,"X","Artículo 1°"]
[null,null,null,"Ley 1548",2012,"Por la cual se modifica la Ley 769 de 2002 y la Ley 1383 de 2010 en temas de \nembriaguez y reincidencia y se dictan otras disposiciones","Congreso de la República ",null,"X",2]
[null,null,null,"Ley 1562",2012,"Por la cual se modifica el sistema de riesgos laborales y se dictan otras disposiciones en materia de salud ocupacional","Congreso de la República ",null,"X","Artículo  18. Artículo  21. Artículo  23. Artículo  26. Artículo  3 . Artículo  4°. Artículo  5 . Artículo  6 . Artículo  7 . Artículo 12 . Artículo 13 . Artículo 14 . Artículo 16 . Artículo 30 .  "]
[null,null,null,"Ley 1696",2013,"por medio de la cual se dictan disposiciones penales y administrativas para sancionar la con ducción balo el influjo del alcohol u otras sustancias psicoactivas","Congreso de la República ",null,"X","Toda"]
[null,null,null,"Ley 1751",2015,"Por medio de la cual se regula el derecho fundamental a la salud y se dictan otras\ndisposiciones","Presidencia de la Republica",null,"X","Todos"]
[null,null,null,"Ley 1822",2017,"Por medio de la cual se incentiva la adecuada atención y cuidado de la primera infancia, se modifican los artículos 236 y 239 del código sustantivo del trabajo y se dictan otras disposiciones.","Congreso de la República ",null,"X",1]
[null,null,null,"Ley 1823\n",2017,"Por medio de la cual se adopta la estrategia salas amigas de La familia lactante del entorno laboral en entidades públicas territoriales y empresas privadas y se dictan otras disposiciones","Congreso de la República ",null,"X","Todo el Documento"]
[null,null,null,"Ley 1831 ",2017,"Por medio de la cual se regula el uso del Desfibrilador Externo Automático (DEA), en transportes de asistencia, lugares de alta afluencia de público, y se dictan otras disposiciones.","Congreso de la República ",null,"X","ART. 3"]
[null,null,null,"Ley 1846",2017,"Por medio de la cual se modifican los artículos 160 y 161 del código sustantivo del trabajo y se dictan otras disposiciones","Congreso de la República ",null,"X",1]
[null,null,null,"Ley 1857",2017,"Por medio de la cual se modifica la ley' 1361 de 2009 para adicionar y complementar las medidas de protección de la familia y se dictan otras disposiciones","Congreso de la República ",null,"X","Todo el Documento"]
[null,null,null,"Ley 1952 ",2019,"Por medio de la cual se expide el Código General Disciplinario, se derogan la Ley 734 de 2002 y algunas disposiciones de la Ley 1474 de 2011, relacionadas con el derecho disciplinario.","Congreso de la República ",null,"X","Todo el Documento"]
[null,null,null,"Ley 1955 ",2019,"Por el cual se expide el Plan Nacional de Desarrollo 2018-202","Congreso de la República ",null,"x","Art. 333, 193; 244"]
[null,null,null,"Decreto 1538",2005,"por el cual se reglamenta parcialmente la Ley 361 de 1997","Presidencia de la República",null,"X",11]
[null,null,null,"Decreto 2351",1965,"Por el cual se hacen unas Reformas al Código Sustantivo del Trabajo","Presidencia de la República",null,"X","Arts. 17,18,19 y 20"]
[null,null,null,"Decreto 2076",1967,"Por el cual se reglamenta el artículo 18 del Decreto Extraordinario 2351 de 1965 y el artículo 304 del Código Sustantivo del Trabajo.","Presidencia de la República",null,"X","Todo"]
[null,null,null,"Decreto 1042",1978,"Por el cual se establece el Sistema de Nomenclatura y Clasificacion de los Empleos de los Ministerios, Departamentos Administrativos, Superintendencias, Establecimientos Publicos y Unidades Administrativas Especiales del Orden Nacional, se fijan las escalas de remuneracion correspondientes a dichos empleos y se dictan otras disposiciones.","Presidencia de la Republica",null,"X","Todo"]
[null,null,null,"Decreto 1045",1978,"Por el cual se fijan las reglas generales para la aplicación de las Normas sobre Prestaciones Sociales de los Empleados Públicos y Trabajadores Oficiales del Sector Nacional.","Presidencia de la República",null,"X","Todo"]
[null,null,null,"Decreto 758 ",1990,"por el cual se aprueba el Acuerdo número 049 de febrero 1° de 1990 emanado del Consejo Nacional de Seguros Sociales Obligatorios. “por el cual se expide el Reglamento General del Seguro Social Obligatorio de Invalidez, Vejez y Muerte","Consejo Nacional de Seguros Sociales Obligatorios",null,"x","Toda"]
[null,null,null,"Deceto 1176",1991,"por el cual se reglamenta el parágrafo del artículo 98 y el artículo 99 de la Ley 50 de 1990","Presidencia de la República",null,"X"]
[null,null,null,"Decreto 1132",1994,"Por el cual se reglamenta el Fondo de Pensiones Publicas del nivel Nacional.","Presidencia de la República",null,"X","Capitulo I.- Disposiciones Generales"]
[null,null,null,"Decreto 1295",1994,"Por el cual se determina la organización y administración del Sistema General de Riesgos Profesionales.","Presidencia de la República",null,"X","Todo"]
[null,null,null,"Decreto 1299",1994,"Por el cual se dictan las Normas para la Emisión, Redención y demás condiciones de los Bonos Pensionales.","Presidencia de la República",null,"X","Todo"]
[null,null,null,"Decreto 1314",1994,"Por el cual se dictan las normas para la Emisión y Redención de los Bonos Pensionales por traslado de Servidores Públicos al Régimen de Prima Media con Prestación Definida.","Presidencia de la República",null,"X","Todo"]
[null,null,null,"Decreto 2709",1994,"Por el cual se reglamenta el artículo 7° de la Ley 71 de 1988.","Presidencia de la República",null,"X","Todo"]
[null,null,null,"Decreto 692",1994,"Por el cual se reglamenta parcialmente la Ley 100 de 1993. Cap I. Del Sistema General de Seguridad Social Integral.","Presidencia de la Republica",null,"X","Todos"]
[null,null,null,"Decreto 1295",1994,"Por el cual se determina la organización y administración del Sistema General de Riesgos Profesionales","Ministerio de Gobierno",null,"X","ART: 21ART: 22ART: 4ART: 56ART: 62ART: 63ART:18"]
[null,null,null,"Decreto 1772",1994,"Por el cual se reglamenta la afiliación y las cotizaciones al Sistema General de Riesgos Profesionales","Presidencia de la República",null,"X","ART: 10; ART: 15; ART: 3, ART: 4; ART: 7; ART: 8; ARTs: 11-12-16"]
[null,null,null,"Decreto 1748",1995,"Por el cual se dictan normas para la Emisión, Cálculo, Redención y demás condiciones de los Bonos Pensionales y se reglamentan los Decretos leyes 656, 1299 y 1314 de 1994, y los artículos 115, siguientes y concordantes de la Ley 100 de 1993.","Presidencia de la República",null,"X","Todo"]
[null,null,null,"Decreto 1973",1995,"por el cual se promulga el Convenio 170 sobre la Seguridad en la utilización de los productos químicos en el trabajo, adoptado por la Conferencia General de la Organización Internacional del Trabajo el 25 de junio de 1990. ","Presidencia de la República",null,"X","ART: 10; ART: 11; ART: 12; ART: 13; ART: 14; ART: 15; ART: 16; ART: 17; ART: 18"]
[null,null,null,"Decreto 2337",1996,"Por el cual se reglamenta el artículo 131 y el 283 de la Ley 100 de 1993 y el Decreto-ley 1299 de 1994.","Presidencia de la República",null,"X","Todo"]
[null,null,null,"Decreto 1530",1996,"Por el cual se reglamentan parcialmente la Ley 100 de 1993 y el Decreto-ley 1295 de 1994","Presidencia de la República",null,"X","ART: 14 ; ART: 4 "]
[null,null,null,"Decreto 1474",1997,"Por el cual se derogan, modifican y/o adicionan algunos artículos del Decreto reglamentario 1748 de 1995 y se dictan otras  disposiciones.","Presidencia de la República",null,"X","Art.13"]
[null,null,null,"Decreto 1513",1998,"Por el cual se modifican y/o adicionan algunos artículos de los Decretos Reglamentarios 1748 de 1995 y 1474 de 1997 y\nse dictan otras disposiciones.","Presidencia de la República",null,"X","Arts. 10 y 18"]
[null,null,null,"Decreto 806",1998,"por el cual se reglamenta la afiliación al Régimen de Seguridad Social en Salud y la prestación de los beneficios del Servicio Público Esencial de Seguridad Social en Salud y como servicio de interés general, en todo el territorio nacional.","Presidencia de la Republica",null,"X","Todos"]
[null,null,null,"Decreto 1406",1999,"Por el cual se adoptan unas disposiciones reglamentarias de laLey 100 de 1993, se reglamenta parcialmente el artículo 91 de la Ley 488 de diciembre 24 de 1998, se dictan disposiciones para la puesta en operación del Registro Único de Aportantes al Sistema de Seguridad Social Integral, se establece el régimen de recaudación de aportes que financian dicho Sistema y se dictan otras disposiciones.","Presidencia de la Republica",null,"X","Todos"]
[null,null,null,"Decreto 2577",1999,"Por el cual se modifica el Decreto 841 del 5 de mayo de 1998, se reglamenta parcialmente el Estatuto Tributario y la Ley 100 de 1993 en los aspectos tributarios relacionados con la Seguridad Social.","Presidencia de la Republica",null,"X","Todos"]
[null,null,null,"Decreto 047",2000,"Por el cual se expiden normas sobre Afiliación y se dictan otras disposiciones.","Presidencia de la Republica",null,"X","Todos"]
[null,null,null,"Decreto 1252",2000,"Por el cual se establecen normas sobre el Régimen Prestacional de los Empleados Públicos, los Trabajadores Oficiales y\nlos miembros de la Fuerza Pública.","Presidencia de la República",null,"X","Todo"]
[null,null,null,"Decreto 13",2001,"Por el cual se reglamentan parcialmente los artículos 115, 117 y 128 de la Ley 100 de 1993, el Decreto-Ley 1314 de 1994 y el artículo 20 del\nDecreto-Ley 656 de 1994.","Presidencia de la República",null,"X","Todo"]
[null,null,null,"Decreto 2912",2001,"Por el cual se establece el Régimen Salarial y Prestacional de los Docentes de las Universidades Estatales u Oficiales del Orden Nacional, Departamental, Municipal y Distrital.","Presidencia de la República",null,"X","Todo"]
[null,null,null,"Decreto 682",2001,"Por el cual se adopta el Plan Nacional de Formación y Capacitación de Servidores Públicos.","Presidencia de la República",null,"X","Todo"]
[null,null,null,"Decreto 873",2001,"Por el cual se promulga el \"Convenio número 161 sobre los Servicios de Salud en el Trabajo\", adoptado por la 71a. Reunión de la Conferencia General de la Organización Internacional del Trabajo, OIT, Ginebra, 1985.","Ministerio de relaciones exteriores",null,"X","ART:1; ART:13 ;ART:14; ART:5; ART:6; ART:7; ART:8; ART:9 "]
[null,null,null,"Decreto 1279",2002,"Por el cual se establece el Régimen Salarial y Prestacional de los Docentes de las Universidades Estatales.","Presidencia de la República",null,"X","Todo"]
[null,null,null,"Decreto 1919",2002,"Por el cual se fija el Régimen de Prestaciones Sociales para Empleados Públicos y se regula el Régimen Mínimo Prestacional de los Trabajadores Oficiales del Nivel Territorial.","Presidencia de la República",null,"X","Todo"]
[null,null,null,"Decreto 1607",2002,"Por el cual se modifica la Tabla de Clasificación de Actividades Económicas para el Sistema General de Riesgos Profesionales y se dictan otras disposiciones","Presidencia de la República",null,"X","ART: 1; ART: 2"]
[null,null,null,"Decreto 1703",2002,"por el cual se adoptan medidas para promover y controlar la afiliación y el pago de aportes en el Sistema General de Seguridad Social en Salud","Presidencia de la República",null,"X","ART: 30; ART: 37"]
[null,null,null,"Decreto 3727",2003,"Por el Cual se reglamentan los artículos 52, 121 y 130 de la Ley 100 de 1993, el artículo 4° de la Ley 490 de 1998 y se regula la competencia para reconocer, liquidar y pagar los bonos pensionales y cuotas partes pensionales a cargo de las liquidadas Oficinas de Registro de Cambios, Prefectura de Control de Cambios y de Control de Cambios.","Presidencia de la República",null,"X","Todo"]
[null,null,null,"Decreto 800",2003,"Por el cual se reglamentan la Ley 10 de 1990, en cuanto a la organización y el Funcionamiento de la medicina prepagada y la Ley 100 de 1993, en lo relacionado con los planes complementarios, se modifica el inciso 1° del Decreto 1570 de 1993 y se deroga el Decreto 1615 de 2001.","Presidencia de la Republica",null,"X","Todos"]
[null,null,null,"Decreto 3667",2004,"Por medio del cual se reglamentan algunas disposiciones de la Ley 21 de 1982, la Ley 89 de 1988 y la Ley 100 de 1993, se dictan disposiciones sobre el Pago de Aportes Parafiscales y al Sistema de Seguridad Social Integral y se dictan otras disposiciones","Presidencia de la Republica",null,"X","Todos"]
[null,null,null,"Decreto 1227",2005,"Por el cual se reglamenta parcialmente la Ley 909 de 2004 y el Decreto- ley 1567 de 1998.","Presidencia de la República",null,"X","Todo"]
[null,null,null,"Decreto 785",2005,"Por el cual se establece el Sistema de Nomenclatura y Clasificación de Funciones y Requisitos Generales de los Empleos de las Entidades Territoriales que se regulan por las disposiciones de la Ley 909 de 2004.","Presidencia de la República",null,"X","Arts. 1, 2, 3, 4 y 5"]
[null,null,null,"Decreto 1746",2006,"Por el cual se modifica el Decreto 1227 de 2005.","Presidencia de la Republica",null,"X","Todos"]
[null,null,null,"Decreto 2020",2006,"Por medio del cual se organiza el Sistema de Calidad de Formación para el Trabajo.","Presidencia de la República",null,"X","Todo"]
[null,null,null,"Decreto 404",2006,"Por el cual se dictan disposiciones en materia Prestacional.","Presidencia de la República",null,"X","Todo"]
[null,null,null,"Decreto 1931",2006,"por medio del cual se establecen las fechas de obligatoriedad del uso de la Planilla Integrada de Liquidación de Aportes y se modifica parcialmente el Decreto 1465 de 2005 ","Presidencia de la República",null,"X","ART: 2"]
[null,null,null,"Decreto 3366",2007,"Por el Cual se reglamenta el artículo 117 de la Ley 100 de 1993.","Presidencia de la República",null,"X","Todo"]
[null,null,null,"Resolución 2527",2007,"Por la cual se establece el procedimiento para la autoliquidación y pago a través de la Planilla Integrada de liquidación de Aportes de los Aportes Patronales regulados mediante el Decreto 1636 de 2006.","Presidencia de la República",null,"X","ART: 1"]
[null,null,null,"Decreto 3888",2007,"Por el cual se adopta el Plan Nacional de Emergencia y Contingencia para Eventos de Afluencia Masiva de Público y se conforma la Comisión Nacional Asesora de Programas Masivos y se dictan otras disposiciones.","Presidencia de la República",null,"X","ART: 1; ART: 10 ART: 11;ART: 12;ART: 13;ART: 16; ART: 17;ART: 18;ART: 19;ART: 2; ART: 20;ART: 21;ART: 22;ART: 23; ART: 24;ART: 25;ART: 26;ART: 3; ART: 4; ART: 5; ART: 6; ART: 7; ART: 8; ART: 9; "]
[null,null,null,"Decreto 728",2008,"Por medio del cual se establecen las fechas de obligatoriedad del uso de la Planilla Integrada de Liquidación de Aportes para pequeños aportantes e independientes.","Ministerio de Salud y Protección Social",null,"X","ART: 1,2 "]
[null,null,null,"Decreto 74",2010,"Por medio del cual se introducen modificaciones al régimen de Fondo de Seguro Obligatorio de Accidentes de Tránsito –Fonsat– y se dictan otras disposiciones","Presidencia de la República",null,"X","Toda"]
[null,null,null,"Decreto 2923",2011,"Por el cual se establece el Sistema de Garantía de Calidad del Sistema General  de Riesgos Profesionales ","Presidencia de la República",null,"X","Todo el Documento"]
[null,null,null,"Decreto 019",2012,"Por el cual se dictan Normas para Suprimir o Reformar regulaciones, procedimientos y trámites innecesarios existentes en la Administración Pública.","Presidencia de la República",null,"X","193º.-Transferencia de Cesantías (Modificación del art. 6º de la Ley 432 de 1998). ARTÍCULO 121 "]
[null,null,null,"Decreto 2245",2012,"por el cual se reglamenta el inciso primero del parágrafo 3° del artículo 33 de la Ley 100 de 1993, modificado por el artículo 9° de la Ley 797 de 2003.","Presidencia de la República",null,"X","Artículo 3"]
[null,null,null,"Decreto 723",2013,"Por el cual se reglamenta la afiliación al Sistema General de Riesgos Laborales de las personas vinvuladas a través de un contrato formal de prestación de servicios con entidades o instituciones públicas o privadas y de los trabajdores independientes que laboren en actividades de alto riesgo y se dictan otras disposiciones.","Presidencia de la República",null,"X","Todo"]
[null,null,null,"Decreto 055",2015,"Por el cual se reglamenta la afiliación de estudiantes al Sistema General de Riesgos Laborales y se dictan otras disposiciones.","Ministerio de Salud y Protección Social",null,"X","Todo"]
[null,null,null,"Decreto 1072",2015,"Por medio del cual se expide el Decreto Unico Reglamentario del Sector Trabajo.","Ministerio del Trabajo",null,"X","Todo"]
[null,null,null,"Decreto 1083",2015,"Por medio del cual se expide el Decreto Único Reglamentario del Sector de Función Pública.","Presidencia de la Republica","Modificado por el Dto 648 de 2017","X","Todos"]
[null,null,null,"Decreto 472",2015,"Por el cual se reglamentan los criterios de graduación de las multas por infracción a las Normas de Seguridad y Salud en el Trabajo y Riesgos Laborales.","Presidencia de la República",null,"X","Todo"]
[null,null,null,"Decreto 055 ",2015,"Por el cual se reglamenta la afiliación de estudiantes al Sistema General de Riesgos Laborales y se dictan otras disposiciones","Presidencia de la República",null,"X","articulos.\n2.2.4.2.3.1. al 2.2.4.2.3.16."]
[null,null,null,"Decreto 1072 ",2015,"Por medio del cual se expide el Decreto Único Reglamentario del Sector Trabajo","Presidencia de la República",null,"X","(Parte 2 - Título 4\nCapitulo 6\nArt. 2.2.4.6.25)"]
[null,null,null,"Decreto 1079",2015,"por medio del cual se expide el Decreto Único Reglamentario del Sector Transporte","Ministerio de Transporte",null,"X","2.3.2.2.1."]
[null,null,null,"Decreto 1443",2015,"Por el cual se dictan disposiciones para la implementación del Sistema de Gestión de la Seguridad y Salud en el Trabajo (SG-SST). ","Ministerio del Trabajo",null,"X","2.2.4.6.10.;  2.2.4.6.11.;  2.2.4.6.12.;  2.2.4.6.13.;  2.2.4.6.14.;  2.2.4.6.15.;  2.2.4.6.16.;  2.2.4.6.17.;  2.2.4.6.18.;  2.2.4.6.19.;  2.2.4.6.23.;  2.2.4.6.24.;  2.2.4.6.25.;  2.2.4.6.26.;  2.2.4.6.27.;  2.2.4.6.28.;  2.2.4.6.29.;  2.2.4.6.30.;  2.2.4.6.31.;  2.2.4.6.32.;  2.2.4.6.33.;  2.2.4.6.34.;  2.2.4.6.35.;  2.2.4.6.4.;  2.2.4.6.5.;  2.2.4.6.6.;  2.2.4.6.7.;  2.2.4.6.8.;  2.2.4.6.2; 2.2.4.6.42."]
[null,null,null,"Decreto 1990",2016,"Por el cual establece las nuevas fechas, modalidades de pago y reglas de aproximación para el pago de los aportes PILA de los cotizantes independientes.","Ministerio de Salud y Protección Social",null,"X","Todos"]
[null,null,null,"Decreto 1310",2016,"Por el cual se modifica el Decreto 1079 de 2015, en relación con el Plan Estratégico de Seguridad Vial","Ministerio de Transporte",null,"X","1"]
[null,null,null,"Decreto 248",2016,"Por medio del cual se toman medidas para el ordenamiento del tránsito de vehículos de transporte público especial en las vías públicas del Distrito Capital, y se dictan otras disposiciones","Alcaldía Mayor de Bogotá",null,"X","1"]
[null,null,null,"Decreto  648",2017,"Por el cual se modifica y adiciona el Decreto 1083 de 2015, Reglamentario Único del Sector de la Función Pública"]
[null,null,null,"Decreto 052 ",2017,"Por medio del cual se modifica el artículo 2.2.4.6.37. del Decreto 1072 de 2015 Decreto Único Reglamentario del Sector Trabajo, sobre la transición para la ' implementación del Sistema de Gestión de la Seguridad y Salud en el Trabajo (SG-SST)","Ministerio del Trabajo",null,"X","Todo el Documento"]
[null,null,null,"Decreto 2157 ",2017,"por medio del cual se adoptan directrices generales para la elaboración del plan de gestión del riesgo de desastres de las entidades públicas y privadas en el marco del artículo 42 de la ley 1523 de 2012\"","Presidencia de la República",null,"X","Todo el Documento"]
[null,null,null,"Decreto 945",2017,"por el cual se modifica parcialmente el Reglamento Colombiano de Construcciones Sismorresistentes NSR-10","Ministerio de Vivienda, ciudad y territorio",null,"X",1]
[null,null,null,"Decreto 1496",2018,"Por el cual se adopta el Sistema Globalmente Armonizado de Clasificación y Etiquetado de Productos Químicos y se dictan otras disposiciones en materia de seguridad química ","Ministerio del Trabajo",null,"X","4; 6; 7; 8; 14; "]
[null,null,null,"Resolución 2400",1979,"Por la cual se establecen algunas disposiciones sobre vivienda, higiene y seguridad en los establecimientos de trabajo.","Ministerio del Trabajo",null,"X","ART 658; ART. 210; ART. 212; ART: 106; ART: 107; ART: 108; ART: 11;  ART: 111; ART: 112; ART: 113; ART: 114; ART: 116; ART: 117; ART: 12; ART: 120; ART: 121; ART: 122; ART: 124; ART: 125; ART: 126; ART: 127; ART: 13;  ART: 130; ART: 131; ART: 132; ART: 133; ART: 134; ART: 135; ART: 136; ART: 137; ART: 14;  ART: 141; ART: 148; ART: 149; ART: 15;  ART: 155; ART: 156; ART: 16;  ART: 161; ART: 162; ART: 164; ART: 165; ART: 166; ART: 167; ART: 168; ART: 169; ART: 17;  ART: 170; ART: 171; ART: 172; ART: 173; ART: 176; ART: 177; ART: 179; ART: 18;  ART: 180; ART: 181; ART: 182; ART: 183; ART: 184; ART: 185; ART: 186; ART: 188; ART: 189; ART: 19;  ART: 190;  ART: 191;  ART: 192;  ART: 193;ART: 194;ART: 195;ART: 2;  ART: 20;  ART: 203; ART: 204; ART: 205; ART: 207; ART: 208; ART: 209; ART: 21;  ART: 211; ART: 213; ART: 214; ART: 215; ART: 219; ART: 22;  ART: 220; ART: 221; ART: 222; ART: 223; ART: 224; ART: 225; ART: 226; ART: 227; ART: 228; ART: 229; ART: 23;  ART: 230; ART: 231; ART: 232; ART: 233;ART: 234;ART: 24; ART: 26; ART: 28; ART: 29; ART: 3;  ART: 30;  ART: 31;  ART: 32;  ART: 33;  ART: 34;  ART: 340; ART: 341; ART: 342; ART: 343; ART: 35;  ART: 353; ART: 354; ART: 355; ART: 356; ART: 357; ART: 358; ART: 359; ART: 36;  ART: 360;  ART: 361;  ART: 362;  ART: 363; ART: 364; ART: 365; ART: 366; ART: 367; ART: 368; ART: 369; ART: 372; ART: 373; ART: 374; ART: 375; ART: 376; ART: 38;  ART: 382; ART: 383; ART: 384; ART: 385; ART: 386; ART: 387; ART: 388; ART: 389; ART: 39;  ART: 390; ART: 391; ART: 392; ART: 393; ART: 394; ART: 395; ART: 397; ART: 4;  ART: 40; ART: 41; ART: 42; ART: 43; ART: 44; ART: 45; ART: 5;  ART: 538; ART: 539; ART: 540; ART: 544; ART: 548; ART: 549; ART: 550; ART: 553; ART: 554; ART: 555; ART: 558; ART: 6;  ART: 631; ART: 632; ART: 633; ART: 634; ART: 635; ART: 636; ART: 637; ART: 638; ART: 639; ART: 64;  ART: 640; ART: 641; ART: 642; ART: 643; ART: 644; ART: 645; ART: 646; ART: 647; ART: 648; ART: 649; ART: 650; ART: 651; ART: 653; ART: 654; ART: 655; ART: 656; ART: 659; ART: 66;  ART: 660; ART:63; ART: 69;  ART: 696; ART: 698; ART: 699; ART: 7;  ART: 70;  ART: 700; ART: 701; ART: 702; ART: 71; ART: 72; ART: 73; ART: 74; ART: 75; ART: 77; ART: 78; ART: 79; ART: 80; ART: 81; ART: 82; ART: 83; ART: 84; ART: 85; ART: 87; ART: 88; ART: 89; ART: 90; ART: 91; ART: 92; ART: 93; ART: 96;ART: 98; ART: 99"]
[null,null,null,"Resolución 8321",1983,"Por la cual se dictan normas sobre Protección y Conservación de la Audición de la Salud y el bienestar de las personas, por causa de la producción y emisión de ruidos.","Ministerio de Salud",null,"X","ART: 41; ART: 42; ART: 43; ART: 44; ART: 45; ART: 46; ART: 47; ART: 48; ART: 49; ART: 51; ART: 52; ART: 53"]
[null,null,null,"Resolución 2013",1986,"Por la cual se reglamenta la organización y funcionamiento de los comités de Medicina, Higiene y Seguridad Industrial en los lugares de trabajo.","Ministerio de trabajo y seguridad social",null,"X","TODA LA NORMA"]
[null,null,null,"Resolución 1792",1990,"Por la cual se adoptan valores límites permisibles para la exposición ocupacional al ruido.","Ministerio de trabajo y seguridad social",null,"X","ART: 1"]
[null,null,null,"Resolución  6398",1991,"por la cual se establece procedimientos en materia de salud ocupacional","Ministerio de trabajo y seguridad social",null,"X","ART: 1; ART: 2"]
[null,null,null,"Resolución 1075",1992,"Por la cual se reglamentan actividades en materia de Salud Ocupacional.","Ministerio de trabajo y seguridad social",null,"X","ART: 1"]
[null,null,null,"Resolución 3716",1994,"Por la cual se establece un procedimiento en materia de Salud Ocupacional","Ministerio de trabajo y seguridad social",null,"X","ART: 1"]
[null,null,null,"Resolución 7733",1997,"Por la cual se reglamenta el uso y especificaciones del cinturón de seguridad a todos los vehículos que circulen en el Territorio Nacional","Ministerio de Transporte",null,"X","Toda"]
[null,null,null,"Resolución 1995",1999,"Por la cual se establecen normas para el manejo de la Historia Clínica","Ministerio de salud ",null,"X","ART: 1; ART: 14; ART: 2; ART: 3; ART: 4; ART: 5"]
[null,null,null,"Resolución 1592",2001,"Por la cual se autoriza el uso de unos productos plaguicidas genéricos","Ministerio de salud ",null,"X","TODA LA NORMA"]
[null,null,null,"Resolución 19200",2002,"Por la cual se reglamenta el uso e instalación del cinturón de seguridad de acuerdo con el artículo 82 del Código Nacional de Tránsito Terrestre\"","Ministerio de Transporte",null,"X","Toda"]
[null,null,null,"Resolución 1500",2005,"Por la cual se reglamentan las categorías de la Licencia de Conducción, de conformidad con el artículo 20 de la Ley 769 de 2002.","Ministerio de Transporte",null,"X","Toda"]
[null,null,null,"Resolución 156 ",2005,"“Por la cual se adoptan los formatos de informe de accidente de trabajo y de enfermedad profesional y se dictan otras disposiciones”","Ministerio de Salud y Protección Social ",null,"X","Art. 1 - 12 ARTs: 2,4"]
[null,null,null,"Resolución 1570",2005,"Por la cual se establecen las variables y mecanismos para recolección de información del Subsistema de Información en Salud Ocupacional y Riesgos Profesionales y se dictan\notras disposiciones","Ministerio de la Protección Social",null,"X","ART: 2; ART: 5; ART: 7"]
[null,null,null,"Resolución 3577 ",2005,"Por la cual se precisan algunos aspectos del procedimiento de pago integrado realizado a través de la Planilla Integrada de Liquidación de Aportes.","Ministerio de la Protección Social",null,"X","TODA LA NORMA"]
[null,null,null,"Resolución 35",2006,"“Por la cual se modifica parcialmente la Resolución 1500 de junio 27 de 2005 y se dictan unas disposiciones sobre licencias de conducción","Ministerio de Transporte",null,"X","Toda"]
[null,null,null,"Resolución 4016",2006,"Por la cual se modifican los artículos 1º y 3º de la Resolución 4007 del 16 de diciembre de 2005 que adoptó una medida tendiente a mejorar la seguridad vial de las carreteras nacionales y departamentales y se deroga el artículo 2º de dicha resolución”.","Ministerio de Transporte",null,"X","Toda"]
[null,null,null,"Resolución 734",2006,"Por la cual se establece el procedimiento para adaptar los reglamentos de trabajo a las disposiciones de la Ley 1010 de 2006","Ministerio de la Protección Social",null,"X","ART: 1; ART: 2"]
[null,null,null,"Resolución 1401",2007,"por la cual se reglamenta la investigación de incidentes y accidentes de trabajo.","Ministerio de la Protección Social",null,"X","ART: 1; ART: 2; ART: 10; ART: 11; ART: 12; ART: 13; ART: 14; ART: 15; ART: 3;  ART: 4; ART: 6; ART: 7; ART: 8; ART: 9; "]
[null,null,null,"Resolución 2346",2007,"Por la cual se regula la practica de evaluaciones medicas ocupacionales y el manejo y contenido de las historias clinicas  ocupacionales.","Ministerio de la Protección Social",null,"X","ART: 1; ART: 10; ART: 11; ART: 12; ART: 13; ART: 14; ART: 16; ART: 17; ART: 18; ART: 2; ART: 3; ART: 4; ART: 5; ART: 6; ART: 7; ART: 8; ART: 9"]
[null,null,null,"Resolución 2844",2007,"Por la cual se adoptan las Guías de Atención Integral de Salud Ocupacional Basadas en la Evidencia.","Ministerio de la Protección Social",null,"X","ART: 1"]
[null,null,null,"Resolución 1956",2008,"Por la cual se adoptan medidas en relación con el consumo de cigarrillo o de tabaco.","Ministerio de la Protección Social",null,"X","ART: 2"]
[null,null,null,"Resolución 2646",2008,"Por la cual se establecen disposiciones y se definen responsabilidades para la identificación, evaluación, prevención, intervención y monitoreo permanente de la exposición a factores de riesgo psicosocial en el trabajo y para la determinación del origen de las patologías causadas por el estrés ocupacional.","Ministerio de la Protección Social",null,"X","ART: 1; ART: 10; ART: 11; ART: 12; ART: 13; ART: 14; ART: 16; ART: 17; ART: 18; ART: 19; ART: 2; ART: 20; ART: 21; ART: 3; ART: 4; ART: 5; ART: 6; ART: 7; ART: 8; ART: 9"]
[null,null,null,"Resolución 181331",2009,"Por la cual se expide el Reglamento Técnico de Iluminación y Alumbrado Público Retilap y se dictan otras disposiciones.","Ministerio de Minas y Energía",null,"X","Todo el Documento"]
[null,null,null,"Resolución 1918",2009,"Por la cual se modifican los artículos 11 y 17 de la Resolución 2346 de 2007 y se dictan otras disposiciones","Ministerio de la Protección Social",null,"X","Todo el Documento"]
[null,null,null,"Resolución 1356",2012,"Por la cual se modifica parcialmente la Resolución 652 de 2012.","Ministerio del Trabajo",null,"X","Artículo 1°;Artículo 2°;Artículo 3;Artículo 4°"]
[null,null,null,"Resolución 1409  ",2012,"por la cual se establece el Reglamento de Seguridad para protección contra caídas en trabajo\nen alturas.","Ministerio del Trabajo",null,"X","Artículo 1;  Artículo 10; Artículo 11; ARTÍCULO 12; ARTÍCULO 13; ARTÍCULO 14; ARTÍCULO 15; ARTÍCULO 16; ARTÍCULO 17; ARTÍCULO 18; ARTÍCULO 19; ARTÍCULO 20; ARTÍCULO 21; ARTÍCULO 22; ARTÍCULO 23; ARTÍCULO 24; ARTÍCULO 28; Artículo 3; Artículo 4; Artículo 7; Artículo 8; Artículo 9"]
[null,null,null,"Resolución 652 ",2012,"Por la cual se establece la conformación y funcionamiento del Comité de Convivencia Laboral en entidades públicas y empresas privadas y se dictan otras disposiciones.","Ministerio del Trabajo",null,"X","Artículo 11; Artículo 5; Artículo 6; Artículo 7;Artículo 8"]
[null,null,null,"Resolución 3768",2013,"Por la cual se establecen las condiciones que deben cumplir los Centros de Diagnóstico Automotor para su habilitación, funcionamiento y se dictan otras disposiciones.","Ministerio de Transporte",null,"X","20, 21"]
[null,null,null,"Resolución 90907",2013,"Por la cual se corrigen unos yerros en el Reglamento Técnico de Instalaciones Eléctricas - RETIE, establecido mediante Resolución número 90708 de 2013.","Ministerio de Minas y Energía",null,"X","ART: 1"]
[null,null,null,"Resolución 90908",2013,"Por la cual se adopta el Reglamento Interno para promover y cofinanciar proyectos dirigidos a la prestación del servicio público de gas combustible a través del desarrollo de infraestructura de Gas Licuado del Petróleo (GLP) por red de tubería a nivel nacional.","Ministerio de Minas y Energía",null,"X","ART: 1"]
[null,null,null,"Resolución 1565",2014,"Por la cual el Ministerio de Transporte expide la Guía Metodológica para la elaboración del Plan Estratégico de Seguridad Vial.","Ministerio de Transporte",null,"X","Toda"]
[null,null,null,"Resolución 256 ",2014,"Por medio de la cual se reglamenta la conformación, capacitación y entrenamiento para las brigadas contraincendios de los sectores energético, industrial, petrolero, minero, portuario, comercial y similar en Colombia","Dirección Nacional de Bomberos",null,"X","Todo el Documento"]
[null,null,null,"Resolución 1844",2015,"\"Por la cual se adopta la segunda versión de la \"Guía para la Medición Indirecta deAlcoholemia a Través de Aire Espirado\"","Instituto Nacional de Medicina Legal",null,"X","1"]
[null,null,null,"Resolución 1885",2015,"Por la cual se adopta el manual de señalización vial – Dispositivos uniformes para la regulación del tránsito en calles, carreteras y ciclorutas de Colombia”","Ministerio de Transporte",null,"X","2"]
[null,null,null,"Resolución 2410",2015,"Por la cual se adopta el Programa Integral de Estándares de Servicio y Seguridad Vial para el Tránsito de Motocicletas.","Ministerio de Transporte",null,"X","1,2"]
[null,null,null,"Resolución 315",2015,"Por la cual se adoptan unas medidas para garantizar la seguridad en el transporte público terrestre automotor y se dictan otras disposiciones.","Ministerio de Transporte",null,"X","2"]
[null,null,null,"Resolución 3752",2015,"Por la cual se adoptan medidas en materia de seguridad activa y pasiva para uso en vehículos automotores, remolques y semirremolques","Ministerio de Transporte",null,"X","1"]
[null,null,null,"Resolución 1231",2016,"Por la cual se adopta el documento Guía para la Evaluación de los Planes Estratégicos de Seguridad Vial.","Ministerio de Transporte",null,"X","1"]
[null,null,null,"Resolución 2388 \n",2016,"Por la cual se unifican las reglas para el recaudo de aportes al Sistema de Seguridad Social Integral y Parafiscales \n","Ministerio de Salud y Protección Social ",null,"X","Todo el Documento"]
[null,null,null,"Resolución 4170",2016,"por la cual se reglamenta la expedición de la póliza de seguro obligatorio de accidentes de tránsito y se dictan otras disposiciones","Ministerio de Transporte",null,"X","1"]
[null,null,null,"Resolución 1178",2017,"Por la cual se establecen los requisitos técnicos y de seguridad para proveedores del servicio de capacitación y entrenamiento en Protección contra Caídas en Trabajo en Alturas.","Ministerio del Trabajo",null,"X","4,5"]
[null,null,null,"Resolución 1349",2017,"Por la cual se reglamentan las condiciones de habilitación para los centros de apoyo logístico de evaluación (CALE) y las condiciones, características de seguridad y el rango de precios del examen teórico y práctico para la obtención de la licencia de conducción en el territorio nacional y se dictan otras disposiciones","Ministerio de Transporte",null,"X","Toda"]
[null,null,null,"Resolución 839",2017,"Por la cual se modifica la Resolución 1995 de 1999 y se dictan otras disposiciones. Establece el manejo, custodia, tiempo de retención, conservación y disposición final de los expedientes de las historias clínicas, así como reglamentar el procedimiento que deben adelantar las entidades del SGSSS para el manejo de estas en caso de liquidación.","Ministerio de la Protección Social",null,"X",3]
[null,null,null,"Resolución 1796",2018,"Por la cual se actualiza el listado de las actividades peligrosas que por su naturaleza o condiciones de trabajo son nocivas para la salud e integridad física o psicológica de los menores de 18 años y se dictan otras disposiciones.","Ministerio del Trabajo",null,"X","Toda"]
[null,null,null,"Resolución 2423",2018,"Por la cual se establecen los parámetros técnicos para la operación de la estrategia Salas Amigas de la Familia Lactante del Entorno Laboral.","Ministerio de Salud y Protección Social ",null,"X","3.1; 3.2; 3.3; 3.4; 4.1; 4.2; 4.3; 4.4;  "]
[null,null,null,"Resolución 3310",2018,"Por la cual se adopta el Formulario Único de Afiliación y Reporte de Novedades al sistema general de riesgos laborales y dictan otras disposiciones","Ministerio de Salud y Protección Social ",null,"X","Toda"]
[null,null,null,"Resolución 40908",2018,"Por la cual se decide la permanencia del Reglamento Técnico de Instalaciones Eléctricas (Retie)","Ministerio de Minas y Energía",null,"X","ART: 1"]
[null,null,null,"Resolución 4886",2018,"Por la cual se adopta la Política Nacional de Salud Mental ","Ministerio de Salud y Protección Social ",null,"X","Toda"]
[null,null,null,"Resolución 2404",2019,"Por la cual se adopta la Batería de Instrumentos para la Evaluación de Factores de Riesgo Psicosocial, la Guía Técnica General para la Promoción, Prevención e Intervención de los Factores Psicosociales y sus Efectos en la Población Trabajadora y sus Protocolos Específicos y se dictan otras disposiciones","Ministerio del Trabajo",null,"X","1; 3; 4; 5; 6"]
[null,null,null,"Resolución 312",2019,"Por la cual se definen los Estándares Mínimos del Sistema de Gestión de la Seguridad y Salud en el Trabajo SG-SST","Ministerio del Trabajo",null,"X","2; 16; 17; 19; 20; 21; 23; 25; 26; 28; 29; 32"]
[null,null,null,"Resolución 89",2019,"Por la cual se adopta la Política Integral para la Prevención y Atención del Consumo de Sustancias Psicoactivas ","Ministerio de Salud y Protección Social ",null,"X","Anexo Técnico \n Componente Laboral"]
[null,null,null,"Acuerdo 011",1988,"Por el cual se expide el Reglamento de Personal Administrativo de los Empleados Públicos de la Universidad Distrital\nFrancisco José de Caldas.","Consejo Superior Universitario","X",null,"Todo"]
[null,null,null,"Acuerdo 003",1997,"Por el cual se expide el Estatuto General de la Univesidad Distrital Francisco José de Caldas.","Consejo Superior Universitario","X",null,"Titulos 1, 4, 7, 8"]
[null,null,null,"Acuerdo 004",1997,"Por el cual se expide la planta del personal administrativo global.","Consejo Superior Universitario","X",null,"Todos"]
[null,null,null,"Acuerdo 05",1997,"Por el cual se crea el fondo de pensiones públicas de la Universidad\nDistrital Francisco José de Caldas.","Consejo Universitario Superior","X",null,"Todos"]
[null,null,null,"Resolución 294 ",2015,"Por la cual se crea y se conforma el! Subsistema de Gestión de la Seguridad y la Salud en el Trabajo, SG-SST de la Universidad Distrital y se establecen la Política, Objetivos y Responsabilidades","Rectoria","X",null,"Todos"]
[null,null,null,"Resolución 129 ",2016,"\"Por la cual se modifica parcialmente la Resolución 294 de 2015, mediante la cual se crea y se conforma el Subsistema de Gestión de la Seguridad y la Salud en el Trabajo SGSST de la Universidad Distrital y se establecen la Política, Objetivosy responsabilidades\"","Rectoria","X",null,"Todos"]
[null,null,null,"Resolución 196",2016,"\"Por la cual se reorganiza el comité paritario de la seguridad y salud en el trabajo copasst para la Universidad Distrital Francisco José de Caldas \"","Rectoria","X",null,"Todos"]
[null,null,null,"Resolución 404 ",2016,"\"Por la cual se crea, organiza e integra el Comité Operativo de Emergencias - COE y se establecen los mecanismos para la integración y funcionamiento de las Brigadas para Atención de Emergencias de la Universidad Distrital Francisco José de Caldas \"","Rectoria","X",null,"Todos"]
[null,null,null,"Resolución 405 ",2016,"\"Por la cual se adopta el Reglamento de Higiene y Seguridad Industrial en el Trabajo de la Universidad Distrital Francisco José de Caldas\"","Rectoria","X",null,"Todos"]
[null,null,null,"Resolución 561 ",2016,"\"Por la cual se adopta el manual de seguridad y salud en el trabajo para contratistas y proveedores de la Universidad Distrital.\"","Rectoria","X",null,"Todos"]
[null,null,null,"Resolución 452 ",2017,"\"Por la cual se reorganiza el Comite Paritario de la Seguridad y la Salud en trabajo COPASST para la Universidad Distrital Francisco José de Caldas\"","Rectoria","X",null,"Todos"]
[null,null,null,"Resolución 453 ",2017,"\"Por medio del cual se modifica y actualiza la política de seguridad y salud en el trabajo\"","Rectoria","X",null,"Todos"]
[null,null,null,"Resolución 624",2017,"\"Por la cual se modifica la Resolución 294 de 2015 y se establecen las responsabilidades en el subsistema de Gestión de la Seguridad y Salud en el Trabajo de la Universidad Distrital Francisco José de Caldas \"","Rectoria","X",null,"Todos"]
[]
[null,null,null,"ELABORÓ",null,"REVISÓ","APROBÓ"]
[null,null,null,"Nombre: Equipo SIGUD \nCargo: N.A.\nFecha: 07/11/2019",null,"Nombre:  Jorge Vergara Vergara/ Guillermo  Eduardo Alfonso \nCargo:  Jefe División Recursos Humanos/ Coordinador SG-SST\nFecha:  06/12/2019  - 04/12/2019","Nombre:  Jorge Vergara Vergara/ Guillermo  Eduardo Alfonso \nCargo:  Jefe División Recursos Humanos/ Coordinador SG-SST\nFecha:  06/12/2019  - 04/12/2019"]

{"sheet":"GIF","index":13,"n_rows":60,"n_cols":11,"rows_kept":60,"cut":false,"hidden":false,"merged":[[1,1,3,2],[1,4,1,7],[1,8,1,9],[1,10,3,10],[2,4,2,7],[2,8,2,9],[3,4,3,7],[3,8,3,9],[58,4,58,5],[58,7,58,8],[59,4,59,5],[59,7,59,8],[5,1,5,2],[5,4,5,10],[7,1,7,10],[9,1,55,1],[9,2,55,2],[9,3,28,3]]}
[]
[null,null,null,null,"NORMOGRAMA POR PROCESOS",null,null,null,"Código: GI-PR-002-FR-017"]
[null,null,null,null,"Macroproceso: Direccionamiento Estratégico",null,null,null,"Versión: 02"]
[null,null,null,null,"Proceso: Gestión Integrada",null,null,null,"Fecha de Aprobación: 17/11/2017"]
[null," "]
[null,"Proceso",null,null,"Gestión de Infraestructura Física"]
[]
[null,"IDENTIFICACIÓN DE REQUISÍTOS LEGALES Y/O NORMATIVOS -  IDENTIFICACIÓN DEL REQUISÍTO"]
[null,"Macroproceso","Proceso","SUBPROCESO","Clasificación de la Norma","Año","Temática","Expedida por","Interna","Externa","Artículo Aplicable"]
[null,"Gestión de Recursos","Gestión de Infraestructura Física","Prospectiva y Planeacion Estrategica","Constitución Política ",1991,"Constitución Política de Colombia","Asamblea Nacional Constituyente",null,"x","Art. 69"]
[null,null,null,null,"Ley 769",2002,"Por la cual se expide el Código Nacional de Tránsito Terrestre y se dictan otras disposiciones.","Ministerio de transporte",null,"x","Todo"]
[null,null,null,null,"Ley 30",1992,"Prestar a la comunidad un servicio con calidad, el cual hace referencia a los resultados académicos, a los medios y procesos empleados, a la infraestructura institucional, a las dimensiones cualitativas y cuantitativas del mismo y a las condiciones en que se desarrolla cada institución","Congreso de la Republica",null,"x","Todo"]
[null,null,null,null,"Ley 872",2003,"Por la cual se crea el sistema de gestión de la calidad en la Rama Ejecutiva del Poder Público y en otras entidades prestadoras de servicios","Congreso de la Republica",null,"x","Todo"]
[null,null,null,null,"Decreto 4485",2009,"Por medio de la cual se adopta la actualización de la Norma Técnica de Calidad en la Gestión Pública.","Presidencia de la Republica",null,"x","Todo"]
[null,null,null,null,"Decreto 1599",2005,"Por el cual se adopta el Modelo Estándar de Control Interno para el Estado Colombiano","Presidencia de la Republica",null,"x","Todo"]
[null,null,null,null,"Decreto 943",2014,"\nPor el cual se actualiza el Modelo Estándar de Control Interno (MECI).\n","Presidencia de la Republica",null,"x","Art. 5"]
[null,null,null,null,"Decreto 2375 ",2006,"Por el cual se reglamenta el artículo 7° de la Ley 872 de 2003","Presidencia de la Republica",null,"x","Todo"]
[null,null,null,null,"Decreto 092",2011,"Por el cual se modifica el Decreto 926 de 2011","Presidencia de la Republica",null,"x","Todo"]
[null,null,null,null,"Decreto 652 ",2011,"Por medio del cual se adopta la Norma Técnica Distrital del Sistema Integrado de Gestión para las Entidades y Organismos Distritales","Presidencia de la Republica",null,"x","Todo"]
[null,null,null,null,"Decreto 734 ",2012,"Por el cual se reglamenta el Estatuto General de Contratación de la Administración Pública y se dictan otras disposiciones","Presidencia de la Republica",null,"x","Todo"]
[null,null,null,null,"Decreto Nacional 1510",2013,"Por el cual se reglamenta el sistema de compras y contratación pública.","Presidencia de la Republica",null,"x","Art 163"]
[null,null,null,null,"Decreto 340",2012,"Por el cual se modifica parcialmente el Reglamento de Construcciones Sismo Resistentes NSR-10","Ministerio de vivienda, ciudad y territorio",null,"x","Todo"]
[null,null,null,null,"Norma ANSI/TIA/EIA-568-B ",2001,"Estándares que tratan el cableado comercial para productos y servicios de telecomunicaciones","EIA",null,"x","Todo"]
[null,null,null,null,"GTC 118 ",2004,"Guía de la Construcción. Ventanas y Puertas Aspectos Generales","ICONTEC",null,"x","Todo"]
[null,null,null,null,"NTC 4596 ",2006,"Señalización para Instalaciones y Ambientes Escolares","ICONTEC",null,"x","Todo"]
[null,null,null,null,"NTC 5183",2003,"Ventilación para una calidad aceptable del aire en espacios interiores","ICONTEC",null,"x","Todo"]
[null,null,null,null,"NTC 1500",2004,"Código Colombiano de Fontanería","ICONTEC",null,"x","Todo"]
[null,null,null,null,"NTC 4595",2006,"Planeamiento y Diseño de Instalaciones y Ambientes Escolares","ICONTEC",null,"x","Todo"]
[null,null,null,null,"NTC 5655 ",2008,"Principios para el diseño ergonómico de sistemas de trabajo","ICONTEC",null,"x","Todo"]
[null,null,null,null,"NTC 1669 ",2009,"Norma para la instalación de conexiones de mangueras contra incendio","ICONTEC",null,"x","Todo"]
[null,null,null,null,"NTC 2050",2010,"Código Eléctrico Colombiano","ICONTEC",null,"x","Todo"]
[null,null,null,null,"NTC 2769-1 ",2010,"Reglas de seguridad para la construcción e instalación de ascensores. parte 1: ascensores eléctricos","ICONTEC",null,"x","Todo"]
[null,null,null,null,"Acuerdo 060 ",2001,"Por el cual se establecen pautas para la administración de las comunicaciones oficiales en las entidades públicas y las privadas que cumplen funciones públicas","Archivo general de la nacion",null,null,"Todo"]
[null,null,null,null,"Resolución 181331 ",2009,"Por la cual se expide el Reglamento Técnico de Iluminación y Alumbrado Público Retilap y se dictan otras disposiciones","Ministerio de Minas y Energìa",null,"x","Todo"]
[null,null,null,null,"Resolución 180540 ",2010,"por la cual se modifica el Reglamento Técnico de Iluminación y Alumbrado Público – Retilap, se establecen los requisitos de eficacia mínima y vida útil de las fuentes lumínicas y se dictan otras disposiciones","Ministerio de Minas y Energìa",null,"x","Todo"]
[null,null,null,null,"Resolución 181568 ",2010,"Por el cual se hacen unas aclaraciones y modificaciones al reglamento tecnico de iluminación y alumbrado publico RETILAP y se dictan otras dispocisiones","Ministerio de Minas y Energìa",null,"x","Todo"]
[null,null,null,null,"Resolución 9078 ",2013,"Reglamento técnico de instalaciones eléctricas RETIE","Ministerio de Minas y Energìa",null,"x","Todo"]
[null,null,null,null,"Resolución 90902",2013,"Por medio de la cual se expide el reglamento tecnico de instalaciones internas de gas combustible","Ministerio de Minas y Energìa",null,"x","Todo"]
[null,null,null,null,"Resolución 90980 ",2013,"Por el cual se modifica y adiciona el Reglamento Técnico de Iluminación y Alumbrado Público, RETILAP","Ministerio de Minas y Energìa",null,"x","Todo"]
[null,null,null,null,"Resolucion 9075",2014,"Por el cual se aclara y corrigen unos yerros en el Reglamento Tecnico de Instalaciones Electricas RETIE, establecidos mediante Resolución 9078 de 2013","Ministerio de Minas y Energìa",null,"x","Todo"]
[null,null,null,null,"Resolución 40492 ",2015,"Por la cual se aclaran y corrigen unos yerros en el Anexo General del Reglamento Técnico de Instalaciones Eléctricas – RETIE, establecido mediante Resolución No. 90708 de 2013","Ministerio de Minas y Energìa",null,"x","Todo"]
[null,null,null,null,"Acuerdo 008",2013,"Por el cual se expide el Estatuto Académico de la Universidad Distrital Francisco José de Caldas","CSU","x"]
[null,null,null,null,"Acuerdo 003 ",1997,"Por el cual se expide el Estatuto General de la Universidad Distrital Francisco José de Caldas","CSU","x",null,"Todo"]
[null,null,null,null,"Acuerdo 01",2015,"Por medio del cual se adoptan transitoriamente los procedimientos\ncontractuales de licitación pública, Concurso de Méritos, Selección\nAbreviada de Menor Cuantía, Selección Abreviada Subasta Inversa,\nAcuerdos Marco de Precios, Bolsa de Productos, y se dictan otras\ndisposiciones","CSU","x",null,"Todo"]
[null,null,null,null,"Acuerdo 02",2015,"Por medio del cual se adoptan políticas de Transparencia y Anticorrupción en la Universidad Distrital Francisco José de Caldas","CSU","x",null,"Todo"]
[null,null,null,null,"Acuerdo 003 ",2015,"Por el cual se expide el Estatuto de Contratación de la Universidad Distrital Francisco José de Caldas","CSU","x",null,"Todo"]
[null,null,null,null,"Resolución 001",2001,"Por la cual se expide el Manual de Procedimientos Administrativos y Contables para el Manejo y Control de los Bienes en los Entes Públicos del Distrito Capital.","Secretaría Distrital de Hacienda","x",null,"Todo"]
[null,null,null,null,"Resolución 115",2009,"Por medio del cual se adopta el Plan Maestro de Desarrollo Físico de la Universidad Distrital Francisco José de Caldas. Bogotá Distrito Capital","CSU","x",null,"Todo"]
[null,null,null,null,"Resolución 030",2013,"Por la cual se modifica la Resolución No. 015 de 2009 mediante la cual se adoptó el Plan Maestro de Desarrollo Físico de la Universidad Distrital Francisco José de Caldas. Bogotá Distrito Capital","CSU","x",null,"Todo"]
[null,null,null,null,"Resolución 194 ",2010,"Por la cual se ajusta y actualiza la documentación del Sistema Integrado de Gestión SIGUD, a través del Manual de Operaciones de la \nUniversidad Distrital Francisco José de Caldas","CSU","x",null,"Todo"]
[null,null,null,null,"Resolución 1101 ",2002,"Por la cual se estable el Manual Descriptivo de Funciones Generales y Específicas y los Requisitos Mínimos para los Cargos de la Planta de Personal Administrativo de la Universidad Distrital Francisco José de\nCaldas\n","Rectoría","x",null,"Todo"]
[null,null,null,null,"Resolución 806",2012,"Por la cual se adopta, en la Universidad Distrital Francisco José de Caldas, el “Manual de Procedimientos Administrativos y Contables para el Manejo y Control de los Bienes en los Entes Públicos del Distrito Capital","Rectoría","x",null,"Todo"]
[null,null,null,null,"Resolución 262 ",2015,"Por medio de la cual se reglamenta el Acuerdo 03 de 2015, Estatuto de contratación de la Universidad Distrital Francisco José de Caldas, y se dictan otras dispocisiones","Rectoría","x",null,"Todo"]
[null,null,null,null,"Resolución 629",2016,"Por medio de la cual se adopta el Manual de Supervisión e Interventoría de la Universidad Distrital Francisco José de Caldas","Rectoría","x",null,"Todo"]
[null,null,null,null,"Resolución 298",2015,"Por medio de la cual se adopta el Protocolo de limpieza y desinfección de las áreas de Bienestar Institucional ubicadas en las sedes de la Universidad Distrital Francisco José de Caldas","Rectoría","x",null,"Todo"]
[null,null,null,null,"Resolución 299",2015,"Por medio de la cual se aprueba y adopta el Protocolo de limpieza y desinfección general para áreas comunes, ubicadas en las sedes de la Universidad Distrital Francisco José de Caldas","Rectoría","x",null,"Todo"]
[]
[]
[null,null,null,null,"ELABORÓ",null,"REVISÓ","APROBÓ"]
[null,null,null,null,"Nombre: Grupo SIGUD\nCargo: N.A.\nFecha: 29/11/2019",null,"Nombre: Rafael Enrique Aranzalez Garcia\nCargo: Vicerrector Administrativo y Financiero\nFecha: 29/11/2019","Nombre: Alvaro Espinel Ortega\nCargo: Vicerrector Administrativo y Financiero\nFecha: 29/11/2019"]

{"sheet":"GC","index":14,"n_rows":37,"n_cols":10,"rows_kept":37,"cut":false,"hidden":false,"merged":[[1,1,3,2],[1,3,1,6],[1,7,1,8],[1,9,3,9],[2,3,2,6],[2,7,2,8],[3,3,3,6],[3,7,3,8],[36,3,36,4],[36,6,36,7],[5,1,5,2],[5,3,5,9],[7,1,7,9],[9,1,33,1],[9,2,33,2],[35,3,35,4],[35,6,35,7]]}
[]
[null,null,null,"NORMOGRAMA POR PROCESOS",null,null,null,"Código: GI-PR-002-FR-017"]
[null,null,null,"Macroproceso: Direccionamiento Estratégico",null,null,null,"Versión: 02"]
[null,null,null,"Proceso: Gestión Integrada",null,null,null,"Fecha de Aprobación: 17/11/2017"]
[null," "]
[null,"Proceso",null,"Gestión Contractual"]
[]
[null,"IDENTIFICACIÓN DE REQUISÍTOS LEGALES Y/O NORMATIVOS -  IDENTIFICACIÓN DEL REQUISÍTO"]
[null,"Macroproceso","Proceso","Clasificación de la Norma","Año","Temática","Expedida por","Interna","Externa","Artículo Aplicable"]
[null,"Gestión de Recursos",{"$f":"IF(D6=\"\",\"-\",D6)","v":"Gestión Contractual"},"Constitución Política ",1991,"Constitución Política de Colombia.","Asamblea Nacional Constituyente",null,"X","Art. 69"]
[null,null,null,"Ley 30",1992,"Por el cual se organiza el servicio público de la Educación Superior","Congreso de Colombia",null,"X","Arts. 70,77,92."]
[null,null,null,"Ley 1150",2007,"Por medio de la cual se introducen medidas para la eficiencia y la transparencia en la Ley 80 de 1993 y se dictan otras disposiciones generales sobre la contratación con Recursos Públicos.","Congreso de Colombia",null,"X","Toda"]
[null,null,null,"Decreto-Ley 4170 ",2011,"Por el cual se crea la Agencia Nacional de Contratación Pública-Colombia Compra Eficiente-, se determinan sus objetivos y estructura.","Presidencia de la República",null,"X","Todo"]
[null,null,null,"Decreto 1510",2013,"Por el cual se reglamenta el sistema de compras y contratación pública.","Presidencia de la República",null,"X","Todo"]
[null,null,null,"Decreto 1082",2015,"Por medio del cual se expide el Decreto Único Reglamentario del sector Administrativo de Planeación Nacional.","Departamento de Planeación Nacional",null,"X","Todo"]
[null,null,null,"Acuerdo 003",1997,"Por el cual se expide el Estatuto General de la Universidad Distrital Francisco José de Caldas.","Consejo Superior Universitario","X",null,"Todo"]
[null,null,null,"Acuerdo 003",2015,"Por el cual se expide el Estatuto General de Contratación de la Universidad Distrital Francisco José de Caldas.","Consejo Superior Universitario","X",null,"Todo"]
[null,null,null,"Resolución 1101",2002,"Por la cual se estable el Manual Descriptivo de Funciones Generales y Específicas y los Requisitos Mínimos para los Cargos de la Planta de Personal Administrativo de la Universidad Distrital Francisco José de Caldas.","Rectoría","X",null,"Toda"]
[null,null,null,"Resolución 479",2013,"Por medio de la cual se fija el procedimiento de selección de contratistas en aplicación del Acuerdo 07 de 2010 expedido por el Consejo Superior Universitario","Rectoría","X",null,"Toda"]
[null,null,null,"Resolución 262 ",2015,"Por medio de la cual se reglamenta el Acuerdo 03 de 2015, Estatuto de Contratación de la Universidad Distrital Francisco José de Caldas y se dictan otras disposiciones.","Rectoría","X",null,"Toda"]
[null,null,null,"Resolución 443",2015,"Por medio de la cual se delega competencia contractual, Ordenación del Gasto y el pago de unos rubros.","Rectoría","X",null,"Toda"]
[null,null,null,"Resolución 449",2015,"Por medio de la cual se aclara la delegación de la competencia contractual, Ordenación del Gasto y el pago de unos rubros.","Rectoría","X",null,"Toda"]
[null,null,null,"Resolución 593 ",2015,"Por medio de la cual se adopta el procedimiento para efectuar procesos de Contratación Directa.","Rectoría","X",null,"Toda"]
[null,null,null,"Resolución 003",2016,"Por medio de la cual se reglamenta la contratación por Prestación de Servicios en la Universidad Distrital Francisco José de Caldas y se dictan otras disposiciones.","Rectoría","X",null,"Toda"]
[null,null,null,"Resolución 179",2016,"Por la cual se deroga el literal c del artículo sexto de la Resolución No. 443 del 03 de septiembre de 2015 \"por medio de la cual se delega la competencia contractual, ordenación del gasto y el pago de unos rubros\".","Rectoría","X",null,"Toda"]
[null,null,null,"Resolución 375 ",2016,"Por la cual se reglamenta el procedimiento de preparación, elaboración, publicidad y ajuste del plan Anual de adquisiciones (PAA) de la Universidad Distrital Francisco José de Caldas.","Rectoría","X",null,"Toda"]
[null,null,null,"Resolución 629",2016,"Por medio de la cual se adopta el Manual de Supervisión e interventoría de la Universidad Distrital Francisco José de Caldas.","Rectoría","X",null,"Toda"]
[null,null,null,"Resolución 683",2016,"Por la cual se crea y se reglamenta el banco de proveedores en la Universidad Distrital Francisco José de Caldas.","Rectoría","X",null,"Toda"]
[null,null,null,"Resolución 067",2017,"Por medio de la cual se complementa la Resolución 262 de 2015, en su Artículo 93 y se dictan otras disposiciones.","Rectoría","X",null,"Toda"]
[null,null,null,"Resolución 429",2017,"Por la cual se reglamente la prestación, solicitud, tramite y control del servicio de transporte aéreo y terrestre, para Estudiantes, Docentes y Personal Administrativo de Planta y Directivas, adscritos a las diferentes unidades académicas y administrativas de la Universidad Distrital Francisco José de Caldas.","Rectoría","X",null,"Toda"]
[null,null,null,"Resolución 08",2019,"Por la cual se aprueba el Plan Anual de Adquisiciones para la vigencia 2019\"","Rectoría","X",null,"Toda"]
[null,null,null,"Resolución 0117",2019,"Por la cual se delega la competencia contractual, Ordenación de gasto y el pago de uno rubros.","Rectoría","X",null,"Toda"]
[null,null,null,"Circular 025",2015," Evaluación de Proveedores","Rectoría","X",null,"Toda"]
[null,null,null,"Circular 17",2016,"relación de fuentes de financiamiento necesidades SICAPITAL. para ver los códigos Rubro UD.","Rectoría","X",null,"Toda"]
[]
[null,null,null,"ELABORÓ",null,"REVISÓ","APROBÓ"]
[null,null,null,"Nombre: Grupo SIGUD.\nCargo: N.A.\nFecha: 11 de octubre de 2019.",null,"Nombre: Eduard Arnulfo Pinilla Rivera.\nCargo: Profesional Especializado Vicerrectoría Administrativa y Financiera.\nFecha: 11 de octubre de 2019.","Nombre: Álvaro Espinel Ortega\nCargo: Vicerrector Administrativo y Financiero.\nFecha: 11 de octubre de 2019."]

{"sheet":"BI","index":15,"n_rows":101,"n_cols":10,"rows_kept":101,"cut":false,"hidden":false,"merged":[[1,1,3,2],[1,3,1,6],[1,7,1,8],[1,9,3,9],[2,3,2,6],[2,7,2,8],[3,3,3,6],[3,7,3,8],[100,3,100,4],[100,6,100,7],[5,1,5,2],[5,3,5,9],[7,1,7,9],[9,1,97,1],[9,2,97,2],[99,3,99,4],[99,6,99,7]]}
[]
[null,null,null,"NORMOGRAMA POR PROCESOS",null,null,null,"Código: GI-PR-002-FR-017"]
[null,null,null,"Macroproceso: Direccionamiento Estratégico",null,null,null,"Versión: 02"]
[null,null,null,"Proceso: Gestión Integrada",null,null,null,"Fecha de Aprobación: 17/11/2017"]
[null," "]
[null,"Proceso",null,"Bienestar Institucional"]
[]
[null,"IDENTIFICACIÓN DE REQUISÍTOS LEGALES Y/O NORMATIVOS -  IDENTIFICACIÓN DEL REQUISÍTO"]
[null,"Macroproceso","Proceso","Clasificación de la Norma","Año","Temática","Expedida por","Interna","Externa","Artículo Aplicable"]
[null,{"$f":"IF(D6=[18]Datos!B3,\"N/A\",IF(OR(D6=[18]Datos!B4,D6=[18]Datos!B5,D6=[18]Datos!B6,D6=[18]Datos!B7,D6=[18]Datos!B8),\"Direccionamiento Estratégico\",IF(OR(D6=[18]Datos!B9,D6=[18]Datos!B10,D6=[18]Datos!B11),\"Gestión Académica\",IF(OR(D6=[18]Datos!B12,D6=[18]Datos!B13,D6=[18]Datos!B14,D6=[18]Datos!B15,D6=[18]Datos!B16),\"Apoyo a lo Misional\",IF(OR(D6=[18]Datos!B17,D6=[18]Datos!B18,D6=[18]Datos!B19,D6=[18]Datos!B20,D6=[18]Datos!B21,D6=[18]Datos!B22,D6=[18]Datos!B23),\"Gestión de Recursos\",IF(OR(D6=[18]Datos!B24,D6=[18]Datos!B25),\"Evaluación y Control\",\"-\"))))))","v":"Apoyo a lo Misional"},{"$f":"IF(D6=\"\",\"-\",D6)","v":"Bienestar Institucional"},"Declaración Universal de Derechos Humanos",1948,"La Declaración establece, por primera vez, los derechos humanos fundamentales que deben protegerse en el mundo entero.G37","Asamblea General de las Naciones Unidas ",null,"X","Toda"]
[null,null,null,"Convención",2006,"Convención sobre los Derechos de las Personas con Discapacidad ONU","ONU",null,"X","Todo"]
[null,null,null,"Politica",2011,"Política de Infancia y Adolescencia en Bogotá","Alcaldía Mayor de Bogotá",null,"X","Toda"]
[null,null,null,"Constitución Política de Colombia",1991,"Constitución Política de Colombia","Asamblea Nacional Constituyente",null,"X","Arts. 23, 29, 30, 52, 67, 69, 70, 71, 74, 209, 269, 361"]
[null,null,null,"Ley 09",1979,"Por la cual se dictan Medidas Sanitarias.","Congreso de la República",null,"X","Toda"]
[null,null,null,"Ley 23",1981,"Por la cual se dictan Normas en materia de Ética Médica.","Congreso de la República",null,"X","Toda"]
[null,null,null,"Ley 30",1992,"Por la cual se organiza el Servicio Público de la Educación Superior.","Congreso de la República",null,"X","Arts. 117, 118, 119"]
[null,null,null,"Ley 181",1995,"Por la cual se dictan las disposiciones para el fomento del deporte, la recreación, el aprovechamiento del tiempo libre y la educación física, y se crea el Sistema Nacional del Deporte.","Congreso de la República",null,"X","Art. 16"]
[null,null,null,"Ley 397",1997,"Por la cual se desarrollan los Artículos 70, 71 y 72 y demás Artículos concordantes de la Constitución Política y se dictan normas sobre patrimonio cultural, fomentos y estímulos a la cultura, se crea el Ministerio de la Cultura y se trasladan algunas dependencias.","Congreso de la República",null,"X","Toda"]
[null,null,null,"Ley  528",1999,"Por la cual se reglamenta el ejercicio de la Profesión de Fisioterapia, se dictan Normas en materia de ética Profesional y otras disposiciones.","Congreso de la República",null,"X","Toda"]
[null,null,null,"Ley 729",2001,"Por medio de la cual se crean los Centros de Acondicionamiento y Preparación Física en Colombia”.","Congreso de la República",null,"X","Toda"]
[null,null,null,"Ley 1014",2006,"De Fomento a la Cultura del Emprendimiento.","Congreso de la República",null,"X","Toda"]
[null,null,null,"Ley 1090",2006,"Por la cual se reglamenta el ejercicio de la Profesión de Psicología.","Congreso de la República",null,"X","Toda"]
[null,null,null,"Ley 1188",2008,"Por la cual se regula el Registro Calificado de Programas de Educación Superior y se dictan otras disposiciones.","Congreso de la República",null,"X","Arts.  2, 5"]
[null,null,null,"Ley 1266",2008,"Por la cual se dictan las disposiciones generales del hábeas data y se regula el manejo de la información contenida en bases de datos personales, en especial la financiera, crediticia, comercial, de servicios y la proveniente de terceros países y se dictan otras disposiciones.","Congreso de la República",null,"X","Toda"]
[null,null,null,"Ley 1335",2009,"Por medio de la cual se previenen daños a la salud de los menores de edad, la población no fumadora y se estipulan políticas públicas para la prevención del consumo del tabaco y el abandono de la dependencia del tabaco del fumador y sus derivados en la población colombiana.","Congreso de la República",null,"X","Toda"]
[null,null,null,"Ley Estatutaria 1618",2013,"Por medio de la cual se establecen las disposiciones para garantizar el pleno ejercicio de los derechos de las personas con discapacidad Congreso de Colombia Externa Total","Congreso de la República",null,"X","Toda"]
[null,null,null,"Ley 1680",2013,"Por la cual se garantiza a las personas ciegas y con baja visión, el acceso a la información, a las comunicaciones, al conocimiento y a las Tecnologías de la Información y las Comunicaciones","Congreso de la República",null,"X","Toda"]
[null,null,null,"Ley 1801",2016,"Por la cual se expide el Código Nacional de Policía y Convivencia.","Congreso de la República",null,"X","Toda"]
[null,null,null,"Decreto 1056",1954,"Sobre el ejercicio de la Fisioterapia.","Presidencia de la República ",null,"X","Toda"]
[null,null,null,"Decreto 3075",1997,"Por el cual se reglamenta parcialmente la Ley 09 de 1979 y se dictan otras disposiciones","Presidencia de la República ",null,"X"]
[null,null,null,"Decreto 2566 ",2003,"Por el cual se establecen las Normas Mínimas de Calidad y demás Requisitos para el Ofrecimiento y Desarrollo de Programas Académicos de Educación Superior y se dictan otras disposiciones.","Presidencia de la República ",null,"X","Art. 15"]
[null,null,null,"Decreto 1011",2006,"Por el cual se establece el Sistema Obligatorio de Garantía de Calidad de la Atención de Salud del Sistema General de Seguridad Social en Salud.","Presidencia de la República ",null,"X","Toda"]
[null,null,null,"Decreto 460",2008,"Por el cual se actualiza el Consejo Distrital de Política Social, de conformidad con lo dispuesto en la Ley 1098 de 2006 y en el Acuerdo Distrital 257 de 2006.","Alcaldía Mayor de Bogotá",null,"X","Todo"]
[null,null,null,"Decreto 345",2010,"Por el cual se adopta la Política Pública Social para el Envejecimiento y la Vejez en el Distrito Capital.","Alcaldía Mayor de Bogotá",null,"X","Todo"]
[null,null,null,"Decreto 520",2011,"Por medio del cual se adopta la Política de Infancia y Adolescencia en Bogotá D.C. 2011-2021.","Alcaldía Mayor de Bogotá",null,"X","Todo"]
[null,null,null,"Decreto 545",2011,"Por medio del cual se adopta la Política Pública para las familias de Bogotá, D.C.","Alcaldía Mayor de Bogotá",null,"X","Todo"]
[null,null,null,"Decreto 544",2011,"Por el cual se adopta la Política Pública de y para la adultez en el Distrito Capital.","Alcaldía Mayor de Bogotá",null,"X","Todo"]
[null,null,null,"Directiva 002",2016,"Directiva del 002 de 2016 “Bogotá se Mueve Mejor” Alcaldía Mayor de Bogotá D.C","Alcaldía Mayor de Bogotá",null,"X","Todo"]
[null,null,null,"Decreto 2078",2012,"Por el cual se establece la estructura del instituto Nacional de Vigilancia de Medicamentos y Alimentos - INVIMA y se determinan las funciones de sus dependencias.","Ministerio de Salud y Protección Social",null,"X","Todo"]
[null,null,null,"Decreto 539",2014,"Por el cual se expide el reglamento técnico sobre los requisitos sanitarios que deben cumplir los importadores y exportadores de alimentos para el consumo humano, materias primas e insumos para alimentos destinados al consumo humano y se establece el procedimiento para habilitar fábricas de alimentos ubicadas en el exterior.","Presidencia de la República ",null,"X","Arts.  1, 2, 3, 4, 5, 6, 7"]
[null,null,null,"Acuerdo 03",1995,"Por el cual se establece las Políticas de Bienestar Universitario.","Consejo Nacional de Educación Superior, CESU",null,"X","Toda"]
[null,null,null,"Resolución 13437",1991,"Por la cual se constituyen los Comités de Ética Hospitalaria y se adoptan el Decálogo de los Derechos de los Pacientes.","Ministerio  de  Salud",null,"X","Toda"]
[null,null,null,"Resolución 5261",1994,"Por la cual se establece el Manual de Actividades, Intervenciones y Procedimientos del Plan Obligatorio de Salud en el Sistema General de Seguridad Social en Salud.","Ministerio  de  Salud",null,"X","Toda"]
[null,null,null,"Resolución 1995",1999,"Por la cual se establecen Normas para el manejo de la Historia Clínica.","Ministerio  de  Salud",null,"X","Toda"]
[null,null,null,"Resolución 412 ",2000,"Por la cual se establecen las actividades, procedimientos e intervenciones de demanda inducida y obligatorio cumplimiento y se adoptan las normas técnicas y guías de atención para el desarrollo de las acciones de protección específica y detención temprana y la atención de enfermedades de interés en salud pública.","Ministerio  de  Salud",null,"X","Toda"]
[null,null,null,"Resolución 1043",2006,"Por la cual se establecen las condiciones que deben cumplir los Prestadores de Servicios de Salud para habilitar sus servicios e implementar el componente de auditoría para el mejoramiento de la calidad de la atención.","Ministerio de la Protección Social",null,"X","Toda"]
[null,null,null,"Resolución 058",2007,"Por la cual se deroga la Resolución 1715 de 2005 “Por la cual se modifica la Resolución 1995 del 8 de julio de 1999 tiempo de custodia de historia clínica”.","Ministerio de la Protección Social",null,"X","Toda"]
[null,null,null,"Resolución 1403",2007,"Por la cual se determina el Modelo de Gestión del Servicio Farmacéutico, se adopta el Manual de Condiciones Esenciales y Procedimientos y se dictan otras disposiciones.","Ministerio de la Protección Social",null,"X","Toda"]
[null,null,null,"Ley 1164",2007,"Establece disposiciones relacionadas con los procesos de planeación, formación, vigilancia y control del ejercicio, desempeño y ética del talento humano del área de la salud mediante la articulación de los diferentes actores que intervienen en estos procesos. Aplica a los profesionales de la psicología que se desempeñan en las áreas Clínica y de la Salud.","Ministerio de la Protección Social",null,"X","Toda"]
[null,null,null,"Resolución 2564",2008,"Por la cual se reglamenta la prescripción de algunos medicamentos de control especial por parte de los profesionales de la salud en odontología y se modifican los anexos técnicos números 8 y 8A de la Resolución 1478 de 2006.","Ministerio de la Protección Social",null,"X","Toda"]
[null,null,null,"Resolución 1441",2013,"Por la cual se definen los procedimientos y condiciones que deben cumplir los Prestadores de Servicios de Salud para habilitar los servicios y se dictan otras disposiciones.","Ministerio de la Protección Social",null,"X","Toda"]
[null,null,null,"Resolución 1841",2013,"Por la cual se adopta el plan decenal de salud pública 2012- 2021\", apartado sobre entornos educativos saludables","Ministerio de Salud y Protección Social",null,"X","Toda"]
[null,null,null,"Resolución 2003",2014,"Por el cual se establecen las condiciones que deben cumplir los prestadores de servicios de salud para inscribir y habilitar sus servicios. Resolución 3678 de 2014. Modifica la Resolución 2003 de 2014","Ministerio de salud y Protección Social",null,"X","Toda"]
[null,null,null,"Resolución 3280",2018,"Por medio de la cual se adoptan los lineamientos técnicos y operativos de la Ruta Integral de Atención para la Promoción y Mantenimiento de la Salud y la Ruta Integral de Atención en Salud para la Población Materno Perinatal y se establecen las directrices para su operación.","Ministerio de Salud y la Protección Social.",null,"X","Toda"]
[null,null,null,"Resolución 583",2018,"Por la cual se implementa la certificación de discapacidad y el Registro de Localización y Caracterización de Personas con Discapacidad","Ministerio de Salud y Protección Social externa",null,"X","Toda"]
[null,null,null,"Resolución 4886",2018,"Por la cual se adopta la Política Nacional de Salud Mental","Ministerio de Salud y Protección Social externa",null,"X","Toda"]
[null,null,null,"Resolución 089",2019,"Política integral para la prevención y atención del consumo de SPA (Sustancias Psicoactivas)","Ministerio de Salud y la Protección Social.",null,"X","Toda"]
[null,null,null,"Resolución 23096",2016,"Por la cual se otorga acreditación institucional de alta calidad a la Universidad Distrital Francisco José de Caldas.","Ministerio de Educación Nacional",null,"X","Toda"]
[null,null,null,"Acuerdo 02",2015,"Por medio del cual se adoptan políticas de transparencia y anticorrupción en la Universidad Distrital Francisco José de Caldas","Consejo Superior Universitario","X",null,"Toda"]
[null,null,null,"Acuerdo 027",1993,"Por el cual se expide el Estatuto Estudiantil de la Universidad Distrital Francisco José de Caldas.","Consejo Superior Universitario","X",null,"Art. 5, 62"]
[null,null,null,"Acuerdo 010",1996,"Por el cual se expide el Estatuto de Bienestar Institucional de la Universidad Distrital Francisco José de Caldas.","Consejo Superior Universitario","X",null,"Arts.  1, 2, 3, 4, 5"]
[null,null,null,"Acuerdo 003",1997,"Por el cual se expide el Estatuto General de la Universidad Distrital Francisco José de Caldas.","Consejo Superior Universitario","X",null,"Art. 32"]
[null,null,null,"Acuerdo 004",2006,"Por el cual se establece y unifica el Régimen de Liquidación de Matrículas para los Estudiantes de la Universidad Distrital Francisco José de Caldas.","Consejo Superior Universitario","X",null,"Capítulo I, Capítulo 2"]
[null,null,null,"Acuerdo 001",2008,"Por medio del cual se confirma el Plan Estratégico de Desarrollo de la Universidad Distrital Francisco José de Caldas 2008-2016 \"Saberes, Conocimientos e Investigación de Alto Impacto para el Desarrollo Humano y Social.","Consejo Superior Universitario","X",null,"Política 2, Estrategia 3, Estrategia 4\nPolítica 3, Programa 4\n"]
[null,null,null,"Acuerdo 004",2008,"Por el cual se adopta el Plan Trienal de Desarrollo 2008-2010, en el marco del Plan Estratégico de Desarrollo \"Saberes, Conocimiento e Investigación de alto impacto para el desarrollo Humano y Social 2008-2016.     ","Consejo Superior Universitario","X",null,"\"…Política 3°.- Programa 4. Apoyo a Movilidad y Pasantías cortas de Investigadores a nivel Nacional e Internacional\" "]
[null,null,null,"Acuerdo 004",2011,"Por el cual se modifica el Acuerdo 003 del 08 de agosto de 2011. (Por el cual se reglamenta la permanencia, rendimiento académico y otras situaciones académicas de los Estudiantes de Pregrado.) ","Consejo Superior Universitario","X",null,"Todo"]
[null,null,null,"Acuerdo 003",2011,"Por el cual se reglamenta la Permanencia, Rendimiento Académico y otras Situaciones Académicas de los Estudiantes de Pregrado.","Consejo Superior Universitario","X",null,"Todo"]
[null,null,null,"Resolución No. 01",2019,"Por la cual se constituye la Mesa de Dialogo para la Construcción de Acuerdos para el  Fortalecimiento de la Universidad Distrital Francisco José de Caldas. Modificada en su artículo No 8 por la Resolución del Consejo Superior No 014 de junio 26 de 2019","Consejo Superior Universitario","X",null,"Toda"]
[null,null,null,"Acuerdo 002",2001,"Por el cual se reglamentan los cupos especiales para: minorías étnicas y culturales, comunidades negras y beneficiarios de los programas de reinserción.","Consejo Académico Universidad Distrital","X",null,"Toda"]
[null,null,null,"Acuerdo 001",2002,"Por el cual se otorgan cupos especiales para los mejores bachilleres de colegios públicos del Distrito Capital de Bogotá.","Consejo Académico Universidad Distrital","X",null,"Toda"]
[null,null,null,"Acuerdo 003",2002,"Por el cual se crean cupos especiales para los desplazados víctimas de la violencia en el país.","Consejo Académico Universidad Distrital","X",null,"Toda"]
[null,null,null,"Acuerdo 010",2006,"Por el cual se reglamentan los Artículos 39, 40, 41 y 42 del Acuerdo 004 del 25 de enero de 2006, expedido por el Consejo Superior Universitario “Reglamentación de los incentivos a los estudiantes de pregrado y postgrado definidos en el Acuerdo citado”.","Consejo Académico ","X",null,"Capítulo III"]
[null,null,null,"Acuerdo 014",2009,"Por el cual se reglamenta y organiza el otorgamiento de estimulo e incentivo a los Estudiantes de la Universidad Distrital para la participación en su nombre en diferentes eventos académicos, científicos, culturales o deportivos de carácter Nacional o Internacional.","Consejo Académico","X",null,"Todo"]
[null,null,null,"Acuerdo 033",2014,"Por el cual se modifica el acuerdo 018 de abril de 27 de 2011 que creo y unifico los cupos especiales de la Universidad Distrital Francisco José de Caldas.","Consejo Académico ","X",null,"Art. 7"]
[null,null,null,"Acuerdo 03",2019,"Un (I) cupo especial para la población beneficiaria del programa de Reincorporación y/o Reintegración en el marco del programa para la paz (aspiración certificada por Dirección de la Agencia para la Reincorporación y la Normalización, ARN) por cada cohorte de nuevos cupos que se asignen en los programas de pregrado de la Universidad.","Consejo Académico ","X",null,"Toda"]
[null,null,null,"Resolución 206",2005,"Por la cual se reglamenta el Programa de Apoyo Alimentario a\nEstudiantes de Pregrado de la Universidad Distrital Francisco José de Caldas.","Rectoría","X",null,"Toda"]
[null,null,null,"Resolución 098",2005,"Por medio de la cual se reglamenta el procedimiento General de Solicitud de Avances aprobación, desembolsos y su correspondiente legalización en la Universidad Distrltal Francisco José de Caldas.","Rectoría","X",null,"Arts.1, 6"]
[null,null,null,"Resolución 025",2006,"Por la cual se deroga la Resolución 285 del 20 de Diciembre de 2005, y se dictan otras disposiciones.","Rectoría","X",null,"Toda"]
[null,null,null,"Resolución 551",2012,"Por la cual se expide el Reglamento Interno de trámites de Acciones Ciudadanas y atención al Ciudadano, ante la Universidad Distrital Francisco José de Caldas. ","Rectoría","X",null,"Art. 35"]
[null,null,null,"Resolución 299",2015,"Por medio de la cual se aprueba y adopta el protocolo de limpieza y desinfección general para áreas comunes, ubicadas en las sedes de la Universidad Distrital Francisco José de Caldas","Rectoría ","X",null,"Toda"]
[null,null,null,"Resolución 300",2015,"Aprueba y adopta las Directivas Ambientales Institucionales para la Universidad Distrital Francisco José de Caldas.","Rectoría ","X",null,"Toda"]
[null,null,null,"Resolución 450",2015,"Por el cual se reglamenta el Programa de Apoyo Alimentario a Estudiantes de Pregrado de la Universidad.","Rectoría","X",null,"Toda"]
[null,null,null,"Resolución 474",2015,"Crea y conforma el Subsistema Interno de Gestión Ambiental SGA-UD y se establecen funciones del Subsistema de Gestión Ambiental (modificada por la Resolución 164 de 2017 - Derogada en sus artículos 8, 9, 10, 11 y 12 por la resolución No 297 del 16 de julio de 2019)","Rectoría ","X",null,"Toda"]
[null,null,null,"Resolución 652",2015,"Por medio de la cual se reglamenta el Procedimiento General de Solicitud de Avances aprobación, desembolsos y su correspondiente legalización en la Universidad Distrital Francisco José de Caldas.","Rectoría","X",null,"Toda"]
[null,null,null,"Resolución 004",2016,"Manual para la administración de riesgos institucionales.","Rectoría ","X",null,"Toda"]
[null,null,null,"Resolución 098",2016,"Por medio de la cual se trazan directrices administrativas para el desarrollo del proyecto ACACIA \"Centro de Cooperación para el Fomento, Fortalecimiento, Transferencia y Buenas Prácticas, que apoyan, cultivan, adaptan, comunican, innovan y acogen a la comunidad universitaria\", de la convocatoria Erasmus+capacity building in Higher Education-Call for proposal EAC/A 04/2014\"","Rectoría ","X",null,"Toda"]
[null,null,null,"Resolución 404",2016,"Por la cual se crea, organiza e integra el comité operativo de emergencias - COE- y se establecen los mecanismos para la integración y funcionamiento de las Brigadas para Atención de Emergencias de la UD","Rectoría ","X",null,"Toda"]
[null,null,null,"Resolución 430",2016,"\"Por la cual se conforma el comité de Bienestar Social e Incentivos en la Universidad Distrital Francisco José de Caldas\".","Rectoría ","X",null,"Toda"]
[null,null,null,"Resolucion 429",2017,"Por la cual se reglamenta la prestación, solicitud, trámite y control del servicio de transporte aereo y terrestre, para Estudiantes, Docentes y Personal Admiistrativo de Planta y Directivas adscritas a las diferentes unidades académicas y administrativas de la Universidad Distrital Francisco José de Cladas","Rectoria","X",null,"Toda"]
[null,null,null,"Resolucion 071",2018,"Por la cual se fija la escala de viaticos para Empleados Publicos de la Universidad Dsitrital Francisco Jose de Caldas para la vigencia Fiscal del 2018","Rectoria","X",null,"Toda"]
[null,null,null,"Resolución 111",2018,"Por la cual se otorga un permiso para prestar el servicio de cafetería en la sede Calle 40 de la Universidad Distrital Francisco José de Caldas a la Cooperativa COOPESING - UD\"","Rectoría","X",null,"Toda"]
[null,null,null,"Resolución 124",2018,"Por medio de la cual se conforma el equipo de coordinación del CADEP— ACACIA PILOTO en la Universidad Distrital Francisco José de Caldas, y se establecen directrices administrativas para su funcionamiento\"","Rectoría","X",null,"Art. 4"]
[null,null,null,"Resolución 426",2018,"Por la cual se adopta el Protocolo para la Prevención y Atención de Casos de Violencia basada en género y violencia sexual de la Universidad Distrital Francisco José de Caldas.","Rectoría","X",null,"Toda"]
[null,null,null,"Resolución 444",2018,"Por la cual se adopta el Plan Indicativo para el periodo 2018-2021 de la Universidad Distrital Francisco José de Caldas.","Rectoría","X",null,"Toda"]
[null,null,null,"Resolución 011",2020,"Por la cual se deroga la Resolución de Rectoría 450 de 2015 y se reglamenta el Programa de Apoyo Alimentario a estudiantes de Pregrado de la Universidad Distrital Francisco José de Caldas\"","Rectoría","X",null,"Toda"]
[null,null,null,"Resolución 159",2020,"Reglamentó el Plan de préstamo de equipos de computación y apoyo a la conectividad a los estudiantes de pregrado de la Universidad Distrital Francisco José de Caldas en virtud de las medidas de aislamiento preventivo obligatorio proferidas con ocasión de la pandemia originada por el COVID-19.","Rectoría","X",null,"Toda"]
[null,null,null,"Resolución 174",2020,"Por medio de la cual se crea el Comité para la Equidad de Género de la Universidad Distrital Francisco José de Caldas”","Rectoría","X",null,"Arts 2, 4"]
[null,null,null,"Resolución 213",2020,"Por la cual se modifica la Resolución de Rectoría No.159 de 2020 que reglamentó el Plan de préstamo de equipos de computación y apoyo a la conectividad a los estudiantes de pregrado de la Universidad Distrital Francisco José de Caldas en virtud de las medidas de aislamiento preventivo obligatorio proferidas con ocasión de la pandemia originada por el COVID-19.","Rectoría","X",null,"Toda"]
[]
[null,null,null,"ELABORÓ",null,"REVISÓ","APROBÓ"]
[null,null,null,"Nombre: Equipo SIGUD\nCargo: N/A\nFercha: 17/06/2021",null,"Nombre: Tito Ernesto Gutierréz Daza \nCargo: Director del Centro de Bienestar Institucional\nFecha: 21/07/2021","Nombre: Tito Ernesto Gutierréz Daza \nCargo: Director del Centro de Bienestar Institucional\nFecha: 04/08/2021"]

{"sheet":"GL","index":16,"n_rows":151,"n_cols":10,"rows_kept":151,"cut":false,"hidden":false,"merged":[[1,1,3,2],[1,3,1,6],[1,7,1,8],[1,9,3,9],[2,3,2,6],[2,7,2,8],[3,3,3,6],[3,7,3,8],[150,3,150,4],[150,6,150,7],[5,1,5,2],[5,3,5,9],[7,1,7,9],[9,1,146,1],[9,2,146,2],[149,3,149,4],[149,6,149,7]]}
[]
[null,null,null,"NORMOGRAMA POR PROCESOS",null,null,null,"Código: GI-PR-002-FR-017"]
[null,null,null,"Macroproceso: Direccionamiento Estratégico",null,null,null,"Versión: 02"]
[null,null,null,"Proceso: Gestión Integrada",null,null,null,"Fecha de Aprobación: 17/10/2017"]
[]
[null,"Proceso",null,"Gestión de Laboratorios"]
[]
[null,"IDENTIFICACIÓN DE REQUISÍTOS LEGALES Y/O NORMATIVOS -  IDENTIFICACIÓN DEL REQUISÍTO"]
[null,"Macroproceso","Proceso","Clasificación de la Norma","Año","Temática","Expedida por","Interna","Externa","Artículo Aplicable"]
[null,{"$f":"IF(D6=[20]Datos!B3,\"N/A\",IF(OR(D6=[20]Datos!B4,D6=[20]Datos!B5,D6=[20]Datos!B6,D6=[20]Datos!B7,D6=[20]Datos!B8),\"Direccionamiento Estratégico\",IF(OR(D6=[20]Datos!B9,D6=[20]Datos!B10,D6=[20]Datos!B11),\"Gestión Académica\",IF(OR(D6=[20]Datos!B12,D6=[20]Datos!B13,D6=[20]Datos!B14,D6=[20]Datos!B15,D6=[20]Datos!B16),\"Apoyo a lo Misional\",IF(OR(D6=[20]Datos!B17,D6=[20]Datos!B18,D6=[20]Datos!B19,D6=[20]Datos!B20,D6=[20]Datos!B21,D6=[20]Datos!B22,D6=[20]Datos!B23),\"Gestión de Recursos\",IF(OR(D6=[20]Datos!B24,D6=[20]Datos!B25),\"Evaluación y Control\",\"-\"))))))","v":"Apoyo a lo Misional"},{"$f":"IF(D6=\"\",\"-\",D6)","v":"Gestión de Laboratorios"},"Constitución Política de Colombia",1991,"Constitución Política de Colombia.","Asamblea Nacional Constituyente",null,"X","Arts. 52,67, 69,70,71,74, 209, 269, 361"]
[null,null,null,"Ley 30",1992,"Por la cual se organiza el Servicio Público de la Educación Superior.","Congreso de la República",null,"X","Arts. 117,118,119"]
[null,null,null,"Ley 99 ",1993,"Por la cual se crea el Ministerio del Medio Ambiente, se reordena el Sector Público encargado de la gestión y conservación del medio ambiente y los recursos naturales renovables, se organiza el Sistema Nacional Ambiental, SINA, y se dictan otras disposiciones.","Congreso de la República",null,"X","Toda"]
[null,null,null,"Ley 610",2000,"Por la cual se establece el trámite de los Procesos de Responsabilidad Fiscal de competencia de las Contralorías.","Congreso de la República",null,"X","Toda"]
[null,null,null,"Ley 1252",2008,"Por la cual se Dictan Normas Prohibitivas en Matera\r Ambiental, referentes a los Residuos y Deshechos peligrosos y se dictan otras disposiciones.","Congreso de la República",null,"X","Toda"]
[null,null,null,"Decreto 1594",1984,"Por el cual se reglamenta parcialmente el Título I de la Ley 9 de 1979, así como el Capítulo II del Título VI -Parte III- Libro II y el Título III de la Parte III -Libro I- del Decreto - Ley 2811 de 1974 en cuanto a usos del agua y residuos líquidos.","Presidencia de la República",null,"X","Todo"]
[null,null,null,"Decreto 2269",1993,"Por el cual se organiza el Sistema Nacional de Normalización, Certificación y Metrología.","Congreso de la República",null,"x","Art. 3, 7, 9,\n14, 17,18,\n20, 22-24,\n26, 28,29,\n31-35."]
[null,null,null,"Decreto 4741",2005,"Por el cual se reglamenta parcialmente la prevención y manejo de los residuos o desechos peligrosos generados en el marco de la gestión integral.","Ministerio de Ambiente, Vivienda y Desarrollo Territorial.",null,"X","Capitulo II y III "]
[null,null,null,"Decreto 1375",2013,"Reglamento Nacional de Colecciones Biológicas","Ministerio de Ambiente y Desarrollo Sostenible",null,"X","Toda"]
[null,null,null,"Decreto 1076 ",2015,"Por el cual se establece el reglamento único del sector ambiental. Deroga el decreto 1594 de 1984 ","Presidencia de la República",null,"X","Manejo de residuos o desechos peligrosos  Art.2.2.6.1.1.1;  hasta   Art. 2.2.6.2.3.6.\nUsos del agua y residuos líquidos  Art. 2.2.3.3.1.1;  hasta  Art. 2.2.3.5.1.11 \nInvestigación científica  y colecciones biológicas Art. 2.2.1.5.1.1  hasta 2.2.2.9.2.14"]
[null,null,null,"Resolución 2400",1979,"Por la cual se establecen algunas disposiciones sobre vivienda, higiene y seguridad en los establecimientos de Trabajo.","Ministerio del Trabajo y Seguridad Social",null,"X","Toda"]
[null,null,null,"Resolución 2309",1986,"Por la cual se dictan normas para el cumplimiento del contenido del Título III de la parte 4a. del Libro 1o. del Decreto Ley No. 2811 de 1974 y de los Títulos I, II y XI de la Ley 09 de 1979, en cuanto a Residuos Especiales.","Ministerio de Salud",null,"X","Toda"]
[null,null,null,"Resolución 001 ",2001,"Por la cual se expide el Manual de Procedimientos Administrativos y Contables para el Manejo y Control de los Bienes en los Entes Públicos del Distrito Capital.","Contaduría General de la Nación ",null,"X"]
[null,null,null,"Resolución 1164",2002,"Por la cual se adopta el manual de procedimientos para la gestión integral de residuos hospitalarios y similares.","Ministerio de medio ambiente ",null,"X","Toda"]
[null,null,null,"Resolución 166 ",2006,"Se adiciona a la Res. 176 de 2003\nque dice \"Por la cual se derogan\nlas resoluciones 59 de 2000 y\n79 de 2002 y\nse establece el nuevo\nprocedimiento de acreditación\nde laboratorios ambientales en\nColombia”\n","Instituto de\nHvdrología,\nMeteorología y\nEstudvos\nAmbventales",null,"x","TODA"]
[null,null,null,"Resolucion 627 ",2006,"Norma nacional para emision de ruido y ruido ambiental","Miniterio de Medio Ambiente, Vivienda y Desarrollo Territorial",null,"x","Toda"]
[null,null,null,"Resolucion 909",2008,"normas y est ándares de emisión admisibles de contaminantes a la atmósfera por fuentes fijas","Miniterio de Medio Ambiente, Vivienda y Desarrollo Territorial",null,"x","Toda"]
[null,null,null,"Resolución 3957",2009,"Por la cual se establece la norma\ntécnica, para el control y manejo\nde los vertimientos realvaados a\nla red de alcantarvllado público\nen el Distrvto Capital","Secretaria\nDistrital de\nAmbiente",null,"x","TODA"]
[null,null,null,"Resolución 1348 ",2014,"Por la cual se establecen las actividades que configuran acceso a los recursos genéticos y sus productos derivados para la aplicación de la decisión Andina 391 de 1996 y se toman otras disposiciones","Ministerio de medio ambiente",null,"X","Toda"]
[null,null,null,"Resolucion 2254 ",2017,"Norma de calidad del aire","Ministerio de Medio Ambiente y Desarrollo Sostenible",null,"x","Toda"]
[null,null,null,"UNE 7118",1958,"Clases y ejecución de los ensayos de fatiga de los Materiales Metálicos.","Instituto Nacional de Racionalización del Trabajo UNE",null,"X","Toda"]
[null,null,null,"Norma Técnica Colombiana, NTC 1",1972,"Ensayo de flexión a 3 puntos para Materiales Metálicos con el fin de determinar sus Propiedades Mecánicas a Temperatura Ambiental.","Instituto Colombiano de Normas Técnicas y Certificación, ICONTEC",null,"X","Toda"]
[null,null,null,"Norma Técnica Colombiana, NTC 663",1973,"Ensayo de Tensión para Maderas  a Temperatura Ambiental.","Instituto Colombiano de Normas Técnicas y Certificación, ICONTEC",null,"X","Toda"]
[null,null,null,"Norma Técnica Colombiana, NTC 4338",1997,"Dispositivos de Baja Tensión. Dispositivos y Elementos de Conmutación para Circuitos de Control. Dispositivos Electromecánicos para Circuitos de Control.","Instituto Colombiano de Normas Técnicas y Certificación, ICONTEC",null,"X","Toda"]
[null,null,null,"Norma Técnica Colombiana, NTC 3328",1999,"Coordinación de Aislamiento, Términos, Definiciones, Principios y Reglas Generales.","Instituto Colombiano de Normas Técnicas y Certificación, ICONTEC",null,"X","Toda"]
[null,null,null,"Norma Técnica Colombiana, NTC 4983",2001,"Calidad del Aire evaluación de  gases de escape de fuentes móviles a gasolina y Especificaciones para los Equipos Empleados en esta Evaluación.\n","Instituto Colombiano de Normas Técnicas y Certificación, ICONTEC",null,"X","Toda"]
[null,null,null,"Norma Técnica Colombiana, NTC 3274",2003,"Especificaciones Comunes para Normas de Equipos de Maniobra de Alta Tensión.","Instituto Colombiano de Normas Técnicas y Certificación, ICONTEC",null,"X","Toda"]
[null,null,null,"Norma Técnica Colombiana, NTC 943",2003,"Ensayo de Impacto para la Determinación de la tenacidad para diferentes Materiales no Metálicos (Compuestos y Plásticos)   en muestras pequeñas estándar charpy  a Temperatura Ambiental.","Instituto Colombiano de Normas Técnicas y Certificación, ICONTEC",null,"X","Toda"]
[null,null,null,"Norma Técnica Colombiana, NTC  595",2007,"Ensayo de Tensión para Materiales no Metálicos con el fin de determinar sus Propiedades Mecánicas  a Temperatura Ambiental.","Instituto Colombiano de Normas Técnicas y Certificación, ICONTEC",null,"X","Toda"]
[null,null,null,"Norma Técnica Colombiana, NTC 1515",2009,"Máquinas Eléctricas Rotatorias. Métodos para determinar las Magnitudes de Máquinas Sincrónicas mediante Ensayos.","Instituto Colombiano de Normas Técnicas y Certificación, ICONTEC",null,"X","Toda"]
[null,null,null,"Norma Técnica Colombiana, NTC 2805",2011,"Máquinas Eléctricas Rotatorias. Especificaciones Nominales y Características de Funcionamiento.","Instituto Colombiano de Normas Técnicas y Certificación, ICONTEC",null,"X","Toda"]
[null,null,null,"Norma Técnica Colombiana,NTC 4591",2013,"Técnicas de Ensayo a Alta Tensión. Definiciones Generales y Requisitos de Ensayos.","Instituto Colombiano de Normas Técnicas y Certificación, ICONTEC",null,"X","Toda"]
[null,null,null,"Norma Tecnica Colombiana, NTC","Varias Fechas","Para Ensayos en laboratorio de Cementos, Agregados, Agua, Aditivos para preparación de Concretos Hidráulicos.","Instituto Colombiano de Normas Técnicas y Certificación, ICONTEC",null,"X","Toda"]
[null,null,null,"NSR - 10 (Norma de Diseño Sismo Resistente para Colombia)",2010,"Requisitos Generales de Diseño y Construcción Sismo Resistente.","Ministerio de Ambiente, Vivienda y Desarrollo Territorial.\nAsociación de Ingeniería  Sísmica, AIS.",null,"X","Toda"]
[null,null,null,"Normas Instituto Nacional de Vias, INVIAS.","Varias Fechas","Normas para Ensayos de Pavimento y Construcción de Vías.","Instituto Nacional de Vias, INVIAS",null,"X","Toda"]
[null,null,null,"ASTM D2240",2000,"Método de Prueba Estándar para Caucho Inmueble-Durómetro Dureza. Norma para medir la Dureza de Penetración de la Goma Elastómeros Cuero y Materiales Similares.","ASTM Internacional",null,"X","Toda"]
[null,null,null,"ASTM E384",2002,"Método de Prueba Estándar para Knoop y Vickers Dureza de los Materiales.Norma para  determinar  la Micro Dureza en  Materiales Metálicos en Escala  Vickers.","ASTM Internacional",null,"X","Toda"]
[null,null,null,"ASTM A255",2002,"Métodos de Prueba Estándar para determinar la Templabilidad del Acero.Características Geométricas de la Probeta para Ensayo Jominny  en milímetros y en pulgadas junto con el Procedimiento para la Construcción de l Templabilidad de Metales.","ASTM Internacional",null,"X","Toda"]
[null,null,null,"ASTM E112",2003,"Métodos de Prueba Estándar para determinar el Tamaño Medio de Grano. Norma para  determinar  la Micro Dureza del Tamaño de Grano en Aleaciones Ferrosas.","ASTM Internacional",null,"X","Toda"]
[null,null,null,"ASTM E18",2004,"Métodos de Prueba Estándar para la Dureza de Rockwell de Materiales Metálicos. \nNorma para  determinar Durezas en Materiales Metálicos en Escala Rockwell.","ASTM Internacional",null,"X","Toda"]
[null,null,null,"ASTM E8 (Equivalente a Norma Técnica Colombiana, NTC2)",2004,"Ensayo de Tensión para Materiales Metálicos con el fin de determinar sus Propiedades Mecánicas a Temperatura Ambiental","ASTM Internacional o ICONTEC",null,"X","Toda"]
[null,null,null,"ASTM E23",2007,"Métodos de Prueba Estándar para la muesca Bar Pruebas de Impacto de Materiales Metálicos.\nEnsayo de Impacto para la determinación de la Tenacidad para diferentes Materiales  Metálicos  en muestras pequeñas Estándar Charpy a Temperatura Ambiental.","ASTM Internacional",null,"X","Toda"]
[null,null,null,"ASTM E9",2009,"Métodos de Prueba Estándar de Pruebas de Compresión de los Materiales Metálicos a Temperatura Ambiente.\nEnsayo de Compresión para Materiales Metálicos con el fin de determinar sus Propiedades Mecánicas a Temperatura Ambiental.","ASTM Internacional",null,"X","Toda"]
[null,null,null,"ASTM E143  (Equivalente a NTC 4525)",2013,"Método de Prueba Estándar para Shear Módulo a Temperatura Ambiente.\nEnsayo de Torsión para determinar el  Módulo de Rigidez.","ASTM Internacional o ICONTEC",null,"X","Toda"]
[null,null,null,"ASM Handbook","Varias Ediciones","Manuales ASM. \nLineamiento para las diferentes Mezclas  necesarias para la Preparación de los Ataques Químicos realizados para revelar la Microestructura de los diferentes Metales además de especificar las Curvas  de Temperatura para diferentes Metales.","ASTM Internacional",null,"X","Volúmen 9 Metallography and Microstructures"]
[null,null,null,"ISO 180",2000,"Plásticos - Determinación de la Resistencia al Impacto Izod. \nEnsayo de Impacto para la determinación de la Tenacidad para diferentes Materiales no Metálicos (Compuestos y Plásticos)   en muestras pequeñas Estándar IZOD a Temperatura Ambiental.","Organización Internacional de Normalización, ISO",null,"X","Toda"]
[null,null,null,"ISO 178",2010,"Ensayo de flexión a 3 puntos para materiales  plásticos  con el fin de determinar sus propiedades mecánicas a temperatura ambiental.","Organización Internacional de Normalización, ISO",null,"X","Toda"]
[null,null,null,"Manual de Prácticas EDIBON",2005,"Manual donde se especifica  el Procedimiento para la determinación de viscosidad , densidad, peso especifico, y flotabilidad.","EDIBON International, S.A",null,"X","Todo"]
[null,null,null,"RETILAP",2010,"Reglamento Técnico de Iluminación y Alumbrado Público.","Ministerio de Minas y Energía",null,"X","Todo"]
[null,null,null,"RETIE",2013,"Reglamento Técnico de Instalaciones Eléctricas.","Ministerio de Minas y Energía",null,"X","Todo"]
[null,null,null,"Directiva 003",2013,"Directrices para prevenir conductas irregulares relacionadas con incumplimiento de los manuales de funciones y de procedimientos y la pérdida de elementos y documentos públicos.","Alcaldía Mayor de Bogotá ",null,"X","Toda"]
[null,null,null,"Norma Técnica Colombiana, NTC 206-1",2005,"Maderas. Determinación de contenido de humedad para ensayos fisicos y mecanicos ","Instituto Colombiano de Normas Técnicas y certificación ",null,"X","Todo"]
[null,null,null,"Norma Técnica Colombiana, NTC 206-2",2005,"Medición directa del contenido de humedad  en la madera y materiales a base de madera ","Instituto Colombiano de Normas Técnicas y certificación ",null,"X","Todo"]
[null,null,null,"Norma Técnica Colombiana, NTC 290",1974,"Maderas. Determinación del peso especifico aparente ","Instituto Colombiano de Normas Técnicas y certificación ",null,"X","Todo"]
[null,null,null,"Norma Técnica Colombiana, NTC 701",1973,"Maderas. Metodo para determinar la contracción ","Instituto Colombiano de Normas Técnicas y certificación ",null,"X","Todo"]
[null,null,null,"Norma Técnica Colombiana, NTC 663",1973,"Maderas. Determinación de la resistencia a la flexión ","Instituto Colombiano de Normas Técnicas y certificación ",null,"X","Todo"]
[null,null,null,"Norma Técnica Colombiana, NTC 784",1974,"Maderas. Determinación de la resistencia  a la compresión axial  o paralela al grano. ","Instituto Colombiano de Normas Técnicas y certificación ",null,"X","Todo"]
[null,null,null,"Norma Técnica Colombiana, NTC 785",1974,"Maderas. Determinación de la resistencia  a la compresión perpendicular al grano. ","Instituto Colombiano de Normas Técnicas y certificación ",null,"X","Todo"]
[null,null,null,"Norma Técnica Colombiana, NTC 918",1975,"Maderas. Determinación de la dureza-metodo janka","Instituto Colombiano de Normas Técnicas y certificación ",null,"X","Todo"]
[null,null,null,"Norma Técnica Colombiana, NTC 951",1975,"Maderas. Metodo de extracción de clavos ","Instituto Colombiano de Normas Técnicas y certificación ",null,"X","Todo"]
[null,null,null,"Norma Técnica Colombiana, NTC 1823",1983,"Maderas. Determinación de la tenacidad","Instituto Colombiano de Normas Técnicas y certificación ",null,"X","Todo"]
[null,null,null,"Norma Técnica Colombiana, NTC 775",1974,"Maderas. Determinación de la resistencia  al cizallamiento paralelo al grano ","Instituto Colombiano de Normas Técnicas y certificación ",null,"X","Todo"]
[null,null,null,"Norma Técnica Colombiana, NTC 960",1974,"Maderas. Determinación de la resistencia  al hendimiento (clivaje) ","Instituto Colombiano de Normas Técnicas y certificación ",null,"X","Todo"]
[null,null,null,"Norma Técnica Colombiana, NTC 961",1975,"Maderas. Determinación de la tracción perpendicular al grano ","Instituto Colombiano de Normas Técnicas y certificación ",null,"X","Todo"]
[null,null,null,"Norma Técnica Colombiana, NTC 961",1975,"Maderas. Determinación de la tracción paralela al grano ","Instituto Colombiano de Normas Técnicas y certificación ",null,"X","Todo"]
[null,null,null,"Norma Técnica Colombiana, NTC 1011",1975,"Maderas. Determinación de los esfuerzos  unitarios básicos","Instituto Colombiano de Normas Técnicas y certificación ",null,"X","Todo"]
[null,null,null,"Norma Técnica Colombiana, NTC 787",1974,"Maderas. Toma de muestras para ensayos fisicos y mecanicos","Instituto Colombiano de Normas Técnicas y certificación ",null,"X","Todo"]
[null,null,null,"Norma Técnica Colombiana, NTC 790",1974,"Maderas. Acondicionamiento para los ensayos fisicos  y mecanicos","Instituto Colombiano de Normas Técnicas y certificación ",null,"X","Todo"]
[null,null,null,"Norma Técnica Colombiana, NTC 824",2007,"Maderas. Glosario de defectos ","Instituto Colombiano de Normas Técnicas y certificación ",null,"X","Todo"]
[null,null,null,"Norma Técnica Colombiana, NTC 143",2006,"Maderas. Procedimiento para el secado natural de madera verde. ","Instituto Colombiano de Normas Técnicas y certificación ",null,"X","Todo"]
[null,null,null,"Norma Técnica Colombiana, NTC 1127",1983,"Maderas. Determinación de su durabilidad natural. Ensayo acelerado.","Instituto Colombiano de Normas Técnicas y certificación ",null,"X","Todo"]
[null,null,null,"Norma Técnica Colombiana, NTC 1317",1977,"Maderas. Determinación de  la trabajabilidad en lijado ","Instituto Colombiano de Normas Técnicas y certificación ",null,"X","Todo"]
[null,null,null,"Norma Técnica Colombiana, NTC 1318",1977,"Maderas. Determinación de  la trabajabilidad en cepillado ","Instituto Colombiano de Normas Técnicas y certificación ",null,"X","Todo"]
[null,null,null,"Norma Técnica Colombiana, NTC 1366",1977,"Maderas. Determinación de  la trabajabilidad en taladro ","Instituto Colombiano de Normas Técnicas y certificación ",null,"X","Todo"]
[null,null,null,"Norma Técnica Colombiana, NTC 1367",1977,"Maderas. Determinación de  la trabajabilidad en cajeado","Instituto Colombiano de Normas Técnicas y certificación ",null,"X","Todo"]
[null,null,null,"Norma Técnica Colombiana, NTC 1368",1977,"Maderas. Determinación de  la trabajabilidad en moldurado","Instituto Colombiano de Normas Técnicas y certificación ",null,"X","Todo"]
[null,null,null,"Norma Técnica Colombiana, NTC 1368",1968,"Madera rolliza, aserrada y labrada. Medición y cubicación ","Instituto Colombiano de Normas Técnicas y certificación ",null,"X","Todo"]
[null,null,null,"Norma Técnica Colombiana, NTC 5525",2007,"Métodos de ensayo para determinar  las propiedades físicas  y mecánicas de la Guadua angustifolia Kunth ","Instituto Colombiano de Normas Técnicas y certificación ",null,"X","Todo"]
[null,null,null,"COPANT 182 R -182",1969,"Glosario de terminos usados en anatomia ","Comisión Panamericana de Normas Técnicas ",null,"X","Todo"]
[null,null,null,"COPANT 182 R -183",1969,"Medición y Cubicación ","Comisión Panamericana de Normas Técnicas ",null,"X","Todo"]
[null,null,null,"COPANT 182 R -184",1969,"Preservación de maderas de los agentes biologicos","Comisión Panamericana de Normas Técnicas ",null,"X","Todo"]
[null,null,null,"COPANT 182 R -185",1969,"Glosario","Comisión Panamericana de Normas Técnicas ",null,"X","Todo"]
[null,null,null,"COPANT 182 R -235",1971,"Glosario","Comisión Panamericana de Normas Técnicas ",null,"X","Todo"]
[null,null,null,"COPANT 182 R -281",1971,"Maderas Comerciales ","Comisión Panamericana de Normas Técnicas ",null,"X","Todo"]
[null,null,null,"COPANT 458",1972,"Slección y colección de muestras ","Comisión Panamericana de Normas Técnicas ",null,"X","Todo"]
[null,null,null,"COPANT 459",1972,"Acondicionamiento de las maderas destinadas a los ensayos físicos y mecánicos. ","Comisión Panamericana de Normas Técnicas ",null,"X","Todo"]
[null,null,null,"COPANT 460",1972,"Método de determinación de contenido de humedad","Comisión Panamericana de Normas Técnicas ",null,"X","Todo"]
[null,null,null,"COPANT 461",1972,"Método de determinación del peso específico aparente","Comisión Panamericana de Normas Técnicas ",null,"X","Todo"]
[null,null,null,"COPANT 462",1972,"Método de determinación de la contracción ","Comisión Panamericana de Normas Técnicas ",null,"X","Todo"]
[null,null,null,"COPANT 463",1972,"Método de determinación de cizallamiento ","Comisión Panamericana de Normas Técnicas ",null,"X","Todo"]
[null,null,null,"COPANT 464",1972,"Método de determinación de compresión paralela","Comisión Panamericana de Normas Técnicas ",null,"X","Todo"]
[null,null,null,"COPANT 465",1972,"Método de determinación de dureza","Comisión Panamericana de Normas Técnicas ",null,"X","Todo"]
[null,null,null,"COPANT 465",1972,"Método de determinación de la compresión perpendicular al grano ","Comisión Panamericana de Normas Técnicas ",null,"X","Todo"]
[null,null,null,"COPANT 555",1973,"Método de ensayo de flexión estática ","Comisión Panamericana de Normas Técnicas ",null,"X","Todo"]
[null,null,null,"COPANT 556",1973,"Método de ensayo de tenacidad ","Comisión Panamericana de Normas Técnicas ",null,"X","Todo"]
[null,null,null,"COPANT 557",1973,"Maderas aserradas y cepilladas. Definición de los defectos ","Comisión Panamericana de Normas Técnicas ",null,"X","Todo"]
[null,null,null,"COPANT 741",1975,"Método de ensayo de resistencia al clivaje ","Comisión Panamericana de Normas Técnicas ",null,"X","Todo"]
[null,null,null,"COPANT 742",1975,"Método de ensayo de tracción paralela algrano ","Comisión Panamericana de Normas Técnicas ",null,"X","Todo"]
[null,null,null,"COPANT 743",1975,"Método de ensayo de tracción perpendicular al grano ","Comisión Panamericana de Normas Técnicas ",null,"X","Todo"]
[null,null,null,"COPANT 744",1975,"Método de extracción de clavos ","Comisión Panamericana de Normas Técnicas ",null,"X","Todo"]
[null,null,null,"COPANT 745",1975,"Método de determinación de los esfuerzos unitarios básicos ","Comisión Panamericana de Normas Técnicas ",null,"X","Todo"]
[null,null,null,"COPANT 746",1975,"Método de medición de los defectos ","Comisión Panamericana de Normas Técnicas ",null,"X","Todo"]
[null,null,null,"ASTM D 905 -08",2009,"Método de prueba estándar para propiedades de resistencia de los adhesivos en corte por Carga de Compresión","Sociedad Americana para pruebas y materiales (ASTM)",null,"X","Todo"]
[null,null,null,"ASTM D 143 -50",1950,"Prueba de pequeños especímenes sin defectos de madera","Sociedad Americana para pruebas y materiales (ASTM)",null,"X","Todo"]
[null,null,null,"ASTM D 143 - 09",2009,"Métodos de prueba estandar para pequeñas muestras limpias de madera","Sociedad Americana para pruebas y materiales (ASTM)",null,"X","Todo"]
[null,null,null,"ASTM D 2559-12a",2013,"Especificación estándar para adhesivos adheridos en productos de madera estructural para uso en condiciones de exposición exterior","Sociedad Americana para pruebas y materiales (ASTM)",null,"X","Todo"]
[null,null,null,"ASTM D 198-09",2013,"Métodos estándar de pruebas estáticas de madera en tamaños estructurales","Sociedad Americana para pruebas y materiales (ASTM)",null,"X","Todo"]
[null,null,null,"ASTM D 2555 -06",2011,"Practica estandar para establecer los valores de resistencia de la madera seca  ","Sociedad Americana para pruebas y materiales (ASTM)",null,"X","Todo"]
[null,null,null,"ASTM 3737 ",2012,"Práctica estándar para establecer propiedades permisibles para madera laminada encolada estructural (madera laminada) ","Sociedad Americana para pruebas y materiales (ASTM)",null,"X","Todo"]
[null,null,null,"ASTM D 245",2006,"Práctica estándar para establecer grados estructurales y propiedades permitidas relacionadas para madera clasificada visualmente","Sociedad Americana para pruebas y materiales (ASTM)",null,"X","Todo"]
[null,null,null,"Acuerdo 003 ",2013,"Por el cual se reglamentan los laboratorios  de la Facultad de Medio Ambiente  y Recursos Naturales de la Universidad Distrital Francisco Jose de Caldas.","Facultad de Medio Ambiente y Recursos Naturales ","X",null,"Todo"]
[null,null,null,"ISO/IEC 17025",2017,"Sistema de gestión para los laboratorios de ensayo y/o calibración ","Organización Intenracional de Normalización ",null,"X","Todo"]
[null,null,null,"Norma Tecnica Colombiana, NTC 5263",2004,"Determinación de acidez, aluminio e hidrogeno intercambibles.","Instituto Colombiano de Normas Técnicas y Certificación, ICONTEC",null,"X","Toda"]
[null,null,null,"Norma Tecnica Colombiana, NTC 11464",1995,"Pretratamiento de las muestras de suelo para análsis fisicoquimicos.","Instituto Colombiano de Normas Técnicas y Certificación, ICONTEC",null,"X","Toda"]
[null,null,null,"Norma Tecnica Colombiana, NTC 5349",2008,"Determinación de bases intercambiables: los cationes calcio, magnesio, sodio y potasio.","Instituto Colombiano de Normas Técnicas y Certificación, ICONTEC",null,"X","Toda"]
[null,null,null,"Circular 4201",2018,"Reglamento operación de aeronaves remotamente tripuladas","Laboratorio de Fotogrametria y Cartografia",null,"x","Todo"]
[null,null,null,"Norma Técnica Colombiana, NTC 1461",1987,"Higiene y Seguridad. Colores y Señales de Seguridad","Instituto Colombiano de Normas Técnicas y Certificación, ICONTEC",null,"X"]
[null,null,null,"Acuerdo 004",1996,"Por el cual se expide el Estatuto Académico de la Universidad Distrital Francisco José de Caldas.","Consejo Superior Universitario","X",null,"\nArts 3,35,36 y 37\n"]
[null,null,null,"Acuerdo 003",1997,"Por el cual se expide el Estatuto General de la Universidad Distrital Francisco José de Caldas","Consejo Superior Universitario","X",null,"Arts. 3,6 (Literal m,n) y 22"]
[null,null,null,"Resolución 001",2008,"Por el cual se expide el Reglamento de las Bodegas de Vestuario, Utilería y Escenografía de la Facultad de Artes ASAB.","Consejo de Facultad, Facultad de Artes ASAB","X",null,"Toda"]
[null,null,null,"Resolución",2010,"Por medio de la cual se establece el Reglamento Unificado para todos los laboratorios, talleres, aulas de software aplicado y aulas especializadas de la Facultad Tecnológica de la Universidad Distrital Francisco José de Caldas.","Consejo de Facultad de la Facultad Tecnológica","X",null,"Todo"]
[null,null,null,"Resolución 004",2012,"Por el cual se expide el Reglamento del Centro de Documentación de las Artes \"Gabriel Esquinas\".","Consejo de Facultad","X",null,"Toda"]
[null,null,null,"Resolución 1101",2002,"Por la cual se establece el Manual Descriptivo de Funciones Generales y Especificas y los Requisitos Mínimos para los cargos de la Planta de Personal Administrativo de La Universidad Distrital Francisco José de Caldas.","Rectoría","X",null,"Toda"]
[null,null,null,"Resolucion 394",2006,"Por la cual se constituye el Comité de Laboratorios, Talleres, Centro y Aulas Especializadas de la Universidad Distrital Francisco Jose de Caldas y los Subcomités de Laboratorios, Talleres, Centros y Aulas Especializadas de las Facultades la Institucion Universitaria y se establecen sus funciones.","Rectoría","X",null,"Toda"]
[null,null,null,"Resolución 482",2006,"Manual de Interventoria y Supervisión para  los Contratos y Convenios de la Universidad Distrital. ","Rectoria","X",null,"Toda"]
[null,null,null,"Circulares 0499 y 1079",2000,"Inventarios en todas las Sedes y Dependencias de la Universidad Distrital Francisco José de Caldas.","Rectoría","X",null,"Toda"]
[null,null,null,"Circular 1517 ",2012,"Entrada y Traslado de Bienes.","Vicerrectoría Administrativa y Financiera","X",null,"Toda"]
[null,null,null,"Circular 2013IE7243 ",2013,"Procedimiento Pago de Facturas.","Vicerrectoria Administrativa y Financiera","X",null,"Toda"]
[null,null,null,"Circular 2013IE13990 ",2013,"Procedimiento en caso de Hurto de Bienes.","Vicerrectoría Administrativa y Financiera","X",null,"Toda"]
[null,null,null,"Especificaciones",2012,"Documento en el que se indican las Características de los Equipos de Cómputo que pueden ser solicitados para el desarrollo de Proyectos de Investigación en los aplique tal rubro.","Vicerrectoría Administrativa y Financiera","X",null,"Toda"]
[null,null,null,"Reglamento Interno de los Laboratorios de Mecánica",null,"Normas para el correcto  uso y comportamiento dentro de los diferentes Laboratorios de Mecanica.","Laboratorios de Mecánica","X",null,"Todo"]
[null,null,null,"Reglamento Interno Laboratorio de Informática",2004,"Se consideran los aspectos especificos para el funcionamiento y medidas de seguridad en los Laboratorio de Informatica.","Coordinador Laboratorios Informatica","X",null,"Todo"]
[null,null,null,"Reglamento Interno Laboratorio de Fisica",2005,"Se consideran los aspectos especificos para el funcionamiento y medidas de seguridad del laboratorio de Fisica.","Coordinador Laboratorios Ciencias Basicas","X",null,"Todo"]
[null,null,null,"Reglamento Interno Laboratorio de Quimica",2005,"Se consideran los aspectos especificos para el funcionamiento y medidas de seguridad del laboratorio de Química.","Coordinador Laboratorios Ciencias Basicas","X",null,"Todo"]
[null,null,null,"Reglamento Interno Laboratorio de Industrial",2010,"Reglamento Interno de Laboratorios de Industrial, Procedimientos y Normas Generales.","Coordinacion Laboratorios de Industrial","X",null,"Todo"]
[null,null,null," Reglamento Unificado",2010,"Por medio de la cual se establece el Reglamento Unificado para todos los Laboratorios, Talleres, Aulas de Software aplicado y Aulas Especializadas de la Facultad Tecnológica de la Universidad Distrital Francisco José de Caldas.","Subcomité de Laboratorios Facultad Tecnologica","X",null,"Todo"]
[null,null,null,"Reglamento para el uso de las Salas de Software\nAplicado ",null,"Reglamento de Salas de Software Aplicado (Electrónica), Procedimientos y Normas Generales de la Facultad Tecnológica. ","Coordinacion Laboratorios de Electrónica","X",null,"Todo"]
[null,null,null,"Acuerdo 003",2013,"Por el cual se reglamentan los laboratorios de la Facultad del Medio Ambiente y Recursos Naturales","Decanatura Facultad Facultad del Medio Ambiente y Recursos Naturales","X",null,"Todo"]
[]
[]
[null,null,null,"ELABORÓ",null,"REVISÓ","APROBÓ"]
[null,null,null,"Nombre: Equipo SIGUD\nCargo: N/A\nFecha: 01/11/2019",null,"Nombre: Coordinadores de Laboratorios\nCargo: Coordinadores de Laboratorios\nFecha: 01/11/2019","Nombre: Decanos de Facultad \nCargo: Decanos de Facultad \nFecha: 01/11/2019"]

{"sheet":"SC","index":17,"n_rows":68,"n_cols":10,"rows_kept":68,"cut":false,"hidden":false,"merged":[[67,6,67,7],[5,1,5,2],[5,3,5,9],[7,1,7,9],[9,1,64,1],[9,2,64,2],[66,3,66,4],[66,6,66,7],[67,3,67,4],[1,1,3,2],[1,3,1,6],[1,7,1,8],[1,9,3,9],[2,3,2,6],[2,7,2,8],[3,3,3,6],[3,7,3,8]]}
[]
[null,null,null,"NORMOGRAMA POR PROCESOS",null,null,null,"Código: GI-PR-002-FR-017"]
[null,null,null,"Macroproceso: Direccionamiento Estratégico",null,null,null,"Versión: 02"]
[null,null,null,"Proceso: Gestión Integrada",null,null,null,"Fecha de Aprobación: 17/11/2017"]
[null," "]
[null,"Proceso",null,"Servicio al Ciudadano"]
[]
[null,"IDENTIFICACIÓN DE REQUISÍTOS LEGALES Y/O NORMATIVOS -  IDENTIFICACIÓN DEL REQUISÍTO"]
[null,"Macroproceso","Proceso","Clasificación de la Norma","Año","Temática","Expedida por","Interna","Externa","Artículo Aplicable"]
[null,"Apoyo a lo Misional","Servicio al Ciudadano","Constitución Política de Colombia",1991,"Constitución Política de Colombia.","Asamblea Nacional Constituyente",null,"X","Arts. 23,74, 209"]
[null,null,null,"Ley 190",1995,"Por la cual se dictan normas tendientes a preservar la moralidad en la administración pública y se fijan disposiciones con el fin de erradicar las corrupción administrativa","Congreso de la República",null,"X","Art.54"]
[null,null,null,"Ley 962",2005,"Por la cual se dictan disposiciones sobre racionalización de trámites y procedimientos administrativos de los organismos y entidades del Estado y de los particulares que ejercen funciones públicas o prestan servicios públicos.","Congreso de la República",null,"X","Arts.3,8,9,10,16\n\n"]
[null,null,null,"Ley 1437",2011,"Por la cual se expide el Código de Procedimiento Administrativo y de lo Contencioso Administrativo.","Congreso de la República",null,"X","Arts. 5,6,7,8,9,20,53"]
[null,null,null,"Ley 1474",2011,"Por la cual se dictan normas orientadas a fortalecer los mecanismos de prevención, investigación y sanción de actos de corrupción y la efectividad del control de la gestión pública.","Congreso de la República",null,"X","Arts. 73,76."]
[null,null,null,"Ley 1581 ",2012,"Por la cual se dictan disposiciones generales para la protección de datos personales.","Congreso de la República",null,"X","Arts. 1,3,4,7, Título IV, V,VI"]
[null,null,null,"Ley 1712",2014,"Por medio de la cual se crea la Ley de Transparencia y del Derecho de Acceso a la Información Pública Nacional y se dictan otras disposiciones. ","Congreso de la República",null,"X","Todo"]
[null,null,null,"Ley 1755",2015,"Por medio del cual se regula el derecho fundamental de petición y se sustituye un título del Código de Procedimiento Administrativo y de lo Contencioso Administrativo.","Congreso de la República",null,"X","Todo"]
[null,null,null,"Ley 1952 ",2019,"Por medio de la cual se expide el Código General Disciplinario y se derogan la Ley 734 de 2002 y algunas disposiciones de la ley 1474 de 2011 , relacionadas con el derecho disciplinario","Congreso de la República",null,"X","Art.38 num 35"]
[null,null,null,"Decreto 1083",2015,"Por medio del cual se expide el Decreto Único Reglamentario del Sector de Función Pública","Presidencia de la República",null,"X","Todo"]
[null,null,null,"Decreto 2150",1995,"Suprime y reforma regulaciones, procedimientos o trámites innecesarios en la Administración Pública, y se fijan disposiciones para erradicar la corrupción administrativa.","Presidencia de la República",null,"X","Arts 1,2,8,11,12,13,26,29,31,32,33"]
[null,null,null,"Decreto 2623",2009,"Por el cual se crea el Sistema Nacional de Servicio al Ciudadano.","Presidencia de la República",null,"X","Todo"]
[null,null,null,"Decreto 019",2012,"Por el cual se dictan normas para suprimir o reformar regulaciones, procedimientos y trámites innecesarios existentes en la Administración Pública.","Presidencia de la Republica",null,"X","Título I Capítulo I arts. 1,2,3,4,5,6,7,8,9,10,11,12,13,14,15,19,20,21,22"]
[null,null,null,"Decreto 2641",2012,"Por el cual se reglamentan los artículos 73 y 76 de la Ley 1474 de 2011.","Presidencia de la República",null,"X","Arts.1,2,3"]
[null,null,null,"Decreto 1377",2013,"Por el cual se reglamenta parcialmente la Ley 1581 de 2012.","Presidencia de la República",null,"X","Todo"]
[null,null,null,"Decreto 886",2014,"Por el cual se reglamenta el artículo 25 de la Ley 1581 de 2012, relativo al Registro Nacional de Bases de Datos.","Presidencia de la República",null,"X","Todo"]
[null,null,null,"\nDecreto 2573\n","\n2014","Por el cual se establecen los lineamientos generales de la Estrategia de Gobierno en línea, se reglamenta parcialmente la Ley 1341 de 2009 y se dictan otras disposiciones.","Presidencia de la República",null,"X","Todo"]
[null,null,null,"Decreto 103 ",2015,"Por el cual se reglamenta parcialmente la Ley 1712 de 2014 y se dictan otras disposiciones","Presidencia de la República",null,"X","Todo"]
[null,null,null,"Decreto 1166",2016,"por el cual se adiciona el capítulo 12 al Título 3 de la Parte 2 del Libro 2 del Decreto 1069 de 2015, Decreto Único Reglamentario del Sector Justicia del Derecho, relacionado con la presentación, tratamiento y radicación de las peticiones presentadas verbalmente.","Presidencia de la República",null,"X","Todo"]
[null,null,null,"Decreto 619 ",2007,"Por el cual se establece la Estrategia de Gobierno Electrónico de los organismos y de las entidades de Bogotá, Distrito Capital y se dictan otras disposiciones.","Alcaldía Mayor de Bogotá",null,"X","Todo"]
[null,null,null,"Decreto 371",2010,"Por el cual se establecen lineamientos para preservar y fortalecer la transparencia y para la prevención de la corrupción en las Entidades y Organismos del Distrito Capital.","Alcaldía Mayor de Bogotá",null,"X","Art. 3, 4 numerales 4° y 6°"]
[null,null,null,"Decreto 494",2010,"Por el cual se institucionaliza la realización de las Ferias Distritales de Servicio al Ciudadano y se dictan otras disposiciones.","Alcaldía Mayor de Bogotá",null,"X","Todo"]
[null,null,null,"Decreto 197",2014,"Por medio del cual se adopta la Política Pública Distrital de Servicio a la Ciudadanía en la ciudad de Bogotá D.C.","Alcaldía Mayor de Bogotá",null,"X","Todo"]
[null,null,null,"Decreto 392",2015,"Por medio del cual se reglamenta la figura del Defensor de la Ciudadanía en las entidades y organismos del Distrito Capital y se dictan otras disposiciones.","Alcaldía Mayor de Bogotá",null,"X","Todo"]
[null,null,null,"Decreto 058",2018,"Por el cual se ordena la racionalización, simplificación, automatización y virtualización, de los trámites vinculados de la cadena de Urbanismo y Construcción en Bogotá D.C.","Alcaldía Mayor de Bogotá",null,"X","Todo"]
[null,null,null,"Decreto Distrital 847",2019,"lineamientos en materia de servicio a la ciudadanía y de implementación de la Política Pública Distrital de Servicio a la Ciudadanía, y se dictan otras disposiciones","Alcaldía Mayor de Bogotá",null,"X","Todo"]
[null,null,null,"Decreto Distrital 293",2021,"Por el cual se modifican lineamientos en materia de servicio a la ciudadanía y de implementación de la Política Pública Distrital de Servicio a la Ciudadanía, y se dictan otras disposiciones","Alcaldía Mayor de Bogotá",null,"X","Todo"]
[null,null,null,"Acuerdo 630",2015,"Por medio del cual se establecen unos protocolos para el ejercicio del derecho de petición en cumplimiento de la ley 1755 de 2015 y se dictan otras disposiciones.","Concejo de Bogotá",null,"X","Todo"]
[null,null,null,"Acuerdo 011 ",1995,"Por el cual se crea el sistema de quejas y reclamos, modificado por el Acuerdo 005 de julio 19 de 2002.","Consejo superior Universitario","X",null,"Todo"]
[null,null,null,"Acuerdo 005 ",2002,"Por el cual se modifica el Acuerdo 011 de1995, relativo a la Oficina de Quejas y Reclamos y se le asignan las funciones.","Consejo superior Universitario","X",null,"Todo"]
[null,null,null,"Acuerdo 559 ",2014,"Por el cual se dictan normas para la adecuación de la información pública, de trámites y servicios en las páginas web de las entidades del  Distrito Capital con el fin de garantizar el acceso universal de las personas con y/o en situación de discapacidad","Concejo de Bogotá",null,"X","Todo"]
[null,null,null,"Acuerdo 731",2018,"Por el cual se promueven acciones para la atención respetuosa, digna y humana de la ciudadanía, se fortalece y visibiliza la función del defensor de la ciudadanía en los organismos y entidades del distrito, se modifica el artículo 3 del acuerdo 630 de 2015 y se dictan otras disposiciones","Concejo de Bogotá",null,"X"]
[null,null,null,"Resolución 551",2012,"Por la cual se expide el Reglamento Interno de Trámites de Acciones Ciudadanas y Atención al Ciudadano, ante la Universidad Distrital Francisco José De Caldas.","Rectoría","X",null,"Todo"]
[null,null,null,"Resolución 204",2021,"Por medio de la cual se adopta el Reglamento Interno de Atención al Ciudadano ante la Universidad Distrital Francisco José de Caldas, se deroga la Resolución de Rectoría 551 de 2012 y se dictan otras disposiciones","Rectoría","X",null,"Todo"]
[null,null,null,"Circular 64 ",2012,"Revisión, adecuación e implementación del procedimiento para el trámite del/los Derecho/s de Petición de acuerdo con la Ley 1437 de 2011.","Secretaría General Alcaldía Mayor de Bogotá, D.C.",null,"X","Todo"]
[null,null,null,"Circular 131 ",2013,"Lineamientos para la publicación y actualización de información sobre los trámites, servicios, campañas, eventos y puntos de atención en la Guía de Trámites, Servicios y el Mapa Callejero.","Secretaría General Alcaldía Mayor de Bogotá, D.C.",null,"X","Todo"]
[null,null,null,"Circular 93",2014,"Financiación política pública distrital de servicio a la ciudadanía.","Secretaría General Alcaldía Mayor de Bogotá, D.C.",null,"X","Todo"]
[null,null,null,"Circular 108",2015,"Socialización Ley 1755 de 2015 “Por medio de la cual\nse regula el Derecho Fundamental de Petición y se\nsustituye un título del Código de","Secretaría General Alcaldía Mayor de Bogotá, D.C.",null,"X","Todo"]
[null,null,null,"Circular 120",2015,"Sostenibilidad y Financiación de la Política Pública Distrital de Servicio a la Ciudadanía.","Secretaría General Alcaldía Mayor de Bogotá, D.C.",null,"X","Todo"]
[null,null,null,"Circular 527",2015,"implementación del Sistema Distrital de Quejas y Soluciones de la Alcaldía Mayor de Bogotá “SDQS”","Rectoría","X"]
[null,null,null,"Circular 22",2016,"Personal para la atención en puntos de la red CADE","Secretaría General Alcaldía Mayor de Bogotá, D.C.",null,"X","Todo"]
[null,null,null,"Circular 006",2017,"Implementación formato de elaboración y presentación de informes Quejas y Reclamos.","Veeduría  Distrital",null,"X","Todo"]
[null,null,null,"Circular 22",2017,"Lineamientos capacitaciones del Distrito Capital dirigidas a los ciudadanos","Secretaría General Alcaldía Mayor de Bogotá, D.C.",null,"X","Todo"]
[null,null,null,"Circular 007",2018,"Lineamientos para la implementación de la Política Pública Distrital de Servicio a la Ciudadanía (Decreto 197 de 2014) ","Secretaría General Alcaldía Mayor de Bogotá, D.C.",null,"X","Todo"]
[null,null,null,"Circular 018",2018,"Lineamientos virtualización de trámites","Secretaría General Alcaldía Mayor de Bogotá, D.C.",null,"X","Todo"]
[null,null,null,"Circular 032",2018,"Proceso de actualización del Sistema Distrital de Quejas y Soluciones (Bogotá te escucha) e interoperabilidad con Govimentum","Secretaría General Alcaldía Mayor de Bogotá, D.C.",null,"X","Todo"]
[null,null,null,"Circular 045",2018,"Participación de las Entidades Distritales en la Racionalización y Virtualización de trámites en cumplimiento del Plan Distrital de Desarrollo","Secretaría General Alcaldía Mayor de Bogotá, D.C.",null,"X","Todo"]
[null,null,null,"Circular 052",2018,"Comentarios manuales de condiciones Servicios Ciudadanos Digitales","Secretaría General Alcaldía Mayor de Bogotá, D.C.",null,"X","Todo"]
[null,null,null,"Circular 053 ",2018,"Resultado del proceso de actualización del Sistema Distrital de Quejas y Soluciones - Bogotá te escucha - e interoperabilidad con Govimentum","Secretaría General Alcaldía Mayor de Bogotá, D.C.",null,"X","Todo"]
[null,null,null,"Circular Externa Conjunta 04",2019,"Tratamiento de datos personales en sistemas de información interoperables","Superintendencia de Industria y Comercio (SIC) y Agencia Nacional de Defensa Jurídica del Estado (ANDJE)",null,"X","Todo"]
[null,null,null,"Convenio 4220000-511",2019,"Condiciones del Convenio Suscrito entre la Alcaldía Mayor de Bogotá y la Universidad Distrital Francisco José de Caldas.","Alcaldía Mayor de Bogotá",null,"X","Todo"]
[null,null,null,"Circular 009",2019,"Respecto a la obligatoriedad de inscripción de trámites en el  SUIT","Alta Consejería Distrital de Tecnologías de Información y Comunicaciones",null,"X","Todo"]
[null,null,null,"Circular Conjunta 001 ",2019,"\"Lineamientos para las entidades y organismos pertenecientes a la Administración Distrital, sobre atención a ciudadanos venezolanos en situación","Alcaldía Mayor de Bogotá",null,"X","Todo"]
[null,null,null,"Directiva 015 ",2015,"Directrices relacionadas con la atención de denuncias y/o quejas por posibles actos de corrupción","Alcaldía Mayor de Bogotá",null,"X"]
[null,null,null,"Directiva Conjunta 001",2021,"Directrices para la atención y gestión de denuncias por posibles actos de corrupción, y/o existencia de inhabilidades, incompatibilidades o conflicto de intereses y protección de identidad del denunciante","Alcaldía Mayor de Bogotá - Secretaría Jurídica Distrital",null,"X"]
[null,null,null,"Directiva 004",2021,"Lineamiento para la atención y gestión de las peticiones ciudadanas recibidas a través de redes sociales","Secretaría General Alcaldía Mayor de Bogotá, D.C.",null,"X","Todo"]
[]
[null,null,null,"ELABORÓ",null,"REVISÓ","APROBÓ"]
[null,null,null,"Nombre: Diana María Mora Ramírez\nCargo: Contratistas UQRAC\nFecha: 29/10/2024",null,"Nombre: Leonel Gustavo Cáceres Cáceres\nCargo: Líder de Programa QRAC\nFecha: 12/11/2024","Nombre: Leonel Gustavo Cáceres Cáceres\nCargo: Líder de Programa QRAC\nFecha: 12/11/2024"]

{"sheet":"GDO","index":18,"n_rows":78,"n_cols":11,"rows_kept":78,"cut":false,"hidden":false,"merged":[[1,1,3,2],[1,4,1,7],[1,8,1,9],[1,10,3,10],[2,4,2,7],[2,8,2,9],[3,4,3,7],[3,8,3,9],[76,4,76,5],[76,7,76,8],[77,4,77,5],[77,7,77,8],[5,1,5,2],[5,4,5,10],[7,1,7,10],[9,1,74,1],[9,2,74,2],[9,3,74,3]]}
[]
[null,null,null,null,"NORMOGRAMA POR PROCESOS",null,null,null,"Código: GI-PR-002-FR-017"]
[null,null,null,null,"Macroproceso: Direccionamiento Estratégico",null,null,null,"Versión: 02"]
[null,null,null,null,"Proceso: Gestión Integrada",null,null,null,"Fecha de Aprobación: 17/11/2017"]
[null," "]
[null,"Proceso",null,null,"Gestión Documental"]
[]
[null,"IDENTIFICACIÓN DE REQUISÍTOS LEGALES Y/O NORMATIVOS -  IDENTIFICACIÓN DEL REQUISÍTO"]
[null,"Macroproceso","Proceso","SUBPROCESO","Clasificación de la Norma","Año","Temática","Expedida por","Interna","Externa","Artículo Aplicable"]
[null,"Gestión de Recursos","Gestion Documental","Prospectiva y Planeacion Estrategica","Constitución Política de Colombia",1991,"El pueblo de Colombia, en ejercicio de su poder soberano, representado por sus delegatarios a la Asamblea Nacional Constituyente, invocando la protección de Dios, y con el fin de fortalecer la unidad de la Nación y asegurar a sus integrantes la vida, la convivencia, el trabajo, la justicia, la igualdad, el conocimiento, la libertad y la paz, dentro de un marco jurídico, democrático y participativo que garantice un orden político, económico y social justo, y comprometido a impulsar la integración de la comunidad latinoamericana, decreta, sanciona y promulga la siguiente:","Asamblea Nacional Constituyente",null,"X","Arts. 15, 23, 63, 70, 71, 72, 74"]
[null,null,null,null,"Ley 527",1999,". “Por medio del cual se define y se reglamenta el acceso y uso de los mensajes de datos, del comercio electrónico y de firmas digitales, y se establecen las entidades de certificación y se dictan otras disposiciones. ","Congreso de la República",null,"X","Toda"]
[null,null,null,null,"Ley 594",2000,"Por medio de la cual se dicta la Ley General de Archivos y se dictan otras disposiciones. ","Congreso de la República",null,"X","Toda"]
[null,null,null,null,"Ley 734 ",2002,"Por la cual se expide el Código Disciplinario Único","Congreso de la República",null,"X","Art. 34 Deberes de todo servidor público, numerales 1, 5, 22; Art. 35 Prohibiciones, numerales 8, 13, 21."]
[null,null,null,null,"Ley 1437 ",2011,"Por la cual se expide el Código de Procedimiento Administrativo y de lo Contencioso Administrativo","Congreso de la República",null,"X","Arts. 5, 7, 8, 9, 13, 14, 20, 22, 53 – 64"]
[null,null,null,null," Ley 1712 ",2014,"Por medio de la cual se crea la Ley de Transparencia y del Derecho de Acceso a la Información Pública Nacional y se dictan otras disposiciones","Congreso de la República",null,"X","Art. 1, 2, 3, 4, 5, 6 Literal i, Arts. 16,24, 25, 26."]
[null,null,null,null,"Decreto 2649",1993,"Por el cual se reglamenta la Contabilidad en General y se expiden los principios y normas de contabilidad generalmente aceptados en Colombia.","Congreso de la República",null,"X","Toda"]
[null,null,null,null,"Decreto 514",2006,"Por la cual se establece que toda entidad pública a nivel Distrital debe tener un Subsistema Interno de gestión Documental y Archivos (SIGA) como parte del Sistema de Información Administrativa del Sector Público. ","Alcaldía Mayor de Bogotá",null,"X","Toda"]
[null,null,null,null,"Decreto 619 ",2007,"“Por la cual se establece la Estrategia de Gobierno Electrónico de los organismos y de las entidades de Bogotá”.","Alcaldía Mayor de Bogotá",null,"X","Toda"]
[null,null,null,null,"Decreto 2578 ",2012,"Por el cual se reglamenta el Sistema Nacional de Archivos, se establece la Red Nacional de Archivos, se deroga el decreto número 4124 de 2004 y se dictan otras disposiciones relativas a la administración de los Archivos del Estado.","Congreso de la República",null,"X","Toda"]
[null,null,null,null,"Decreto 103 ",2015,"Por el cual se reglamenta parcialmente la Ley 1712 de 2014 y se dictan otras disposiciones.","Congreso de la República",null,"X","Toda"]
[null,null,null,null,"Decreto 106 ",2015,"Por la cual se reglamenta el Título VII de la Ley 594 de 2000 en materia de inspección y vigilancia y control a los archivos de las Entidades del Estado y a los documentos de carácter privado declarados de interés cultural; y se dictan otras disposiciones.","Congreso de la República",null,"X","Toda"]
[null,null,null,null,"Decreto 1080 ",2015,"“Por el cual se expide el Decreto Único reglamentario del Sector Cultura.”","Congreso de la República",null,"X","Toda"]
[null,null,null,null,"Directiva Presidencial 04 ",2012,"“Eficiencia administrativa y lineamientos de la política del cero papel en la administración pública.","Presidencia de la República",null,"X","Toda"]
[null,null,null,null,"Decreto 828 ",2018,"Por el cual se regula el Sistema Distrital de Archivos y se dictan otras disposiciones”. ","Alcaldía Mayor de Bogotá",null,"X","Toda"]
[null,null,null,null,"Acuerdo 07",1994,"Por el cual se adopta y se expide el Reglamento General de Archivos.","Consejo Directivo Del Archivo General De La Nación De Colombia",null,"X","Toda"]
[null,null,null,null,"Acuerdo 011",1996,"Criterios de conservación y organización de documentos.","Consejo Directivo Del Archivo General De La Nación De Colombia",null,"X","Toda"]
[null,null,null,null,"Acuerdo 012 ",1995,"Por la cual se modifica la parte I del Acuerdo No. 07 del 29 de junio de 1994 Reglamento General de Archivos”. Órganos de Dirección, Coordinación y Asesoría.","Consejo Directivo Del Archivo General De La Nación De Colombia",null,"X","Toda"]
[null,null,null,null,"Acuerdo 048 ",2000,"Por el cual se desarrolla el artículo 59 del capítulo 7 -conservación de documentos-, del reglamento general de archivos sobre conservación preventiva, conservación y restauración documental\".","Consejo Directivo Del Archivo General De La Nación De Colombia",null,"X","Intervención, art. 1. Criterios de intervención, art. 2. Valor de uso de los documentos, art. 3. Conservacion integral, art. 4. Aval, art., 5,"]
[null,null,null,null,"Acuerdo 049 ",2000,"Desarrolla el artículo 7 \"conservación de documentos\" del reglamento general de archivos sobre \"condiciones de edificios y locales destinados a archivos\".","Consejo Directivo Del Archivo General De La Nación De Colombia",null,"X","Edificios y locales destinados como sedes de archivo, art. 1. Condiciones generales, art. 2. Areas de deposito, art. 3. Condiciones ambientales y técnicas, art. 4."]
[null,null,null,null,"Acuerdo 050 ",2000,"Desarrolla el artículo 64 del título VII \"conservación de documento\", del Reglamento general de archivos sobre \"Prevención de deterioro de los documentos de archivo y situaciones de riesgo\".","Consejo Directivo Del Archivo General De La Nación De Colombia",null,"X","Situación de riesgo para el material documental, art. 1. Planificación de preservación, art. 2. Prevención, art. 3.\n "]
[null,null,null,null,"Acuerdo 060 ",2001,"Por el cual se establecen pautas para la administración de las comunicaciones oficiales en las entidades públicas y las privadas que cumplen funciones públicas.","Consejo Directivo Del Archivo General De La Nación De Colombia",null,"X","Toda"]
[null,null,null,null,"Acuerdo 037 ",2002,"Por la cual se establecen las especificaciones técnicas y los requisitos para la contratación de los servicios de depósitos, custodia, organización, reprografía y conservación.  ","Consejo Directivo Del Archivo General De La Nación De Colombia",null,"X","Toda"]
[null,null,null,null,"Acuerdo 038",2002,"Desarrolla el artículo 15 de la ley 594 de 2000. Que el artículo 15 de la ley 594 de 2000 establece que los servidores públicos, al desvincularse de las funciones titulares, entregarán los documentos y archivos a su cargo debidamente inventariado, conforme a las normas y procedimientos que establezca el Archivo General de la Nación, sin que ello implique la exoneración de responsabilidad a que haya lugar en caso de irregularidades.","Consejo Directivo Del Archivo General De La Nación De Colombia",null,"X","Toda"]
[null,null,null,null,"Acuerdo 42",2002,"Criterios para la organización de los archivos de gestión en las entidades públicas y las privadas que cumplen funciones públicas, se regula el inventario único documental y se desarrollan los artículos 21, 22, 23 y 26 de la ley general de archivos 594 de 2000.","Consejo Directivo Del Archivo General De La Nación De Colombia",null,"X","Objeto, art. 1. Obligatoriedad de la organización de los archivos de gestión, art. 2 Conformación de los archivos de gestión y responsabilidad de los jefes de unidades administrativas, art. 3. Criterios para la organización de archivos de gestión, art. 4. Consulta de documentos, art. 5. Préstamo de documentos para trámites internos, art. 6. Inventario documental, art. 7."]
[null,null,null,null,"Acuerdo 02 ",2004,"“Por el cual se establecen los lineamientos básicos para la organización de fondos\nacumulados” ","Consejo Directivo Del Archivo General De La Nación De Colombia",null,"X","Toda"]
[null,null,null,null,"Acuerdo 04 ",2013,"Por el cual se reglamenta parcialmente los Decretos 2578 y 2609 de 2012 y se modifica el procedimiento","Consejo Directivo Del Archivo General De La Nación De Colombia.",null,"X","Toda"]
[null,null,null,null,"Acuerdo 05",2013,"Por el cual se establecen los criterios básicos para la clasificación, ordenación y descripción de los archivos en las entidades públicas y privadas que cumplen funciones públicas y se dictan otras disposiciones.","Consejo Directivo Del Archivo General De La Nación De Colombia.",null,"X","Toda"]
[null,null,null,null,"Acuerdo 002 ",2014,"Por medio del cual se establecen los criterios básicos para creación, conformación, organización, control y consulta de los expedientes de archivo y se dictan otras disposiciones.","Consejo Directivo Del Archivo General De La Nación De Colombia.",null,"X","Toda"]
[null,null,null,null,"Acuerdo 07 ",2014,"Se establecen los lineamientos para la reconstrucción de expedientes y se dictan otras disposiciones.","Consejo Directivo Del Archivo General De La Nación De Colombia.",null,"X","Toda"]
[null,null,null,null,"Acuerdo 08 ",2014,"“Por el cual se establecen las especificaciones técnicas y los requisitos para la prestación de los servicios de depósito, custodia, organización, reprografía y conservación de documentos de archivo y demás procesos de la función archivística en desarrollo de los artículos 13 y 14 y sus parágrafos 1 y 3 de la ley 594 de 2000”. ","Consejo Directivo Del Archivo General De La Nación De Colombia.",null,"X","Toda"]
[null,null,null,null,"Acuerdo 03",2015,"“Por el cual se establecen lineamientos generales para las entidades del estado en cuanto a la gestión documentos electrónicos generados como resultado del uso de medios electrónicos de conformidad con lo establecido en el capítulo IV de la Ley 1437 de 2011. Se reglamenta el artículo 21 de la Ley 294 de 2000 y el capítulo IV del Decreto 2609 de 2012”.","Consejo Directivo Del Archivo General De La Nación De Colombia.",null,"X","Toda"]
[null,null,null,null,"Acuerdo 04",2019,"Por el cual se reglamenta el procedimiento para la elaboración, aprobación, evaluación, convalidación, implementación, publicación e inscripción en el Registro único de Series y Subseries – RUSD de las Tablas de Retención Documental-TRD y Tablas de Valoración Documental-TVD.” ","Consejo Directivo Del Archivo General De La Nación De Colombia.",null,"X","Toda"]
[null,null,null,null,"Circular 02 ",2010,"Decisiones sobre la solución tecnológica de apoyo al aplicativo de Gestión Documental ORFEO.","COINFO-Comisión Intersectorial de Políticas y Gestión de la Información Para la Administración Pública",null,"X","Toda"]
[null,null,null,null,"Circular 04 ",2010,"“Estándares mínimos en procesos de administración de archivos y gestión de documentos electrónicos”.","COINFO-Comisión Intersectorial de Políticas y Gestión de la Información Para la Administración Pública",null,"X","Toda"]
[null,null,null,null,"Circular 01",2012,"Cumplimiento normas sobre gestión documental y archivos.","Secretaría General Alcaldía Mayor de Bogotá D.C. - Dirección Archivo de Bogotá.",null,"X","Toda"]
[null,null,null,null,"Circular 05",2012,"Recomendaciones para llevar a cabo procesos de digitalización y comunicaciones oficiales electrónicas en el marco de la iniciativa del cero papel.","Consejo Directivo Del Archivo General De La Nación De Colombia",null,"X","Toda"]
[null,null,null,null,"Circular 01 ",2013,"Directrices para el cumplimiento e implementación del Decreto 2578 de 2012. ","Consejo Directivo Del Archivo General De La Nación De Colombia",null,"X","Toda"]
[null,null,null,null,"Circular 02",2014,"“Cumplimiento de la Ley 594 de 2000, el Decreto 2609 de 2012 y el Decreto 1515 de 2013.","Consejo Directivo Del Archivo General De La Nación De Colombia",null,"X","Toda"]
[null,null,null,null,"ISO 15489-2",2001,"Una guía para la gestión de los documentos de archivos","Organización Internacional de Normalización ISO",null,"X","Toda"]
[null,null,null,null,"ISO 15489-1",2002,"Organización y documentación. Gestión de documentos. Parte 2: Guía","Organización Internacional de Normalización ISO",null,"X","Toda"]
[null,null,null,null,"ISO 14721 ",2003,"Sistema de Información de Archivo Abierto (OAIS): Luces y sombras de un modelo de referencia.","Organización Internacional de Normalización ISO",null,"X","Toda"]
[null,null,null,null,"UNE-ISO 26122",2008,"Información y documentación. Análisis de procesos de trabajo para registros.","Organización Internacional de Normalización ISO",null,"X","Toda"]
[null,null,null,null,"ISO 13028",2010,"Información y Documentación. Directrices de Implementación para la Digitalización de Documentos.","Organización Internacional de Normalización ISO",null,"X","Toda"]
[null,null,null,null,"ISO  16175",2011,"Sobre Gestión de Documentos en Oficinas Electrónicas: Alcance y Limitaciones.","Organización Internacional de Normalización ISO",null,"X","Toda"]
[null,null,null,null,"ISO 19005-2",2011,"La gestión de documentos-formato de archivo de documento electrónico para la conservación a largo plazo.","Organización Internacional de Normalización ISO",null,"X","Toda"]
[null,null,null,null,"ISO 13008 ",2012,"Información y Documentación. Proceso de conversión y migración de registros digitales.","Organización Internacional de Normalización ISO",null,"X","Toda"]
[null,null,null,null,"ISO 15801",2012,"Gestión de documentos. Información almacenada electrónicamente. Recomendaciones para la integridad y la fiabilidad.","Organización Internacional de Normalización ISO",null,"X","Toda"]
[null,null,null,null,"ISO 5985",2013,"Información y Documentación. Directrices de implementación para la digitalización de documentos.","Organización Internacional de Normalización ISO",null,"X","Toda"]
[null,null,null,null,"ISO 30300",2013,"Información y documentación. Sistemas de gestión para registros. Fundamentos y vocabulario.","Organización Internacional de Normalización ISO",null,"X","Toda"]
[null,null,null,null,"ISO 30301",2013,"Información y documentación. Sistemas de gestión de registros. Requisitos.","Organización Internacional de Normalización ISO",null,"X","Toda"]
[null,null,null,null,"ISO  30302",2013,"Información y documentación. Sistemas de gestión de registros. Directrices para la implementación.","Organización Internacional de Normalización ISO",null,"X","Toda"]
[null,null,null,null,"ISO 14533-1",2013,"Procesos, elementos de datos y documentos en Comercio, Industria y Administración. Perfiles de firma a largo plazo. Parte 1. Perfiles de firma a largo plazo para firmas electrónicas avanzadas cms (CadES).","Organización Internacional de Normalización ISO",null,"X","Toda"]
[null,null,null,null,"ISO 18492",2013,"Preservación a largo plazo de la información basada en documentos electrónicos.","Organización Internacional de Normalización ISO",null,"X","Toda"]
[null,null,null,null,"ISO 23081-1",2013,"Información y Documentación. Gestión de Metadatos para los registros. Parte 2: Aspectos Conceptuales y de Implementación.","Organización Internacional de Normalización ISO",null,"X","Toda"]
[null,null,null,null,"ISO 14533-2",2014,"Procesos, Elementos de Datos y Documentos en el Comercio, Industria y Administración. Perfiles de firma a largo plazo para firmas electrónicas avanzadas XML (XAdES).","Organización Internacional de Normalización ISO",null,"X","Toda"]
[null,null,null,null,"NTC-5029",2004,"Medición de Archivos.","Norma Técnica Colombiana-NTC",null,"X","Toda"]
[null,null,null,null,"NTC-14001",2004,"Sistemas de gestión ambiental. Requisitos con orientación para su uso.","Norma Técnica Colombiana-NTC",null,"X","Toda"]
[null,null,null,null,"NTC-27001 ",2006,"Tecnología de la información. Técnicas de seguridad. Sistemas de gestión de la seguridad de la información (SGSI). Requisitos. ","Norma Técnica Colombiana-NTC",null,"X","Toda"]
[null,null,null,null,"Acuerdo 015  ",1994,"“Por el cual se reestructura la Secretaria General de la Universidad Distrital Francisco José de Caldas.” ","Rectoría UDFJC","X",null,"Toda"]
[null,null,null,null,"Acuerdo 003",1997,"Por el cual se expide el Estatuto General de la Universidad Distrital Francisco José de Caldas.","Consejo Superior Universitario","X",null,"toda"]
[null,null,null,null,"Acuerdo 09",2018,"Por medio del cual se adopta el Plan Estratégico de Desarrollo 2018-2030 de la Universidad Distrital Francisco José de Caldas","Consejo Superior Universitario UDFJC","X",null,"Toda"]
[null,null,null,null,"Resolución 214",2014,"Por la cual se crea el Subsistema Interno de Gestión Documental y Archivo, SIGA-UD y se modifica la composición y funciones del Comité de Archivo de la Universidad Distrital Francisco José de Caldas.","Rectoría UDFJC","X",null,"Toda"]
[null,null,null,null,"Resolución 177",2016,"Por la cual se adopta el Manual para la Organización de los Archivos de Gestión de la Universidad Distrital Francisco José de Caldas.","Rectoría UDFJC","X",null,"Toda"]
[null,null,null,null,"Resolución 153",2019,"Por la cual se aprueban las Tablas de Retención Documental de la  Universidad Distrital Francisco José de Caldas y se dispone su implementación.","Rectoría UDFJC","X",null,"Toda"]
[null,null,null,null,"Resolución 163 ",2019,"Por la cual se ajusta el Sistema de Gestión de la Universidad Distrital Francisco José de Caldas - SIGUD, se implementa el Modelo de Integración de Planeación y Gestión - MIPG, como su Marco de Referencia, Y se crea el Comité Institucional de Gestión y Desempeño. ","Rectoría UDFJC","X",null,"Toda"]
[]
[null,null,null,null,"ELABORÓ",null,"REVISÓ","APROBÓ"]
[null,null,null,null,"Nombre: Equipo SIGUD\nCargo: N/A\nFecha: 18/10/2019",null,"Nombre: Edison Ramirez Tovar\nCargo: Jefe de la Sección de Actas, Archivo y Microfilmación\nFecha: 18/10/2019","Nombre: Camilo Andres Bustos Parra\nCargo: Secretario General \nFecha: 18/10/2019"]

{"sheet":"GRF","index":19,"n_rows":120,"n_cols":11,"rows_kept":120,"cut":false,"hidden":false,"merged":[[1,1,3,2],[1,4,1,7],[1,8,1,9],[1,10,3,10],[2,4,2,7],[2,8,2,9],[3,4,3,7],[3,8,3,9],[115,4,115,5],[115,7,115,8],[116,4,116,5],[116,7,116,8],[5,1,5,2],[5,4,5,10],[7,1,7,10],[9,1,113,1],[9,2,113,2],[9,3,72,3]]}
[]
[null,null,null,null,"NORMOGRAMA POR PROCESOS",null,null,null,"Código: GI-PR-002-FR-017"]
[null,null,null,null,"Macroproceso: Direccionamiento Estratégico",null,null,null,"Versión: 02"]
[null,null,null,null,"Proceso: Gestión Integrada",null,null,null,"Fecha de Aprobación: 17/11/2017"]
[null," "]
[null,"Proceso",null,null,"Gestión de Recursos Financieros"]
[]
[null,"IDENTIFICACIÓN DE REQUISÍTOS LEGALES Y/O NORMATIVOS -  IDENTIFICACIÓN DEL REQUISÍTO"]
[null,"Macroproceso","Proceso","SUBPROCESO","Clasificación de la Norma","Año","Temática","Expedida por","Interna","Externa","Artículo Aplicable"]
[null,"Gestión de Recursos",{"$f":"IF(E6=\"\",\"-\",E6)","v":"Gestión de Recursos Financieros"},"Prospectiva y Planeación Estratégica","Constitución Política de Colombia ",1991,"EL PUEBLO DE COLOMBIA en ejercicio de su poder soberano, representado por sus delegatarios a la Asamblea Nacional Constituyente, invocando la protección de Dios, y con el fin de fortalecer la unidad de la Nación y asegurar a sus integrantes la vida, la convivencia, el trabajo, la justicia, la igualdad, el conocimiento, la libertad y la paz, dentro de un marco jurídico, democrático y participativo que garantice un orden político, económico y social justo, y comprometido a impulsar la integración de la comunidad latinoamericana decreta, sanciona y promulga la CONSTITUCION POLITICA DE COLOMBIA","Asamblea Constituyente",null,"X","Artículos 69 (Autonomía Universitaria , 345 y 352 (Del presupuesto)"]
[null,null,null,null,"Ley 38",1989,"Normativa del Presupuesto General de la Nación.","Congreso de la República",null,"X","Toda"]
[null,null,null,null,"Ley 43",1990,"Por la cual se adiciona la Ley 145 de 1960, reglamentaria de la profesión de Contador Público y se dictan otras disposiciones.","Congreso de la República",null,"X","Toda"]
[null,null,null,null,"Ley 30",1992,"Por la cual se organiza el servicio público de la Educación Superior","El Congreso de Colombia",null,"X","Artículos 57, 84,85,86,87, (Del régimen especial de las universidades del estado y de las otras Instituciones de Educación Superior estatales u oficiales) y 94 (Del régimen de contratación y control fiscal)"]
[null,null,null,null,"Ley 179",1994,"Por el cual se introducen algunas modificaciones a la Ley 38 de 1989 Orgánica de Presupuesto.","Congreso de la República",null,"X","Toda"]
[null,null,null,null,"Ley 190",1995,"Por la cual se dictan normas tendientes a preservar la moralidad en la Administración Pública y se fijan disposiciones con el fin de erradicar la corrupción administrativa.","Congreso de la República",null,"X","Art. 48"]
[null,null,null,null,"Ley 223",1995,"Por la cual se expiden normas sobre Racionalización Tributaria y se dictan otras disposiciones.","Congreso de la República",null,"X","Toda"]
[null,null,null,null,"Ley 819",2003,"Por la cual se dictan normas orgánicas en materia de presupuesto, responsabilidad y transparencia fiscal y se dictan otras disposiciones.","Congreso de la República",null,"X","Toda"]
[null,null,null,null,"Ley 1437",2011,"Por la cual se expide el Código de Procedimiento Administrativo y de lo Contencioso Administrativo.","Congreso de la República",null,"X","Toda"]
[null,null,null,null,"Ley 1473",2011,"Por medio de la cual se establece una regla fiscal y se dictan otras disposiciones.","Congreso de la República",null,"X","Toda"]
[null,null,null,null,"Ley 1607 ",2012,"Por la cual se expiden normas en materia tributaria y se dictan otras disposiciones.","Congreso de la República",null,"X","Toda"]
[null,null,null,null,"Ley 1697",2013,"Por la cual se crea la estampilla pro Universidad Nacional de Colombia y demás Universidades Estatales de Colombia.","Congreso de la República",null,"X","Toda"]
[null,null,null,null,"Ley 1739 ",2014,"Por medio de la cual se modifica el Estatuto Tributario, la Ley 1607 de 2012, se crean mecanismos de lucha contra la evasión y se dictan otras disposiciones.","Congreso de la República",null,"X","Toda"]
[null,null,null,null,"Ley 1819 ",2016,"Por medio de la cual se adopta una reforma tributaria estructural, se fortalecen los mecanismos para la lucha contra la evasión y la elusión fiscal, y se dictan otras disposiciones.","Congreso de la República",null,"X","Toda"]
[null,null,null,null,"Ley 1825 ",2017,"Por medio del cual se dictan disposiciones y emisión de estampilla universidad distrital francisco José de caldas 50 años","Congreso de la República",null,"X","Toda"]
[null,null,null,null,"Decreto 2627",1993,"Por el cual se establece el Procedimiento para la devolución del Impuesto a las Ventas a las instituciones Estatales u Oficiales de Educación Superior.","Presidencia de la República",null,"X","Toda"]
[null,null,null,null,"Decreto 111",1996,"Por el cual se compilan la Ley 38 de 1989, la Ley 179 de 1994 y la Ley 225 de 1995 que conforman el Estatuto Orgánico del Presupuesto.","Presidencia de la República",null,"X","Art. 73"]
[null,null,null,null,"Decreto 630",1996,"Por el cual se modifica el Decreto 359 de 1995. ","Presidencia de la República",null,"X","Art. 1"]
[null,null,null,null,"Decreto 1279",2002,"Por el cual se establece el Régimen salarial y Prestacional de los Docentes de las Universidades Estatales.","Presidencia de la República",null,"X","Todo"]
[null,null,null,null,"Decreto 807",1993,"por el cual se armonizan el Procedimiento y la Administración de los tributos distritales con el Estatuto Tributario Nacional y de dictan otras disposiciones.","Alcaldía Mayor de Bogotá.",null,"X","Toda"]
[null,null,null,null,"Decreto 714",1996,"Por el cual se compilan el Acuerdo 24 de 1995 y Acuerdo 20 de 1996 que conforman el Estatuto Orgánico del Presupuesto Distrital.","Alcaldía Mayor de Bogotá.",null,"X","Arts. 13,18,52,55,56,57"]
[null,null,null,null,"Decreto 352 ",2002,"Estatuto Tributario de Bogotá. Por el cual se compila y actualiza la normativa sustantiva tributaria vigente, incluyendo las modificaciones generadas por la aplicación de nuevas normas nacionales que se deban aplicar a los tributos del Distrito Capital, y las generadas por acuerdos del orden distrital.","Alcaldía Mayor de Bogotá.",null,"X","Todo"]
[null,null,null,null,"Decreto 362 ",2002,"Por el cual se actualiza el procedimiento tributario de los diferentes impuestos distritales, de conformidad con su naturaleza y estructura funcional.","Alcaldía Mayor de Bogotá.",null,"X","Todo"]
[null,null,null,null,"Decreto 93",2003,"Por medio del cual se reglamenta el recaudo y giro de la Estampilla Universidad Distrital Francisco José de Caldas 50 años.","Alcaldía Mayor de Bogotá.",null,"X","Todo"]
[null,null,null,null,"Decreto 580 ",2007,"Por medio del cual se adopta el Manual del usuario del Sistema de Información de Procesos Judiciales SIPROJ WEB BOGOTÁ y Se dictan otras disposiciones en la materia para asegurar su funcionamiento.","Alcaldía Mayor de Bogotá.",null,"X","Todo"]
[null,null,null,null,"Decreto 165 ",2013,"Por medio del cual se delega y asignan unas funciones en el Fondo de Vigilancia y Seguridad y en la Secretaría Distrital de Hacienda, con relación al recaudo, administración, ejecución y control de los recursos a que hace referencia el artículo 120 de la Ley 418 de 1997, modificado por el artículo 37 de la Ley 782 de 2002, a su vez reformado por el artículo 6° de la Ley 1106 de 2006, y se dictan otras disposiciones.","Alcaldía Mayor de Bogotá.",null,"X","Todo"]
[null,null,null,null,"Decreto 286",2016,"Por medio del cual se modifica el Decreto 234 de 2015.","Alcaldía Mayor de Bogotá.",null,"X","Todo"]
[null,null,null,null,"Decreto 216 ",2017,"Por el cual se reglamentan el Decreto 714 de 1996, Estatuto Orgánico de Presupuesto Distrital y se dictan otras disposiciones.","Alcaldía Mayor de Bogotá.",null,"X","Todo"]
[null,null,null,null,"Decreto  624 ",1989,"Por el cual se expide el Estatuto Tributario de los impuestos administrados por la Dirección General de Impuesto Nacionales.","Dirección de Impuestos y Aduanas Nacionales, DIAN.",null,"X","Toda"]
[null,null,null,null,"Decreto 3258",2002,"Por el cual se expide el Estatuto Tributario de los impuestos administrados por la Dirección General de Impuesto Nacionales.","Dirección de Impuestos y Aduanas Nacionales, DIAN.",null,"X","Todo"]
[null,null,null,null,"Decreto 2623 ",2014,"Por el cual se fijan los lugares y plazos para la presentación de las declaraciones tributarias y para el pago de los impuestos, anticipos y retenciones en la fuente y se dictan otras disposiciones.","Dirección de Impuestos y Aduanas Nacionales, DIAN",null,"X","Todo"]
[null,null,null,null,"Decreto 176 ",2015,"Modifica el Decreto 584 del 19/12/2014.","Secretaría de Hacienda Distrital",null,"X","Todo"]
[null,null,null,null,"Acuerdo 024",1995,"Estatuto Orgánico de Presupuesto.","Concejo de Bogotá, D.C.",null,"X","Todo"]
[null,null,null,null,"Acuerdo 053 ",2002,"Por medio del cual se ordena la Emisión de la Estampilla Universidad Distrital Francisco José de Caldas 50 años, en cumplimiento a lo dispuesto en la Ley 648 de 2001.","Concejo de Bogotá, D.C.",null,"X","Todo"]
[null,null,null,null,"Acuerdo 063",2002,"Por el cual se definen los Procedimientos de armonización del Presupuesto con los Planes de Desarrollo.","Concejo de Bogotá, D.C.",null,"X","Todo"]
[null,null,null,null,"Resolución 1013 ",2019,"Por el cual se fijan las Escalas de Viáticos.","Presidencia de la República",null,"X","Toda"]
[null,null,null,null,"Resolución 119",2006,"Por la cual se adopta el Modelo Estándar de Procedimientos para la Sostenibilidad del Sistema de Contabilidad Pública.","Contaduría General de la Nación",null,"X","Toda"]
[null,null,null,null,"Resolución 355",2007,"Por la cual se adopta el Plan General de Contabilidad Pública.","Contaduría General de la Nación",null,"X","Toda"]
[null,null,null,null,"Resolución 356 ",2007,"por la cual se adopta el Manual de Procedimientos del Régimen de Contabilidad Pública.","Contaduría General de la Nación",null,"X","Toda"]
[null,null,null,null,"Resolución 357",2008,"Por la cual se adopta el Procedimiento de Control Interno Contable y de Reporte del Informe Anual de Evaluación a la Contaduría General de la Nación.","Contaduría General de la Nación",null,"X","Toda"]
[null,null,null,null,"Resolución 669 ",2008,"Por la cual se modifica el Plan General de Contabilidad Pública y el Manual de Procedimientos del Régimen de Contabilidad Pública.","Contaduría General de la Nación",null,"X","Toda"]
[null,null,null,null,"Resolución 422 ",2011,"Por medio de la cual se fijan los parámetros para el envío de información a la UAE Contaduría General de la Nación relacionada con el Boletín de Deudores Morosos del Estado (BDME).","Contaduría General de la Nación",null,"X","Toda"]
[null,null,null,null,"Resolución 139",2015,"Por la cual se incorpora, como parte del Régimen de Contabilidad Pública, el Marco normativo para empresas que no cotizan en el mercado de valores, y que no captan ni administran ahorro del público; y se define el Catálogo General de Cuentas que utilizarán las entidades obligadas a observar dicho marco.","Contaduría General de la Nación",null,"X","Toda"]
[null,null,null,null,"Resolución 161",2015,"Por la cual  se incorpora, en el Régimen de Contabilidad  Pública, el marco normativo contable aplicable a entidades de gobierno y se dictan otras disposiciones ","Contaduría General de la Nación",null,"X","Toda"]
[null,null,null,null,"Resolución 533",2015,"Por la cual se incorpora Por la cual se incorpora, en el Régimen de Contabilidad Pública, el marco normativo aplicable para entidades de gobierno y se dictan otras disposiciones.","Contaduría General de la Nación",null,"X","Toda"]
[null,null,null,null,"Resolución 620",2015,"Por la cual se incorpora el Catálogo General de Cuentas al Marco normativo para entidades de gobierno.","Contaduría General de la Nación",null,"X","Toda"]
[null,null,null,null,"Resolución 628 ",2015,"Por la cual se incorpora, el Régimen de Contabilidad Pública, el referente teórico y metodológico de la regulación contable pública.","Contaduría General de la Nación",null,"X","Toda"]
[null,null,null,null,"Resolución 192",2016,"Por la cual se incorpora, en la estructura del Régimen de Contabilidad Pública, el elemento Procedimientos Transversales.","Contaduría General de la Nación",null,"X","Toda"]
[null,null,null,null,"Resolución 525",2016,"Por la cual se incorpora, en el Régimen de Contabilidad Pública, la Norma de Proceso Contable y Sistema Documental Contable.","Contaduría General de la Nación",null,"X","Toda"]
[null,null,null,null,"Resolución 706 ",2016,"Por la cual se establece la Información a reportar, los requisitos y los plazos de envío a la Contaduría General de la Nación.","Contaduría General de la Nación",null,"X","Toda"]
[null,null,null,null,"Resolución 097 ",2017,"Por la cual se modifica el Manual de Procedimientos del Régimen de Contabilidad Publico adoptado mediante la Resolución 356 del 5 de septiembre de 2007 y la Resolución 706 del 16 de diciembre de 2016.","Contaduría General de la Nación",null,"X","Toda"]
[null,null,null,null,"Resolución 182",2017,"Por la cual se incorpora, en los Procedimientos Transversales del Régimen de Contabilidad Pública, el Procedimiento para la preparación y publicación de los informes financieros y contables mensuales, que deban publicarse de conformidad con el numeral 36 del artículo 34 de la Ley 734 de 2002\"","Contaduría General de la Nación",null,"X","Toda"]
[null,null,null,null,"Resolución 484",2017,"Por la cual se modifican el anexo de la Resolución 533 de 2015 en lo relacionado con las Normas para el Reconocimiento, Medición, Revelación y Presentación de los Hechos Económicos del Marco Normativo para Entidades de Gobierno y el artículo 42 de la Resolución 533 de 2015, y se dictan otras disposiciones\"","Contaduría General de la Nación",null,"X","Toda"]
[null,null,null,null,"Resolución 228",2013,"Por la cual se establece el grupo de obligados a suministrar a la U.A.E. Dirección de Impuestos y Aduanas Nacionales DIAN, por el año gravable 2014, la información tributaria establecida en los artículos 623, 623-2 (sic), 623-3, 624, 625, 627, 628, 629, 629-1, 631, 631-1, 631-2, 631-3 y 633 del Estatuto Tributario, en el Decreto 1738 de 1998 y en el artículo 58 de la Ley 863 de 2003 y en el Decreto 4660 de 2007, se señala el contenido, características técnicas para la presentación y se fijan los plazos para la entrega.","Dirección de Impuestos y Aduanas Nacionales, DIAN",null,"X","Toda"]
[null,null,null,null,"Resolución 219 ",2014,"Para precisar el contenido y las características de la información que se debe  presentar a la Dirección de Impuestos y Aduanas Nacionales, DIAN.","Dirección de Impuestos y Aduanas Nacionales, DIAN",null,"X","Toda"]
[null,null,null,null,"Resolución 112",2015,"Por la cual se establece el grupo de obligados a suministrar a la U.A.E. Dirección de Impuestos y Aduanas Nacionales DIAN, por el año gravable 2016, la información tributaria establecida en los artículos 623, 623-2 (sic), 623-3, 624, 625, 627, 628, 629, 629-1, 631, 631- 1, 631-2, 631-3 y 633 del Estatuto Tributario, en el Decreto 1738 de 1998 y en el artículo 58 de la Ley 863 de 2003 y en el Decreto 4660 de 2007, se señala el contenido, características técnicas para la presentación y se fijan los plazos para la entrega.","Dirección de Impuestos y Aduanas Nacionales, DIAN",null,"X","Toda"]
[null,null,null,null,"Resolución 084",2016,"Por la cual se modifica parcialmente la Resolución número 000112 del 29 de octubre de 2015, que señala los obligados, contenidos y especificaciones técnicas de la información tributaria año gravable 2016.","Dirección de Impuestos y Aduanas Nacionales, DIAN",null,"X","Toda"]
[null,null,null,null,"Resolución 016",2017,"Por la cual se modifican parcialmente la Resolución No. 000112 del 29 de octubre del 2015 y la Resolución No. 000084 del 30 de diciembre de 2016.","Dirección de Impuestos y Aduanas Nacionales, DIAN",null,"X","Toda"]
[null,null,null,null,"Resolución 465",1999,"Mediante la cual se adopta el Manual de Ejecución Presupuestal de las Entidades que integran el Presupuesto Anual del Distrito Capital, y las circulares, instructivos, memorandos y formatos que en su oportunidad expida la Secretaría de Hacienda.","Secretaría de Hacienda Distrital",null,"X","Toda"]
[null,null,null,null,"Resolución 001",2001,"Por la cual se expide el Manual de Procedimientos Administrativos y Contables para el Manejo y Control de los Bienes en los Entes Públicos del Distrito Capital.","Secretaría de Hacienda Distrital",null,"X","Toda"]
[null,null,null,null,"Resolución 1602",2001,"Por medio de la cual se adopta el Manual de Programación, Ejecución y Cierre Presupuestal de las entidades que conforman el Presupuesto Anual del Distrito Capital, las Empresas Industriales y Comerciales del Distrito y Sociedades por Acciones y de Economía Mixta sujetas al régimen de aquellas y de las Empresas Sociales del Estado.","Secretaría de Hacienda Distrital",null,"X","Toda"]
[null,null,null,null,"Resolución 012 ","2003-04-30","Por la cual se solicita información a los responsables del recaudo de la Estampilla Universidad Distrital Francisco José de Caldas 50 años.","Secretaría de Hacienda Distrital",null,"X","Toda"]
[null,null,null,null,"Resolución 866",2004,"Por medio de la cual se adopta el Manual de Procedimientos para la Gestión de las Obligaciones Contingentes en Bogotá D.C. ","Secretaría de Hacienda Distrital",null,"X","Toda"]
[null,null,null,null,"Resolución 169",2005,"Por la cual se modifica el Manual de Procedimientos para la Gestión de las Obligaciones Contingentes en Bogotá D.C.","Secretaría de Hacienda Distrital",null,"X","Toda"]
[null,null,null,null,"Resolución 303",2007,"Por la cual se modifica parcialmente la Resolución 866 del 8 de septiembre de 2004, que adopta el Manual de Procedimientos para la Gestión de las Obligaciones Contingentes en Bogotá D.C.","Secretaría de Hacienda Distrital",null,"X","Toda"]
[null,null,null,null,"Resolución 397 ",2008,"Por la cual se modifica la Resolución 866 de 2004.","Secretaría de Hacienda Distrital",null,"X","Toda"]
[null,null,null,null,"Resolución 314",2009,"Por la cual se adopta el Protocolo de Seguridad para las Tesorerías de las Entidades Descentralizadas  que conforman el Presupuesto Anual del Distrito Capital.","Secretaría de Hacienda Distrital",null,"X","Toda"]
[null,null,null,null,"Resolución 79 ",2013,"Por medio de la cual se adopta para la Administración del Impuesto de Industria y Comercio, avisos y tableros en el Distrito Capital de Bogotá la Clasificación de Actividades Económicas.","Secretaría de Hacienda Distrital",null,"X","Toda"]
[null,null,null,null,"Resolución  143 ",2013,"Por medio de la cual se establece el Procedimiento para el recaudo y reporte de la información de la Contribución Especial, de conformidad con lo establecido en le Decreto Distrital 165 de 2013.","Secretaría de Hacienda Distrital",null,"X","Toda"]
[null,null,null,null,"Resolución 226",2014,"Por medio de la cual se adopta y consolida el Manual de Programación, Ejecución y Cierre Presupuestal del Distrito Capital.","Secretaría de Hacienda Distrital",null,"X","Módulo 1"]
[null,null,null,null,"Resolución 137",2015,"“Por la cual se modifica la Resolución SDH- 000290 del 24 de diciembre de 2014 “Por la cual se establecen los lugares, plazos y descuentos que aplican para cumplir con las obligaciones formales y sustanciales para la presentación de las declaraciones tributarias y el pago de los tributos administrados por la Dirección Distrital de Impuestos de Bogotá, DIB de la Secretaría Distrital de Hacienda.","Secretaría de Hacienda Distrital",null,"X","Toda"]
[null,null,null,null,"Resolución 17158",2015,"Por la cual se establecen las personas naturales, jurídicas, consorcios, uniones temporales y/o sociedades de hecho, el contenido y las características de la información que deben suministrar a la Dirección Distrital de Impuestos de Bogotá – DIB.","Secretaría de Hacienda Distrital",null,"X","Toda"]
[null,null,null,null,"Resolución 37236 ",2015,"Que modifica la Resolución DDI-094892 de diciembre 23 de 2014. Por medio de la cual se adoptan los formularios oficiales para autoliquidación por parte del contribuyente, de diligenciamiento electrónico o litográfico, para la declaración y pago de los tributos administrados por la Dirección Distrital de Impuestos de Bogotá – DIB de la Secretaría Distrital de Hacienda, para ser utilizados por los años 2015 y anteriores.","Secretaría de Hacienda Distrital",null,"X","Toda"]
[null,null,null,null,"Resolución 415 ",2016,"Por medio de la cual se unifica y simplifica el procedimiento para el reporte de la información de las Estampillas Universidad Distrital Francisco José de Caldas 50 años, Pro Cultura, Pro Personas Mayores y Cincuenta Años de Labor de la Universidad Pedagógica Nacional, y de la Contribución Especial de Obra Pública.","Secretaría de Hacienda Distrital",null,"X","Toda"]
[null,null,null,null,"Resolución 011",2014,"Por medio de la cual se prescriben los Métodos y se establecen la forma, términos y procedimientos para la rendición de la cuenta y la presentación de informes, se reglamenta su revisión y se unifica la información que se presenta a la Contraloría de Bogotá D.C., y se dictan otras disposiciones.","Contraloría de Bogotá",null,"X","Toda"]
[null,null,null,null,"Resolución 004 ",2016,"Por la cual se modifica parcialmente la Resolución Reglamentaria No. 011 del 28 de febrero de 2014.","Contraloría de Bogotá",null,"X","Toda"]
[null,null,null,null,"Resolución 8",2000,"Por la cual se compendia el Régimen de Cambios Internacionales.","Banco de la República",null,"X","Toda"]
[null,null,null,null,"Circular 001 ",2006,"Aplicación Acuerdos 187 Y 188 de 2005 y el Decreto de 2005 Estampillas Pro Cultura y Pro Personas Mayores.","Secretaría de Hacienda Distrital",null,"X","Toda"]
[null,null,null,null,"Circular 002",2015,"Guía de ejecución, seguimiento y cierre presupuestal de 2015 y programación presupuestal vigencia 2016.","Secretaría de Hacienda Distrital",null,"X","Toda"]
[null,null,null,null,"Circular 003",2015,"Aspectos operativos del recaudo de Estampillas Procultura, Pro Personas Mayores, UD FJC; U Pedagógica.","Secretaría de Hacienda Distrital",null,"X","Toda"]
[null,null,null,null,"Circular 001 ",2018,"Aplicación tarifa y distribución estampilla Universidad Distrital Francisco José de Caldas 50 años","Secretaría de Hacienda Distrital",null,"X","Toda"]
[null,null,null,null,"Circular No. DCIN-83",2004,"Manual de Cambios Internacionales.","Banco de  la Republica",null,"X","Toda"]
[null,null,null,null,"Cartilla del Sistema de Información PREDIS",2015,"Guía para adelantar aspectos relevantes de la información que se debe cargar en el sistema PREDIS.","Secretaría de Hacienda Distrital",null,"X","Toda"]
[null,null,null,null,"Directiva 001",2013,"Políticas de Inversión y de Riesgo para el manejo de recursos administrados por los Establecimientos Públicos.","Secretaría de Hacienda Distrital",null,"X","Toda"]
[null,null,null,null,"Sentencia 220",1997,"UNIVERSIDAD-Fundamento y objetivo/AUTONOMIA PLENA DE LA UNIVERSIDAD","Corte constitucional de Colombia",null,"X","Toda"]
[null,null,null,null,"Instructivo 002 ",2015,"Instrucciones para la transición al marco normativo contable para Entidades del Gobierno ","Contaduría General de la Nación",null,"X","Toda"]
[null,null,null,null,"Acuerdo 024",1989,"Por el cual se normaliza el Procedimiento de Liquidación de Prestaciones Sociales para los Empleados Públicos Docentes y se fijan otros derechos salariales.","Consejo Superior Universitario","X",null,"Todo"]
[null,null,null,null,"Acuerdo 027",1993,"Por el cual se expide el Estatuto Estudiantil de la Universidad Distrital Francisco José de Caldas.","Consejo Superior Universitario","X",null,"Titulo IV"]
[null,null,null,null,"Acuerdo 004",1996,"Por el cual se expide el estatuto académico de la Universidad Francisco José de Caldas","Consejo Superior Universitario","X",null,"Todo"]
[null,null,null,null,"Acuerdo 003",1997,"Por el cual se expide el Estatuto General de la Universidad Distrital Francisco José de Caldas.","Consejo Superior Universitario","X",null,"Todo"]
[null,null,null,null,"Acuerdo 011",2002,"Por el cual se expide el estatuto del docente de carrera de la Universidad Francisco José de Caldas","Consejo Superior Universitario","X",null,"Todo"]
[null,null,null,null,"Acuerdo 004",2005,"Por el cual se unifica el Régimen de Liquidación de Matriculas para los estudiantes de la Universidad Distrital Francisco José de Caldas.","Consejo Superior Universitario","X",null,"Art.13 y Capitulo 3"]
[null,null,null,null,"Acuerdo 003 ",2015,"Por el cual se expide el Estatuto de Contratación de la Universidad Distrital Francisco José de Caldas.","Consejo Superior Universitario","X",null,"Todo"]
[null,null,null,null,"Resolución 132",2017,"Por la cual se reglamenta la devolución de saldos por concepto de matriculas y derechos pecuniarios","Consejo Académico ","X",null,"Toda"]
[null,null,null,null,"Resolución 1101",2002,"Por la cual se estable el Manual Descriptivo de Funciones Generales y Específicas y los Requisitos Mínimos para los Cargos de la Planta de Personal Administrativo de la Universidad Distrital Francisco José de Caldas.","Rectoría","X",null,"Toda"]
[null,null,null,null,"Resolución 185",2006,"Por la cual se modifica la Resolución de Rectoría 165 del 14 de agosto de 1998.","Rectoría","X",null,"Toda"]
[null,null,null,null,"Resolución 320",2006,"Por la cual se modifican los Artículos 5º y 6º de la Resolución 025 del 26 de enero de 2006.","Rectoría","X",null,"Toda"]
[null,null,null,null,"Resolución 286",2007,"Por la cual se deroga la Resolución 451 de noviembre 29 de 2006 y se constituye y se integra el Comité Asesor para la Sostenibilidad del Sistema de contabilidad Pública en la Universidad Distrital Francisco José de Caldas y se Dictan otras disposiciones.","Rectoría","X",null,"Toda"]
[null,null,null,null,"Resolución 387",2012,"Por la cual se establece el mecanismo para elevar la solicitud de devolución del IVA ante la DIAN y se autoriza a un funcionario.","Rectoría","X",null,"Toda"]
[null,null,null,null,"Resolución 533",2013,"Por la cual se crea el Comité de Inversiones y se adopta el reglamento que establece los lineamientos y Políticas básicas para la administración de los excedentes de tesorería de la Universidad Distrital Francisco José de Caldas.","Rectoría","X",null,"Toda"]
[null,null,null,null,"Resolución 262",2015,"Por medio de la cual se reglamenta el Acuerdo 03 de 2015, Estatuto de Contratación de la Universidad Distrital Francisco José de Caldas y se dictan otras disposiciones.","Rectoría","X",null,"Toda"]
[null,null,null,null,"Resolución 247",2018,"Por la cual se crea el Comité de Inversiones y se adopta el reglamento que establece los lineamientos y Políticas básicas para la administración de los excedentes de tesorería de la Universidad Distrital Francisco José de Caldas.","Rectoría","X",null,"Toda"]
[null,null,null,null,"Resolución 135",2019,"por la cual se modifica la resolución 549 de 2019, mediante la cual se adoptó el Manual de cobro coactivo de la universidad...”.  ","Rectoría","X",null,"Artículo 10"]
[null,null,null,null,"Resolución 311 ",2019,"Por la cual se establecen disposiciones y se reglamenta el procedimiento general de solicitud de avances, aprobación, desembolsos y su correspondiente legalización en la UNIVERSIDAD FRANCISCO JOSÉ DE CALDAS","Rectoría","X",null,"Toda"]
[null,null,null,null,"Resolución 416",2019,"Por el cual se fijan las Escalas de Viáticos.","Rectoría","X",null,"Toda"]
[]
[null,null,null,null,"ELABORÓ",null,"REVISÓ","APROBÓ"]
[null,null,null,null,"Nombre: Grupo SIGUD\nCargo: N/A\nFecha: 01 de Octubre de 2019",null,"Nombre: Eusebio Antonio Rangel Roa, \nCargo: Jefe de la División de Recursos Financieros\nFecha: 16 de Octubre de 2019","Nombre: Eusebio Antonio Rangel Roa \nCargo: Jefe de la División de Recursos Financieros\nFecha: 16 de Octubre de 2019"]
[null,null,null,null,null,null,"Nombre: Álvaro Mahecha Rangel \nCargo: Jefe de la Sección de Contabilidad\nFecha: 09 de Octubre de 2019"]
[null,null,null,null,null,null,"Nombre: Franklin Wilches \nCargo: Jefe de la Sección de Presupuesto\nFecha: 13 de Septiembre de 2019"]
[null,null,null,null,null,null,"Nombre: Jacqueline Ortiz Arenas\nCargo: Tesorera General\nFecha: 16 de Octubre de 2019"]

{"sheet":"GJ","index":20,"n_rows":56,"n_cols":11,"rows_kept":56,"cut":false,"hidden":false,"merged":[[54,4,54,5],[54,7,54,8],[55,4,55,5],[55,7,55,8],[5,1,5,2],[5,4,5,10],[7,1,7,10],[9,1,52,1],[9,2,52,2],[9,3,52,3],[1,1,3,2],[1,4,1,7],[1,8,1,9],[1,10,3,10],[2,4,2,7],[2,8,2,9],[3,4,3,7],[3,8,3,9]]}
[]
[null,null,null,null,"NORMOGRAMA POR PROCESOS",null,null,null,"Código: GI-PR-002-FR-017"]
[null,null,null,null,"Macroproceso: Direccionamiento Estratégico",null,null,null,"Versión: 02"]
[null,null,null,null,"Proceso: Gestión Integrada",null,null,null,"Fecha de Aprobación: 17/11/2017"]
[null," "]
[null,"Proceso",null,null,"Gestión Jurídica"]
[]
[null,"IDENTIFICACIÓN DE REQUISÍTOS LEGALES Y/O NORMATIVOS -  IDENTIFICACIÓN DEL REQUISÍTO"]
[null,"Macroproceso","Proceso","SUBPROCESO","Clasificación de la Norma","Año","Temática","Expedida por","Interna","Externa","Artículo Aplicable"]
[null,{"$f":"IF(E6=[25]Datos!B3,\"N/A\",IF(OR(E6=[25]Datos!B4,E6=[25]Datos!B5,E6=[25]Datos!B6,E6=[25]Datos!B7,E6=[25]Datos!B8),\"Direccionamiento Estratégico\",IF(OR(E6=[25]Datos!B9,E6=[25]Datos!B10,E6=[25]Datos!B11),\"Gestión Académica\",IF(OR(E6=[25]Datos!B12,E6=[25]Datos!B13,E6=[25]Datos!B14,E6=[25]Datos!B15,E6=[25]Datos!B16),\"Apoyo a lo Misional\",IF(OR(E6=[25]Datos!B17,E6=[25]Datos!B18,E6=[25]Datos!B19,E6=[25]Datos!B20,E6=[25]Datos!B21,E6=[25]Datos!B22,E6=[25]Datos!B23),\"Gestión de Recursos\",IF(OR(E6=[25]Datos!B24,E6=[25]Datos!B25),\"Evaluación y Control\",\"-\"))))))","v":"Gestión de Recursos"},{"$f":"IF(E6=\"\",\"-\",E6)","v":"Gestión Jurídica"},"Prospectiva y Planeacion Estrategica","Constitución Política de Colombia",1991,"Por la cual se garantiza la autonomía universitaria.","Asamblea Nacional Constituyente",null,"X","Toda"]
[null,null,null,null,"Ley 57",1887,"Con arreglo al artículo 52 de la Constitución de la República, declárase incorporado en el Código Civil el Título III (arts. 19-52) de la misma Constitución.","Congreso de la Repúbica",null,"X","Toda"]
[null,null,null,null,"Ley 30",1992,"Por la cual se organiza el servicio público de la educación superior.","Congreso de la Repúbica",null,"X","Toda"]
[null,null,null,null,"Ley 4",1992,"Mediante la cual se señalan las normas, objetivos y criterios que debe observar el Gobierno Nacional para la fijación del régimen salarial y prestacional de los empleados públicos, de los miembros del Congreso Nacional y de la Fuerza Pública y para la fijación de las prestaciones sociales de los Trabajadores Oficiales y se dictan otras disposiciones, de conformidad con lo establecido en el artículo 150, numeral 19, literales e) y f) de la Constitución Política.","Congreso de la Repúbica",null,"X","Toda"]
[null,null,null,null,"Ley 80",1993,"Por la cual se expide el Estatuto General de Contratación de la Administración Pública. ","Congreso de la Repúbica",null,"X","Toda"]
[null,null,null,null,"Ley 100",1993,"Por la cual se crea el Sistema de Seguridad Social Integral y se dictan otras disposiciones. ","Congreso de la Repúbica",null,"X","Toda"]
[null,null,null,null,"Ley 599",2000,"Por la cual se expide el Código Penal. ","Congreso de la Repúbica",null,"X","Toda"]
[null,null,null,null,"Ley 647",2001,"Por la cual se modifica el inciso 3o del artículo 57 de la Ley 30 de 1992. ","Congreso de la Repúbica",null,"X","Toda"]
[null,null,null,null,"Lery 749",2002,"Por la cual se organiza el servicio público de la educación superior en las modalidades de formación técnica profesional y tecnológica, y se dictan otras disposiciones","Congreso de la Repúbica",null,"X","Toda"]
[null,null,null,null,"Ley 797",2003,"Por la cual se reforman algunas disposiciones del Sistema General de Pensiones previsto en la Ley 100 de 1993 y se adoptan disposiciones sobre los Regímenes Pensionales exceptuados y especiales.","Congreso de la Repúbica",null,"X","Toda"]
[null,null,null,null,"Ley 1066",2006,"Por la cual se dictan normas para la normalización de la cartera pública y se dictan otras disposiciones","Congreso de la Repúbica",null,"X","Toda"]
[null,null,null,null,"Ley 1188",2008,"por la cual se regula el registro calificado de programas de educación superior y se dictan otras disposiciones","Congreso de la Repúbica",null,"X","Toda"]
[null,null,null,null,"Ley 1286",2009,"Por la cual se modifica la Ley 29 de 1990, se transforma a Colciencias en Departamento Administrativo, se fortalece el Sistema Nacional de Ciencia, Tecnología e Innovación en Colombia y se dictan otras disposiciones","Congreso de la Repúbica",null,"X","Toda"]
[null,null,null,null,"Ley 1474",2011,"Por la cual se dictan normas orientadas a fortalecer los mecanismos de prevención, investigación y sanción de actos de corrupción y la efectividad del control de la gestión pública.","Congreso de la Repúbica",null,"X","Toda"]
[null,null,null,null,"Ley 1437",2011,"Por la cual se expide el Código de Procedimiento Administrativo y de lo Contencioso Administrativo. ","Congreso de la Repúbica",null,"X","Toda"]
[null,null,null,null,"Ley 1755",2015,"Por medio de la cual se regula el Derecho Fundamental de Petición y se sustituye un título del Código de Procedimiento Administrativo y de lo Contencioso Administrativo","Congreso de la Repúbica",null,"X","Toda"]
[null,null,null,null,"Ley 1952",2019,"Por medio de la cual se expide el Código General Disciplinario se derogan la Ley 734 de 2002 y algunas disposiciones de la Ley 1474 de 2011, relacionadas con el Derecho Disciplinario","Congreso de la Repúbica",null,"X","Toda"]
[null,null,null,null,"Ley 2195",2022,"Por medio de la cual se adoptan medidas en materia de transparencia, prevención y lucha contra la corrupción y se dictan otras disposiciones","Congreso de la Repúbica",null,"X","Toda"]
[null,null,null,null,"Ley 2220",2022,"Por medio de la cual se expide el estatuto de conciliación y se dictan otras disposiciones","Congreso de la Repúbica",null,"X","Toda"]
[null,null,null,null,"Ley 2213",2022,"Por medio de la cual se establece la vigencia permanente del decreto legislativo 806 de 2020 y se adoptan medidas para implementar las tecnologías de la información y las comunicaciones en las actuaciones judiciales, agilizar los procesos judiciales y flexibilizar la atención a los usuarios del servicio de justicia y se dictan otras disposiciones","Congreso de la Repúbica",null,"X","Toda"]
[null,null,null,null,"Decreto Ley 410",1971,"Por el cual se expide el Código de Comercio. ","Presidencia de la República",null,"X","Todo"]
[null,null,null,null,"Decreto Ley 393",1991,"Por el cual se dictan normas sobre asociación para actividades científicas y tecnológicas, proyectos de investigación y creación de tecnologías","Presidencia de la República",null,"X","Todo"]
[null,null,null,null,"Decreto Ley 591",1991,"Por el cual se regulan las modalidades específicas de contratos de fomento de actividades científicas y tecnológicas","Departamento Nacional de Planeación",null,"X","Todo"]
[null,null,null,null,"Decreto 2591",1991,"por el cual se reglamenta la acción de tutela consagrada en el artículo 86 de la Constitución Política.","Presidencia de la República",null,"X","Todo"]
[null,null,null,null,"Decreto Ley 1299",1994,"por el cual se dictan las normas para la emisión, redención y demás condiciones de los bonos pensionales","Ministerio de Gobierno",null,"X","Todo"]
[null,null,null,null,"Decreto Ley 1314",1994,"por el cual se dictan las normas para la emisión y redención de los bonos pensionales por traslado de servidores públicos al régimen de prima media con prestación definida","Presidencia de la República",null,"X","Todo"]
[null,null,null,null,"Decreto Ley 19",2012,"Por el cual se dictan normas para suprimir o reformar regulaciones, Procedimientos y Trámites innecesarios existentes en la Administración Pública.","Presidencia de la República",null,"X","Todo"]
[null,null,null,null,"Decreto 1075",2015,"Por medio del cual se expide el Decreto Único Reglamentario del Sector Educación","Presidencia de la República",null,"X","Todo"]
[null,null,null,null,"Decreto Nacional 1082",2015,"Por medio del cual se expide el Decreto Único Reglamentario del sector Administrativo de Planeación Nacional","Presidencia de la República",null,"X","Solo las normas sobre garantías contractuales"]
[null,null,null,null,"Decreto Nacional 1083",2015,"Por medio del cual se expide el Decreto Único Reglamentario del Sector de Función Pública","Presidencia de la República",null,"X","Todo"]
[null,null,null,null,"Decreto Nacional 1833",2016,"Por medio del cual se compilan las normas del Sistema General de Pensiones","Presidencia de la República",null,"X","Todo"]
[null,null,null,null,"Decreto Nacional 780",2016,"Por medio del cual se expide el Decreto Único Reglamentario del Sector Salud y  Protección Social","Presidencia de la República",null,"X","Todo"]
[null,null,null,null,"Acuerdo 011 ",1988,"Por el cual se expide el Reglamento de Personal Administrativo de Empleados Públicos de la Universidad Distrital Francisco José de Caldas","Consejo Superior Universitario","X",null,"Excepto el Capíulo Décimo, el cual fue declarado nulo por sentencia del 22 de agosto de 1997 del Tribunal Administrativo de Cundinamarca (Sección Segunda)"]
[null,null,null,null,"Acuerdo 027",1993,"Por el cual se expide el Estatuto Estudiantil de la Universidad Distrital \nFrancisco José de Caldas. ","Consejo Superior Universitario","X",null,"Todo"]
[null,null,null,null,"Acuerdo 003",1997,"Por el cual se expide el Estatuto General de la Universidad Distrital Francisco José de Caldas. ","Consejo Superior Universitario","X",null,"Todo"]
[null,null,null,null,"Acuerdo 011",2002,"Por el cual se expide el Estatuto del Docente de Carrera de la Universidad Distrital Francisco José de Caldas","Consejo Superior Universitario","X",null,"Todo"]
[null,null,null,null,"Acuerdo 009",2007,"Por el cual se reglamenta el Estatuto Docente de la Universidad Distrital en cuanto a políticas y procedimientos para el Apoyo a la Formación Postgradual de alto nivel a Profesores de Carrera y se dictan otras disposiciones","Consejo Superior Universitario","X",null,"Todo"]
[null,null,null,null,"Acuerdo 003",2015,"Por el cual se expide el Estatuto General de Contratación de la Universidad Distrital Francisco José de Caldas.","Consejo Superior Universitario","X",null,"Todo"]
[null,null,null,null,"Resolución 1101",2002,"Por la cual se estable el manual descriptivo de funciones generales y  específicas y los requisitos mínimos para los cargos de la planta de personal administrativo de la Universidad Distrital Francisco José de Caldas.","Rectoría","X",null,"Todo"]
[null,null,null,null,"Resolución 734",2013,"por la cual se establecen medidas de control para\nConvenios Interadministrativos, Convenios de Asociación, Persona Jurídica con Entidades Privadas\nSin Ánimo de Lucro y Asociaciones Público Privadas","Rectoría","X",null,"Toda"]
[null,null,null,null,"Resolución 262 ",2015,"Convenios Interadministrativos, Convenios de Asociación, Persona Jurídica con Entidades Privadas","Rectoría","X",null,"Toda"]
[null,null,null,null,"Resolución 629",2016,"Sin Ánimo de Lucro y Asociaciones Público Privadas","Rectoría","X",null,"Toda"]
[null,null,null,null,"Resolución 549",2017,"Por la cual se adopta el Manual de Cobro Coactivo de la Universidad Distrital Francisco José de Caldas","Rectoría","X",null,"Toda"]
[null,null,null,null,"Resolución 135",2019,"Por la cual se modifica la Resolución 549 del 9 de octubre de 2017, mediante la cual se adoptó Manual de Cobro Coactivo de la Universidad Distrital Francisco José de Caldas","Rectoría","X",null,"Toda"]
[]
[null,null,null,null,"ELABORÓ",null,"REVISÓ","APROBÓ"]
[null,null,null,null,"Nombre: Natalia Pérez\nCargo: Especializada Oficina Asesora Jurídica\nFecha: 19 de septiembre de 2022",null,"Nombre: Javier Bolaños Zambrano\nCargo: Jefe de la Oficina Asesora Jurídica\nFecha: 19 de septiembre de 2022","Nombre:  José David Rivera Escobar\nCargo: Secretario General \nFecha: 19 de septiembre de 2022"]

{"sheet":"GEC","index":21,"n_rows":32,"n_cols":10,"rows_kept":32,"cut":false,"hidden":false,"merged":[[1,1,3,2],[1,3,1,6],[1,7,1,8],[1,9,3,9],[2,3,2,6],[2,7,2,8],[3,3,3,6],[3,7,3,8],[31,3,31,4],[31,6,31,7],[5,1,5,2],[5,3,5,9],[7,1,7,9],[9,1,28,1],[9,2,28,2],[30,3,30,4],[30,6,30,7]]}
[]
[null,null,null,"NORMOGRAMA POR PROCESOS",null,null,null,"Código: GI-PR-002-FR-017"]
[null,null,null,"Macroproceso: Direccionamiento Estratégico",null,null,null,"Versión: 02"]
[null,null,null,"Proceso: Gestión Integrada",null,null,null,"Fecha de Aprobación: 17/11/2017"]
[]
[null,"Proceso",null,"Gestión de Evaluación y Control"]
[]
[null,"IDENTIFICACIÓN DE REQUISÍTOS LEGALES Y/O NORMATIVOS -  IDENTIFICACIÓN DEL REQUISÍTO"]
[null,"Macroproceso","Proceso","Clasificación de la Norma","Año","Temática","Expedida por","Interna","Externa","Artículo Aplicable"]
[null,"Evaluación y Control",{"$f":"IF(D6=\"\",\"-\",D6)","v":"Gestión de Evaluación y Control"},"Constitución Política de Colombia  ",1991,"Constitución Política de Colombia.","Asamblea Nacional Constituyente ",null,"X ","Arts. 209, 269"]
[null,null,null,"Ley 30 ",1992,"Por el cual se organiza el servicio público de la Educación Superior.","Congreso de la República ",null,"X ","Toda"]
[null,null,null,"Ley 87",1993,"Por la cual se establecen normas para el ejercicio del control interno en las entidades y organismos del estado y se dictan otras disposiciones.","Congreso de la República ",null,"X","Toda"]
[null,null,null,"Ley 1474",2011,"Por la cual se dictan normas orientadas a fortalecer los mecanismos de prevención, investigación y sanción de actos de corrupción y la efectividad del control de la gestión pública.","Congreso de la República",null,"X ","Toda"]
[null,null,null,"Decreto 2145",1999,"Por el cual se dictan normas sobre el Sistema Nacional de Control Interno de las Entidades y Organismos de la Administración Pública del Orden Nacional y Territorial y se dictan otras disposiciones.","Presidencia de la República",null,"X ","Todo"]
[null,null,null,"Decreto 1082 ",2015,"Por medio del cual se expide el Decreto Único Reglamentario del Sector Administrativo de Planeación Nacional.","Presidencia de la República",null,"X ","Todo"]
[null,null,null,"Decreto 1083 ",2015,"Por medio del cual se expide el Decreto Único Reglamentario del Sector de Función Pública. Deroga los Decretos Nacionales   1537 de 2001. el 1599 de 2005,  y el Decreto 943 de 2014.","Presidencia de la República",null,"X ","Todo"]
[null,null,null,"Decreto 648",2017,"Por el cual se modifica y adiciona el Decreto 1083 de 2015, Reglamentario  Único del Sector de la Función Pública.","Presidencia de la República",null,"X ","Todo"]
[null,null,null,"Decreto 1499",2017,"Por medio del cual se modifica el Decreto 1083 de 2015, Decreto Único Reglamentario del Sector Función Pública, en lo relacionado con el Sistema de Gestión establecido en el artículo 133 de la Ley 1753 de 2015. Deroga el Decreto 1826 de 1994 y  la Ley  872 de 2003.","Presidencia de la República",null,"X ","Todo"]
[null,null,null,"Decreto 591 ",2018,"Por medio del cual se adopta el Modelo Integrado de Planeación y Gestión Nacional y se dictan otras disposiciones.  Deroga el Decreto 652 de 2011","Alcaldía Mayor de Bogotá",null,"X ","Todo"]
[null,null,null,"Acuerdo 021 ",1993,"Por el cual se crea la Unidad de Control Interno de la Universidad Distrital Francisco José de Caldas, se modifica la planta de personal administrativo, se suprimen unos cargos y se crean otros.","Consejo Superior Universitario","X ",null,"Todo"]
[null,null,null,"Acuerdo 003 ",1997,"Por el cual se expide el Estatuto General de la Universidad Distrital Francisco José de Caldas.","Consejo Superior Universitario","X ",null,"Todo"]
[null,null,null,"Resolución 929 ",1992,"Por la cual se organiza el Control Interno en la Universidad Distrital Francisco José de Caldas y se asignan algunas funciones.","Rectoría","X ",null,"Toda"]
[null,null,null,"Resolución 194 ",2010,"Por la cual se ajusta y actualiza la documentación del Sistema Integrado de Gestión, SIGUD, a través del Manual de Operación de la Universidad Distrital Francisco José de Caldas.","Rectoría","X ",null,"Toda"]
[null,null,null,"Resolución 536 ",2015,"Por la cual se crea y se conforma el Subsistema de Control Interno, SCI- UD, de la Universidad Distrital Francisco José de Caldas y se establece la Política, Objetivos y Responsabilidades. Deroga las Resoluciones de Rectoría 375 de 2001, 201 y 202 de 2007.","Rectoría","X ",null,"Toda"]
[null,null,null,"Resolución 379",2016,"Por medio de la cual se adopta la Política de Prevención del Daño Anti jurídico y Defensa Judicial en la Universidad Distrital Francisco José de Caldas.","Rectoría","X ",null,"Toda"]
[null,null,null,"Resolución 163 ",2019,"Por la cual se ajusta el Sistema Integrado de Gestión de la Universidad Distrital Francisco José de Caldas - SIGUD, se implementa el Modelo Integrado de Planeación y Gestión - MIPG, como su Marco de Referencia, y se crea el Comité Institucional de Gestión y Desempeño. Deroga la Resolución 215 de 2014","Rectoría","X ",null,"Toda"]
[null,null,null,"Resolución 297",2019,"Por la cual se reglamenta el funcionamiento y operativización de los Equipos Técnicos de Gestión y Desempeño Institucional, como instancias de apoyo del Comité Institucional de Gestión y Desempeño, y se corrige la Resolución de Rectoría No. 163 de mayo 9 de 2019.","Rectoría","X ",null,"Toda"]
[null,null,null,"Acta 01",2019,"En la que el Comité Coordinador de Control Interno aprueba el Código de Ética del Auditor Interno, como la guía principal para orientar las acciones del auditor interno y define su manera de actuar en el desempeño de las funciones y actividades asignadas. ","Comité Coordinador de Control Interno (CCCI)","X ",null,"Toda"]
[null,null,null,"Acta 01",2019,"Por el cual se estructura el 'Estatuto de Auditoría Interna' y se desarrolla en dos capítulos, el primero, referente a la denominación, naturaleza jurídica y objeto de la auditoría interna, y el segundo, referente al auditor interno.  (Acta 01 - CCCI /febrero 2019) ","Comité Coordinador de Control Interno (CCCI)","X ",null,"Toda"]
[]
[null,null,null,"ELABORÓ",null,"REVISÓ","APROBÓ"]
[null,null,null,"Nombre: Equipo OACI\nCargo: N/A\nFecha: 20/Septiembre/2019",null,"Nombre: Luz Marina Garzón Lozano\nCargo: Jefe Oficina Asesora de Control Interno\nFecha: 20/Septiembre/2019","Nombre: Luz Marina Garzón Lozano\nCargo: Jefe Oficina Asesora de Control Interno\nFecha: 20/Septiembre/2019"]

{"sheet":"CD","index":22,"n_rows":26,"n_cols":10,"rows_kept":26,"cut":false,"hidden":false,"merged":[[1,1,3,2],[1,3,1,6],[1,7,1,8],[1,9,3,9],[2,3,2,6],[2,7,2,8],[3,3,3,6],[3,7,3,8],[25,3,25,4],[25,6,25,7],[5,1,5,2],[5,3,5,9],[7,1,7,9],[9,1,22,1],[9,2,22,2],[24,3,24,4],[24,6,24,7]]}
[0]
[null,null,null,"NORMOGRAMA POR PROCESOS",null,null,null,"Código: GI-PR-002-FR-017"]
[null,null,null,"Macroproceso: Direccionamiento Estratégico",null,null,null,"Versión: 02"]
[null,null,null,"Proceso: Gestión Integrada",null,null,null,"Fecha de Aprobación: 17/11/2017"]
[null," "]
[null,"Proceso",null,"Control Disciplinario"]
[]
[null,"IDENTIFICACIÓN DE REQUISÍTOS LEGALES Y/O NORMATIVOS -  IDENTIFICACIÓN DEL REQUISÍTO"]
[null,"Macroproceso","Proceso","Clasificación de la Norma","Año","Temática","Expedida por","Interna","Externa","Artículo Aplicable"]
[null,"Evaluación y Control",{"$f":"IF(D6=\"\",\"-\",D6)","v":"Control Disciplinario"},"Constitución Política de Colombia ",1991,"Constitución Política de Colombia.","Asamblea Nacional Constituyente",null,"X ","Arts. 29, 69, 209, 269."]
[null,null,null,"Ley 30",1992,"Por la cual se organiza el servicio público de la educación superior.","Congreso de la República",null,"X ","Art. 79."]
[null,null,null,"Ley 599",2000,"Por la cual se expide el Código Penal.","Congreso de la República",null,"X ","Toda."]
[null,null,null,"Ley 734 ",2002,"Por la cual se expide el Código Único Disciplinario.","Congreso de la República",null,"X ","Toda."]
[null,null,null,"Ley 906",2004,"Por la cual se expide el Código de Procedimiento Penal.","Congreso de la República",null,"X ","Toda."]
[null,null,null,"Ley 962 ",2005,"Ninguna denuncia o queja anónima podrá promover acción jurisdiccional, penal, disciplinaria, fiscal, o actuación de la autoridad administrativa competente (excepto cuando se acredite, por lo menos sumariamente la veracidad de los hechos denunciados) o cuando se refiera en concreto a hechos o personas claramente identificables.","Congreso de la República",null,"X ","Art. 81."]
[null,null,null,"Ley 1437",2011,"Por la cual se expide el Código de Procedimiento Administrativo y de lo Contencioso Administrativo.","Congreso de la República",null,"X ","Toda."]
[null,null,null,"Ley 1474 ",2011,"Por la cual se dictan normas orientadas a fortalecer los mecanismos de prevención, investigación y sanción de actos de corrupción y la efectividad del control de la gestión pública.","Congreso de la República",null,"X ","Capítulo III (Arts. 41 al 60)."]
[null,null,null,"Ley 1564",2012,"Por la cual se expide el Código General del Proceso y se dictan otras disposiciones.","Congreso de la República",null,"X ","Toda."]
[null,null,null,"Sentencia C-1076",2002,"Demanda de inconstitucionalidad de algunas disposiciones pertenecientes a la Ley 734 de 2002.","Corte Constitucional de Colombia",null,"X ","Toda."]
[null,null,null,"Directiva 06",1997,"Criterios para compulsar copias en caso de prescripción, moras y omisiones procesales.","Procuraduría General de la Nación",null,"X ","Toda."]
[null,null,null,"Acuerdo 011",2002,"Por el cual se expide el Estatuto del Docente de Carrera de la Universidad Distrital Francisco José de Caldas. ","Consejo Superior Universitario","X ",null,"Título VIII. Régimen Disciplinario."]
[null,null,null,"Resolución 1101 ",2002,"Por la cual se estable el manual descriptivo de funciones generales y específicas y los requisitos mínimos para los cargos de la planta de personal administrativo de la Universidad Distrital Francisco José de Caldas.","Rectoría","X ",null,"Toda."]
[null,null,null,"Circular 01 ",2019,"Circular para contribuir al esclarecimiento de aspectos centrales frente al control disciplinario en la Universidad Distrital Francisco José de Caldas.","Oficina Asesora de Asuntos Disciplinarios","X ",null,"Toda."]
[]
[null,null,null,"ELABORÓ",null,"REVISÓ","APROBÓ"]
[null,null,null,"Nombre: Lina Ramírez\nCargo: Contratista Oficina Asesora de Asuntos Disciplinarios\nFecha: 25/Septiembre/2019",null,"Nombre: Natalia Guzmán Pérez\nCargo: Jefe Oficina Asesora de Asuntos Disciplinarios\nFecha: 25/Septiembre/2019","Nombre: Natalia Guzmán Pérez\nCargo: Jefe Oficina Asesora de Asuntos Disciplinarios\nFecha: 25/Septiembre/2019"]

{"sheet":"Datos","index":23,"n_rows":26,"n_cols":5,"rows_kept":26,"cut":false,"hidden":true,"merged":[]}
[]
[null,"Proceso","CÓDIGO"]
[null,"Planeación Estratégica e Institucional","NPE-PEI-001"]
[null,"Gestión Integrada","NPE-GI-002 "]
[null,"Autoevaluación y Acreditación","NPE-AA-003 "]
[null,"Interinstitucionalización e Internacionalización","NPE-II-004"]
[null,"Comunicaciones","NPE-C-005 "]
[null,"Gestión de Docencia","NPM-GD-001"]
[null,"Gestión de Investigación","NPM-GI-002"]
[null,"Extensión y Proyección Social","NPM-EPS-003"]
[null,"Admisiones, Registro y Control","NPA-ARC-001"]
[null,"Bienestar Institucional","NPA-BI-002"]
[null,"Gestión de la Información Bibliográfica","NPA-GIB-003"]
[null,"Gestión de Laboratorios","NPA-GL-004"]
[null,"Servicio al Ciudadano","NPA-SC-005"]
[null,"Gestión de los Sistemas de Información y las Telecomunicaciones","NPA-GSIT-006"]
[null,"Gestión y Desarrollo del Talento Humano","NPA-GDTH-007"]
[null,"Gestión Documental","NPA-GD-008"]
[null,"Gestión de Infraestructura Física","NPA-GIF-009"]
[null,"Gestión de Recursos Financieros","NPA-GRF-010"]
[null,"Gestión Contractual","NPA-GC-011"]
[null,"Gestión Jurídica","NPA-GJ-012"]
[null,"Gestión de Evaluación y Control","NPC-EC-001"]
[null,"Control Disciplinario","NPC-CD-002"]
[null,"Seleccione un proceso"]
[null,null,null,null,"}"]